Workbook

Sheet Generic (hidden)
K2: =M8+I15 -> 111
S4: ='Simple AR Calculator'!B89 -> 5.376612482 | U4: =AA4 -> 0.2164381277 | W4: =S4+U4 -> 5.59305061 | Y4: ='Simple AR Calculator'!E89 -> 17.82764395 | AA4: ='Simple AR Calculator'!K13/'Simple AR Calculator'!D9 -> 0.2164381277
O5: =I15/M8 -> 5.372723325 | S5: ='Simple AR Calculator'!B90 -> 5.517963399 | T5: =S4/S5 -> 0.9743834987 | U5: =U4*T5 -> 0.2108937402 | W5: =S5+U5 -> 5.728857139 | Y5: ='Simple AR Calculator'!E90 -> 17.8405856 | Z5: =Y5/Y4 -> 1.000725932 | AA5: =AA4*Z5 -> 0.2165952471
S6: ='Simple AR Calculator'!B91 -> 5.592596281 | T6: 0.9866550564 | U6: 0.2080793751 | W6: 5.800675656 | Y6: ='Simple AR Calculator'!E91 -> 17.85600648 | Z6: =Y6/Y5 -> 1.00086437 | AA6: =AA5*Z6 -> 0.2167824656
O7: AR is active calculation | S7: ='Simple AR Calculator'!B92 -> 5.655427844 | T7: 0.9888900425 | U7: 0.2057676221 | W7: 5.861195466 | Y7: ='Simple AR Calculator'!E92 -> 17.87437871 | Z7: 1.00102891 | AA7: 0.2170055153
M8: =M14+L10 -> 17.41798511 | O8: =I18/M14 -> 5.935483871 | S8: ='Simple AR Calculator'!B93 -> 5.708290192 | T8: 0.9907393727 | U8: 0.2038620848 | W8: 5.912152277 | Y8: ='Simple AR Calculator'!E93 -> 17.89626316 | Z8: 1.001224348 | AA8: 0.2172712055
O9: =I15/M8 -> 5.372723325 | P9: =AVERAGE(O8,O9) -> 5.654103598 | S9: ='Simple AR Calculator'!B94 -> 5.752741204 | T9: 0.992273073 | U9: 0.2022868573 | W9: 5.955028061 | Y9: ='Simple AR Calculator'!E94 -> 17.92232565 | Z9: 1.001456309 | AA9: 0.2175876195
L10: =I18-I15 -> 1.413333948 | M10: =M8-M14 -> 1.413333948 | O10: =1/O8 -> 0.1684782609 | S10: ='Simple AR Calculator'!B95 -> 5.790102469 | T10: 0.9935473913 | U10: 0.2009815794 | W10: 5.991084049 | Y10: ='Simple AR Calculator'!E95 -> 17.95335588 | Z10: 1.001731373 | AA10: 0.2179643449
I11: ='Simple AR Calculator'!C17 -> 111 | O11: =1/O9 -> 0.1861253483 | S11: ='Simple AR Calculator'!B96 -> 5.821492957 | T11: 0.9946078286 | U11: 0.1998978523 | W11: 6.02139081 | Y11: ='Simple AR Calculator'!E96 -> 17.99028955 | Z11: 1.002057202 | AA11: 0.2184127415
B12: CosA = a/b | D12: =I28/I11 -> 0.9684684685 | S12: ='Simple AR Calculator'!B97 -> 5.847858561 | T12: 0.9954914088 | U12: 0.1989965946 | W12: 6.046855156 | Y12: ='Simple AR Calculator'!E97 -> 18.03423401 | Z12: 1.002442677 | AA12: 0.2189462532
D13: =DEGREES(ACOS(D12)) -> 14.42640041 | S13: ='Simple AR Calculator'!B98 -> 5.869997805 | T13: 0.9962284068 | U13: 0.1982460604 | W13: 6.068243865 | Y13: ='Simple AR Calculator'!E98 -> 18.08649789 | Z13: 1.002898037 | AA13: 0.2195807675
M14: =D15 -> 16.00465116 | P14: =I15+M8 -> 111 | S14: ='Simple AR Calculator'!B99 -> 5.888584059 | T14: 0.9968436804 | U14: 0.1976203324 | W14: 6.086204391 | Y14: ='Simple AR Calculator'!E99 -> 18.14862511 | Z14: 1.003435006 | AA14: 0.2203350287
B15: PRO adj to hyp | D15: =(M24*I11)/I28 -> 16.00465116 | E15: mm | I15: =C24 -> 93.58201489 | P15: =M14+I18 -> 111 | S15: ='Simple AR Calculator'!B100 -> 5.90418463 | T15: 0.9973577094 | U15: 0.1970981621 | W15: 6.101282792 | Y15: ='Simple AR Calculator'!E100 -> 18.22243362 | Z15: 1.004066892 | AA15: 0.2212311075
B16: o = TanA*adj | D16: =(TAN(RADIANS(E23))*I28) -> 27.65411362 | E16: mm | S16: ='Simple AR Calculator'!B111 -> 5.821853546 | T16: 1.014141731 | U16: 0.1998854712 | W16: 6.021739017 | Y16: ='Simple AR Calculator'!E111 -> 18.39540905 | Z16: 1.009492444 | AA16: 0.2233311315
D17: =(TAN(RADIANS(E23))*I24) -> 23.66677631 | E17: mm | S17: ='Simple AR Calculator'!B101 -> 5.917277106 | T17: 0.9838737381 | U17: 0.1966620657 | W17: 6.113939172 | Y17: ='Simple AR Calculator'!E101 -> 18.3100591 | Z17: 0.995360258 | AA17: 0.2222949326
I18: =I11-M14 -> 94.99534884 | L18: =D17 -> 23.66677631 | N18: =D16 -> 27.65411362 | S18: ='Simple AR Calculator'!B102 -> 5.928263283 | T18: 0.9981468136 | U18: 0.1962976143 | W18: 6.124560898 | Y18: ='Simple AR Calculator'!E102 -> 18.41400381 | Z18: 1.005676918 | AA18: 0.2235568828
S19: ='Simple AR Calculator'!B103 -> 5.937481015 | T19: 0.9984475349 | U19: 0.1959928691 | W19: 6.133473884 | Y19: ='Simple AR Calculator'!E103 -> 18.53719036 | Z19: 1.00668983 | AA19: 0.2250524404
S20: ='Simple AR Calculator'!B104 -> 5.945214263 | T20: 0.9986992484 | U20: 0.195737931 | W20: 6.140952194 | Y20: ='Simple AR Calculator'!E104 -> 18.68302007 | Z20: 1.007866872 | AA20: 0.2268228991
B21: ROT = | C21: =E23-C27 -> 10.55019385 | S21: ='Simple AR Calculator'!B105 -> 5.9517016 | T21: 0.998910003 | U21: 0.1955245773 | W21: 6.147226177 | Y21: ='Simple AR Calculator'!E105 -> 18.85543495 | Z21: 1.009228426 | AA21: 0.2289161176
C22: =(TAN(RADIANS(F22))*I24) -> 17.13457063 | F22: =C21 -> 10.55019385 | M22: =N18-L18 -> 3.987337312 | S22: ='Simple AR Calculator'!B106 -> 5.957143407 | T22: 0.9990865073 | U22: 0.195345967 | W22: 6.152489374 | Y22: ='Simple AR Calculator'!E106 -> 19.0589821 | Z22: 1.010795145 | AA22: 0.2313873002
B23: Pthag = a2+b2=c2 | D23: A | E23: =D13 -> 14.42640041 | S23: ='Simple AR Calculator'!B107 -> 5.961707941 | T23: 0.999234358 | U23: 0.1951964019 | W23: 6.156904343 | Y23: ='Simple AR Calculator'!E107 -> 19.29887852 | Z23: 1.012587053 | AA23: 0.2342997845
C24: =SQRT(C22^2+I24^2) -> 93.58201489 | I24: ='Simple AR Calculator'!C9 -> 92 | M24: ='Simple AR Calculator'!C12 -> 15.5 | O24: =I24/M24 -> 5.935483871 | S24: ='Simple AR Calculator'!B108 -> 5.965536455 | T24: 0.9993582281 | U24: 0.1950711303 | W24: 6.160607585 | Y24: ='Simple AR Calculator'!E108 -> 19.5810738 | Z24: 1.014622366 | AA24: 0.2377258018
B25: carry in | C25: ='Simple AR Calculator'!C147 -> 3.870309117 | D25: whip rot
C26: ='Simple AR Calculator'!E147 -> 3.476631412
C27: ='Simple AR Calculator'!C130 -> 3.876206562 | O27: =N18/I24 -> 0.3005881915 | P27: is 19.82!
I28: =I24+M24 -> 107.5 | O28: =L18/I28 -> 0.2201560587
B29: Geometric angle of whip rotation = | N29: tan | O29: =C22/I24 -> 0.1862453329 | P29: is 13.6502
G30: =1/O24 -> 0.1684782609 | H30: =1/G30 -> 5.935483871 | I30: AR | J30: =H30*0.95 -> 5.638709677 | O30: =L18/I24 -> 0.2572475685 | P30: is 17.146
B31: f /d = | C31: Sk_in_Seg / Whip_O_Mom = | F31: Iso Sys AR | G31: =M8/I15 -> 0.1861253483 | H31: =1/G31 -> 5.372723325 | I31: AR
B32: Now AR * Sk_rots_Ideal of | E32: 19.49 | F32: =E32*G31 -> 3.627583037 | G32: which = Whip Rot
B33: Whip Rot * Key Ratio = Key Rot | F33: =C25*(132/266) -> 1.920604524 | N33: =L10 -> 1.413333948
N34: a | O34: B
C35: cosA = (b2 + c2 - a2) / (2bc) | F35: =(M38^2 +P37^ 2 - N33^2) / (2*M38*P37) -> 1.010620085 | G35: =DEGREES(ACOS(F35)) ->  | M35: C | U35: Driving | V35: Driven (f) | AA35: Driving | AB35: Driven (f) | AH35: Torques
C36: a2-b2-c2 | F36: =(I24^2 - I11^2 -N18^2) / (-2*I24*I11) -> 0.2262901488 | U36: ='Simple AR Calculator'!D7 -> 131.8976876 | V36: ='Simple AR Calculator'!D10 -> 64.5 | AA36: ='Simple AR Calculator'!C7 -> 126 | AB36: ='Simple AR Calculator'!C10 -> 64.5 | AH36: =50*'Simple AR Calculator'!C8 -> 12250 | AI36: ='Simple AR Calculator'!H12/1000 -> 0.008465537614 | AV36: (8.7680774*10^(-5))*x^3-0.0046096*x^2+0.0859817*x+5.120083
O37: c | P37: =N18 -> 27.65411362 | S37: 20.1 | T37: =AB37 -> 15.5 | U37: ='Simple AR Calculator'!D9 -> 92 | V37: ='Simple AR Calculator'!F16 -> 17.88687996 | W37: (f) / drive | AA37: ='Simple AR Calculator'!C9 -> 92 | AB37: ='Simple AR Calculator'!C12 -> 15.5 | AC37: (f) / drive | AH37: ='Simple AR Calculator'!H12*'Simple AR Calculator'!C11 -> 1100.51989 | AI37: ='Simple AR Calculator'!C11/1000 -> 0.13
M38: =L18 -> 23.66677631 | N38: b | U38: =U36*U37 -> 12134.58726 | V38: =V36*V37 -> 1153.703758 | W38: =V38/U38 -> 0.09507564888 | X38: =1/W38 -> 10.51794031 | Y38: =X38/2 -> 5.258970156 | AA38: =AA36*AA37 -> 11592 | AB38: =AB36*AB37 -> 999.75 | AC38: =AB38/AA38 -> 0.08624482402 | AD38: =1/AC38 -> 11.59489872 | AE38: =AD38/2 -> 5.797449362 | AH38: =AH37/AH36 -> 0.08983835835 | AI38: is T_o / T_i aka MA | AV38: -0.0017161*x^2+0.059923*x+5.1733233
C39: cosB = (a2 - b2 + c2) / 2ac | F39: =(G27^2 - E32^2 + B29^2) / (2*G27*B29) ->  | G39: =DEGREES(ACOS(F39)) ->  | H39: =G35+G39+G42 ->  | M39: 22.3425 | AH39: =AH36/AH37 -> 11.13110278 | AI39: =AI36*AI37^2 -> 0.0001430675857 | AJ39: is I_ham
U40: Driving | V40: Driven (f) | AA40: Driving | AB40: Driven (f) | AH40: =AH39^2 -> 123.901449 | AI40: =AB45 -> 0.0001827436327 | AJ40: I_SW
U41: =V36 -> 64.5 | V41: =U36 -> 131.8976876 | AA41: =AB36 -> 64.5 | AB41: =AA36 -> 126 | AH41: =AI40*AH40 -> 0.02264220088 | AI41: inertia
C42: cosC = (a2 + b2 - c2) / 2ab | F42: =(G27^2 + E32^2 - B29^2) / (2*G27*E32) ->  | G42: =DEGREES(ACOS(F42)) ->  | N42: A | S42: 21.4 | T42: =AA42 -> 15.5 | U42: =V37 -> 17.88687996 | V42: =U37 -> 92 | W42: (f) / drive | AA42: =AB37 -> 15.5 | AB42: =AA37 -> 92 | AC42: (f) / drive
U43: =U41*U42 -> 1153.703758 | V43: =V41*V42 -> 12134.58726 | W43: =V43/U43 -> 10.51794031 | X43: =1/W43 -> 0.09507564888 | Y43: =X43/2 -> 0.04753782444 | AA43: =AA41*AA42 -> 999.75 | AB43: =AB41*AB42 -> 11592 | AC43: =AB43/AA43 -> 11.59489872 | AD43: =1/AC43 -> 0.08624482402 | AE43: =AD43/2 -> 0.04312241201
C45: =M24 -> 15.5 | I45: =M24 -> 15.5 | K45: Si Diag | N45: a 2 = b 2 + c 2 - 2 b c cos(A) | R45: =SQRT(H50^2+I45^2) -> 19.91230775 | U45: Iham | V45: ='Simple AR Calculator'!D58 -> 0.0001827436327 | AA45: Iham | AB45: =V45 -> 0.0001827436327
E46: =C45/D48 -> 0.9684684685 | G46: KNUCKLE TRIG | J46: ='Simple AR Calculator'!C14 -> 6 | N46: b 2 = a 2 + c 2 - 2 a c cos(B) | R46: =G47/I45 -> 0.8064516129 | U46: Inert Ham | V46: =X38^2* V45 -> 0.02021639235 | AA46: Inert Ham | AB46: =AD38^2* AB45 -> 0.02456836033
E47: =DEGREES(ACOS(E46)) -> 14.42640041 | F47: deg | G47: =H49+J49 -> 12.5 | N47: c 2 = b 2 + a 2 - 2 b a cos(C) | V47: =V46*10000 -> 202.1639235 | AB47: =AB46*10000 -> 245.6836033 | AG47: ='Simple AR Calculator'!D7 -> 131.8976876 | BG47: Parts
D48: =M14 -> 16.00465116 | E48: =H52-E47 -> 24.45809603 | F48: deg | G48: =(H49/2)+J49 -> 7.75 | R48: =SQRT(G48^2+I45^2) -> 17.32952683 | AG48: ='Simple AR Calculator'!D8 -> 245 | BD48: =BD50/1000 -> 0.008465537614 | BE48: ='Simple AR Calculator'!D8/1000 -> 0.245 | BF48: Key | BG48: =BE48*BB55 -> 1.317270058
D49: =J56 -> 15.5 | E49: =E47+E48 -> 38.88449643 | G49: Knuckle diameter | H49: ='Simple AR Calculator'!C13 -> 9.5 | J49: =J46/2 -> 3 | AG49: ='Simple AR Calculator'!D11 -> 137.5681649 | BD49: ='Simple AR Calculator'!C63 -> 0.1693107523 | BE49: 8.9 | BF49: Rots | BG49: =BG48^2 -> 1.735200406
D50: =D48-D49 -> 0.5046511628 | G50: 9.32 | H50: =H49+J49 -> 12.5 | T50: a= sqrt (b2+c2−2bccosA) | X50: =X170 -> 17.88687996 | AG50: ='Simple AR Calculator'!G128 -> 17.88687996 | AH50: =X54 -> 19.91230775 | BD50: ='Simple AR Calculator'!H12 -> 8.465537614 | BE50: ='Simple AR Calculator'!D58 -> 0.0001827436327 | BF50: Iham | BG50: =(BD48*BG49)*10000 -> 146.8940431 | BI50: =BI55/145 -> 0.0130678179
H51: =G47/I45 -> 0.8064516129 | I51: =SQRT(I45^2+H50^2) -> 19.91230775 | T51: Sharp angle A of Cosine Triangle Recession yield SI Arm | Z51: Ang B of Cosine Triangle Recession yield AR invCos | AG51: ='Simple AR Calculator'!E9 -> 93.23972951 | BG51: =(BE50/(1/BE49)^2)*10000 -> 144.7512314 | BI51: Shank Key Angle RO & squared | BL51: Shank Key Angle RO S/L | BY51: AR config | BZ51: Rads | CA51: Δ Inv. T | CB51: CosT | CC51: invCosT | CD51: AR invCos | CE51: Cos
H52: =DEGREES(ATAN(H51)) -> 38.88449643 | K52: B | T52: Involute T = tanA - A | V52: [where T is the involute ang. And where ang A is in rads] | AE52: ='Simple AR Calculator'!C47 -> 5.305124231 | AG52: ='Simple AR Calculator'!D10 -> 64.5 | AO52: ='Simple AR Calculator'!E56 -> 43 | AQ52: ='Simple AR Calculator'!D47 -> 8.105370982 | AR52: =AO52/AQ52 -> 5.305124231 | BA52: =INDEX(BA55:BA75,MATCH(MIN(ABS(BA55:BA75-6)),ABS(BA55:BA75-6),0)) -> 5.798088894 | BB52: 6 | BI52: Key Ang involute | BL52: Key Ang S/L decrease | BX52: ='Simple AR Calculator'!C47 -> 5.305124231 | BY52: ='Simple AR Calculator'!C49 -> 5.90585203 | CA52: =BY52 -> 5.90585203 | CB52: =COS(RADIANS(CA52)) -> 0.994692313 | CC52: =1/CB52 -> 1.005336009 | CD52: =($AG$47/$AG$48) * ($AG$49/$AG$50)* ($AG$51/$AG$52) * Generic!CC52 -> 6.017373617 | CE52: =($AG$47/$AG$48) * ($AG$49/$AG$50)* ($AG$51/$AG$52) -> 5.985435281
T53: Ang A end | U53: Rads | V53: Δ Inv. T | W53: CosA | X53: Si Arm in | Z53: Ang B | AA53: Rads | AB53: Δ Inv. T | AC53: CosT | AD53: invCosT | AE53: Cos | AF53: Parts Calc | AG53: InvCos | AJ53: Si Arm | AK53: InvCosAR | AL53: Shnk Ang | AM53: CosConfig | AN53: Blow Pot. | AO53: Ham Rise | AP53: Dip Pot. | AQ53: Key Dwn | AS53: Readouts below per KEY ANGLE recesion: Yield Dip, ARCos, Blow | AZ53: Readouts Shorter Version of Left | BE53: Readout per Shank Angle Recession | BY53: =BY52 -> 5.90585203 | BZ53: =(RADIANS(BY53)) -> 0.1030765631 | CA53: =BZ53-BY53 -> -5.802775467 | CB53: =COS(RADIANS(CA53)) -> 0.9948758124 | CC53: =1/CB53 -> 1.00515058 | CD53: =($AG$47/$AG$48) * ($AG$49/$AG$50)* ($AG$51/$AG$52) * Generic!CC53 -> 6.016263745 | CE53: 5.985435281
S54: ='Simple AR Calculator'!B166 -> 1.196503709 | T54: =T55 -> 5.072710271 | U54: =(RADIANS(T54)) -> 0.08853549622 | V54: =T54 -> 5.072710271 | W54: =COS(RADIANS(V54)) -> 0.9960832924 | X54: =SQRT($H$62^2+$F$60^2-2*$H$62*$F$60*(COS(RADIANS(V54)))) -> 19.91230775 | Y54: ='Simple AR Calculator'!J131 -> 6.248996008 | Z54: =Z55 -> 24.45809603 | AB54: =Z54 -> 24.45809603 | AC54: =COS(RADIANS(AB54)) -> 0.9102643185 | AD54: =1/AC54 -> 1.098582005 | AE54: =($AG$47/$AG$48) * ($AG$49/$AH$50)* ($AG$51/$AG$52) * Generic!AC54 -> 4.894138497 | AF54: =($AG$47/$AG$48) * ($AG$49/X54)* ($AG$51/$AG$52) -> 5.376612482 | AG54: =($AG$47/$AG$48) * ($AG$49/$AG$50)* ($AG$51/$AG$52)*AD54 -> 6.575491491 | AH54: =($AG$47/$AG$48) * ($AG$49/$AH$50)* ($AG$51/$AG$52)*AD54 -> 5.90664972 | AJ54: =X54 -> 19.91230775 | AK54: =AG54 -> 6.575491491 | AL54: =BE56 -> 18.15040506 | AM54: =BB55 -> 5.376612482 | AN54: =BC55 -> 43.55560962 | AO54: =$AO$52-AN54 -> -0.5556096224 | AP54: =BA55 -> 8.100938977 | AQ54: =$AQ$52-AP54 -> 0.004432004639 | AR54: =$AO$52/AM54 -> 7.997600746 | AS54: Ang A end | AT54: Rads | AU54: Δ Inv. T | AV54: sinA | AW54: Δ Dip | AX54: ARCos | AY54: Blow | BA54: Δ Dip | BB54: Cos | BC54: Blow | BD54: Inertia | BE54: Shk Ang | BF54: Rads | BG54: Δ Inv. T | BH54: sinA | BJ54: Shk/Key | BK54: Squared | BM54: Shk/key | BN54: Squared | BO54: Inertia | BR54: Ang B | BS54: Rads | BT54: Δ Inv. T | BU54: CosT | BY54: =ABS(CA53) -> 5.802775467 | BZ54: =(RADIANS(BY54)) -> 0.1012775377 | CA54: =BZ54-BY54 -> -5.70149793 | CB54: =COS(RADIANS(CA54)) -> 0.995052973 | CC54: =1/CB54 -> 1.004971622 | CD54: =($AG$47/$AG$48) * ($AG$49/$AG$50)* ($AG$51/$AG$52) * Generic!CC54 -> 6.015192601 | CE54: 5.985435281
I55: =F60-K64 -> 1.755619325 | T55: ='Simple AR Calculator'!C129 -> 5.072710271 | U55: =(RADIANS(T55)) -> 0.08853549622 | V55: =U55-T55 -> -4.984174774 | W55: =COS(RADIANS(V55)) -> 0.9962187327 | X55: =SQRT($H$62^2+$F$60^2-2*$H$62*$F$60*(COS(RADIANS(V55)))) -> 19.84178649 | Y55: 1 | Z55: ='Simple AR Calculator'!I156 -> 24.45809603 | AA55: =(RADIANS(Z55)) -> 0.4268743044 | AB55: =AA55-Z55 -> -24.03122172 | AC55: =COS(RADIANS(AB55)) -> 0.9133236823 | AD55: =1/AC55 -> 1.094902081 | AE55: =($AG$47/$AG$48) * ($AG$49/$AG$50)* ($AG$51/$AG$52) * Generic!AC55 -> 5.466639791 | AF55: =($AG$47/$AG$48) * ($AG$49/X55)* ($AG$51/$AG$52) -> 5.395721925 | AG55: =($AG$47/$AG$48) * ($AG$49/$AG$50)* ($AG$51/$AG$52)*AD55 -> 6.553465542 | AH55: =($AG$47/$AG$48) * ($AG$49/$AH$50)* ($AG$51/$AG$52)*AD55 -> 5.886864193 | AJ55: =X59 -> 19.5810738 | AK55: =AG59 -> 6.473775539 | AL55: =BE59 -> 17.21654236 | AM55: =BB56 -> 5.517963399 | AN55: =BC56 -> 41.66173928 | AO55: =$AO$52-AN55 -> 1.338260715 | AP55: 7.55020218 | AQ55: 0.5551688016 | AR55: =$AO$52/AM55 -> 7.792730196 | AS55: ='Simple AR Calculator'!E144 -> 1.894833595 | AT55: =(RADIANS(AS55)) -> 0.03307108501 | AU55: =AS55 -> 1.894833595 | AV55: =SIN(RADIANS(AU55)) -> 0.03306505705 | AW55: =AV55*'Simple AR Calculator'!$C$8 -> 8.100938977 | AX55: =AF54 -> 5.376612482 | AY55: =AW55*AX55 -> 43.55560962 | AZ55: 1 | BA55: =AW55 -> 8.100938977 | BB55: =AX55 -> 5.376612482 | BC55: =AY55 -> 43.55560962 | BD55: =(($BE$48*BB55)^2*$BD$48)*10000 -> 146.8940431 | BE55: ='Simple AR Calculator'!J145 -> 18.15040506 | BF55: =(RADIANS(BE55)) -> 0.3167843288 | BG55: =BE55 -> 18.15040506 | BH55: =SIN(RADIANS(BG55)) -> 0.3115125105 | BI55: =AS55 -> 1.894833595 | BJ55: =BE55/BI55 -> 9.578891311 | BK55: =BJ55^2 -> 91.75515875 | BL55: =BI55 -> 1.894833595 | BM55: =BE55/BL55 -> 9.578891311 | BN55: =BM55^2 -> 91.75515875 | BO55: =BN55*$BE$50 -> 0.01676767103 | BR55: =BR56 -> 29.5308063 | BT55: =BR55 -> 29.5308063 | BU55: =COS(RADIANS(BT55)) -> 0.8700908081 | BY55: =ABS(CA54) -> 5.70149793 | BZ55: =(RADIANS(BY55)) -> 0.09950991117 | CA55: =BZ55-BY55 -> -5.601988019 | CB55: =COS(RADIANS(CA55)) -> 0.9952240135 | CC55: =1/CB55 -> 1.004798906 | CD55: =($AG$47/$AG$48) * ($AG$49/$AG$50)* ($AG$51/$AG$52) * Generic!CC55 -> 6.014158822 | CE55: 5.985435281
G56: Shank CL | J56: =I45 -> 15.5 | K56: =H52 -> 38.88449643 | L56: degrees inc. | T56: =ABS(V55) -> 4.984174774 | U56: =(RADIANS(T56)) -> 0.08699026031 | V56: =U56-T56 -> -4.897184514 | W56: =COS(RADIANS(V56)) -> 0.9963494923 | X56: =SQRT($H$62^2+$F$60^2-2*$H$62*$F$60*(COS(RADIANS(V56)))) -> 19.77346376 | Z56: =ABS(AB55) -> 24.03122172 | AA56: =(RADIANS(Z56)) -> 0.4194239423 | AB56: =AA56-Z56 -> -23.61179778 | AC56: =COS(RADIANS(AB56)) -> 0.9162802742 | AD56: =1/AC56 -> 1.091369124 | AE56: =($AG$47/$AG$48) * ($AG$49/$AG$50)* ($AG$51/$AG$52) * Generic!AC56 -> 5.484336281 | AF56: 5.414365623 | AG56: 6.532319258 | AH56: 5.867868854 | AJ56: =X64 -> 19.29887852 | AK56: =AG64 -> 6.390502253 | AL56: =BE64 -> 15.76565283 | AM56: 5.592596281 | AN56: 38.66777441 | AO56: =$AO$52-AN56 -> 4.332225585 | AP56: 6.914100799 | AQ56: 1.191270183 | AR56: =$AO$52/AM56 -> 7.688736651 | AS56: =AS55 -> 1.894833595 | AT56: =(RADIANS(AS56)) -> 0.03307108501 | AU56: =AT56-AS56 -> -1.86176251 | AV56: =SIN(RADIANS(AU56)) -> -0.03248816786 | AW56: =ABS(AV56)*'Simple AR Calculator'!$C$8 -> 7.959601127 | AX56: =AE55 -> 5.466639791 | AY56: =AW56*AX56 -> 43.51227224 | BA56: =AW59 -> 7.55020218 | BB56: =AX59 -> 5.517963399 | BC56: =AY59 -> 41.66173928 | BD56: =(($BE$48*BB56)^2*$BD$48)*10000 -> 154.7192471 | BE56: =BE55 -> 18.15040506 | BF56: =(RADIANS(BE56)) -> 0.3167843288 | BG56: =BF56-BE56 -> -17.83362073 | BH56: =SIN(RADIANS(BG56)) -> -0.3062539546 | BI56: =AS56 -> 1.894833595 | BJ56: =BE56/BI56 -> 9.578891311 | BK56: =BJ56^2 -> 91.75515875 | BL56: =BL55- $BI$50 -> 1.881765777 | BM56: =BE56/BL56 -> 9.645411389 | BN56: =BM56^2 -> 93.03396087 | BO56: =BN56*$BE$50 -> 0.01700136397 | BR56: ='Simple AR Calculator'!I162 -> 29.5308063 | BS56: =(RADIANS(BR56)) -> 0.5154098006 | BT56: =BS56-BR56 -> -29.0153965 | BU56: 0.8744893977 | BY56: 5.601988019 | BZ56: 0.09777313558 | CA56: -5.504214883 | CB56: 0.9953891449 | CC56: 1.004632214 | CD56: =($AG$47/$AG$48) * ($AG$49/$AG$50)* ($AG$51/$AG$52) * Generic!CC56 -> 6.013161095 | CE56: 5.985435281
T57: =ABS(V56) -> 4.897184514 | U57: =(RADIANS(T57)) -> 0.08547199385 | V57: =U57-T57 -> -4.81171252 | W57: 0.9964757328 | X57: 19.70727757 | Z57: =ABS(AB56) -> 23.61179778 | AA57: =(RADIANS(Z57)) -> 0.4121036136 | AB57: =AA57-Z57 -> -23.19969417 | AC57: 0.919137442 | AD57: 1.087976568 | AE57: =($AG$47/$AG$48) * ($AG$49/$AG$50)* ($AG$51/$AG$52) * Generic!AC57 -> 5.501437674 | AF57: 5.432549577 | AG57: 6.512013337 | AH57: 5.849628398 | AJ57: =X69 -> 19.0589821 | AK57: =AG69 -> 6.322049062 | AL57: =BE69 -> 14.4370341 | AM57: 5.655427844 | AN57: 35.80770652 | AO57: 7.19229348 | AP57: 6.331564562 | AQ57: 1.77380642 | AR57: 7.603315114 | AS57: =ABS(AU56) -> 1.86176251 | AT57: =(RADIANS(AS57)) -> 0.03249388569 | AU57: -1.829268624 | AV57: =SIN(RADIANS(AU57)) -> -0.03192133675 | AW57: =ABS(AV57)*'Simple AR Calculator'!$C$8 -> 7.820727504 | AX57: 5.484336281 | AY57: 42.89149959 | BA57: =AW64 -> 6.914100799 | BB57: =AX64 -> 5.592596281 | BC57: =AY64 -> 38.66777441 | BD57: 158.9328428 | BE57: =ABS(BG56) -> 17.83362073 | BF57: =(RADIANS(BE57)) -> 0.3112553993 | BG57: =BF57-BE57 -> -17.52236533 | BH57: =SIN(RADIANS(BG57)) -> -0.3010780587 | BI57: 1.86176251 | BJ57: 9.578891311 | BK57: 91.75515875 | BL57: =BL56- $BI$50 -> 1.868697959 | BM57: =BE57/BL57 -> 9.5433404 | BN57: 91.07534599 | BO57: 0.01664343957 | BR57: =ABS(BT56) -> 29.0153965 | BS57: =(RADIANS(BR57)) -> 0.5064142026 | BT57: =BS57-BR57 -> -28.50898229 | BU57: 0.8787422974 | BY57: 5.504214883 | BZ57: 0.09606667244 | CA57: -5.40814821 | CB57: 0.9955485711 | CC57: 1.004471333 | CD57: =($AG$47/$AG$48) * ($AG$49/$AG$50)* ($AG$51/$AG$52) * Generic!CC57 -> 6.012198154 | CE57: 5.985435281
K58: =E48 -> 24.45809603 | L58: degrees | M58: =K56-K58 -> 14.42640041 | N58: deg | T58: 4.81171252 | U58: 0.08398022614 | V58: -4.727732294 | W58: 0.9965976102 | X58: 19.64316732 | Z58: =ABS(AB57) -> 23.19969417 | AA58: 0.4049110486 | AB58: -22.79478312 | AC58: 0.9218984318 | AD58: 1.084718192 | AE58: =($AG$47/$AG$48) * ($AG$49/$AG$50)* ($AG$51/$AG$52) * Generic!AC58 -> 5.517963399 | AF58: 5.450280022 | AG58: 6.492510536 | AH58: 5.83210937 | AJ58: =X74 -> 18.85543495 | AK58: =AG74 -> 6.265589286 | AL58: =BE74 -> 13.22038204 | AM58: 5.708290192 | AN58: 33.09717397 | AO58: 9.90282603 | AP58: 5.798088894 | AQ58: 2.307282087 | AR58: 7.532903646 | AS58: 1.829268624 | AT58: =(RADIANS(AS58)) -> 0.0319267604 | AU58: -1.797341864 | AV58: -0.03136438871 | AW58: =ABS(AV58)*'Simple AR Calculator'!$C$8 -> 7.684275234 | AX58: 5.501437674 | AY58: 42.27456127 | BA58: =AW69 -> 6.331564562 | BB58: =AX69 -> 5.655427844 | BC58: =AY69 -> 35.80770652 | BD58: 162.5240529 | BE58: =ABS(BG57) -> 17.52236533 | BF58: =(RADIANS(BE58)) -> 0.3058229677 | BG58: =BF58-BE58 -> -17.21654236 | BH58: -0.2959838444 | BI58: 1.829268624 | BJ58: 9.578891311 | BK58: 91.75515875 | BL58: 1.855630141 | BM58: 9.442811334 | BN58: 89.16668589 | BO58: 0.01629464409 | BR58: =ABS(BT57) -> 28.50898229 | BS58: =(RADIANS(BR58)) -> 0.4975756074 | BT58: =BS58-BR58 -> -28.01140669 | BU58: 0.882854111 | BY58: 5.40814821 | BZ58: 0.09438999271 | CA58: -5.313758218 | CB58: 0.9957024889 | CC58: 1.004316059 | CD58: =($AG$47/$AG$48) * ($AG$49/$AG$50)* ($AG$51/$AG$52) * Generic!CC58 -> 6.011268775 | CE58: 5.985435281
F59: c | J59: a | K59: =I51 -> 19.91230775 | L59: mm | M59: ='Simple AR Calculator'!C134 -> 24.45809603 | T59: 4.727732294 | U59: 0.08251449468 | V59: -4.645217799 | W59: 0.9967152751 | X59: 19.5810738 | Z59: 22.79478312 | AA59: =(RADIANS(Z59)) -> 0.3978440177 | AB59: -22.3969391 | AC59: =COS(RADIANS(AB59)) -> 0.9245663901 | AD59: 1.081588094 | AE59: =($AG$47/$AG$48) * ($AG$49/$AG$50)* ($AG$51/$AG$52) * Generic!AC59 -> 5.533932291 | AF59: 5.467563399 | AG59: 6.473775539 | AH59: 5.815280049 | AJ59: =X79 -> 18.68302007 | AK59: =AG79 -> 6.21889243 | AL59: =BE79 -> 12.10626089 | AM59: 5.752741204 | AN59: 30.54444766 | AO59: 12.45555234 | AP59: 5.309546627 | AQ59: 2.795824354 | AR59: 7.474697449 | AS59: 1.797341864 | AT59: 0.03136953331 | AU59: -1.765972331 | AV59: -0.03081715176 | AW59: =ABS(AV59)*'Simple AR Calculator'!$C$8 -> 7.55020218 | AX59: =AE58 -> 5.517963399 | AY59: 41.66173928 | AZ59: 5 | BA59: =AW74 -> 5.798088894 | BB59: =AX74 -> 5.708290192 | BC59: =AY74 -> 33.09717397 | BD59: 165.5765384 | BE59: 17.21654236 | BF59: 0.30048535 | BG59: -16.91605701 | BH59: -0.290970327 | BI59: 1.797341864 | BJ59: 9.578891311 | BK59: 91.75515875 | BL59: 1.842562323 | BM59: 9.343804627 | BN59: 87.30668491 | BO59: 0.01595474076 | BR59: =ABS(BT58) -> 28.01140669 | BS59: =(RADIANS(BR59)) -> 0.4888912748 | BT59: -27.52251541 | BU59: 0.8868293122 | BY59: 5.313758218 | BZ59: 0.09274257656 | CA59: -5.221015641 | CB59: 0.9958510883 | CC59: 1.004166197 | CD59: =($AG$47/$AG$48) * ($AG$49/$AG$50)* ($AG$51/$AG$52) * Generic!CC59 -> 6.010371783 | CE59: 5.985435281
F60: =I11 -> 111 | M60: =J56/COS(RADIANS(M58)) -> 16.00465116 | T60: 4.645217799 | U60: 0.08107434507 | V60: -4.564143454 | W60: 0.9968288729 | X60: 19.52093913 | Z60: =ABS(AB59) -> 22.3969391 | AA60: 0.3909003297 | AB60: -22.00603877 | AC60: 0.9271443672 | AD60: 1.078580678 | AE60: =($AG$47/$AG$48) * ($AG$49/$AG$50)* ($AG$51/$AG$52) * Generic!AC60 -> 5.549362606 | AF60: 5.484406345 | AG60: 6.455774842 | AH60: 5.799110335 | AJ60: =X84 -> 18.53719036 | AK60: =AG84 -> 6.180181657 | AL60: =BE84 -> 11.08603007 | AM60: 5.790102469 | AN60: 28.15238553 | AO60: 14.84761447 | AP60: 4.862156703 | AQ60: 3.243214278 | AR60: 7.426466151 | AS60: 1.765972331 | AT60: 0.03082203167 | AU60: -1.735150299 | AV60: -0.03027945689 | AW60: =ABS(AV60)*'Simple AR Calculator'!$C$8 -> 7.418466938 | AX60: 5.533932291 | AY60: 41.05329374 | BA60: =AW79 -> 5.309546627 | BB60: =AX79 -> 5.752741204 | BC60: =AY79 -> 30.54444766 | BD60: 168.1653 | BE60: 16.91605701 | BF60: 0.2952408913 | BG60: -16.62081612 | BH60: -0.2860365166 | BI60: 1.765972331 | BJ60: 9.578891311 | BK60: 91.75515875 | BL60: 1.829494505 | BM60: 9.246301075 | BN60: 85.49408357 | BO60: 0.0156234994 | BR60: =ABS(BT59) -> 27.52251541 | BS60: =(RADIANS(BR60)) -> 0.4803585124 | BT60: -27.0421569 | BU60: 0.8906722474 | BY60: 5.221015641 | BZ60: 0.09112391324 | CA60: -5.129891728 | CB60: 0.9959945529 | CC60: 1.004021555 | CD60: =($AG$47/$AG$48) * ($AG$49/$AG$50)* ($AG$51/$AG$52) * Generic!CC60 -> 6.00950604 | CE60: 5.985435281
K61: =M60 -> 16.00465116 | L61: mm | T61: 4.564143454 | U61: 0.07965933081 | V61: -4.484484123 | W61: 0.9969385441 | X61: 19.4627068 | Z61: 22.00603877 | AA61: 0.3840778319 | AB61: -21.62196094 | AC61: 0.9296353189 | AD61: 1.075690628 | AE61: =($AG$47/$AG$48) * ($AG$49/$AG$50)* ($AG$51/$AG$52) * Generic!AC61 -> 5.564272036 | AF61: 5.500815664 | AG61: 6.438476636 | AH61: 5.783571658 | AJ61: =X89 -> 18.41400381 | AK61: =AG89 -> 6.148030107 | AL61: =BE89 -> 10.15177715 | AM61: 5.821492957 | AN61: 25.91993777 | AO61: 17.08006223 | AP61: 4.452455402 | AQ61: 3.652915579 | AR61: 7.386421373 | AS61: 1.735150299 | AT61: 0.03028408573 | AU61: -1.704866213 | AV61: -0.02975113804 | AW61: =ABS(AV61)*'Simple AR Calculator'!$C$8 -> 7.289028819 | AX61: 5.549362606 | AY61: 40.44946396 | BA61: =AW84 -> 4.862156703 | BB61: =AX84 -> 5.790102469 | BC61: =AY84 -> 28.15238553 | BD61: 170.3566972 | BE61: 16.62081612 | BF61: 0.2900879657 | BG61: -16.33072816 | BH61: -0.2811814193 | BI61: 1.735150299 | BJ61: 9.578891311 | BK61: 91.75515875 | BL61: 1.816426688 | BM61: 9.150281833 | BN61: 83.72765763 | BO61: 0.01530069631 | BR61: =ABS(BT60) -> 27.0421569 | BS61: =(RADIANS(BR61)) -> 0.4719746747 | BT61: -26.57018222 | BU61: =COS(RADIANS(BT61)) -> 0.8943871378 | BY61: 5.129891728 | BZ61: 0.08953350092 | CA61: -5.040358227 | CB61: 0.9961330599 | CC61: 1.003881951 | CD61: =($AG$47/$AG$48) * ($AG$49/$AG$50)* ($AG$51/$AG$52) * Generic!CC61 -> 6.00867045 | CE61: 5.985435281
G62: b | H62: =SQRT(H63) -> 93.23972951 | M62: c = a/h = cos 13.17 = a / 114 | T62: 4.484484123 | U62: 0.07826901321 | V62: -4.40621511 | W62: 0.9970444243 | X62: 19.40632162 | Z62: 21.62196094 | AA62: 0.3773744091 | AB62: -21.24458653 | AC62: 0.9320421093 | AD62: 1.072912897 | AE62: =($AG$47/$AG$48) * ($AG$49/$AG$50)* ($AG$51/$AG$52) * Generic!AC62 -> 5.578677725 | AF62: 5.516798316 | AG62: 6.42185071 | AH62: 5.768636876 | AJ62: =X94 -> 18.3100591 | AK62: =AG94 -> 6.12128414 | AL62: =BE94 -> 9.296256513 | AM62: 5.847858561 | AN62: 23.84329771 | AO62: 19.15670229 | AP62: 4.077269902 | AQ62: 4.028101079 | AR62: 7.353119018 | AS62: 1.704866213 | AT62: 0.02975552873 | AU62: -1.675110684 | AV62: -0.02923203199 | AW62: =ABS(AV62)*'Simple AR Calculator'!$C$8 -> 7.161847838 | AX62: 5.564272036 | AY62: 39.85046965 | BA62: =AW89 -> 4.452455402 | BB62: =AX89 -> 5.821492957 | BC62: =AY89 -> 25.91993777 | BD62: 172.2088495 | BE62: 16.33072816 | BF62: 0.2850249756 | BG62: -16.04570318 | BH62: -0.2764040386 | BI62: 1.704866213 | BJ62: 9.578891311 | BK62: 91.75515875 | BL62: 1.80335887 | BM62: 9.055728413 | BN62: 82.00621709 | BO62: 0.01498611401 | BR62: =ABS(BT61) -> 26.57018222 | BS62: 0.4637371627 | BT62: -26.10644506 | BU62: 0.8979780824 | BY62: 5.040358227 | BZ62: 0.08797084654 | CA62: -4.952387381 | CB62: 0.9962667803 | CC62: 1.003747209 | CD62: =($AG$47/$AG$48) * ($AG$49/$AG$50)* ($AG$51/$AG$52) * Generic!CC62 -> 6.007863957 | CE62: 5.985435281
H63: =K59^2+F60^2-(2*K59*F60*(COS(RADIANS(K58)))) -> 8693.64716 | J63: =SQRT(H62^2-F66^2) -> 15.15411362 | K63: =H62+K59 -> 113.1520373 | M63: a = cos 13.17 * 114 = 111 | T63: 4.40621511 | U63: 0.07690296122 | V63: -4.329312149 | W63: 0.9971466444 | X63: 19.35172971 | Z63: 21.24458653 | AA63: 0.3707879832 | AB63: -20.87379855 | AC63: 0.9343675135 | AD63: 1.070242689 | AE63: =($AG$47/$AG$48) * ($AG$49/$AG$50)* ($AG$51/$AG$52) * Generic!AC63 -> 5.592596281 | AF63: 5.532361396 | AG63: 6.405868349 | AH63: 5.7542802 | AJ63: =X99 -> 18.22243362 | AK63: =AG99 -> 6.099005645 | AL63: =BE99 -> 8.512833164 | AM63: 5.869997805 | AN63: 21.91677556 | AO63: 21.08322444 | AP63: 3.733693996 | AQ63: 4.371676986 | AR63: 7.325386044 | AS63: 1.675110684 | AT63: 0.02923619678 | AU63: -1.645874488 | AV63: -0.02872197837 | AW63: =ABS(AV63)*'Simple AR Calculator'!$C$8 -> 7.036884702 | AX63: 5.578677725 | AY63: 39.25651194 | BA63: =AW94 -> 4.077269902 | BB63: =AX94 -> 5.847858561 | BC63: =AY94 -> 23.84329771 | BD63: 173.7722532 | BE63: 16.04570318 | BF63: 0.2800503513 | BG63: -15.76565283 | BH63: -0.2717033761 | BI63: 1.675110684 | BJ63: 9.578891311 | BK63: 91.75515875 | BL63: 1.790291052 | BM63: 8.962622677 | BN63: 80.32860526 | BO63: 0.01467954113 | BR63: 26.10644506 | BS63: 0.4556434223 | BT63: -25.65080164 | BU63: 0.9014490606 | BY63: 4.952387381 | BZ63: 0.08643546562 | CA63: -4.865951915 | CB63: 0.9963958794 | CC63: 1.003617157 | CD63: =($AG$47/$AG$48) * ($AG$49/$AG$50)* ($AG$51/$AG$52) * Generic!CC63 -> 6.007085542 | CE63: 5.985435281
G64: b 2 = a 2 + c 2 - 2 a c cos(B) | K64: =H62+K61 -> 109.2443807 | M64: and 111 - 17 = 94 | T64: 4.329312149 | U64: 0.07556075135 | V64: -4.253751398 | W64: 0.9972453308 | X64: 19.29887852 | Z64: 20.87379855 | AA64: 0.364316512 | AB64: -20.50948203 | AC64: 0.9366142197 | AD64: 1.067675441 | AE64: =($AG$47/$AG$48) * ($AG$49/$AG$50)* ($AG$51/$AG$52) * Generic!AC64 -> 5.606043795 | AF64: 5.547512115 | AG64: 6.390502253 | AH64: 5.740477103 | AJ64: =X104 -> 18.14862511 | AK64: =AG104 -> 6.080428059 | AL64: =BE104 -> 7.795431244 | AM64: 5.888584059 | AN64: 20.13345637 | AO64: 22.86654363 | AP64: 3.4190658 | AQ64: 4.686305181 | AR64: 7.302264784 | AS64: 1.645874488 | AT64: 0.02872592888 | AU64: -1.617148559 | AV64: -0.02822081959 | AW64: =ABS(AV64)*'Simple AR Calculator'!$C$8 -> 6.914100799 | AX64: 5.592596281 | AY64: 38.66777441 | AZ64: 10 | BA64: =AW99 -> 3.733693996 | BB64: =AX99 -> 5.869997805 | BC64: =AY99 -> 21.91677556 | BD64: 175.0905029 | BE64: 15.76565283 | BF64: 0.2751625506 | BG64: -15.49049028 | BH64: -0.2670784329 | BI64: 1.645874488 | BJ64: 9.578891311 | BK64: 91.75515875 | BL64: 1.777223234 | BM64: 8.870946839 | BN64: 78.69369782 | BO64: 0.01438077221 | BR64: 25.65080164 | BS64: 0.4476909444 | BT64: -25.20311069 | BU64: 0.9048039348 | BY64: =ABS(CA63) -> 4.865951915 | BZ64: 0.08492688216 | CA64: =BZ64-BY64 -> -4.781025033 | CB64: 0.9965205167 | CC64: 1.003491632 | CD64: =($AG$47/$AG$48) * ($AG$49/$AG$50)* ($AG$51/$AG$52) * Generic!CC64 -> 6.006334221 | CE64: 5.985435281
J65: =J56 -> 15.5 | T65: 4.253751398 | U65: 0.07424196745 | V65: -4.17950943 | W65: 0.9973406055 | X65: 19.24771675 | Z65: 20.50948203 | AA65: 0.3579579894 | AB65: -20.15152404 | AC65: 0.9387848316 | AD65: 1.065206815 | AE65: =($AG$47/$AG$48) * ($AG$49/$AG$50)* ($AG$51/$AG$52) * Generic!AC65 -> 5.619035852 | AF65: 5.562257789 | AG65: 6.37572645 | AH65: 5.727204255 | AJ65: =X109 -> 18.08649789 | AK65: =AG109 -> 6.064922419 | AL65: =BE109 -> 7.138486931 | AM65: 5.90418463 | AN65: 18.48569095 | AO65: 24.51430905 | AP65: 3.130947304 | AQ65: 4.974423678 | AR65: 7.282970078 | AS65: 1.617148559 | AT65: 0.02822456684 | AU65: -1.588923992 | AV65: -0.02772840076 | AW65: =ABS(AV65)*'Simple AR Calculator'!$C$8 -> 6.793458187 | AX65: 5.606043795 | AY65: 38.08442412 | BA65: =AW104 -> 3.4190658 | BB65: =AX104 -> 5.888584059 | BC65: =AY104 -> 20.13345637 | BD65: 176.2010411 | BE65: 15.49049028 | BF65: 0.2703600581 | BG65: -15.22013022 | BH65: -0.26252821 | BI65: 1.617148559 | BJ65: 9.578891311 | BK65: 91.75515875 | BL65: 1.764155416 | BM65: 8.780683458 | BN65: 77.10040198 | BO65: 0.01408960754 | BR65: 25.20311069 | BS65: 0.4398772634 | BT65: -24.76323343 | BU65: 0.908046453 | BY65: 4.781025033 | BZ65: 0.08344462844 | CA65: -4.697580404 | CB65: 0.9966408462 | CC65: 1.003370476 | CD65: =($AG$47/$AG$48) * ($AG$49/$AG$50)* ($AG$51/$AG$52) * Generic!CC65 -> 6.005609046 | CE65: 5.985435281
F66: ='Simple AR Calculator'!C9 -> 92 | M66: =((COS(RADIANS((M58))))*F60) - J56 -> 92 | T66: 4.17950943 | U66: 0.07294620068 | V66: -4.10656323 | W66: 0.9974325864 | X66: 19.19819438 | Z66: 20.15152404 | AA66: 0.3517104439 | AB66: -19.7998136 | AC66: 0.940881871 | AD66: 1.062832679 | AE66: =($AG$47/$AG$48) * ($AG$49/$AG$50)* ($AG$51/$AG$52) * Generic!AC66 -> 5.631587546 | AF66: 5.576605814 | AG66: 6.361516218 | AH66: 5.714439451 | AJ66: =X114 -> 18.03423401 | AK66: =AG114 -> 6.051970875 | AL66: =BE114 -> 6.53690528 | AM66: 5.917277106 | AN66: 16.96545837 | AO66: 26.03454163 | AP66: 2.867105607 | AQ66: 5.238265374 | AR66: 7.266855891 | AS66: 1.588923992 | AT66: 0.02773195522 | AU66: -1.561192037 | AV66: -0.02724456971 | AW66: =ABS(AV66)*'Simple AR Calculator'!$C$8 -> 6.67491958 | AX66: 5.619035852 | AY66: 37.50661243 | BA66: =AW109 -> 3.130947304 | BB66: =AX109 -> 5.90418463 | BC66: =AY109 -> 18.48569095 | BD66: 177.1358935 | BE66: 15.22013022 | BF66: 0.2656413849 | BG66: -14.95448883 | BH66: -0.2580517096 | BI66: 1.588923992 | BJ66: 9.578891311 | BK66: 91.75515875 | BL66: 1.751087598 | BM66: 8.691815439 | BN66: 75.54765562 | BO66: 0.01380585303 | BR66: 24.76323343 | BS66: 0.4321999568 | BT66: -24.33103347 | BU66: 0.9111802518 | BY66: 4.697580404 | BZ66: 0.08198824493 | CA66: -4.615592159 | CB66: 0.9967570167 | CC66: 1.003253535 | CD66: =($AG$47/$AG$48) * ($AG$49/$AG$50)* ($AG$51/$AG$52) * Generic!CC66 -> 6.004909101 | CE66: 5.985435281
F67: =(J56*I18)/M60 -> 92 | T67: 4.10656323 | U67: 0.0716730493 | V67: -4.03489018 | W67: 0.9975213872 | X67: 19.15026264 | Z67: 19.7998136 | AA67: 0.3455719386 | AB67: -19.45424166 | AC67: 0.9429077798 | AD67: 1.060549103 | AE67: =($AG$47/$AG$48) * ($AG$49/$AG$50)* ($AG$51/$AG$52) * Generic!AC67 -> 5.643713492 | AF67: 5.59056366 | AG67: 6.347848018 | AH67: 5.702161545 | AJ67: =X119 -> 17.99028955 | AK67: =AG119 -> 6.041145815 | AL67: =BE119 -> 5.986020715 | AM67: 5.928263283 | AN67: 15.56462985 | AO67: 27.43537015 | AP67: 2.625495715 | AQ67: 5.479875267 | AR67: 7.253389052 | AS67: =ABS(AU66) -> 1.561192037 | AT67: 0.0272479413 | AU67: =AT67-AS67 -> -1.533944095 | AV67: -0.02676917689 | AW67: =ABS(AV67)*'Simple AR Calculator'!$C$8 -> 6.558448339 | AX67: 5.631587546 | AY67: 36.93447598 | BA67: =AW114 -> 2.867105607 | BB67: =AX114 -> 5.917277106 | BC67: =AY114 -> 16.96545837 | BD67: 177.922359 | BE67: 14.95448883 | BF67: 0.2610050681 | BG67: -14.69348377 | BH67: -0.2536479358 | BI67: 1.561192037 | BJ67: 9.578891311 | BK67: 91.75515875 | BL67: 1.73801978 | BM67: 8.60432603 | BN67: 74.03442643 | BO67: 0.01352932003 | BR67: 24.33103347 | BS67: 0.4246566445 | BT67: -23.90637683 | BU67: 0.9142088587 | BY67: 4.615592159 | BZ67: 0.08055728011 | CA67: -4.535034879 | CB67: 0.9968691717 | CC67: 1.003140661 | CD67: =($AG$47/$AG$48) * ($AG$49/$AG$50)* ($AG$51/$AG$52) * Generic!CC67 -> 6.004233505 | CE67: 5.985435281
T68: 4.03489018 | U68: 0.0704221186 | V68: -3.964468062 | W68: 0.9976071179 | X68: 19.10387399 | Z68: =ABS(AB67) -> 19.45424166 | AA68: 0.3395405705 | AB68: =AA68-Z68 -> -19.11470109 | AC68: 0.9448649227 | AD68: 1.058352338 | AE68: =($AG$47/$AG$48) * ($AG$49/$AG$50)* ($AG$51/$AG$52) * Generic!AC68 -> 5.655427844 | AF68: 5.604138849 | AG68: 6.334699424 | AH68: 5.690350391 | AJ68: =X124 -> 17.95335588 | AK68: =AG124 -> 6.032093275 | AL68: =BE124 -> 5.48156084 | AM68: 5.937481015 | AN68: 14.27515765 | AO68: 28.72484235 | AP68: 2.404244766 | AQ68: 5.701126216 | AR68: 7.242128419 | AS68: 1.533944095 | AT68: 0.02677237501 | AU68: -1.50717172 | AV68: -0.02630207534 | AW68: =ABS(AV68)*'Simple AR Calculator'!$C$8 -> 6.444008459 | AX68: 5.643713492 | AY68: 36.36813748 | BA68: =AW119 -> 2.625495715 | BB68: =AX119 -> 5.928263283 | BC68: =AY119 -> 15.56462985 | BD68: 178.5836432 | BE68: 14.69348377 | BF68: 0.2564496703 | BG68: -14.4370341 | BH68: -0.2493158953 | BI68: 1.533944095 | BJ68: 9.578891311 | BK68: 91.75515875 | BL68: 1.724951962 | BM68: 8.518198818 | BN68: 72.55971111 | BO68: 0.01325982519 | BR68: 23.90637683 | BS68: 0.4172449879 | BT68: -23.48913184 | BU68: 0.9171356947 | BY68: 4.535034879 | BZ68: 0.07915129034 | CA68: -4.455883589 | CB68: 0.9969774499 | CC68: 1.003031714 | CD68: =($AG$47/$AG$48) * ($AG$49/$AG$50)* ($AG$51/$AG$52) * Generic!CC68 -> 6.003581407 | CE68: 5.985435281
T69: 3.964468062 | U69: 0.06919302077 | V69: -3.895275041 | W69: 0.9976898844 | X69: 19.0589821 | Z69: 19.11470109 | AA69: 0.3336144696 | AB69: -18.78108662 | AC69: 0.9467555887 | AD69: 1.056238814 | AE69: =($AG$47/$AG$48) * ($AG$49/$AG$50)* ($AG$51/$AG$52) * Generic!AC69 -> 5.666744303 | AF69: 5.617338945 | AG69: 6.322049062 | AH69: 5.678986791 | AJ69: =X129 -> 17.92232565 | AK69: =AG129 -> 6.024519642 | AL69: =BE129 -> 5.019613308 | AM69: 5.945214263 | AN69: 13.08920709 | AO69: 29.91079291 | AP69: 2.201637571 | AQ69: 5.903733411 | AR69: 7.232708209 | AS69: 1.50717172 | AT69: 0.02630510891 | AU69: -1.480866611 | AV69: -0.02584312066 | AW69: =ABS(AV69)*'Simple AR Calculator'!$C$8 -> 6.331564562 | AX69: 5.655427844 | AY69: 35.80770652 | AZ69: 15 | BA69: =AW124 -> 2.404244766 | BB69: =AX124 -> 5.937481015 | BC69: =AY124 -> 14.27515765 | BD69: 179.1394269 | BE69: 14.4370341 | BF69: 0.2519737792 | BG69: -14.18506032 | BH69: -0.2450545979 | BI69: 1.50717172 | BJ69: 9.578891311 | BK69: 91.75515875 | BL69: 1.711884144 | BM69: 8.433417731 | BN69: 71.12253462 | BO69: 0.01299719034 | BR69: 23.48913184 | BS69: 0.4099626891 | BT69: -23.07916915 | BU69: 0.9199640773 | BY69: 4.455883589 | BZ69: 0.07776983971 | CA69: -4.378113749 | CB69: 0.9970819852 | CC69: 1.002926555 | CD69: =($AG$47/$AG$48) * ($AG$49/$AG$50)* ($AG$51/$AG$52) * Generic!CC69 -> 6.002951984 | CE69: 5.985435281
T70: =ABS(V69) -> 3.895275041 | U70: 0.06798537473 | V70: =U70-T70 -> -3.827289666 | W70: 0.9977697892 | X70: 19.01554184 | Z70: 18.78108662 | AA70: 0.3277917987 | AB70: -18.45329482 | AC70: 0.9485819939 | AD70: 1.054205126 | AE70: =($AG$47/$AG$48) * ($AG$49/$AG$50)* ($AG$51/$AG$52) * Generic!AC70 -> 5.677676133 | AF70: 5.630171537 | AG70: 6.309876552 | AH70: 5.668052437 | AJ70: =X134 -> 17.89626316 | AK70: =AG134 -> 6.018180944 | AL70: =BE134 -> 4.596595477 | AM70: 5.9517016 | AN70: 11.99924563 | AO70: 31.00075437 | AP70: 2.016103367 | AQ70: 6.089267615 | AR70: 7.224824579 | AS70: 1.480866611 | AT70: 0.02584599815 | AU70: -1.455020613 | AV70: -0.02539217094 | AW70: =ABS(AV70)*'Simple AR Calculator'!$C$8 -> 6.221081881 | AX70: 5.666744303 | AY70: 35.25328031 | BA70: =AW129 -> 2.201637571 | BB70: =AX129 -> 5.945214263 | BC70: =AY129 -> 13.08920709 | BD70: 179.6063696 | BE70: 14.18506032 | BF70: 0.2475760071 | BG70: -13.93748431 | BH70: -0.2408630577 | BI70: 1.480866611 | BJ70: 9.578891311 | BK70: 91.75515875 | BL70: 1.698816326 | BM70: 8.349967031 | BN70: 69.72194941 | BO70: 0.01274124231 | BR70: 23.07916915 | BS70: 0.4028074903 | BT70: -22.67636166 | BU70: 0.922697223 | BY70: 4.378113749 | BZ70: 0.07641249995 | CA70: -4.301701249 | CB70: 0.9971829068 | CC70: 1.002825052 | CD70: =($AG$47/$AG$48) * ($AG$49/$AG$50)* ($AG$51/$AG$52) * Generic!CC70 -> 6.002344445 | CE70: 5.985435281
T71: 3.827289666 | U71: 0.0667988061 | V71: -3.76049086 | W71: 0.9978469312 | X71: 18.97350923 | Z71: 18.45329482 | AA71: 0.3220707525 | AB71: -18.13122407 | AC71: 0.9503462834 | AD71: 1.052248025 | AE71: =($AG$47/$AG$48) * ($AG$49/$AG$50)* ($AG$51/$AG$52) * Generic!AC71 -> 5.688236174 | AF71: 5.642644231 | AG71: 6.298162455 | AH71: 5.657529867 | AJ71: =X139 -> 17.87437871 | AK71: =AG139 -> 6.012874159 | AL71: =BE139 -> 4.209226624 | AM71: 5.957143407 | AN71: 10.99810001 | AO71: 32.00189999 | AP71: 1.846203668 | AQ71: 6.259167313 | AR71: 7.218224754 | AS71: 1.455020613 | AT71: 0.02539490039 | AU71: -1.429625713 | AV71: -0.02494908675 | AW71: =ABS(AV71)*'Simple AR Calculator'!$C$8 -> 6.112526253 | AX71: 5.677676133 | AY71: 34.70494442 | BA71: =AW134 -> 2.016103367 | BB71: =AX134 -> 5.9517016 | BC71: =AY134 -> 11.99924563 | BD71: 179.9985515 | BE71: 13.93748431 | BF71: 0.2432549907 | BG71: -13.69422932 | BH71: -0.236740293 | BI71: 1.455020613 | BJ71: 9.578891311 | BK71: 91.75515875 | BL71: 1.685748509 | BM71: 8.267831316 | BN71: 68.35703467 | BO71: 0.01249181283 | BR71: 22.67636166 | BS71: 0.3957771734 | BT71: -22.28058449 | BU71: 0.9253382495
T72: 3.76049086 | U72: 0.065632947 | V72: -3.694857913 | W72: 0.9979214058 | X72: 18.93284148 | Z72: 18.13122407 | AA72: 0.3164495574 | AB72: -17.81477451 | AC72: 0.9520505333 | AD72: 1.050364413 | AE72: =($AG$47/$AG$48) * ($AG$49/$AG$50)* ($AG$51/$AG$52) * Generic!AC72 -> 5.698436851 | AF72: 5.654764633 | AG72: 6.286888218 | AH72: 5.647402416 | AJ72: =X144 -> 17.85600648 | AK72: =AG144 -> 6.008430136 | AL72: =BE144 -> 3.854502503 | AM72: 5.961707941 | AN72: 10.0789895 | AO72: 32.9210105 | AP72: 1.690621145 | AQ72: 6.414749837 | AR72: 7.212698177 | AS72: 1.429625713 | AT72: 0.02495167576 | AU72: -1.404674037 | AV72: -0.02451373106 | AW72: =ABS(AV72)*'Simple AR Calculator'!$C$8 -> 6.005864109 | AX72: 5.688236174 | AY72: 34.16277348 | BA72: =AW139 -> 1.846203668 | BB72: =AX139 -> 5.957143407 | BC72: =AY139 -> 10.99810001 | BD72: 180.3278574 | BE72: 13.69422932 | BF72: 0.2390093901 | BG72: -13.45521993 | BH72: -0.2326853275 | BI72: 1.429625713 | BJ72: 9.578891311 | BK72: 91.75515875 | BL72: 1.672680691 | BM72: 8.186995519 | BN72: 67.02689563 | BO72: 0.01224873839 | BR72: 22.28058449 | BS72: 0.3888695586 | BT72: -21.89171493 | BU72: 0.9278901789
T73: 3.694857913 | U73: 0.06448743598 | V73: -3.630370477 | W73: 0.9979933052 | X73: 18.89349691 | Z73: 17.81477451 | AA73: 0.3109264708 | AB73: -17.50384804 | AC73: 0.9536967529 | AD73: 1.048551331 | AE73: =($AG$47/$AG$48) * ($AG$49/$AG$50)* ($AG$51/$AG$52) * Generic!AC73 -> 5.708290192 | AF73: 5.666540342 | AG73: 6.276036133 | AH73: 5.637654177 | AJ73: =X149 -> 17.8405856 | AK73: =AG149 -> 6.004707794 | AL73: =BE149 -> 3.529672045 | AM73: 5.965536455 | AN73: 9.235541841 | AO73: 33.76445816 | AP73: 1.548149427 | AQ73: 6.557221555 | AR73: 7.20806927 | AS73: 1.404674037 | AT73: 0.02451618687 | AU73: -1.38015785 | AV73: -0.02408596923 | AW73: =ABS(AV73)*'Simple AR Calculator'!$C$8 -> 5.901062461 | AX73: 5.698436851 | AY73: 33.62683179 | BA73: =AW144 -> 1.690621145 | BB73: =AX144 -> 5.961707941 | BC73: =AY144 -> 10.0789895 | BD73: 180.604308 | BE73: 13.45521993 | BF73: 0.2348378893 | BG73: -13.22038204 | BH73: -0.2286971905 | BI73: 1.404674037 | BJ73: 9.578891311 | BK73: 91.75515875 | BL73: 1.659612873 | BM73: 8.107444905 | BN73: 65.73066288 | BO73: 0.01201186011 | BR73: 21.89171493 | BS73: 0.3820825044 | BT73: -21.50963243 | BU73: 0.9303559395
T74: 3.630370477 | U74: 0.06336191789 | V74: -3.567008559 | W74: 0.9980627183 | X74: 18.85543495 | Z74: 17.50384804 | AA74: 0.3054997801 | AB74: -17.19834826 | AC74: 0.9552868865 | AD74: 1.046805953 | AE74: =($AG$47/$AG$48) * ($AG$49/$AG$50)* ($AG$51/$AG$52) * Generic!AC74 -> 5.717807834 | AF74: 5.677978934 | AG74: 6.265589286 | AH74: 5.628269956 | AJ74: =X154 -> 17.82764395 | AK74: =AG154 -> 6.001589364 | AL74: =BE154 -> 3.232216021 | AM74: 5.968747508 | AN74: 8.461796444 | AO74: 34.53820356 | AP74: 1.417683766 | AQ74: 6.687687216 | AR74: 7.204191489 | AS74: 1.38015785 | AT74: 0.02408829868 | AU74: -1.356069552 | AV74: -0.02366566896 | AW74: =ABS(AV74)*'Simple AR Calculator'!$C$8 -> 5.798088894 | AX74: 5.708290192 | AY74: 33.09717397 | AZ74: 20 | BA74: =AW149 -> 1.548149427 | BB74: =AX149 -> 5.965536455 | BC74: =AY149 -> 9.235541841 | BD74: 180.8363449 | BE74: 13.22038204 | BF74: 0.230739195 | BG74: -12.98964284 | BH74: -0.2247749172 | BI74: 1.38015785 | BJ74: 9.578891311 | BK74: 91.75515875 | BL74: 1.646545055 | BM74: 8.029165069 | BN74: 64.46749171 | BO74: 0.01178102362 | BR74: 21.50963243 | BS74: 0.3754139067 | BT74: -21.13421852 | BU74: 0.9327383691
T75: 3.567008559 | U75: 0.0622560438 | V75: -3.504752515 | W75: 0.9981297312 | X75: 18.81861613 | Z75: 17.19834826 | AA75: 0.3001678031 | AB75: -16.89818046 | AC75: 0.9568228154 | AD75: 1.04512558 | AE75: =($AG$47/$AG$48) * ($AG$49/$AG$50)* ($AG$51/$AG$52) * Generic!AC75 -> 5.727001037 | AF75: 5.689087957 | AG75: 6.25553152 | AH75: 5.61923524 | AS75: 1.356069552 | AT75: 0.02366787856 | AU75: -1.332401673 | AV75: -0.02325270023 | AW75: =ABS(AV75)*'Simple AR Calculator'!$C$8 -> 5.696911557 | AX75: 5.717807834 | AY75: 32.57384553 | BA75: =AW154 -> 1.417683766 | BB75: =AX154 -> 5.968747508 | BC75: =AY154 -> 8.461796444 | BD75: 181.0310739 | BE75: =ABS(BG74) -> 12.98964284 | BF75: 0.2267120363 | BG75: =BF75-BE75 -> -12.76293081 | BH75: -0.2209175497 | BI75: 1.356069552 | BJ75: 9.578891311 | BK75: 91.75515875 | BL75: 1.633477237 | BM75: 7.95214194 | BN75: 63.23656144 | BO75: =(BK75*$BD$52)*10000 -> 0 | BR75: 21.13421852 | BS75: 0.368861698 | BT75: -20.76535682 | BU75: 0.9350402165
T76: 3.504752515 | U76: 0.06116947086 | V76: -3.443583044 | W76: 0.9981944267 | X76: 18.78300207 | Y76: 22 | Z76: 16.89818046 | AA76: 0.2949288866 | AB76: -16.60325157 | AC76: 0.9583063599 | AD76: 1.043507632 | AE76: =($AG$47/$AG$48) * ($AG$49/$AG$50)* ($AG$51/$AG$52) * Generic!AC76 -> 5.735880697 | AF76: 5.699874919 | AG76: 6.245847394 | AH76: 5.610536157 | AK76: HamRise | AS76: 1.332401673 | AT76: 0.02325479615 | AU76: -1.309146877 | AV76: -0.02284693531 | AW76: =ABS(AV76)*'Simple AR Calculator'!$C$8 -> 5.597499151 | AX76: 5.727001037 | AY76: 32.05688344 | BE76: 12.76293081 | BF76: 0.2227551648 | BG76: -12.54017564 | BH76: -0.2171241368 | BI76: 1.332401673 | BJ76: 9.578891311 | BK76: 91.75515875 | BL76: 1.620409419 | BM76: 7.876361775 | BN76: 62.03707481 | BO76: 0 | BR76: 20.76535682 | BS76: 0.3624238469 | BT76: -20.40293297 | BU76: 0.9372641448
T77: 3.443583044 | U77: 0.06010186219 | V77: -3.383481182 | W77: 0.9982568849 | X77: 18.74855542 | Z77: 16.60325157 | AA77: 0.2897814065 | AB77: -16.31347017 | AC77: 0.9597392811 | AD77: 1.041949642 | AE77: =($AG$47/$AG$48) * ($AG$49/$AG$50)* ($AG$51/$AG$52) * Generic!AC77 -> 5.744457353 | AF77: 5.710347279 | AG77: 6.236522146 | AH77: 5.602159449 | AK77: =AM54*AQ54 -> 0.02382917146 | AL77: ='Simple AR Calculator'!H89 -> 1.893798257 | AS77: 1.309146877 | AT77: 0.02284892339 | AU77: -1.286297954 | AV77: -0.02244824865 | AW77: =ABS(AV77)*'Simple AR Calculator'!$C$8 -> 5.49982092 | AX77: 5.735880697 | AY77: 31.54631665 | BB77: =AVERAGE(BB55:BB75) -> 5.821853546 | BD77: =AVERAGE(BD55:BD75) -> 172.3631998 | BE77: 12.54017564 | BF77: 0.2188673538 | BG77: -12.32130829 | BH77: -0.2133937346 | BI77: 1.309146877 | BJ77: 9.578891311 | BK77: 91.75515875 | BL77: 1.607341601 | BM77: 7.801811161 | BN77: 60.86825739 | BO77: 0 | BR77: 20.40293297 | BS77: 0.3560983575 | BT77: -20.04683462 | BU77: 0.9394127334
T78: 3.383481182 | U78: 0.05905288681 | V78: -3.324428295 | W78: 0.9983171832 | X78: 18.71523985 | Z78: 16.31347017 | AA78: 0.2847237668 | AB78: -16.0287464 | AC78: 0.9611232824 | AD78: 1.040449252 | AE78: =($AG$47/$AG$48) * ($AG$49/$AG$50)* ($AG$51/$AG$52) * Generic!AC78 -> 5.752741204 | AF78: 5.720512442 | AG78: 6.22754166 | AH78: 5.594092434 | AK78: 3.063401127 | AL78: ='Simple AR Calculator'!H90 -> 1.765134093 | AS78: 1.286297954 | AT78: 0.02245013445 | AU78: -1.263847819 | AV78: -0.02205651692 | AW78: =ABS(AV78)*'Simple AR Calculator'!$C$8 -> 5.403846644 | AX78: 5.744457353 | AY78: 31.04216659 | BE78: 12.32130829 | BF78: 0.2150473978 | BG78: -12.10626089 | BH78: -0.2097254071 | BI78: 1.286297954 | BJ78: 9.578891311 | BK78: 91.75515875 | BL78: 1.594273783 | BM78: 7.728477015 | BN78: 59.72935697 | BO78: 0 | BR78: 20.04683462 | BS78: 0.3498832687 | BT78: -19.69695135 | BU78: 0.94148848
T79: 3.324428295 | U79: 0.0580222195 | V79: -3.266406076 | W79: 0.9983753962 | X79: 18.68302007 | Z79: 16.0287464 | AA79: 0.2797543996 | AB79: -15.748992 | AC79: 0.9624600117 | AD79: 1.039004206 | AE79: =($AG$47/$AG$48) * ($AG$49/$AG$50)* ($AG$51/$AG$52) * Generic!AC79 -> 5.760742111 | AF79: 5.730377745 | AG79: 6.21889243 | AH79: 5.586322981 | AK79: 6.662293192 | AL79: ='Simple AR Calculator'!H91 -> 1.616504812 | AS79: 1.263847819 | AT79: 0.02205830569 | AU79: -1.241789513 | AV79: -0.02167161889 | AW79: =ABS(AV79)*'Simple AR Calculator'!$C$8 -> 5.309546627 | AX79: 5.752741204 | AY79: 30.54444766 | AZ79: 25 | BE79: 12.10626089 | BF79: 0.2112941127 | BG79: -11.89496678 | BH79: -0.2061182262 | BI79: 1.263847819 | BJ79: 9.578891311 | BK79: 91.75515875 | BL79: 1.581205965 | BM79: 7.656346584 | BN79: 58.61964302 | BO79: 0 | BR79: 19.69695135 | BS79: 0.3437766536 | BT79: -19.35317469 | BU79: 0.9434938035
T80: 3.266406076 | U80: 0.05700954073 | V80: -3.209396535 | W80: 0.998431596 | X80: 18.65186176 | Z80: 15.748992 | AA80: 0.2748717643 | AB80: -15.47412024 | AC80: 0.963751063 | AD80: 1.037612344 | AE80: =($AG$47/$AG$48) * ($AG$49/$AG$50)* ($AG$51/$AG$52) * Generic!AC80 -> 5.768469615 | AF80: 5.739950456 | AG80: 6.210561535 | AH80: 5.578839483 | AK80: 10.03163422 | AL80: ='Simple AR Calculator'!H92 -> 1.480372238 | AS80: 1.241789513 | AT80: 0.02167331563 | AU80: -1.220116198 | AV80: -0.02129343547 | AW80: =ABS(AV80)*'Simple AR Calculator'!$C$8 -> 5.21689169 | AX80: 5.760742111 | AY80: 30.05316764 | BE80: 11.89496678 | BF80: 0.2076063347 | BG80: -11.68736044 | BH80: -0.2025712721 | BI80: 1.241789513 | BJ80: 9.578891311 | BK80: 91.75515875 | BL80: 1.568138148 | BM80: 7.585407445 | BN80: 57.53840611 | BO80: 0 | BR80: 19.35317469 | BS80: 0.3377766191 | BT80: -19.01539808 | BU80: 0.945431046
T81: 3.209396535 | U81: 0.05601453654 | V81: -3.153381999 | W81: 0.9984858522 | X81: 18.62173157 | Z81: 15.47412024 | AA81: 0.270074347 | AB81: -15.20404589 | AC81: 0.9649979778 | AD81: 1.036271602 | AE81: =($AG$47/$AG$48) * ($AG$49/$AG$50)* ($AG$51/$AG$52) * Generic!AC81 -> 5.775932943 | AF81: 5.749237764 | AG81: 6.202536605 | AH81: 5.571630828 | AK81: 13.17063571 | AL81: ='Simple AR Calculator'!H93 -> 1.355689897 | AS81: 1.220116198 | AT81: 0.02129504491 | AU81: -1.198821153 | AV81: -0.02092184963 | AW81: =ABS(AV81)*'Simple AR Calculator'!$C$8 -> 5.125853159 | AX81: 5.768469615 | AY81: 29.5683282 | BE81: 11.68736044 | BF81: 0.2039829206 | BG81: -11.48337752 | BH81: -0.1990836333 | BI81: 1.220116198 | BJ81: 9.578891311 | BK81: 91.75515875 | BL81: 1.55507033 | BM81: 7.515647506 | BN81: 56.48495744 | BO81: 0 | BR81: 19.01539808 | BS81: 0.331881305 | BT81: -18.68351677 | BU81: 0.9473024746
T82: 3.153381999 | U82: 0.05503689845 | V82: -3.0983451 | W82: 0.9985382319 | X82: 18.59259711 | Z82: 15.20404589 | AA82: 0.2653606604 | AB82: -14.93868523 | AC82: 0.966202247 | AD82: 1.034979998 | AE82: =($AG$47/$AG$48) * ($AG$49/$AG$50)* ($AG$51/$AG$52) * Generic!AC82 -> 5.783141018 | AF82: 5.758246778 | AG82: 6.194805798 | AH82: 5.564686378 | AK82: 16.08365396 | AL82: ='Simple AR Calculator'!H94 -> 1.241497962 | AS82: 1.198821153 | AT82: 0.02092337626 | AU82: -1.177897777 | AV82: -0.02055674637 | AW82: =ABS(AV82)*'Simple AR Calculator'!$C$8 -> 5.03640286 | AX82: 5.775932943 | AY82: 29.08992519 | BE82: 11.48337752 | BF82: 0.200422747 | BG82: -11.28295478 | BH82: -0.1956544074 | BI82: 1.198821153 | BJ82: 9.578891311 | BK82: 91.75515875 | BL82: 1.542002512 | BM82: 7.447055006 | BN82: 55.45862826 | BO82: 0 | BR82: 18.68351677 | BS82: 0.3260888835 | BT82: -18.35742789 | BU82: 0.9491102844
T83: 3.0983451 | U83: 0.05407632336 | V83: -3.044268777 | W83: 0.9985888 | X83: 18.5644269 | Z83: 14.93868523 | AA83: 0.2607292431 | AB83: -14.67795598 | AC83: 0.9673653122 | AD83: 1.03373564 | AE83: =($AG$47/$AG$48) * ($AG$49/$AG$50)* ($AG$51/$AG$52) * Generic!AC83 -> 5.790102469 | AF83: 5.766984513 | AG83: 6.18735777 | AH83: 5.557995945 | AK83: 18.778543 | AL83: ='Simple AR Calculator'!H95 -> 1.136916304 | AS83: 1.177897777 | AT83: 0.02055819445 | AU83: -1.157339582 | AV83: -0.02019801269 | AW83: =ABS(AV83)*'Simple AR Calculator'!$C$8 -> 4.948513109 | AX83: 5.783141018 | AY83: 28.61794914 | BE83: 11.28295478 | BF83: 0.1969247102 | BG83: -11.08603007 | BH83: -0.1922827007 | BI83: 1.177897777 | BJ83: 9.578891311 | BK83: 91.75515875 | BL83: 1.528934694 | BM83: 7.379618516 | BN83: 54.45876945 | BO83: 0 | BR83: 18.35742789 | BS83: 0.3203975588 | BT83: -18.03703033 | BU83: 0.9508565996
T84: 3.044268777 | U84: 0.05313251347 | V84: -2.991136263 | W84: 0.9986376192 | X84: 18.53719036 | Z84: 14.67795598 | AA84: 0.2561786594 | AB84: -14.42177733 | AC84: 0.9684885676 | AD84: 1.032536711 | AE84: =($AG$47/$AG$48) * ($AG$49/$AG$50)* ($AG$51/$AG$52) * Generic!AC84 -> 5.796825642 | AF84: 5.775457893 | AG84: 6.180181657 | AH84: 5.551549767 | AK84: 21.26542232 | AL84: ='Simple AR Calculator'!H96 -> 1.041138057 | AS84: 1.157339582 | AT84: 0.02019938627 | AU84: -1.137140196 | AV84: -0.01984553756 | AW84: =ABS(AV84)*'Simple AR Calculator'!$C$8 -> 4.862156703 | AX84: 5.790102469 | AY84: 28.15238553 | AZ84: 30 | BE84: 11.08603007 | BF84: 0.1934877256 | BG84: -10.89254234 | BH84: -0.188967629 | BI84: 1.157339582 | BJ84: 9.578891311 | BK84: 91.75515875 | BL84: 1.515866876 | BM84: 7.313326944 | BN84: 53.48475099 | BO84: 0 | BR84: 18.03703033 | BS84: 0.3148055665 | BT84: -17.72222476 | BU84: 0.9525434766
T85: 2.991136263 | U85: 0.05220517617 | V85: -2.938931087 | W85: 0.99868475 | X85: 18.51085783 | Z85: 14.42177733 | AA85: 0.2517074983 | AB85: -14.17006983 | AC85: 0.9695733613 | AD85: 1.031381471 | AE85: =($AG$47/$AG$48) * ($AG$49/$AG$50)* ($AG$51/$AG$52) * Generic!AC85 -> 5.803318604 | AF85: 5.783673745 | AG85: 6.173267047 | AH85: 5.545338493 | AK85: 23.55576538 | AL85: ='Simple AR Calculator'!H97 -> 0.9534236512 | AS85: 1.137140196 | AT85: 0.01984684047 | AU85: -1.117293355 | AV85: -0.01949921189 | AW85: =ABS(AV85)*'Simple AR Calculator'!$C$8 -> 4.777306913 | AX85: 5.796825642 | AY85: 27.69321521 | BE85: 10.89254234 | BF85: 0.1901107278 | BG85: -10.70243161 | BH85: -0.185708317 | BI85: 1.137140196 | BJ85: 9.578891311 | BK85: 91.75515875 | BL85: 1.502799058 | BM85: 7.248169529 | BN85: 52.53596153 | BO85: 0 | BR85: 17.72222476 | BS85: 0.3093111729 | BT85: -17.41291359 | BU85: 0.9541729051
T86: 2.938931087 | U86: 0.05129402396 | V86: -2.887637063 | W86: 0.9987302506 | X86: 18.48540047 | Z86: 14.17006983 | AA86: 0.2473143737 | AB86: -13.92275545 | AC86: 0.9706209966 | AD86: 1.030268255 | AE86: =($AG$47/$AG$48) * ($AG$49/$AG$50)* ($AG$51/$AG$52) * Generic!AC86 -> 5.809589158 | AF86: 5.791638791 | AG86: 6.16660396 | AH86: 5.539353157 | AK86: 25.66173431 | AL86: ='Simple AR Calculator'!H98 -> 0.8730953033 | AS86: 1.117293355 | AT86: 0.01950044776 | AU86: -1.097792908 | AV86: -0.01915892846 | AW86: =ABS(AV86)*'Simple AR Calculator'!$C$8 -> 4.693937472 | AX86: 5.803318604 | AY86: 27.24041466 | BE86: 10.70243161 | BF86: 0.1867926696 | BG86: -10.51563894 | BH86: -0.1825038992 | BI86: 1.117293355 | BJ86: 9.578891311 | BK86: 91.75515875 | BL86: 1.48973124 | BM86: 7.184135853 | BN86: 51.61180795 | BO86: 0 | BR86: 17.41291359 | BS86: 0.3039126745 | BT86: -17.10900091 | BU86: 0.9557468106
T87: 2.887637063 | U87: 0.05039877436 | V87: -2.837238289 | W87: 0.9987741774 | X87: 18.46079031 | Z87: 13.92275545 | AA87: 0.2429979236 | AB87: -13.67975753 | AC87: 0.9716327337 | AD87: 1.029195462 | AE87: =($AG$47/$AG$48) * ($AG$49/$AG$50)* ($AG$51/$AG$52) * Generic!AC87 -> 5.815644845 | AF87: 5.799359648 | AG87: 6.160182827 | AH87: 5.533585166 | AK87: 27.59570199 | AL87: ='Simple AR Calculator'!H99 -> 0.7995319368 | AS87: 1.097792908 | AT87: 0.01916010074 | AU87: -1.078632807 | AV87: -0.01882458193 | AW87: =ABS(AV87)*'Simple AR Calculator'!$C$8 -> 4.612022572 | AX87: 5.809589158 | AY87: 26.79395633 | BE87: 10.51563894 | BF87: 0.1835325225 | BG87: -10.33210642 | BH87: -0.1793535196 | BI87: 1.097792908 | BJ87: 9.578891311 | BK87: 91.75515875 | BL87: 1.476663422 | BM87: 7.121215834 | BN87: 50.71171495 | BO87: 0 | BR87: 17.10900091 | BS87: 0.2986083977 | BT87: -16.81039252 | BU87: 0.9572670561
T88: 2.837238289 | U88: 0.04951914981 | V88: -2.787719139 | W88: 0.9988165849 | X88: 18.43700021 | Z88: 13.67975753 | AA88: 0.2387568098 | AB88: -13.44100072 | AC88: 0.9726097909 | AD88: 1.02816156 | AE88: =($AG$47/$AG$48) * ($AG$49/$AG$50)* ($AG$51/$AG$52) * Generic!AC88 -> 5.821492957 | AF88: 5.806842827 | AG88: 6.153994476 | AH88: 5.528026278 | AK88: 29.36991582 | AL88: ='Simple AR Calculator'!H100 -> 0.7321644972 | AS88: 1.078632807 | AT88: 0.0188256939 | AU88: -1.059807113 | AV88: -0.0184960688 | AW88: =ABS(AV88)*'Simple AR Calculator'!$C$8 -> 4.531536855 | AX88: 5.815644845 | AY88: 26.35380895 | BE88: 10.33210642 | BF88: 0.1803292757 | BG88: -10.15177715 | BH88: -0.1762563318 | BI88: 1.078632807 | BJ88: 9.578891311 | BK88: 91.75515875 | BL88: 1.463595604 | BM88: 7.059399735 | BN88: 49.83512462 | BO88: 0 | BR88: 16.81039252 | BS88: 0.293396698 | BT88: -16.51699582 | BU88: 0.9587354444
T89: 2.787719139 | U89: 0.0486548776 | V89: -2.739064262 | W89: 0.9988575256 | X89: 18.41400381 | Z89: 13.44100072 | AA89: 0.2345897173 | AB89: -13.206411 | AC89: 0.9735533459 | AD89: 1.02716508 | AE89: =($AG$47/$AG$48) * ($AG$49/$AG$50)* ($AG$51/$AG$52) * Generic!AC89 -> 5.827140544 | AF89: 5.814094725 | AG89: 6.148030107 | AH89: 5.522668588 | AK89: 30.99626778 | AL89: ='Simple AR Calculator'!H111 -> 0.916332493 | AS89: 1.059807113 | AT89: 0.01849712356 | AU89: -1.041309989 | AV89: -0.01817328736 | AW89: =ABS(AV89)*'Simple AR Calculator'!$C$8 -> 4.452455402 | AX89: 5.821492957 | AY89: 25.91993777 | AZ89: 35 | BE89: 10.15177715 | BF89: 0.1771819361 | BG89: -9.97459521 | BH89: -0.1732114996 | BI89: 1.059807113 | BJ89: 9.578891311 | BK89: 91.75515875 | BL89: 1.450527786 | BM89: 6.998678164 | BN89: 48.98149605 | BO89: 0 | BR89: 16.51699582 | BS89: 0.2882759596 | BT89: -16.22871986 | BU89: 0.960153719
T90: 2.739064262 | U90: 0.04780568979 | V90: -2.691258572 | W90: 0.9988970502 | X90: 18.39177555 | Z90: 13.206411 | AA90: 0.2304953544 | AB90: -12.97591565 | AC90: 0.9744645372 | AD90: 1.02620461 | AE90: =($AG$47/$AG$48) * ($AG$49/$AG$50)* ($AG$51/$AG$52) * Generic!AC90 -> 5.832594421 | AF90: 5.821121625 | AG90: 6.142281276 | AH90: 5.517504514 | AK90: 32.48614334 | AL90: ='Simple AR Calculator'!H101 -> 0.6704716424 | AS90: 1.041309989 | AT90: 0.01817428785 | AU90: -1.023135702 | AV90: -0.01785613767 | AW90: =ABS(AV90)*'Simple AR Calculator'!$C$8 -> 4.374753729 | AX90: 5.827140544 | AY90: 25.49230483 | BE90: 9.97459521 | BF90: 0.174089528 | BG90: -9.800505682 | BH90: -0.1702181962 | BI90: 1.041309989 | BJ90: 9.578891311 | BK90: 91.75515875 | BL90: 1.437459969 | BM90: 6.93904208 | BN90: 48.15030498 | BO90: 0 | BR90: 16.22871986 | BS90: 0.2832445949 | BT90: -15.94547526 | BU90: 0.9615235671
T91: 2.691258572 | U91: 0.0469713231 | V91: -2.644287249 | W91: 0.9989352077 | X91: 18.37029065 | Z91: 12.97591565 | AA91: 0.2264724515 | AB91: -12.7494432 | AC91: 0.9753444652 | AD91: 1.025278797 | AE91: =($AG$47/$AG$48) * ($AG$49/$AG$50)* ($AG$51/$AG$52) * Generic!AC91 -> 5.837861173 | AF91: 5.827929698 | AG91: 6.136739885 | AH91: 5.512526778 | AK91: 33.85032867 | AL91: ='Simple AR Calculator'!H102 -> 0.6139757779 | AS91: 1.023135702 | AT91: 0.01785708669 | AU91: -1.005278615 | AV91: -0.01754452154 | AW91: =ABS(AV91)*'Simple AR Calculator'!$C$8 -> 4.298407778 | AX91: 5.832594421 | AY91: 25.07086922 | BE91: 9.800505682 | BF91: 0.1710510925 | BG91: -9.629454589 | BH91: -0.1672756051 | BI91: 1.023135702 | BJ91: 9.578891311 | BK91: 91.75515875 | BL91: 1.424392151 | BM91: 6.880482792 | BN91: 47.34104345 | BO91: 0 | BR91: 15.94547526 | BS91: 0.2783010442 | BT91: -15.66717422 | BU91: 0.9628466203
T92: 2.644287249 | U92: 0.04615151886 | V92: -2.59813573 | W92: 0.9989720453 | X92: 18.34952503 | Z92: 12.7494432 | AA92: 0.2225197616 | AB92: -12.52692344 | AC92: 0.9761941938 | AD92: 1.024386343 | AE92: =($AG$47/$AG$48) * ($AG$49/$AG$50)* ($AG$51/$AG$52) * Generic!AC92 -> 5.842947169 | AF92: 5.834524993 | AG92: 6.131398157 | AH92: 5.507728397 | AK92: 35.09896007 | AL92: ='Simple AR Calculator'!H103 -> 0.5622394138 | AS92: 1.005278615 | AT92: 0.01754542173 | AU92: -0.9877331931 | AV92: -0.01723834248 | AW92: =ABS(AV92)*'Simple AR Calculator'!$C$8 -> 4.223393907 | AX92: 5.837861173 | AY92: 24.65558731 | BE92: 9.629454589 | BF92: 0.1680656878 | BG92: -9.461388901 | BH92: -0.1643829196 | BI92: 1.005278615 | BJ92: 9.578891311 | BK92: 91.75515875 | BL92: 1.411324333 | BM92: 6.82299197 | BN92: 46.55321942 | BO92: 0 | BR92: 15.66717422 | BS92: 0.2734437746 | BT92: -15.39373045 | BU92: 0.9641244568
T93: 2.59813573 | U93: 0.0453460229 | V93: -2.552789707 | W93: 0.9990076086 | X93: 18.32945539 | Z93: 12.52692344 | AA93: 0.2186360591 | AB93: -12.30828738 | AC93: 0.9770147511 | AD93: 1.023526 | AE93: =($AG$47/$AG$48) * ($AG$49/$AG$50)* ($AG$51/$AG$52) * Generic!AC93 -> 5.847858561 | AF93: 5.840913444 | AG93: 6.126248631 | AH93: 5.503102667 | AK93: 36.2415038 | AL93: ='Simple AR Calculator'!H104 -> 0.5148618183 | AS93: 0.9877331931 | AT93: 0.01723919635 | AU93: -0.9704939968 | AV93: -0.01693750567 | AW93: =ABS(AV93)*'Simple AR Calculator'!$C$8 -> 4.14968889 | AX93: 5.842947169 | AY93: 24.24641295 | BE93: 9.461388901 | BF93: 0.1651323881 | BG93: -9.296256513 | BH93: -0.1615393434 | BI93: 0.9877331931 | BJ93: 9.578891311 | BK93: 91.75515875 | BL93: 1.398256515 | BM93: 6.766561643 | BN93: 45.78635647 | BO93: 0 | BR93: 15.39373045 | BS93: 0.2686712804 | BT93: -15.12505917 | BU93: 0.965358603
T94: 2.552789707 | U94: 0.0445545855 | V94: -2.508235121 | W94: 0.9990419418 | X94: 18.3100591 | Z94: 12.30828738 | AA94: 0.21482014 | AB94: -12.09346724 | AC94: 0.9778071307 | AD94: 1.022696571 | AE94: =($AG$47/$AG$48) * ($AG$49/$AG$50)* ($AG$51/$AG$52) * Generic!AC94 -> 5.852601298 | AF94: 5.847100866 | AG94: 6.12128414 | AH94: 5.498643151 | AK94: 37.28675729 | AL94: ='Simple AR Calculator'!H105 -> 0.4714759457 | AS94: 0.9704939968 | AT94: 0.01693831561 | AU94: -0.9535556812 | AV94: -0.01664191797 | AW94: =ABS(AV94)*'Simple AR Calculator'!$C$8 -> 4.077269902 | AX94: 5.847858561 | AY94: 23.84329771 | AZ94: 40 | BE94: 9.296256513 | BF94: 0.1622502843 | BG94: -9.134006229 | BH94: -0.1587440899 | BI94: 0.9704939968 | BJ94: 9.578891311 | BK94: 91.75515875 | BL94: 1.385188697 | BM94: 6.711184212 | BN94: 45.03999352 | BO94: 0 | BR94: 15.12505917 | BS94: 0.263982082 | BT94: -14.86107708 | BU94: 0.9665505351
T95: 2.508235121 | U95: 0.04377696128 | V95: -2.46445816 | W95: 0.9990750874 | X95: 18.29131423 | Z95: 12.09346724 | AA95: 0.2110708213 | AB95: -11.88239641 | AC95: 0.9785722932 | AD95: 1.021896907 | AE95: =($AG$47/$AG$48) * ($AG$49/$AG$50)* ($AG$51/$AG$52) * Generic!AC95 -> 5.857181129 | AF95: 5.853092951 | AG95: 6.116497803 | AH95: 5.494343667 | AK95: 38.24286504 | AL95: ='Simple AR Calculator'!H106 -> 0.4317456171 | AS95: 0.9535556812 | AT95: 0.01664268624 | AU95: -0.9369129949 | AV95: -0.01635148783 | AW95: =ABS(AV95)*'Simple AR Calculator'!$C$8 -> 4.006114517 | AX95: 5.852601298 | AY95: 23.44619103 | BE95: 9.134006229 | BF95: 0.1594184826 | BG95: -8.974587746 | BH95: -0.1559963827 | BI95: 0.9535556812 | BJ95: 9.578891311 | BK95: 91.75515875 | BL95: 1.372120879 | BM95: 6.656852445 | BN95: 44.31368448 | BO95: 0 | BR95: 14.86107708 | BS95: 0.2593747255 | BT95: -14.60170236 | BU95: 0.9677016806
T96: 2.46445816 | U96: 0.04301290917 | V96: -2.421445251 | W96: 0.9991070865 | X96: 18.27319954 | Z96: 11.88239641 | AA96: 0.2073869405 | AB96: -11.67500947 | AC96: 0.9793111666 | AD96: 1.021125904 | AE96: =($AG$47/$AG$48) * ($AG$49/$AG$50)* ($AG$51/$AG$52) * Generic!AC96 -> 5.861603608 | AF96: 5.858895273 | AG96: 6.11188301 | AH96: 5.49019828 | AK96: 39.11734423 | AL96: ='Simple AR Calculator'!H107 -> 0.3953629344 | AS96: 0.9369129949 | AT96: 0.01635221657 | AU96: -0.9205607784 | AV96: -0.0160661253 | AW96: =ABS(AV96)*'Simple AR Calculator'!$C$8 -> 3.936200699 | AX96: 5.857181129 | AY96: 23.05504045 | BE96: 8.974587746 | BF96: 0.1566361052 | BG96: -8.817951641 | BH96: -0.1532954558 | BI96: 0.9369129949 | BJ96: 9.578891311 | BK96: 91.75515875 | BL96: 1.359053061 | BM96: 6.603559495 | BN96: 43.606998 | BO96: 0 | BR96: 14.60170236 | BS96: 0.2548477825 | BT96: -14.34685458 | BU96: 0.9688134199
T97: 2.421445251 | U97: 0.04226219229 | V97: -2.379183059 | W97: 0.9991379786 | X97: 18.25569441 | Z97: 11.67500947 | AA97: 0.2037673555 | AB97: -11.47124212 | AC97: 0.9800246479 | AD97: 1.0203825 | AE97: =($AG$47/$AG$48) * ($AG$49/$AG$50)* ($AG$51/$AG$52) * Generic!AC97 -> 5.865874104 | AF97: 5.864513285 | AG97: 6.107433414 | AH97: 5.486201285 | AS97: 0.9205607784 | AT97: 0.01606681655 | AU97: -0.9044939618 | AV97: -0.01578574202 | AW97: =ABS(AV97)*'Simple AR Calculator'!$C$8 -> 3.867506794 | AX97: 5.861603608 | AY97: 22.66979178 | BE97: 8.817951641 | BF97: 0.1539022894 | BG97: -8.664049352 | BH97: -0.1506405529 | BI97: 0.9205607784 | BJ97: 9.578891311 | BK97: 91.75515875 | BL97: 1.345985243 | BM97: 6.551298898 | BN97: 42.91951725 | BO97: 0 | BR97: 14.34685458 | BS97: 0.2503998496 | BT97: -14.09645473 | BU97: 0.9698870875
T98: 2.379183059 | U98: 0.04152457788 | V98: -2.337658481 | W98: 0.9991678021 | X98: 18.23877889 | Y98: 44 | Z98: 11.47124212 | AA98: 0.2002109443 | AB98: -11.27103117 | AC98: 0.9807136038 | AD98: 1.019665676 | AE98: =($AG$47/$AG$48) * ($AG$49/$AG$50)* ($AG$51/$AG$52) * Generic!AC98 -> 5.869997805 | AF98: 5.869952317 | AG98: 6.103142913 | AH98: 5.482347202 | AS98: 0.9044939618 | AT98: 0.0157863977 | AU98: -0.8887075641 | AV98: -0.01551025114 | AW98: =ABS(AV98)*'Simple AR Calculator'!$C$8 -> 3.800011528 | AX98: 5.865874104 | AY98: 22.29038922 | BE98: 8.664049352 | BF98: 0.1512161877 | BG98: -8.512833164 | BH98: -0.1480309281 | BI98: 0.9044939618 | BJ98: 9.578891311 | BK98: 91.75515875 | BL98: 1.332917425 | BM98: 6.500064585 | BN98: 42.25083961 | BO98: 0 | BR98: 14.09645473 | BS98: 0.2460295478 | BT98: -13.85042518 | BU98: 0.970923974
T99: 2.337658481 | U99: 0.04079983728 | V99: -2.296858643 | W99: 0.9991965939 | X99: 18.22243362 | Z99: 11.27103117 | AA99: 0.1967166041 | AB99: -11.07431457 | AC99: 0.9813788721 | AD99: 1.018974454 | AE99: =($AG$47/$AG$48) * ($AG$49/$AG$50)* ($AG$51/$AG$52) * Generic!AC99 -> 5.873979725 | AF99: 5.875217584 | AG99: 6.099005645 | AH99: 5.478630767 | AS99: 0.8887075641 | AT99: 0.01551087308 | AU99: -0.8731966911 | AV99: -0.01523956733 | AW99: =ABS(AV99)*'Simple AR Calculator'!$C$8 -> 3.733693996 | AX99: 5.869997805 | AY99: 21.91677556 | AZ99: 45 | BE99: 8.512833164 | BF99: 0.1485769674 | BG99: -8.364256197 | BH99: -0.1454658455 | BI99: 0.8887075641 | BJ99: 9.578891311 | BK99: 91.75515875 | BL99: 1.319849608 | BM99: 6.449850889 | BN99: 41.60057649 | BO99: 0 | BR99: 13.85042518 | BS99: 0.2417355222 | BT99: -13.60868966 | BU99: 0.971925327
T100: 2.296858643 | U100: 0.04008774578 | V100: -2.256770898 | W100: 0.9992243898 | X100: 18.20663986 | Z100: 11.07431457 | AA100: 0.1932832517 | AB100: -10.88103132 | AC100: 0.9820212619 | AD100: 1.018307891 | AE100: =($AG$47/$AG$48) * ($AG$49/$AG$50)* ($AG$51/$AG$52) * Generic!AC100 -> 5.877824708 | AF100: 5.880314174 | AG100: 6.095015977 | AH100: 5.475046917 | AS100: 0.8731966911 | AT100: 0.01524015728 | AU100: -0.8579565338 | AV100: -0.01497360676 | AW100: =ABS(AV100)*'Simple AR Calculator'!$C$8 -> 3.668533656 | AX100: 5.873979725 | AY100: 21.54889232 | BE100: 8.364256197 | BF100: 0.1459838101 | BG100: -8.218272386 | BH100: -0.1429445793 | BI100: 0.8731966911 | BJ100: 9.578891311 | BK100: 91.75515875 | BL100: 1.30678179 | BM100: 6.400652552 | BN100: 40.96835309 | BO100: 0 | BR100: 13.60868966 | BS100: 0.2375164414 | BT100: -13.37117321 | BU100: 0.9728923526
T101: 2.256770898 | U101: 0.03938808263 | V101: -2.217382815 | W101: 0.999251224 | X101: 18.19137944 | Z101: 10.88103132 | AA101: 0.1899098225 | AB101: -10.6911215 | AC101: 0.9826415555 | AD101: 1.017665083 | AE101: =($AG$47/$AG$48) * ($AG$49/$AG$50)* ($AG$51/$AG$52) * Generic!AC101 -> 5.881537435 | AF101: 5.885247062 | AG101: 6.091168491 | AH101: 5.471590787 | AS101: 0.8579565338 | AT101: 0.01497416635 | AU101: -0.8429823674 | AV101: -0.01471228705 | AW101: =ABS(AV101)*'Simple AR Calculator'!$C$8 -> 3.604510326 | AX101: 5.877824708 | AY101: 21.18667986 | BE101: 8.218272386 | BF101: 0.143435912 | BG101: -8.074836475 | BH101: -0.1404664135 | BI101: 0.8579565338 | BJ101: 9.578891311 | BK101: 91.75515875 | BL101: 1.293713972 | BM101: 6.352464738 | BN101: 40.35380825 | BO101: 0 | BR101: 13.37117321 | BS101: 0.2333709974 | BT101: -13.13780222 | BU101: 0.9738262169
T102: 2.217382815 | U102: 0.0387006309 | V102: -2.178682184 | W102: 0.99927713 | X102: 18.17663478 | Z102: 10.6911215 | AA102: 0.1865952708 | AB102: -10.50452623 | AC102: 0.9832405083 | AD102: 1.01704516 | AE102: =($AG$47/$AG$48) * ($AG$49/$AG$50)* ($AG$51/$AG$52) * Generic!AC102 -> 5.885122428 | AF102: 5.890021101 | AG102: 6.087457982 | AH102: 5.468257702 | AS102: 0.8429823674 | AT102: 0.01471281785 | AU102: -0.8282695496 | AV102: -0.01445552724 | AW102: =ABS(AV102)*'Simple AR Calculator'!$C$8 -> 3.541604175 | AX102: 5.881537435 | AY102: 20.83007753 | BE102: 8.074836475 | BF102: 0.140932483 | BG102: -7.933903991 | BH102: -0.1380306423 | BI102: 0.8429823674 | BJ102: 9.578891311 | BK102: 91.75515875 | BL102: 1.280646154 | BM102: 6.30528304 | BN102: 39.75659422 | BO102: 0 | BR102: 13.13780222 | BS102: 0.2292979052 | BT102: -12.90850431 | BU102: 0.9747280468
T103: 2.178682184 | U103: 0.03802517747 | V103: -2.140657007 | W103: 0.9993021399 | X103: 18.16238884 | Z103: 10.50452623 | AA103: 0.183338569 | AB103: -10.32118766 | AC103: 0.9838188506 | AD103: 1.016447285 | AE103: =($AG$47/$AG$48) * ($AG$49/$AG$50)* ($AG$51/$AG$52) * Generic!AC103 -> 5.888584059 | AF103: 5.894641028 | AG103: 6.083879443 | AH103: 5.465043162 | AS103: 0.8282695496 | AT103: 0.01445603073 | AU103: -0.8138135188 | AV103: -0.01420324782 | AW103: =ABS(AV103)*'Simple AR Calculator'!$C$8 -> 3.479795715 | AX103: 5.885122428 | AY103: 20.47902381 | BE103: 7.933903991 | BF103: 0.1384727472 | BG103: -7.795431244 | BH103: -0.1356365699 | BI103: 0.8282695496 | BJ103: 9.578891311 | BK103: 91.75515875 | BL103: 1.267578336 | BM103: 6.259103494 | BN103: 39.17637655 | BO103: 0 | BR103: 12.90850431 | BS103: 0.2252959017 | BT103: -12.68320841 | BU103: 0.9755989321
C104: ITF=((Leverage*86)-194)+(StrikeWt-10)*(44+((Leverage-5)*8)) | T104: 2.140657007 | U104: 0.03736151292 | V104: -2.103295494 | W104: 0.9993262845 | X104: 18.14862511 | Z104: 10.32118766 | AA104: 0.1801387073 | AB104: -10.14104895 | AC104: 0.9843772877 | AD104: 1.015870655 | AE104: =($AG$47/$AG$48) * ($AG$49/$AG$50)* ($AG$51/$AG$52) * Generic!AC104 -> 5.891926548 | AF104: 5.899111461 | AG104: 6.080428059 | AH104: 5.461942844 | AS104: 0.8138135188 | AT104: 0.0142037254 | AU104: -0.7996097934 | AV104: -0.01395537061 | AW104: =ABS(AV104)*'Simple AR Calculator'!$C$8 -> 3.4190658 | AX104: 5.888584059 | AY104: 20.13345637 | AZ104: 50 | BE104: 7.795431244 | BF104: 0.1360559418 | BG104: -7.659375302 | BH104: -0.1332835103 | BI104: 0.8138135188 | BJ104: 9.578891311 | BK104: 91.75515875 | BL104: 1.254510518 | BM104: 6.213922588 | BN104: 38.61283392 | BO104: 0 | BR104: 12.68320841 | BS104: 0.2213637465 | BT104: -12.46184466 | BU104: 0.9764399256
C105: Example: | T105: 2.103295494 | U105: 0.03670943151 | V105: -2.066586062 | W105: 0.9993495938 | X105: 18.13532762 | Z105: 10.14104895 | AA105: 0.1769946938 | AB105: -9.964054255 | AC105: 0.9849165011 | AD105: 1.015314495 | AE105: =($AG$47/$AG$48) * ($AG$49/$AG$50)* ($AG$51/$AG$52) * Generic!AC105 -> 5.895153975 | AF105: 5.903436907 | AG105: 6.0770992 | AH105: 5.458952587 | AS105: 0.7996097934 | AT105: 0.01395582363 | AU105: -0.7856539698 | AV105: -0.01371181885 | AW105: =ABS(AV105)*'Simple AR Calculator'!$C$8 -> 3.359395618 | AX105: 5.891926548 | AY105: 19.79331223 | BE105: 7.659375302 | BF105: 0.1336813177 | BG105: -7.525693985 | BH105: -0.1309707872 | BI105: 0.7996097934 | BJ105: 9.578891311 | BK105: 91.75515875 | BL105: 1.2414427 | BM105: 6.169737276 | BN105: 38.06565805 | BO105: 0 | BR105: 12.46184466 | BS105: 0.2175002202 | BT105: -12.24434444 | BU105: 0.9772520454
C106: Leverage 5.4 | T106: 2.066586062 | U106: 0.03606873106 | V106: -2.030517331 | W106: 0.9993720968 | X106: 18.1224809 | Z106: 9.964054255 | AA106: 0.1739055536 | AB106: -9.790148702 | AC106: 0.9854371493 | AD106: 1.014778061 | AE106: =($AG$47/$AG$48) * ($AG$49/$AG$50)* ($AG$51/$AG$52) * Generic!AC106 -> 5.898270281 | AF106: 5.907621755 | AG106: 6.073888411 | AH106: 5.456068391 | AS106: 0.7856539698 | AT106: 0.01371224855 | AU106: -0.7719417213 | AV106: -0.01347251707 | AW106: =ABS(AV106)*'Simple AR Calculator'!$C$8 -> 3.300766683 | AX106: 5.895153975 | AY106: 19.45852783 | BE106: 7.525693985 | BF106: 0.1313481385 | BG106: -7.394345846 | BH106: -0.1286977343 | BI106: 0.7856539698 | BJ106: 9.578891311 | BK106: 91.75515875 | BL106: 1.228374882 | BM106: 6.126544993 | BN106: 37.53455356 | BO106: 0 | BR106: 12.24434444 | BS106: 0.2137041253 | BT106: -12.03064032 | BU106: 0.978036275
C107: StrikeWt = 9.5 g | T107: 2.030517331 | U107: 0.03543921295 | V107: -1.995078118 | W107: 0.9993938213 | X107: 18.11006996 | Z107: 9.790148702 | AA107: 0.1708703291 | AB107: -9.619278373 | AC107: 0.9859398684 | AD107: 1.014260638 | AE107: =($AG$47/$AG$48) * ($AG$49/$AG$50)* ($AG$51/$AG$52) * Generic!AC107 -> 5.901279273 | AF107: 5.911670283 | AG107: 6.070791407 | AH107: 5.453286407 | AS107: 0.7719417213 | AT107: 0.01347292467 | AU107: -0.7584687966 | AV107: -0.01323739115 | AW107: =ABS(AV107)*'Simple AR Calculator'!$C$8 -> 3.243160831 | AX107: 5.898270281 | AY107: 19.12903915 | BE107: 7.394345846 | BF107: 0.129055681 | BG107: -7.265290165 | BH107: -0.1264636948 | BI107: 0.7719417213 | BJ107: 9.578891311 | BK107: 91.75515875 | BL107: 1.215307064 | BM107: 6.084343672 | BN107: 37.01923792 | BO107: 0 | BR107: 12.03064032 | BS107: 0.2099742847 | BT107: -11.82066603 | BU107: 0.9787935653
C108: Result in ITF calculator: 247 | T108: 1.995078118 | U108: 0.034820682 | V108: -1.960257436 | W108: 0.9994147942 | X108: 18.0980803 | Z108: 9.619278373 | AA108: 0.1678880793 | AB108: -9.451390294 | AC108: 0.9864252729 | AD108: 1.013761536 | AE108: =($AG$47/$AG$48) * ($AG$49/$AG$50)* ($AG$51/$AG$52) * Generic!AC108 -> 5.90418463 | AF108: 5.91558666 | AG108: 6.067804066 | AH108: 5.45060293 | AS108: 0.7584687966 | AT108: 0.01323777777 | AU108: -0.7452310188 | AV108: -0.01300636823 | AW108: =ABS(AV108)*'Simple AR Calculator'!$C$8 -> 3.186560217 | AX108: 5.901279273 | AY108: 18.80478176 | BE108: 7.265290165 | BF108: 0.1268032345 | BG108: -7.138486931 | BH108: -0.1242680216 | BI108: 0.7584687966 | BJ108: 9.578891311 | BK108: 91.75515875 | BL108: 1.202239246 | BM108: 6.043131753 | BN108: 36.51944139 | BO108: 0 | BR108: 11.82066603 | BS108: 0.2063095421 | BT108: -11.61435649 | BU108: 0.9795248351
C109: Calculation: | T109: 1.960257436 | U109: 0.03421294645 | V109: -1.92604449 | W109: 0.9994350416 | X109: 18.08649789 | Z109: 9.451390294 | AA109: 0.1649578795 | AB109: -9.286432414 | AC109: 0.9868939564 | AD109: 1.013280093 | AE109: =($AG$47/$AG$48) * ($AG$49/$AG$50)* ($AG$51/$AG$52) * Generic!AC109 -> 5.906989905 | AF109: 5.919374942 | AG109: 6.064922419 | AH109: 5.448014397 | AS109: 0.7452310188 | AT109: 0.01300673497 | AU109: -0.7322242838 | AV109: -0.01277937675 | AW109: =ABS(AV109)*'Simple AR Calculator'!$C$8 -> 3.130947304 | AX109: 5.90418463 | AY109: 18.48569095 | AZ109: 55 | BE109: 7.138486931 | BF109: 0.1245901006 | BG109: -7.01389683 | BH109: -0.1221100774 | BI109: 0.7452310188 | BJ109: 9.578891311 | BK109: 91.75515875 | BL109: 1.189171429 | BM109: 6.002908209 | BN109: 36.03490697 | BO109: 0 | BR109: 11.61435649 | BS109: 0.2027087613 | BT109: -11.41164773 | BU109: 0.9802309724
C110: ((5.4*86)-194)+(9.5-10)*(44+((Leverage-5)*8)) | T110: 1.92604449 | U110: 0.03361581789 | V110: -1.892428672 | W110: 0.9994545885 | X110: 18.07530914 | Z110: 9.286432414 | AA110: 0.1620788214 | AB110: -9.124353593 | AC110: 0.9873464924 | AD110: 1.012815671 | AE110: =($AG$47/$AG$48) * ($AG$49/$AG$50)* ($AG$51/$AG$52) * Generic!AC110 -> 5.90969853 | AF110: 5.923039079 | AG110: 6.062142649 | AH110: 5.445517378 | AS110: 0.7322242838 | AT110: 0.01277972462 | AU110: -0.7194445592 | AV110: -0.01255634638 | AW110: =ABS(AV110)*'Simple AR Calculator'!$C$8 -> 3.076304863 | AX110: 5.906989905 | AY110: 18.17170177 | BE110: 7.01389683 | BF110: 0.1224155931 | BG110: -6.891481237 | BH110: -0.1199892339 | BI110: 0.7322242838 | BJ110: 9.578891311 | BK110: 91.75515875 | BL110: 1.176103611 | BM110: 5.96367256 | BN110: 35.5653904 | BO110: 0 | BR110: 11.41164773 | BS110: 0.199170826 | BT110: -11.2124769 | BU110: 0.980912835
C111: (464.4-194) + -0.5*(44+(0.4*8)) | T111: 1.892428672 | U111: 0.03302911118 | V111: -1.859399561 | W111: 0.9994734591 | X111: 18.0645009 | Z111: 9.124353593 | AA111: 0.1592500123 | AB111: -8.96510358 | AC111: 0.987783435 | AD111: 1.012367655 | AE111: =($AG$47/$AG$48) * ($AG$49/$AG$50)* ($AG$51/$AG$52) * Generic!AC111 -> 5.912313822 | AF111: 5.926582916 | AG111: 6.059461081 | AH111: 5.443108572 | AS111: 0.7194445592 | AT111: 0.01255667634 | AU111: -0.7068878829 | AV111: -0.01233720801 | AW111: =ABS(AV111)*'Simple AR Calculator'!$C$8 -> 3.022615962 | AX111: 5.90969853 | AY111: 17.86274911 | BE111: 6.891481237 | BF111: 0.1202790379 | BG111: -6.771202199 | BH111: -0.1179048726 | BI111: 0.7194445592 | BJ111: 9.578891311 | BK111: 91.75515875 | BL111: 1.163035793 | BM111: 5.925424892 | BN111: 35.11066015 | BO111: 0 | BR111: 11.2124769 | BS111: 0.1956946393 | BT111: -11.01678226 | BU111: 0.9815712523
C112: 270.4 + -0.5*(44+3.2) | T112: 1.859399561 | U112: 0.03245264445 | V112: -1.826946916 | W112: 0.999491677 | X112: 18.05406044 | Z112: 8.96510358 | AA112: 0.1564705753 | AB112: -8.808633005 | AC112: 0.9882053192 | AD112: 1.011935456 | AE112: =($AG$47/$AG$48) * ($AG$49/$AG$50)* ($AG$51/$AG$52) * Generic!AC112 -> 5.914838982 | AF112: 5.930010192 | AG112: 6.056874179 | AH112: 5.440784802 | AS112: 0.7068878829 | AT112: 0.012337521 | AU112: -0.6945503619 | AV112: -0.01212189375 | AW112: =ABS(AV112)*'Simple AR Calculator'!$C$8 -> 2.969863969 | AX112: 5.912313822 | AY112: 17.55876779 | BE112: 6.771202199 | BF112: 0.1181797727 | BG112: -6.653022426 | BH112: -0.1158563841 | BI112: 0.7068878829 | BJ112: 9.578891311 | BK112: 91.75515875 | BL112: 1.149967975 | BM112: 5.888165886 | BN112: 34.6704975 | BO112: 0 | BR112: 11.01678226 | BS112: 0.1922791235 | BT112: -10.82450314 | BU112: 0.9822070253
C113: 270.4 + -0.5*47.2 | T113: 1.826946916 | U113: 0.03188623895 | V113: -1.795060677 | W113: 0.9995092645 | X113: 18.04397545 | Z113: 8.808633005 | AA113: 0.1537396485 | AB113: -8.654893357 | AC113: 0.988612662 | AD113: 1.011518503 | AE113: =($AG$47/$AG$48) * ($AG$49/$AG$50)* ($AG$51/$AG$52) * Generic!AC113 -> 5.917277106 | AF113: 5.933324544 | AG113: 6.054378536 | AH113: 5.43854301 | AS113: 0.6945503619 | AT113: 0.01212219064 | AU113: -0.6824281713 | AV113: -0.01191033689 | AW113: =ABS(AV113)*'Simple AR Calculator'!$C$8 -> 2.918032537 | AX113: 5.914838982 | AY113: 17.2596926 | BE113: 6.653022426 | BF113: 0.1161171466 | BG113: -6.53690528 | BH113: -0.1138431684 | BI113: 0.6945503619 | BJ113: 9.578891311 | BK113: 91.75515875 | BL113: 1.136900157 | BM113: 5.851896832 | BN113: 34.24469653 | BO113: 0 | BR113: 10.82450314 | BS113: 0.1889232197 | BT113: -10.63557992 | BU113: 0.9828209283
C114: 270.4 - 23.6 | T114: 1.795060677 | U114: 0.03132971909 | V114: -1.763730958 | W114: 0.9995262436 | X114: 18.03423401 | Z114: 8.654893357 | AA114: 0.1510563855 | AB114: -8.503836971 | AC114: 0.9890059627 | AD114: 1.01111625 | AE114: =($AG$47/$AG$48) * ($AG$49/$AG$50)* ($AG$51/$AG$52) * Generic!AC114 -> 5.919631182 | AF114: 5.93652951 | AG114: 6.051970875 | AH114: 5.43638025 | AS114: 0.6824281713 | AT114: 0.0119106185 | AU114: -0.6705175528 | AV114: -0.01170247187 | AW114: =ABS(AV114)*'Simple AR Calculator'!$C$8 -> 2.867105607 | AX114: 5.917277106 | AY114: 16.96545837 | AZ114: 60 | BE114: 6.53690528 | BF114: 0.11409052 | BG114: -6.42281476 | BH114: -0.1118646345 | BI114: 0.6824281713 | BJ114: 9.578891311 | BK114: 91.75515875 | BL114: 1.123832339 | BM114: 5.816619662 | BN114: 33.83306429 | BO114: 0 | BR114: 10.63557992 | BS114: 0.1856258875 | BT114: -10.44995403 | BU114: 0.9834137092
C115: = 246.8 | T115: 1.763730958 | U115: 0.03078291234 | V115: -1.732948046 | W115: 0.9995426352 | X115: 18.0248246 | Z115: 8.503836971 | AA115: 0.1484199542 | AB115: -8.355417017 | AC115: 0.9893857036 | AD115: 1.010728168 | AE115: =($AG$47/$AG$48) * ($AG$49/$AG$50)* ($AG$51/$AG$52) * Generic!AC115 -> 5.921904097 | AF115: 5.939628527 | AG115: 6.049648039 | AH115: 5.434293686 | AS115: 0.6705175528 | AT115: 0.01170273899 | AU115: -0.6588148138 | AV115: -0.01149823428 | AW115: =ABS(AV115)*'Simple AR Calculator'!$C$8 -> 2.817067399 | AX115: 5.919631182 | AY115: 16.67600002 | BE115: 6.42281476 | BF115: 0.1120992648 | BG115: -6.310715495 | BH115: -0.1099202004 | BI115: 0.6705175528 | BJ115: 9.578891311 | BK115: 91.75515875 | BL115: 1.110764521 | BM115: 5.782336974 | BN115: 33.43542088 | BO115: 0 | BR115: 10.44995403 | BS115: 0.1823861046 | BT115: -10.26756793 | BU115: 0.9839860907
T116: 1.732948046 | U116: 0.03024564917 | V116: -1.702702397 | W116: 0.9995584598 | X116: 18.01573607 | Z116: 8.355417017 | AA116: 0.1458295373 | AB116: -8.20958748 | AC116: 0.9897523505 | AD116: 1.010353751 | AE116: =($AG$47/$AG$48) * ($AG$49/$AG$50)* ($AG$51/$AG$52) * Generic!AC116 -> 5.924098638 | AF116: 5.942624938 | AG116: 6.047406988 | AH116: 5.43228059 | AS116: 0.6588148138 | AT116: 0.01149848766 | AU116: -0.6473163261 | AV116: -0.01129756085 | AW116: =ABS(AV116)*'Simple AR Calculator'!$C$8 -> 2.767902409 | AX116: 5.921904097 | AY116: 16.39125261 | BE116: 6.310715495 | BF116: 0.1101427635 | BG116: -6.200572732 | BH116: -0.1080092933 | BI116: 0.6588148138 | BJ116: 9.578891311 | BK116: 91.75515875 | BL116: 1.097696703 | BM116: 5.749052062 | BN116: 33.05159961 | BO116: 0 | BR116: 10.26756793 | BS116: 0.1792028665 | BT116: -10.08836506 | BU116: 0.984538771
C117: Data Entry | D117: MAR | E117: DAR | G117: Isolate variables | I117: =O5 -> 5.372723325 | J117: segmentation | T117: 1.702702397 | U117: 0.02971776301 | V117: -1.672984634 | W117: 0.9995737369 | X117: 18.00695761 | Z117: 8.20958748 | AA117: 0.1432843317 | AB117: -8.066303148 | AC117: 0.9901063535 | AD117: 1.009992509 | AE117: =($AG$47/$AG$48) * ($AG$49/$AG$50)* ($AG$51/$AG$52) * Generic!AC117 -> 5.9262175 | AF117: 5.945521987 | AG117: 6.045244796 | AH117: 5.43033833 | AS117: 0.6473163261 | AT117: 0.01129780119 | AU117: -0.6360185249 | AV117: -0.01110038939 | AW117: =ABS(AV117)*'Simple AR Calculator'!$C$8 -> 2.7195954 | AX117: 5.924098638 | AY117: 16.11115141 | BE117: 6.200572732 | BF117: 0.1082204097 | BG117: -6.092352322 | BH117: -0.106131349 | BI117: 0.6473163261 | BJ117: 9.578891311 | BK117: 91.75515875 | BL117: 1.084628885 | BM117: 5.716768948 | BN117: 32.6814472 | BO117: 0 | BR117: 10.08836506 | BS117: 0.1760751865 | BT117: -9.912289876 | BU117: 0.9850724249
D118: ='Simple AR Calculator'!C6 -> SSA ca 1916 | G118: A = | H118: 5.02 | I118: ='Simple AR Calculator'!C47 -> 5.305124231 | J118: Rest | T118: 1.672984634 | U118: 0.02919909019 | V118: -1.643785544 | W118: 0.9995884854 | X118: 17.99847881 | Z118: 8.066303148 | AA118: 0.1407835484 | AB118: -7.925519599 | AC118: 0.990448147 | AD118: 1.009643971 | AE118: =($AG$47/$AG$48) * ($AG$49/$AG$50)* ($AG$51/$AG$52) * Generic!AC118 -> 5.928263283 | AF118: 5.948322831 | AG118: 6.043158644 | AH118: 5.428464376 | AS118: 0.6360185249 | AT118: 0.01110061736 | AU118: -0.6249179076 | AV118: -0.0109066588 | AW118: =ABS(AV118)*'Simple AR Calculator'!$C$8 -> 2.672131405 | AX118: 5.9262175 | AY118: 15.83563189 | BE118: 6.092352322 | BF118: 0.1063316072 | BG118: -5.986020715 | BH118: -0.1042858122 | BI118: 0.6360185249 | BJ118: 9.578891311 | BK118: 91.75515875 | BL118: 1.071561067 | BM118: 5.685492415 | BN118: 32.32482401 | BO118: 0 | BR118: 9.912289876 | BS118: 0.1730020948 | BT118: -9.739287782 | BU118: 0.985587704
C119: Key Out | D119: ='Simple AR Calculator'!C7 -> 126 | E119: ='Simple AR Calculator'!D7 -> 131.8976876 | I119: ='Simple AR Calculator'!C48 -> 5.736789644 | J119: At let-off | T119: 1.643785544 | U119: 0.02868946993 | V119: -1.615096074 | W119: 0.9996027237 | X119: 17.99028955 | Z119: 7.925519599 | AA119: 0.1383264119 | AB119: -7.787193187 | AC119: 0.990778151 | AD119: 1.009307683 | AE119: =($AG$47/$AG$48) * ($AG$49/$AG$50)* ($AG$51/$AG$52) * Generic!AC119 -> 5.930238501 | AF119: =($AG$47/$AG$48) * ($AG$49/X119)* ($AG$51/$AG$52) -> 5.951030532 | AG119: =($AG$47/$AG$48) * ($AG$49/$AG$50)* ($AG$51/$AG$52)*AD119 -> 6.041145815 | AH119: =($AG$47/$AG$48) * ($AG$49/$AH$50)* ($AG$51/$AG$52)*AD119 -> 5.426656287 | AS119: 0.6249179076 | AT119: 0.01090687504 | AU119: -0.6140110325 | AV119: -0.01071630904 | AW119: =ABS(AV119)*'Simple AR Calculator'!$C$8 -> 2.625495715 | AX119: 5.928263283 | AY119: 15.56462985 | AZ119: 65 | BE119: 5.986020715 | BF119: 0.1044757706 | BG119: -5.881544944 | BH119: -0.1024721362 | BI119: 0.6249179076 | BJ119: 9.578891311 | BK119: 91.75515875 | BL119: 1.05849325 | BM119: 5.655228049 | BN119: 31.98160429 | BO119: 0 | BR119: 9.739287782 | BS119: 0.1699826386 | BT119: -9.569305143 | BU119: 0.986085238
C120: Key In | D120: ='Simple AR Calculator'!C8 -> 245 | E120: ='Simple AR Calculator'!D8 -> 245 | I120: ='Simple AR Calculator'!C49 -> 5.90585203 | J120: Max cosign | T120: 1.615096074 | U120: 0.02818874422 | V120: -1.586907329 | W120: =COS(RADIANS(V120)) -> 0.9996164693 | X120: =SQRT($H$62^2+$F$60^2-2*$H$62*$F$60*(COS(RADIANS(V120)))) -> 17.98238009 | Y120: 66 | Z120: 7.787193187 | AA120: 0.1359121606 | AB120: -7.651281027 | AC120: =COS(RADIANS(AB120)) -> 0.9910967708 | AD120: =1/AC120 -> 1.008983209 | AE120: =($AG$47/$AG$48) * ($AG$49/$AG$50)* ($AG$51/$AG$52) * Generic!AC120 -> 5.932145579 | AF120: 5.953648064 | AG120: 6.039203696 | AH120: 5.424911715 | AS120: 0.6140110325 | AT120: 0.01071651416 | AU120: -0.6032945183 | AV120: -0.01052928114 | AW120: =ABS(AV120)*'Simple AR Calculator'!$C$8 -> 2.579673879 | AX120: =AE119 -> 5.930238501 | AY120: =AW120*AX120 -> 15.29808136 | BE120: 5.881544944 | BF120: 0.1026523244 | BG120: -5.77889262 | BH120: -0.100689783 | BI120: =AS120 -> 0.6140110325 | BJ120: =BE120/BI120 -> 9.578891311 | BK120: =BJ120^2 -> 91.75515875 | BL120: 1.045425432 | BM120: =BE120/BL120 -> 5.625982271 | BN120: =BM120^2 -> 31.65167651 | BO120: =(BK120*$BD$52)*10000 -> 0 | BR120: 9.569305143 | BS120: 0.1670158819 | BT120: -9.402289261 | BU120: 0.9865656351
C121: Whip_out | D121: ='Simple AR Calculator'!C9 -> 92 | E121: ='Simple AR Calculator'!E9 -> 93.23972951 | I121: ='Simple AR Calculator'!F8 -> 5.63693587 | J121: AGP rotations to string | T121: 1.586907329 | U121: =(RADIANS(T121)) -> 0.02769675782 | V121: -1.559210572 | W121: 0.9996297394 | X121: 17.97474097 | Z121: 7.651281027 | AA121: =(RADIANS(Z121)) -> 0.1335400459 | AB121: -7.517740981 | AC121: 0.9914043979 | AD121: 1.008670127 | AE121: =($AG$47/$AG$48) * ($AG$49/$AG$50)* ($AG$51/$AG$52) * Generic!AC121 -> 5.933986861 | AF121: 5.956178316 | AG121: 6.037329765 | AH121: 5.423228396 | AS121: 0.6032945183 | AT121: 0.0105294757 | AU121: -0.5927650426 | AV121: =SIN(RADIANS(AU121)) -> -0.01034551713 | AW121: =ABS(AV121)*'Simple AR Calculator'!$C$8 -> 2.534651697 | AX121: 5.932145579 | AY121: 15.03592286 | BE121: 5.77889262 | BF121: 0.1008607033 | BG121: -5.678031916 | BH121: =SIN(RADIANS(BG121)) -> -0.09893822283 | BI121: 0.6032945183 | BJ121: 9.578891311 | BK121: 91.75515875 | BL121: =BL120- $BI$50 -> 1.032357614 | BM121: 5.597762386 | BN121: 31.33494373 | BO121: 0 | BR121: 9.402289261 | BS121: 0.1641009048 | BT121: -9.238188356 | BU121: 0.987029483
C122: Whip_in | D122: ='Simple AR Calculator'!C10 -> 64.5 | E122: ='Simple AR Calculator'!D10 -> 64.5 | I122: =F127/I119 -> 7.495481387 | J122: Dip | T122: 1.559210572 | U122: 0.02721335821 | V122: -1.531997213 | W122: 0.9996425504 | X122: 17.96736307 | Z122: 7.517740981 | AA122: 0.1312093324 | AB122: -7.386531648 | AC122: 0.9917014106 | AD122: 1.008368032 | AE122: =($AG$47/$AG$48) * ($AG$49/$AG$50)* ($AG$51/$AG$52) * Generic!AC122 -> 5.935764611 | AF122: 5.958624089 | AG122: 6.035521597 | AH122: 5.421604149 | AS122: 0.5927650426 | AT122: =(RADIANS(AS122)) -> 0.01034570168 | AU122: -0.582419341 | AV122: -0.01016496007 | AW122: =ABS(AV122)*'Simple AR Calculator'!$C$8 -> 2.490415217 | AX122: 5.933986861 | AY122: 14.77809117 | BE122: 5.678031916 | BF122: =(RADIANS(BE122)) -> 0.09910035197 | BG122: -5.578931564 | BH122: -0.09721693455 | BI122: 0.5927650426 | BJ122: 9.578891311 | BK122: 91.75515875 | BL122: 1.019289796 | BM122: 5.57057663 | BN122: 31.03132399 | BO122: 0 | BR122: 9.238188356 | BS122: 0.1612368037 | BT122: =BS122-BR122 -> -9.076951552 | BU122: 0.9874773493
C123: Shank_out | D123: ='Simple AR Calculator'!C11 -> 130 | E123: ='Simple AR Calculator'!D11 -> 137.5681649 | G123: Ko = | H123: (AKiWiSi) / (WoSo) | J123: =(I118*E120*E122*E124)/ (E121*E123) -> 130.1439561 | K123: =J124/J123 -> 1.907898462 | T123: 1.531997213 | U123: 0.0267383955 | V123: -1.505258818 | W123: 0.9996549181 | X123: 17.96023755 | Z123: 7.386531648 | AA123: 0.1289192976 | AB123: -7.257612351 | AC123: 0.9919881741 | AD123: 1.008076534 | AE123: =($AG$47/$AG$48) * ($AG$49/$AG$50)* ($AG$51/$AG$52) * Generic!AC123 -> 5.937481015 | AF123: 5.960988105 | AG123: 6.033776851 | AH123: 5.420036874 | AS123: 0.582419341 | AT123: 0.01016513513 | AU123: -0.5722542058 | AV123: -0.009987553998 | AW123: =ABS(AV123)*'Simple AR Calculator'!$C$8 -> 2.446950729 | AX123: 5.935764611 | AY123: 14.52452354 | BE123: 5.578931564 | BF123: 0.09737072454 | BG123: -5.48156084 | BH123: -0.09552540512 | BI123: 0.582419341 | BJ123: 9.578891311 | BK123: 91.75515875 | BL123: 1.006221978 | BM123: 5.544434217 | BN123: 30.74075078 | BO123: 0 | BR123: 9.076951552 | BS123: 0.1584226906 | BT123: -8.918528862 | BU123: 0.9879097824
C124: Shank_in | D124: ='Simple AR Calculator'!C12 -> 15.5 | E124: ='Simple AR Calculator'!K13 -> 19.91230775 | F124: ='Simple AR Calculator'!F16 -> 17.88687996 | G124: Ki = | H124: (KoWoSo) / (AWiSi) | J124: =(E119*E121*E123) / (I118*E122*E124) -> 248.3014536 | T124: 1.505258818 | U124: 0.02627172247 | V124: -1.478987095 | W124: 0.999666858 | X124: 17.95335588 | Z124: 7.257612351 | AA124: 0.1266692314 | AB124: -7.13094312 | AC124: 0.992265041 | AD124: 1.007795255 | AE124: =($AG$47/$AG$48) * ($AG$49/$AG$50)* ($AG$51/$AG$52) * Generic!AC124 -> 5.939138185 | AF124: 5.963273001 | AG124: 6.032093275 | AH124: 5.418524547 | AS124: 0.5722542058 | AT124: 0.00998772005 | AU124: -0.5622664858 | AV124: -0.009813243942 | AW124: =ABS(AV124)*'Simple AR Calculator'!$C$8 -> 2.404244766 | AX124: 5.937481015 | AY124: 14.27515765 | AZ124: 70 | BE124: 5.48156084 | BF124: 0.0956712848 | BG124: -5.385889555 | BH124: -0.09386312972 | BI124: 0.5722542058 | BJ124: 9.578891311 | BK124: 91.75515875 | BL124: 0.9931541601 | BM124: 5.519345395 | BN124: 30.46317359 | BO124: 0 | BR124: 8.918528862 | BS124: 0.1556576931 | BT124: -8.762871169 | BU124: 0.9883273119
C125: Knuckle Dia. | D125: ='Simple AR Calculator'!C13 -> 9.5 | F125: =AVERAGE(E124,F124) -> 18.89959386 | G125: Wi = | H125: (KoWoSo) / (AKiSi) | J125: =(E119*E121*E123) / (I118*E120*E124) -> 65.36915819 | T125: 1.478987095 | U125: 0.02581319441 | V125: -1.453173901 | W125: 0.9996783847 | X125: 17.9467098 | Z125: 7.13094312 | AA125: 0.1244584362 | AB125: -7.006484683 | AC125: 0.9925323522 | AD125: 1.007523833 | AE125: =($AG$47/$AG$48) * ($AG$49/$AG$50)* ($AG$51/$AG$52) * Generic!AC125 -> 5.940738159 | AF125: 5.965481339 | AG125: 6.030468697 | AH125: 5.417065217 | AS125: 0.5622664858 | AT125: 0.009813401451 | AU125: -0.5524530843 | AV125: -0.009641975879 | AW125: =ABS(AV125)*'Simple AR Calculator'!$C$8 -> 2.36228409 | AX125: 5.939138185 | AY125: 14.02993165 | BE125: 5.385889555 | BF125: 0.09400150588 | BG125: -5.291888049 | BH125: -0.09222961157 | BI125: 0.5622664858 | BJ125: 9.578891311 | BK125: 91.75515875 | BL125: 0.9800863422 | BM125: 5.495321507 | BN125: 30.19855847 | BO125: 0 | BR125: 8.762871169 | BS125: =(RADIANS(BR125)) -> 0.1529409538 | BT125: -8.609930215 | BU125: =COS(RADIANS(BT125)) -> 0.9887304495
C126: Shank Thickness | D126: ='Simple AR Calculator'!C14 -> 6 | G126: Si = | H126: (KoWoSo) / (AKiWi) | J126: =(E119*E121*E123) / (I118*E120*E122) -> 20.18063249 | T126: 1.453173901 | U126: 0.02536266918 | V126: -1.427811232 | W126: 0.9996895127 | X126: 17.94029133 | Z126: 7.006484683 | AA126: 0.1222862267 | AB126: -6.884198457 | AC126: 0.9927904366 | AD126: 1.007261919 | AE126: =($AG$47/$AG$48) * ($AG$49/$AG$50)* ($AG$51/$AG$52) * Generic!AC126 -> 5.942282906 | AF126: 5.967615601 | AG126: 6.028901025 | AH126: 5.415657005 | AS126: 0.5524530843 | AT126: 0.009642125284 | AU126: -0.542810959 | AV126: -0.009473696733 | AW126: =ABS(AV126)*'Simple AR Calculator'!$C$8 -> 2.3210557 | AX126: 5.940738159 | AY126: 13.78878416 | BE126: 5.291888049 | BF126: 0.0923608701 | BG126: -5.199527179 | BH126: -0.09062436188 | BI126: 0.5524530843 | BJ126: 9.578891311 | BK126: 91.75515875 | BL126: 0.9670185243 | BM126: 5.472375054 | BN126: 29.94688873 | BO126: 0 | BR126: =ABS(BT125) -> 8.609930215 | BS126: 0.1502716306 | BT126: -8.459658584 | BU126: 0.9891196894
C127: Blow Dist. (Ham Travel) | D127: ='Simple AR Calculator'!C15 -> 45 | F127: ='Simple AR Calculator'!E56 -> 43 | G127: Wo = | H127: (AKiWiSi) / (KoSo) | J127: =(I118*E120*E122*E124) / (E119*E123) -> 92 | T127: 1.427811232 | U127: 0.02492000709 | V127: -1.402891225 | W127: 0.9997002556 | X127: 17.93409274 | Z127: 6.884198457 | AA127: 0.1201519294 | AB127: -6.764046527 | AC127: 0.9930396119 | AD127: 1.007009175 | AE127: =($AG$47/$AG$48) * ($AG$49/$AG$50)* ($AG$51/$AG$52) * Generic!AC127 -> 5.943774328 | AF127: 5.969678196 | AG127: 6.027388243 | AH127: 5.414298099 | AS127: 0.542810959 | AT127: 0.009473838451 | AU127: -0.5333371206 | AV127: -0.009308354351 | AW127: =ABS(AV127)*'Simple AR Calculator'!$C$8 -> 2.280546816 | AX127: 5.942282906 | AY127: 13.55165436 | BE127: 5.199527179 | BF127: 0.09074886882 | BG127: -5.10877831 | BH127: -0.08904689969 | BI127: 0.542810959 | BJ127: 9.578891311 | BK127: 91.75515875 | BL127: 0.9539507064 | BM127: 5.450519764 | BN127: 29.7081657 | BO127: 0 | BR127: 8.459658584 | BS127: 0.1476488959 | BT127: -8.312009688 | BU127: 0.989495509
C128: Let-Off / Aftertouch | D128: ='Simple AR Calculator'!C16 -> 2 | E128: ='Simple AR Calculator'!C22 -> 1.25 | T128: 1.402891225 | U128: 0.02448507092 | V128: -1.378406154 | W128: 0.9997106269 | X128: 17.92810659 | Z128: 6.764046527 | AA128: 0.1180548827 | AB128: -6.645991645 | AC128: 0.9932801849 | AD128: 1.006765277 | AE128: =($AG$47/$AG$48) * ($AG$49/$AG$50)* ($AG$51/$AG$52) * Generic!AC128 -> 5.945214263 | AF128: 5.971671458 | AG128: 6.025928406 | AH128: 5.412986752 | AS128: 0.5333371206 | AT128: 0.009308488777 | AU128: -0.5240286318 | AV128: -0.00914589749 | AW128: =ABS(AV128)*'Simple AR Calculator'!$C$8 -> 2.240744885 | AX128: 5.943774328 | AY128: 13.31848192 | BE128: 5.10877831 | BF128: 0.08916500227 | BG128: -5.019613308 | BH128: -0.08749675182 | BI128: 0.5333371206 | BJ128: 9.578891311 | BK128: 91.75515875 | BL128: 0.9408828885 | BM128: 5.429770668 | BN128: 29.48240951 | BO128: 0 | BR128: 8.312009688 | BS128: 0.1450719365 | BT128: -8.166937752 | BU128: 0.9898583694
C129: Spread | D129: ='Simple AR Calculator'!C17 -> 111 | T129: 1.378406154 | U129: 0.02405772581 | V129: -1.354348428 | W129: 0.9997206393 | X129: 17.92232565 | Y129: 74 | Z129: 6.645991645 | AA129: 0.1159944363 | AB129: -6.529997208 | AC129: 0.993512452 | AD129: 1.006529911 | AE129: =($AG$47/$AG$48) * ($AG$49/$AG$50)* ($AG$51/$AG$52) * Generic!AC129 -> 5.946604482 | AF129: 5.973597652 | AG129: 6.024519642 | AH129: 5.411721284 | AS129: 0.5240286318 | AT129: 0.009146025 | AU129: -0.5148826068 | AV129: -0.008986275801 | AW129: =ABS(AV129)*'Simple AR Calculator'!$C$8 -> 2.201637571 | AX129: 5.945214263 | AY129: 13.08920709 | AZ129: 75 | BE129: 5.019613308 | BF129: 0.0876087794 | BG129: -4.932004529 | BH129: -0.08597345272 | BI129: 0.5240286318 | BJ129: 9.578891311 | BK129: 91.75515875 | BL129: 0.9278150706 | BM129: 5.410144184 | BN129: 29.26966009 | BO129: 0 | BR129: 8.166937752 | BS129: 0.1425399536 | BT129: -8.024397798 | BU129: 0.990208716
C130: Key Length (optional) | D130: ='Simple AR Calculator'!C18 -> 500 | H130: Ar = Outs / Ins | J130: =(J123*E121*E123) / (E120*E122*F125) -> 5.589393463 | K130: =O24 -> 5.935483871 | T130: 1.354348428 | U130: 0.02363783929 | V130: -1.330710589 | W130: 0.9997303053 | X130: 17.91674295 | Z130: 6.529997208 | AA130: 0.1139699514 | AB130: -6.416027257 | AC130: 0.9937366993 | AD130: 1.006302777 | AE130: =($AG$47/$AG$48) * ($AG$49/$AG$50)* ($AG$51/$AG$52) * Generic!AC130 -> 5.9479467 | AF130: 5.97545897 | AG130: 6.023160144 | AH130: 5.410500071 | AS130: 0.5148826068 | AT130: 0.00898639675 | AU130: -0.5058962101 | AV130: -0.008829439813 | AW130: =ABS(AV130)*'Simple AR Calculator'!$C$8 -> 2.163212754 | AX130: 5.946604482 | AY130: 12.86377066 | BE130: 4.932004529 | BF130: 0.08607971775 | BG130: -4.845924811 | BH130: -0.08447654441 | BI130: 0.5148826068 | BJ130: 9.578891311 | BK130: 91.75515875 | BL130: 0.9147472527 | BM130: 5.391658203 | BN130: 29.06997817 | BO130: 0 | BR130: 8.024397798 | BS130: 0.1400521621 | BT130: -7.884345636 | BU130: 0.9905469789
C131: Key ratio Front to Back | D131: ='Simple AR Calculator'!C23 -> 1.944444444 | E131: ='Simple AR Calculator'!D23 -> 1.857500343 | T131: 1.330710589 | U131: 0.02322528116 | V131: -1.307485308 | W131: 0.9997396368 | X131: 17.91135176 | Z131: 6.416027257 | AA131: 0.1119808005 | AB131: -6.304046456 | AC131: 0.9939532031 | AD131: 1.006083583 | AE131: =($AG$47/$AG$48) * ($AG$49/$AG$50)* ($AG$51/$AG$52) * Generic!AC131 -> 5.94924257 | AF131: 5.977257541 | AG131: 6.021848174 | AH131: 5.409321551 | AS131: =ABS(AU130) -> 0.5058962101 | AT131: 0.008829554539 | AU131: =AT131-AS131 -> -0.4970666555 | AV131: -0.008675340917 | AW131: =ABS(AV131)*'Simple AR Calculator'!$C$8 -> 2.125458525 | AX131: 5.9479467 | AY131: 12.64211402 | BE131: 4.845924811 | BF131: 0.08457734325 | BG131: -4.761347468 | BH131: -0.08300557635 | BI131: 0.5058962101 | BJ131: 9.578891311 | BK131: 91.75515875 | BL131: 0.9016794348 | BM131: 5.374332189 | BN131: 28.88344648 | BO131: 0 | BR131: 7.884345636 | BS131: 0.1376077907 | BT131: -7.746737846 | BU131: 0.9908735736
C132: Key ratio Back / Front | D132: ='Simple AR Calculator'!C24 -> 0.5142857143 | E132: ='Simple AR Calculator'!D24 -> 0.5383579087 | T132: 1.307485308 | U132: 0.02281992354 | V132: -1.284665384 | W132: 0.9997486455 | X132: 17.90614556 | Z132: =ABS(AB131) -> 6.304046456 | AA132: 0.1100263669 | AB132: =AA132-Z132 -> -6.194020089 | AC132: 0.9941622304 | AD132: 1.005872049 | AE132: =($AG$47/$AG$48) * ($AG$49/$AG$50)* ($AG$51/$AG$52) * Generic!AC132 -> 5.950493689 | AF132: 5.978995425 | AG132: 6.020582052 | AH132: 5.408184216 | AS132: 0.4970666555 | AT132: 0.008675449741 | AU132: -0.4883912058 | AV132: -0.008523931354 | AW132: =ABS(AV132)*'Simple AR Calculator'!$C$8 -> 2.088363182 | AX132: 5.94924257 | AY132: 12.42417914 | BE132: 4.761347468 | BF132: 0.08310119014 | BG132: -4.678246277 | BH132: -0.08156010535 | BI132: 0.4970666555 | BJ132: 9.578891311 | BK132: 91.75515875 | BL132: 0.8886116169 | BM132: 5.358187285 | BN132: 28.71017099 | BO132: 0 | BR132: 7.746737846 | BS132: 0.1352060817 | BT132: -7.611531764 | BU132: 0.9911889013
C133: Whip ratio | D133: ='Simple AR Calculator'!C25 -> 1.369302326 | E133: ='Simple AR Calculator'!D25 -> 1.426356589 | T133: 1.284665384 | U133: 0.02242164074 | V133: -1.262243743 | W133: 0.9997573426 | X133: 17.90111806 | Y133: 78 | Z133: 6.194020089 | AA133: 0.1081060445 | AB133: -6.085914045 | AC133: 0.9943640387 | AD133: 1.005667905 | AE133: =($AG$47/$AG$48) * ($AG$49/$AG$50)* ($AG$51/$AG$52) * Generic!AC133 -> 5.9517016 | AF133: 5.980674618 | AG133: 6.019360162 | AH133: 5.407086613 | AS133: 0.4883912058 | AT133: 0.008524034579 | AU133: -0.4798671712 | AV133: -0.008375164196 | AW133: =ABS(AV133)*'Simple AR Calculator'!$C$8 -> 2.051915228 | AX133: 5.950493689 | AY133: 12.20990861 | BE133: 4.678246277 | BF133: 0.08165080076 | BG133: -4.596595477 | BH133: -0.08013969545 | BI133: 0.4883912058 | BJ133: 9.578891311 | BK133: 91.75515875 | BL133: 0.875543799 | BM133: 5.343246429 | BN133: 28.5502824 | BO133: 0 | BR133: 7.611531764 | BS133: 0.1328462904 | BT133: -7.478685473 | BU133: 0.9914933496
C134: Shank ratio | D134: ='Simple AR Calculator'!C26 -> 8.387096774 | E134: ='Simple AR Calculator'!D26 -> 6.908700219 | T134: =ABS(V133) -> 1.262243743 | U134: 0.02203030928 | V134: =U134-T134 -> -1.240213434 | W134: 0.9997657386 | X134: 17.89626316 | Y134: 79 | Z134: 6.085914045 | AA134: 0.1062192381 | AB134: -5.979694807 | AC134: 0.994558877 | AD134: 1.005470891 | AE134: =($AG$47/$AG$48) * ($AG$49/$AG$50)* ($AG$51/$AG$52) * Generic!AC134 -> 5.952867792 | AF134: 5.982297056 | AG134: 6.018180944 | AH134: 5.406027342 | AS134: 0.4798671712 | AT134: 0.00837526211 | AU134: -0.4714919091 | AV134: -0.008228993335 | AW134: =ABS(AV134)*'Simple AR Calculator'!$C$8 -> 2.016103367 | AX134: 5.9517016 | AY134: 11.99924563 | AZ134: 80 | BE134: 4.596595477 | BF134: 0.08022572545 | BG134: -4.516369751 | BH134: -0.07874391784 | BI134: 0.4798671712 | BJ134: 9.578891311 | BK134: 91.75515875 | BL134: 0.8624759811 | BM134: 5.329534477 | BN134: 28.40393774 | BO134: 0 | BR134: 7.478685473 | BS134: 0.1305276852 | BT134: -7.348157788 | BU134: 0.9917872929
T135: 1.240213434 | U135: 0.02164580785 | V135: -1.218567626 | W135: 0.9997738442 | X135: 17.89157499 | Z135: 5.979694807 | AA135: 0.1043653626 | AB135: -5.875329444 | AC135: 0.9947469856 | AD135: 1.005280754 | AE135: =($AG$47/$AG$48) * ($AG$49/$AG$50)* ($AG$51/$AG$52) * Generic!AC135 -> 5.953993703 | AF135: 5.983864612 | AG135: 6.017042894 | AH135: 5.405005052 | AS135: 0.4714919091 | AT135: 0.00822908621 | AU135: -0.4632628229 | AV135: -0.008085373464 | AW135: =ABS(AV135)*'Simple AR Calculator'!$C$8 -> 1.980916499 | AX135: 5.952867792 | AY135: 11.79213402 | BE135: 4.516369751 | BF135: 0.0788255224 | BG135: -4.437544229 | BH135: -0.07737235077 | BI135: 0.4714919091 | BJ135: 9.578891311 | BK135: 91.75515875 | BL135: 0.8494081632 | BM135: 5.317078345 | BN135: 28.27132213 | BO135: 0 | BR135: 7.348157788 | BS135: 0.1282495474 | BT135: -7.219908241 | BU135: 0.9920710926
T136: 1.218567626 | U136: 0.02126801723 | V136: -1.197299609 | W136: 0.9997816694 | X136: 17.88704786 | Z136: 5.875329444 | AA136: 0.1025438434 | AB136: -5.772785601 | AC136: 0.9949285964 | AD136: 1.005097254 | AE136: =($AG$47/$AG$48) * ($AG$49/$AG$50)* ($AG$51/$AG$52) * Generic!AC136 -> 5.955080723 | AF136: 5.985379101 | AG136: 6.015944564 | AH136: 5.404018441 | AS136: 0.4632628229 | AT136: 0.008085461561 | AU136: -0.4551773613 | AV136: -0.007944260071 | AW136: =ABS(AV136)*'Simple AR Calculator'!$C$8 -> 1.946343717 | AX136: 5.953993703 | AY136: 11.58851824 | BE136: 4.437544229 | BF136: 0.0774497575 | BG136: -4.360094471 | BH136: -0.07602457942 | BI136: 0.4632628229 | BJ136: 9.578891311 | BK136: 91.75515875 | BL136: 0.8363403454 | BM136: 5.305907163 | BN136: 28.15265082 | BO136: 0 | BR136: 7.219908241 | BS136: 0.1260111705 | BT136: -7.09389707 | BU136: 0.9923450978
T137: 1.197299609 | U137: 0.02089682031 | V137: -1.176402789 | W137: 0.9997892238 | X137: 17.88267627 | Z137: 5.772785601 | AA137: 0.1007541157 | AB137: -5.672031485 | AC137: 0.9951039336 | AD137: 1.004920156 | AE137: =($AG$47/$AG$48) * ($AG$49/$AG$50)* ($AG$51/$AG$52) * Generic!AC137 -> 5.956130193 | AF137: 5.98684228 | AG137: 6.014884555 | AH137: 5.403066253 | AS137: 0.4551773613 | AT137: 0.007944343636 | AU137: -0.4472330177 | AV137: -0.007805609417 | AW137: =ABS(AV137)*'Simple AR Calculator'!$C$8 -> 1.912374307 | AX137: 5.955080723 | AY137: 11.38834337 | BE137: 4.360094471 | BF137: 0.07609800422 | BG137: -4.283996467 | BH137: -0.0747001958 | BI137: 0.4551773613 | BJ137: 9.578891311 | BK137: 91.75515875 | BL137: 0.8232725275 | BM137: 5.296052432 | BN137: 28.04817136 | BO137: 0 | BR137: 7.09389707 | BS137: 0.1238118607 | BT137: -6.97008521 | BU137: 0.9926096458
T138: 1.176402789 | U138: 0.02053210199 | V138: -1.155870687 | W138: 0.9997965168 | X138: 17.87845493 | Z138: 5.672031485 | AA138: 0.09899562469 | AB138: -5.57303586 | AC138: 0.9952732136 | AD138: 1.004749235 | AE138: =($AG$47/$AG$48) * ($AG$49/$AG$50)* ($AG$51/$AG$52) * Generic!AC138 -> 5.957143407 | AF138: 5.988255853 | AG138: 6.01386152 | AH138: 5.402147279 | AS138: 0.4472330177 | AT138: 0.007805688682 | AU138: -0.439427329 | AV138: -0.007669378528 | AW138: =ABS(AV138)*'Simple AR Calculator'!$C$8 -> 1.878997739 | AX138: 5.956130193 | AY138: 11.19155517 | BE138: 4.283996467 | BF138: 0.07476984349 | BG138: -4.209226624 | BH138: -0.07339879868 | BI138: 0.4472330177 | BJ138: 9.578891311 | BK138: 91.75515875 | BL138: 0.8102047096 | BM138: 5.287548217 | BN138: 27.95816614 | BO138: 0 | BR138: 6.97008521 | BS138: 0.1216509361 | BT138: -6.848434274 | BU138: 0.992865062
T139: 1.155870687 | U139: 0.02017374921 | V139: -1.135696937 | W139: 0.9998035575 | X139: 17.87437871 | Z139: 5.57303586 | AA139: 0.0972678251 | AB139: -5.475768035 | AC139: 0.9954366452 | AD139: 1.004584275 | AE139: =($AG$47/$AG$48) * ($AG$49/$AG$50)* ($AG$51/$AG$52) * Generic!AC139 -> 5.958121616 | AF139: 5.989621467 | AG139: 6.012874159 | AH139: 5.40126035 | AS139: 0.439427329 | AT139: 0.007669453714 | AU139: -0.4317578753 | AV139: -0.007535525177 | AW139: =ABS(AV139)*'Simple AR Calculator'!$C$8 -> 1.846203668 | AX139: 5.957143407 | AY139: 10.99810001 | AZ139: 85 | BE139: =ABS(BG138) -> 4.209226624 | BF139: 0.07346486354 | BG139: =BF139-BE139 -> -4.13576176 | BH139: -0.07211999346 | BI139: 0.439427329 | BJ139: 9.578891311 | BK139: 91.75515875 | BL139: 0.7971368917 | BM139: 5.280431338 | BN139: 27.88295512 | BO139: 0 | BR139: 6.848434274 | BS139: 0.1195277267 | BT139: -6.728906547 | BU139: 0.9931116611
T140: 1.135696937 | U140: 0.01982165086 | V140: -1.115875287 | W140: 0.9998103546 | X140: 17.87044263 | Z140: 5.475768035 | AA140: 0.09557018129 | AB140: -5.380197854 | AC140: 0.9955944302 | AD140: 1.004425065 | AE140: =($AG$47/$AG$48) * ($AG$49/$AG$50)* ($AG$51/$AG$52) * Generic!AC140 -> 5.959066028 | AF140: 5.990940718 | AG140: 6.01192122 | AH140: 5.400404341 | AS140: 0.4317578753 | AT140: 0.007535596495 | AU140: -0.4242222788 | AV140: -0.007404007877 | AW140: =ABS(AV140)*'Simple AR Calculator'!$C$8 -> 1.81398193 | AX140: 5.958121616 | AY140: 10.80792495 | BE140: 4.13576176 | BF140: 0.07218265979 | BG140: -4.0635791 | BH140: -0.07086339212 | BI140: 0.4317578753 | BJ140: 9.578891311 | BK140: 91.75515875 | BL140: 0.7840690738 | BM140: 5.274741599 | BN140: 27.82289894 | BO140: 0 | BR140: 6.728906547 | BS140: 0.1174415743 | BT140: -6.611464973 | BU140: 0.9933497466
T141: 1.115875287 | U141: 0.01947569779 | V141: -1.096399589 | W141: 0.9998169165 | X141: 17.86664192 | Z141: 5.380197854 | AA141: 0.09390216696 | AB141: -5.286295687 | AC141: 0.9957467634 | AD141: 1.004271404 | AE141: =($AG$47/$AG$48) * ($AG$49/$AG$50)* ($AG$51/$AG$52) * Generic!AC141 -> 5.959977809 | AF141: 5.992215151 | AG141: 6.011001493 | AH141: 5.399578166 | AS141: 0.4242222788 | AT141: 0.007404075525 | AU141: -0.4168182033 | AV141: -0.007274785861 | AW141: =ABS(AV141)*'Simple AR Calculator'!$C$8 -> 1.782322536 | AX141: 5.959066028 | AY141: 10.62097768 | BE141: 4.0635791 | BF141: 0.07092283472 | BG141: -3.992656266 | BH141: -0.06962861305 | BI141: 0.4242222788 | BJ141: 9.578891311 | BK141: 91.75515875 | BL141: 0.7710012559 | BM141: 5.270522025 | BN141: 27.77840241 | BO141: 0 | BR141: 6.611464973 | BS141: 0.1153918322 | BT141: -6.496073141 | BU141: 0.9935796119
H142: DAR = | I142: ='Simple AR Calculator'!H8 -> 5.305124231 | T142: 1.096399589 | U142: 0.01913578274 | V142: -1.077263806 | W142: 0.9998232514 | X142: 17.86297195 | Y142: 87 | Z142: 5.286295687 | AA142: 0.09226326497 | AB142: -5.194032422 | AC142: 0.9958938329 | AD142: 1.004123097 | AE142: =($AG$47/$AG$48) * ($AG$49/$AG$50)* ($AG$51/$AG$52) * Generic!AC142 -> 5.960858084 | AF142: 5.99344626 | AG142: 6.010113812 | AH142: 5.398780778 | AS142: 0.4168182033 | AT142: 0.007274850029 | AU142: -0.4095433532 | AV142: -0.007147819077 | AW142: =ABS(AV142)*'Simple AR Calculator'!$C$8 -> 1.751215674 | AX142: 5.959977809 | AY142: 10.43720655 | BE142: 3.992656266 | BF142: 0.06968499773 | BG142: -3.922971268 | BH142: -0.06841528102 | BI142: 0.4168182033 | BJ142: 9.578891311 | BK142: 91.75515875 | BL142: 0.757933438 | BM142: 5.267819132 | BN142: 27.74991841 | BO142: 0 | BR142: 6.496073141 | BS142: 0.1133778648 | BT142: -6.382695276 | BU142: 0.9938015402
T143: 1.077263806 | U143: 0.01880180033 | V143: -1.058462006 | W143: 0.999829367 | X143: 17.85942824 | Z143: 5.194032422 | AA143: 0.09065296722 | AB143: -5.103379455 | AC143: 0.9960358205 | AD143: 1.003979957 | AE143: =($AG$47/$AG$48) * ($AG$49/$AG$50)* ($AG$51/$AG$52) * Generic!AC143 -> 5.961707941 | AF143: 5.994635493 | AG143: 6.009257055 | AH143: 5.398011168 | AS143: 0.4095433532 | AT143: 0.007147879944 | AU143: -0.4023954733 | AV143: -0.007023068169 | AW143: =ABS(AV143)*'Simple AR Calculator'!$C$8 -> 1.720651701 | AX143: 5.960858084 | AY143: 10.2565606 | BE143: 3.922971268 | BF143: 0.06846876508 | BG143: -3.854502503 | BH143: -0.06722302705 | BI143: 0.4095433532 | BJ143: 9.578891311 | BK143: 91.75515875 | BL143: 0.7448656201 | BM143: 5.266683227 | BN143: 27.73795222 | BO143: 0 | BR143: 6.382695276 | BS143: 0.1113990477 | BT143: -6.271296228 | BU143: 0.9940158049
P144: 10 | T144: 1.058462006 | U144: 0.01847364701 | V144: -1.039988359 | W144: 0.9998352711 | X144: 17.85600648 | Z144: 5.103379455 | AA144: 0.08907077447 | AB144: -5.01430868 | AC144: 0.9961729013 | AD144: 1.003841802 | AE144: =($AG$47/$AG$48) * ($AG$49/$AG$50)* ($AG$51/$AG$52) * Generic!AC144 -> 5.96252843 | AF144: 5.99578425 | AG144: 6.008430136 | AH144: 5.397268361 | AS144: 0.4023954733 | AT144: 0.007023125904 | AU144: -0.3953723474 | AV144: -0.006900494469 | AW144: =ABS(AV144)*'Simple AR Calculator'!$C$8 -> 1.690621145 | AX144: 5.961707941 | AY144: 10.0789895 | AZ144: 90 | BE144: 3.854502503 | BF144: 0.0672737597 | BG144: -3.787228743 | BH144: -0.06605148833 | BI144: 0.4023954733 | BJ144: 9.578891311 | BK144: 91.75515875 | BL144: 0.7317978022 | BM144: 5.267168733 | BN144: 27.74306646 | BO144: 0 | BR144: 6.271296228 | BS144: 0.1094547675 | BT144: -6.16184146 | BU144: 0.9942226702
F145: ='Simple AR Calculator'!C7 -> 126 | H145: 3.33 | K145: ='Simple AR Calculator'!C8 -> 245 | T145: 1.039988359 | U145: 0.01815122104 | V145: -1.021837138 | W145: 0.9998409709 | X145: =SQRT($H$62^2+$F$60^2-2*$H$62*$F$60*(COS(RADIANS(V145)))) -> 17.85270249 | Z145: 5.01430868 | AA145: 0.08751619618 | AB145: -4.926792484 | AC145: 0.9963052448 | AD145: 1.003708457 | AE145: =($AG$47/$AG$48) * ($AG$49/$AG$50)* ($AG$51/$AG$52) * Generic!AC145 -> 5.963320563 | AF145: 5.996893887 | AG145: 6.00763201 | AH145: 5.396551418 | AS145: 0.3953723474 | AT145: 0.006900549233 | AU145: -0.3884717982 | AV145: -0.006780059982 | AW145: =ABS(AV145)*'Simple AR Calculator'!$C$8 -> 1.661114696 | AX145: 5.96252843 | AY145: 9.904443598 | BE145: 3.787228743 | BF145: 0.06609961109 | BG145: -3.721129132 | BH145: -0.06490030811 | BI145: 0.3953723474 | BJ145: 9.578891311 | BK145: 91.75515875 | BL145: 0.7187299843 | BM145: 5.269334557 | BN145: 27.76588667 | BO145: 0 | BR145: 6.16184146 | BS145: 0.1075444215 | BT145: -6.054297039 | BU145: 0.9944223911
T146: 1.021837138 | U146: 0.01783442247 | V146: -1.004002715 | W146: 0.9998464735 | X146: 17.84951223 | Z146: 4.926792484 | AA146: 0.08598875041 | AB146: -4.840803734 | AC146: 0.9964330146 | AD146: 1.003579754 | AE146: =($AG$47/$AG$48) * ($AG$49/$AG$50)* ($AG$51/$AG$52) * Generic!AC146 -> 5.964085321 | AF146: 5.997965715 | AG146: 6.006861669 | AH146: 5.395859434 | AS146: 0.3884717982 | AT146: 0.006780111929 | AU146: -0.3816916862 | AV146: -0.006661727378 | AW146: =ABS(AV146)*'Simple AR Calculator'!$C$8 -> 1.632123208 | AX146: 5.963320563 | AY146: 9.732873886 | BE146: 3.721129132 | BF146: 0.06494595524 | BG146: -3.656183177 | BH146: -0.06376913565 | BI146: 0.3884717982 | BJ146: 9.578891311 | BK146: 91.75515875 | BL146: 0.7056621664 | BM146: 5.273244492 | BN146: 27.80710747 | BO146: 0 | BR146: 6.054297039 | BS146: 0.1056674172 | BT146: -5.948629622 | BU146: 0.994615214
D147: BalHt.+ | F147: BalHtTot | G147: Dip+ | H147: DipDiff | I147: Cap Rise | J147: DAR*BHT | K147: DAR*BHT | N147: tan | O147: angle | P147: RODD/BalHt+ | T147: 1.004002715 | U147: 0.01752315308 | V147: -0.9864795621 | W147: 0.9998517857 | X147: 17.84643182 | Z147: 4.840803734 | AA147: 0.0844879636 | AB147: -4.75631577 | AC147: 0.9965563684 | AD147: 1.003455531 | AE147: =($AG$47/$AG$48) * ($AG$49/$AG$50)* ($AG$51/$AG$52) * Generic!AC147 -> 5.964823647 | AF147: 5.999001003 | AG147: 6.006118139 | AH147: 5.395191534 | AS147: 0.3816916862 | AT147: 0.006661776652 | AU147: -0.3750299096 | AV147: -0.006545459977 | AW147: =ABS(AV147)*'Simple AR Calculator'!$C$8 -> 1.603637694 | AX147: 5.964085321 | AY147: 9.564232032 | BE147: 3.656183177 | BF147: 0.06381243449 | BG147: -3.592370742 | BH147: -0.06265762606 | BI147: 0.3816916862 | BJ147: 9.578891311 | BK147: 91.75515875 | BL147: 0.6925943485 | BM147: 5.278967674 | BN147: 27.8674997 | BO147: 0 | BR147: 5.948629622 | BS147: 0.1038231729 | BT147: -5.844806449 | BU147: 0.9948013766
D148: mm | E148: inches | F148: 3.33 | G148: 10 | I148: =G148*($F$145/$K$145) -> 5.142857143 | J148: mm | K148: inches | N148: =G148/($F$145+$K$145) -> 0.0269541779 | O148: =DEGREES(ATAN(N148)) -> 1.54398679 | P148: =G148-10 -> 0 | T148: 0.9864795621 | U148: 0.01721731636 | V148: -0.9692622457 | W148: 0.9998569141 | X148: 17.84345749 | Z148: 4.75631577 | AA148: 0.08301337045 | AB148: -4.6733024 | AC148: 0.9966754588 | AD148: 1.003335631 | AE148: =($AG$47/$AG$48) * ($AG$49/$AG$50)* ($AG$51/$AG$52) * Generic!AC148 -> 5.965536455 | AF148: 6.000000979 | AG148: 6.005400483 | AH148: 5.394546876 | AS148: 0.3750299096 | AT148: 0.006545506716 | AU148: -0.3684844029 | AV148: -0.006431221738 | AW148: =ABS(AV148)*'Simple AR Calculator'!$C$8 -> 1.575649326 | AX148: 5.964823647 | AY148: 9.398470358 | BE148: 3.592370742 | BF148: 0.0626986974 | BG148: -3.529672045 | BH148: -0.06156544026 | BI148: 0.3750299096 | BJ148: 9.578891311 | BK148: 91.75515875 | BL148: 0.6795265306 | BM148: 5.286579082 | BN148: 27.94791839 | BO148: 0 | BR148: 5.844806449 | BS148: 0.1020111167 | BT148: -5.742795332 | BU148: 0.9949811085
D149: =E149*25.4 -> 0.127 | E149: 0.005 | F149: =$H$145+D149 -> 3.457 | G149: =F149*3 -> 10.371 | H149: =G149-10 -> 0.371 | I149: 5.333657143 | J149: =$I$142*D149 -> 0.6737507774 | K149: =J149/25.4 -> 0.02652562116 | L149: =(I149-$I$148)*(1-Q149) -> 0.1254857143 | M149: =J149-D149 -> 0.5467507774 | N149: 0.0279541779 | O149: =DEGREES(ATAN(N149)) -> 1.601239411 | P149: =H149/D149 -> 2.921259843 | Q149: =1/P149 -> 0.3423180593 | R149: =1/P149 -> 0.3423180593 | T149: 0.9692622457 | U149: 0.0169168175 | V149: -0.9523454282 | W149: 0.999861865 | X149: 17.8405856 | Z149: 4.6733024 | AA149: 0.08156451382 | AB149: -4.591737886 | AC149: 0.9967904329 | AD149: 1.003219902 | AE149: =($AG$47/$AG$48) * ($AG$49/$AG$50)* ($AG$51/$AG$52) * Generic!AC149 -> 5.966224625 | AF149: 6.000966829 | AG149: 6.004707794 | AH149: 5.393924646 | AS149: 0.3684844029 | AT149: 0.006431266072 | AU149: -0.3620531368 | AV149: -0.006318977251 | AW149: =ABS(AV149)*'Simple AR Calculator'!$C$8 -> 1.548149427 | AX149: 5.965536455 | AY149: 9.235541841 | AZ149: 95 | BE149: 3.529672045 | BF149: 0.0616043987 | BG149: -3.468067646 | BH149: -0.06049224489 | BI149: 0.3684844029 | BJ149: 9.578891311 | BK149: 91.75515875 | BL149: 0.6664587127 | BM149: 5.296160103 | BN149: 28.04931184 | BO149: 0 | BR149: 5.742795332 | BS149: 0.1002306868 | BT149: -5.642564645 | BU149: 0.9951546317
D150: 0.254 | E150: =D150/25.4 -> 0.01 | F150: 3.584 | G150: 10.752 | H150: 0.752 | I150: 5.5296 | J150: 1.347501555 | K150: 0.05305124231 | L150: 0.2561142857 | M150: 1.093501555 | N150: 0.02898113208 | O150: 1.660031901 | P150: 2.960629921 | Q150: 0.3377659574 | R150: 0.3377659574 | S150: =P150-P149 -> 0.03937007874 | T150: 0.9523454282 | U150: 0.01662156334 | V150: -0.9357238649 | W150: 0.9998666446 | X150: 17.83781264 | Z150: 4.591737886 | AA150: 0.0801409445 | AB150: -4.511596941 | AC150: 0.9969014328 | AD150: 1.003108198 | AE150: =($AG$47/$AG$48) * ($AG$49/$AG$50)* ($AG$51/$AG$52) * Generic!AC150 -> 5.966889008 | AF150: 6.001899703 | AG150: 6.0040392 | AH150: 5.393324059 | AS150: 0.3620531368 | AT150: 0.006319019304 | AU150: -0.3557341175 | AV150: -0.006208691723 | AW150: =ABS(AV150)*'Simple AR Calculator'!$C$8 -> 1.521129472 | AX150: 5.966224625 | AY150: 9.075400113 | BE150: 3.468067646 | BF150: 0.06052919911 | BG150: -3.407538447 | BH150: -0.0594377122 | BI150: 0.3620531368 | BJ150: 9.578891311 | BK150: 91.75515875 | BL150: 0.6533908948 | BM150: 5.307799165 | BN150: 28.17273198 | BO150: 0 | BR150: 5.642564645 | BS150: 0.09848133132 | BT150: -5.544083314 | BU150: 0.9953221601
D151: 0.381 | E151: 0.015 | F151: 3.711 | G151: 11.133 | H151: 1.133 | I151: 5.725542857 | J151: 2.021252332 | K151: 0.07957686347 | L151: 0.3867428571 | M151: 1.640252332 | N151: 0.03000808625 | O151: 1.718820893 | P151: 2.973753281 | Q151: 0.3362753751 | R151: 0.3362753751 | S151: =P151-P150 -> 0.01312335958 | T151: 0.9357238649 | U151: 0.01633146233 | V151: -0.9193924025 | W151: 0.9998712589 | X151: 17.83513522 | Z151: 4.511596941 | AA151: 0.07874222115 | AB151: -4.43285472 | AC151: 0.9970085958 | AD151: 1.003000379 | AE151: =($AG$47/$AG$48) * ($AG$49/$AG$50)* ($AG$51/$AG$52) * Generic!AC151 -> 5.967530425 | AF151: 6.002800713 | AG151: 6.003393858 | AH151: 5.39274436 | AS151: 0.3557341175 | AT151: 0.006208731612 | AU151: -0.3495253859 | AV151: -0.006100330966 | AW151: =ABS(AV151)*'Simple AR Calculator'!$C$8 -> 1.494581087 | AX151: 5.966889008 | AY151: 8.917999457 | BE151: 3.407538447 | BF151: 0.05947276529 | BG151: -3.348065682 | BH151: -0.05840151995 | BI151: 0.3557341175 | BJ151: 9.578891311 | BK151: 91.75515875 | BL151: 0.6403230769 | BM151: 5.321592443 | BN151: 28.31934613 | BO151: 0 | BR151: 5.544083314 | BS151: 0.09676250784 | BT151: -5.447320806 | BU151: 0.9954839006
D152: 0.508 | E152: 0.02 | F152: 3.838 | G152: 11.514 | H152: 1.514 | I152: 5.921485714 | J152: 2.69500311 | K152: 0.1061024846 | L152: 0.5173714286 | M152: 2.18700311 | N152: 0.03103504043 | O152: 1.777606266 | P152: 2.980314961 | Q152: 0.3355350066 | R152: 0.3355350066 | S152: =P152-P151 -> 0.00656167979 | T152: 0.9193924025 | U152: 0.01604642454 | V152: -0.903345978 | W152: 0.9998757135 | X152: 17.83255006 | Z152: 4.43285472 | AA152: 0.07736791013 | AB152: -4.35548681 | AC152: 0.9971120545 | AD152: 1.00289631 | AE152: =($AG$47/$AG$48) * ($AG$49/$AG$50)* ($AG$51/$AG$52) * Generic!AC152 -> 5.96814967 | AF152: 6.003670932 | AG152: 6.002770957 | AH152: 5.392184818 | AS152: 0.3495253859 | AT152: 0.006100368803 | AU152: -0.3434250171 | AV152: -0.005993861391 | AW152: =ABS(AV152)*'Simple AR Calculator'!$C$8 -> 1.468496041 | AX152: 5.967530425 | AY152: 8.763294803 | BE152: 3.348065682 | BF152: 0.05843476972 | BG152: -3.289630912 | BH152: -0.05738335138 | BI152: 0.3495253859 | BJ152: 9.578891311 | BK152: 91.75515875 | BL152: 0.627255259 | BM152: 5.337644657 | BN152: 28.49045048 | BO152: 0 | BR152: 5.447320806 | BS152: 0.09507368348 | BT152: -5.352247123 | BU152: 0.9956400529
D153: 0.635 | E153: 0.025 | F153: 3.965 | G153: 11.895 | H153: 1.895 | I153: 6.117428571 | J153: 3.368753887 | K153: 0.1326281058 | L153: 0.648 | M153: 2.733753887 | N153: 0.03206199461 | O153: 1.836387895 | P153: 2.984251969 | Q153: 0.3350923483 | R153: 0.3350923483 | S153: =P153-P152 -> 0.003937007874 | T153: 0.903345978 | U153: 0.0157663616 | V153: -0.8875796164 | W153: 0.999880014 | X153: 17.83005398 | Z153: 4.35548681 | AA153: 0.07601758536 | AB153: -4.279469225 | AC153: 0.9972119366 | AD153: 1.002795858 | AE153: =($AG$47/$AG$48) * ($AG$49/$AG$50)* ($AG$51/$AG$52) * Generic!AC153 -> 5.968747508 | AF153: 6.0045114 | AG153: 6.002169711 | AH153: 5.39164473 | AS153: 0.3434250171 | AT153: 0.005993897282 | AU153: -0.3374311198 | AV153: -0.005889249995 | AW153: =ABS(AV153)*'Simple AR Calculator'!$C$8 -> 1.442866249 | AX153: 5.96814967 | AY153: 8.611241727 | BE153: 3.289630912 | BF153: 0.05741489059 | BG153: -3.232216021 | BH153: -0.05638289506 | BI153: 0.3434250171 | BJ153: 9.578891311 | BK153: 91.75515875 | BL153: 0.6141874411 | BM153: =BE153/BL153 -> 5.356069974 | BN153: 28.68748557 | BO153: 0 | BR153: 5.352247123 | BS153: 0.09341433467 | BT153: -5.258832788 | BU153: 0.9957908097
D154: 0.762 | E154: 0.03 | F154: 4.092 | G154: 12.276 | H154: 2.276 | I154: 6.313371429 | J154: 4.042504664 | K154: 0.1591537269 | L154: 0.7786285714 | M154: 3.280504664 | N154: 0.03308894879 | O154: 1.895165657 | P154: 2.98687664 | Q154: 0.334797891 | R154: 0.334797891 | S154: =P154-P153 -> 0.002624671916 | T154: 0.8875796164 | U154: 0.01549118668 | V154: -0.8720884297 | W154: 0.9998841656 | X154: 17.82764395 | Z154: =ABS(AB153) -> 4.279469225 | AA154: 0.07469082821 | AB154: =AA154-Z154 -> -4.204778397 | AC154: 0.9973083658 | AD154: 1.002698899 | AE154: =($AG$47/$AG$48) * ($AG$49/$AG$50)* ($AG$51/$AG$52) * Generic!AC154 -> 5.969324679 | AF154: 6.005323122 | AG154: 6.001589364 | AH154: 5.391123415 | AS154: 0.3374311198 | AT154: 0.005889284039 | AU154: -0.3315418358 | AV154: -0.00578646435 | AW154: =ABS(AV154)*'Simple AR Calculator'!$C$8 -> 1.417683766 | AX154: 5.968747508 | AY154: 8.461796444 | AZ154: 100 | BE154: 3.232216021 | BF154: 0.05641281171 | BG154: -3.17580321 | BH154: -0.05539984486 | BI154: 0.3374311198 | BJ154: 9.578891311 | BK154: 91.75515875 | BL154: 0.6011196232 | BR154: 5.258832788 | BS154: 0.09178394696 | BT154: -5.167048841 | BU154: 0.9959363573
T155: 0.8720884297 | U155: 0.01522081447 | V155: -0.8568676153 | W155: 0.9998881737 | X155: =SQRT($H$62^2+$F$60^2-2*$H$62*$F$60*(COS(RADIANS(V155)))) -> 17.82531699 | Z155: 4.204778397 | AA155: 0.07338722734 | AB155: -4.131391169 | AC155: 0.9974014613 | AD155: 1.002605309 | AE155: =($AG$47/$AG$48) * ($AG$49/$AG$50)* ($AG$51/$AG$52) * Generic!AC155 -> 5.969881896 | AF155: 6.006107071 | AG155: 6.001029188 | AH155: 5.390620218 | AS155: 0.3315418358 | AT155: 0.005786496642 | AU155: -0.3257553391 | AV155: -0.005685472593 | AW155: =ABS(AV155)*'Simple AR Calculator'!$C$8 -> 1.392940785 | AX155: 5.969324679 | AY155: 8.314915805 | BE155: 3.17580321 | BF155: 0.0554282224 | BG155: -3.120374987 | BH155: -0.0544338998 | BI155: 0.3315418358 | BJ155: 9.578891311 | BK155: 91.75515875 | BL155: 0.5880518053 | BO155: =AVERAGE(BM55:BM153) -> 6.646736897 | BP155: =AVERAGE(BN55:BN153) -> 45.98031802 | BR155: 5.167048841 | BS155: 0.09018201489 | BT155: -5.076866826 | BU155: 0.9960768753
D156: =J149/D149 -> 5.305124231 | E156: 5.305124231 | T156: 0.8568676153 | U156: 0.01495516114 | V156: -0.8419124541 | W156: 0.999892043 | X156: 17.82307026 | Z156: 4.131391169 | AA156: 0.07210637859 | AB156: -4.059284791 | AC156: 0.9974913382 | AD156: 1.002514971 | AE156: =($AG$47/$AG$48) * ($AG$49/$AG$50)* ($AG$51/$AG$52) * Generic!AC156 -> 5.970419848 | AF156: 6.006864186 | AG156: 6.000488477 | AH156: 5.390134507 | AS156: 0.3257553391 | AT156: 0.005685503223 | AU156: -0.3200698359 | AV156: -0.005586243418 | AW156: =ABS(AV156)*'Simple AR Calculator'!$C$8 -> 1.368629637 | AX156: 5.969881896 | AY156: 8.170557294 | BE156: 3.120374987 | BF156: 0.05446081743 | BG156: -3.06591417 | BH156: -0.05348476404 | BI156: 0.3257553391 | BJ156: 9.578891311 | BK156: 91.75515875 | BL156: 0.5749839874 | BR156: 5.076866826 | BS156: 0.0886080418 | BT156: -4.988258784 | BU156: 0.9962125374
D157: 5.305124231 | E157: 5.305124231 | T157: 0.8419124541 | U157: 0.01469414434 | V157: -0.8272183098 | W157: 0.9998957785 | X157: 17.820901 | Z157: 4.059284791 | AA157: 0.07084788487 | AB157: -3.988436906 | AC157: 0.9975781078 | AD157: 1.002427772 | AE157: =($AG$47/$AG$48) * ($AG$49/$AG$50)* ($AG$51/$AG$52) * Generic!AC157 -> 5.970939202 | AF157: 6.007595375 | AG157: 5.999966553 | AH157: 5.389665672 | AS157: 0.3200698359 | AT157: 0.005586272473 | AU157: -0.3144835634 | AV157: -0.005488746065 | AW157: =ABS(AV157)*'Simple AR Calculator'!$C$8 -> 1.344742786 | AX157: 5.970419848 | AY157: 8.02867902 | BE157: 3.06591417 | BF157: 0.05351029685 | BG157: -3.012403873 | BH157: -0.05255214675 | BI157: 0.3200698359 | BJ157: 9.578891311 | BK157: 91.75515875 | BL157: 0.5619161695 | BR157: 4.988258784 | BS157: 0.08706153973 | BT157: -4.901197245 | BU157: 0.9963435111
D158: 5.305124231 | E158: 5.305124231 | T158: 0.8272183098 | U158: 0.01443768314 | V158: -0.8127806266 | W158: 0.9998993847 | X158: 17.81880654 | Z158: 3.988436906 | AA158: 0.06961135601 | AB158: -3.91882555 | AC158: 0.9976618773 | AD158: 1.002343602 | AE158: =($AG$47/$AG$48) * ($AG$49/$AG$50)* ($AG$51/$AG$52) * Generic!AC158 -> 5.971440599 | AF158: 6.008301519 | AG158: 5.999462761 | AH158: 5.389213124 | AS158: 0.3144835634 | AT158: 0.005488773625 | AU158: -0.3089947898 | AV158: -0.005392950312 | AW158: =ABS(AV158)*'Simple AR Calculator'!$C$8 -> 1.321272826 | AX158: 5.970939202 | AY158: 7.889239715 | BE158: 3.012403873 | BF158: 0.05257636598 | BG158: -2.959827507 | BH158: -0.05163576206 | BI158: 0.3144835634 | BJ158: 9.578891311 | BK158: 91.75515875 | BL158: 0.5488483516 | BR158: 4.901197245 | BS158: 0.08554202921 | BT158: -4.815655216 | BU158: 0.9964699583
D159: 5.305124231 | E159: 5.305124231 | T159: 0.8127806266 | U159: 0.01418569803 | V159: -0.7985949286 | W159: 0.9999028661 | X159: 17.81678432 | Z159: 3.91882555 | AA159: 0.06839640865 | AB159: -3.850429141 | AC159: 0.9977427505 | AD159: 1.002262356 | AE159: =($AG$47/$AG$48) * ($AG$49/$AG$50)* ($AG$51/$AG$52) * Generic!AC159 -> 5.97192466 | AF159: 6.008983465 | AG159: 5.998976467 | AH159: 5.388776295 | AS159: 0.3089947898 | AT159: 0.005392976453 | AU159: -0.3036018133 | AV159: -0.005298826461 | AW159: =ABS(AV159)*'Simple AR Calculator'!$C$8 -> 1.298212483 | AX159: 5.971440599 | AY159: 7.752198727 | BE159: 2.959827507 | BF159: 0.05165873529 | BG159: -2.908168772 | BH159: -0.05073532894 | BI159: 0.3089947898 | BJ159: 9.578891311 | BK159: 91.75515875 | BL159: 0.5357805337 | BR159: 4.815655216 | BS159: 0.08404903915 | BT159: -4.731606176 | BU159: 0.9965920353
D160: 5.305124231 | E160: 5.305124231 | T160: 0.7985949286 | U160: 0.01393811089 | V160: -0.7846568177 | W160: 0.9999062271 | X160: 17.81483186 | Z160: 3.850429141 | AA160: 0.06720266613 | AB160: -3.783226475 | AC160: 0.9978208274 | AD160: 1.002183932 | AE160: =($AG$47/$AG$48) * ($AG$49/$AG$50)* ($AG$51/$AG$52) * Generic!AC160 -> 5.972391985 | AF160: 6.009642036 | AG160: 5.998507063 | AH160: 5.388354637 | AS160: 0.3036018133 | AT160: 0.005298851258 | AU160: -0.2983029621 | AV160: -0.005206345336 | AW160: =ABS(AV160)*'Simple AR Calculator'!$C$8 -> 1.275554607 | AX160: 5.97192466 | AY160: 7.617516015 | BE160: 2.908168772 | BF160: 0.05075712027 | BG160: -2.857411651 | BH160: -0.04985057117 | BI160: 0.3036018133 | BJ160: 9.578891311 | BK160: 91.75515875 | BL160: 0.5227127158 | BR160: 4.731606176 | BS160: 0.08258210669 | BT160: -4.64902407 | BU160: 0.9967098929
D161: 5.305124231 | E161: 5.305124231 | T161: 0.7846568177 | U161: 0.01369484497 | V161: -0.7709619727 | W161: 0.9999094718 | X161: 17.81294675 | Z161: 3.783226475 | AA161: 0.06602975834 | AB161: -3.717196717 | AC161: 0.9978962046 | AD161: 1.002108231 | AE161: =($AG$47/$AG$48) * ($AG$49/$AG$50)* ($AG$51/$AG$52) * Generic!AC161 -> 5.97284315 | AF161: 6.010278025 | AG161: 5.998053959 | AH161: 5.387947621 | AS161: 0.2983029621 | AT161: 0.005206368857 | AU161: -0.2930965932 | AV161: -0.005115478267 | AW161: =ABS(AV161)*'Simple AR Calculator'!$C$8 -> 1.253292176 | AX161: 5.972391985 | AY161: 7.485152144 | BE161: 2.857411651 | BF161: 0.0498712414 | BG161: -2.80754041 | BH161: -0.04898121724 | BI161: 0.2983029621 | BJ161: 9.578891311 | BK161: 91.75515875 | BL161: 0.5096448979 | BR161: 4.64902407 | BS161: 0.08114077702 | BT161: -4.567883293 | BU161: 0.9968236767
T162: 0.7709619727 | U162: 0.01345582483 | V162: -0.7575061479 | W162: 0.9999126042 | X162: 17.81112667 | Z162: 3.717196717 | AA162: 0.06487732165 | AB162: -3.652319395 | AC162: 0.9979689754 | AD162: 1.002035158 | AE162: =($AG$47/$AG$48) * ($AG$49/$AG$50)* ($AG$51/$AG$52) * Generic!AC162 -> 5.973278715 | AF162: 6.0108922 | AG162: 5.997616588 | AH162: 5.387554738 | AS162: 0.2930965932 | AT162: 0.005115500578 | AU162: -0.2879810926 | AV162: -0.005026197087 | AW162: =ABS(AV162)*'Simple AR Calculator'!$C$8 -> 1.231418286 | AX162: 5.97284315 | AY162: 7.355068277 | BE162: 2.80754041 | BF162: 0.04900082404 | BG162: -2.758539586 | BH162: -0.04812700024 | BI162: 0.2930965932 | BJ162: 9.578891311 | BK162: 91.75515875 | BL162: 0.4965770801 | BR162: 4.567883293 | BS162: 0.0797246033 | BT162: -4.488158689 | BU162: 0.9969335276
T163: 0.7575061479 | U163: 0.01322097639 | V163: -0.7442851715 | W163: 0.9999156282 | X163: 17.8093694 | Z163: 3.652319395 | AA163: 0.06374499878 | AB163: -3.588574396 | AC163: 0.9980392299 | AD163: 1.001964622 | AE163: =($AG$47/$AG$48) * ($AG$49/$AG$50)* ($AG$51/$AG$52) * Generic!AC163 -> 5.973699219 | AF163: 6.011485303 | AG163: 5.9971944 | AH163: 5.387175495 | AS163: 0.2879810926 | AT163: 0.00502621825 | AU163: -0.2829548744 | AV163: -0.004938474119 | AW163: =ABS(AV163)*'Simple AR Calculator'!$C$8 -> 1.209926159 | AX163: 5.973278715 | AY163: 7.227226173 | BE163: 2.758539586 | BF163: 0.04814559832 | BG163: -2.710393988 | BH163: -0.04728765785 | BI163: 0.2879810926 | BJ163: 9.578891311 | BK163: 91.75515875 | BL163: 0.4835092622 | BR163: 4.488158689 | BS163: 0.07833314648 | BT163: -4.409825543 | BU163: 0.9970395812
T164: 0.7442851715 | U164: 0.01299022682 | V164: -0.7312949447 | W164: 0.9999185476 | X164: 17.80767277 | Z164: 3.588574396 | AA164: 0.06263243867 | AB164: -3.525941958 | AC164: 0.998107055 | AD164: 1.001896535 | AE164: =($AG$47/$AG$48) * ($AG$49/$AG$50)* ($AG$51/$AG$52) * Generic!AC164 -> 5.974105181 | AF164: 6.01205805 | AG164: 5.996786869 | AH164: 5.386809416 | AS164: 0.2829548744 | AT164: 0.004938494193 | AU164: -0.2780163802 | AV164: -0.004852282168 | AW164: =ABS(AV164)*'Simple AR Calculator'!$C$8 -> 1.188809131 | AX164: 5.973699219 | AY164: 7.101588178 | BE164: 2.710393988 | BF164: 0.04730529911 | BG164: -2.663088689 | BH164: -0.04646293223 | BI164: 0.2829548744 | BJ164: 9.578891311 | BK164: 91.75515875 | BL164: 0.4704414443 | BR164: 4.409825543 | BS164: 0.07696597516 | BT164: -4.332859568 | BU164: 0.9971419687
AE165: Cos | AF165: Parts Calc | AG165: AR invCos | AS165: 0.2780163802 | AT165: 0.004852301209 | AU165: -0.273164079 | AV165: -0.004767594515 | AW165: =ABS(AV165)*'Simple AR Calculator'!$C$8 -> 1.168060656 | AX165: =AE164 -> 5.974105181 | AY165: 6.978117218 | BE165: 2.663088689 | BF165: 0.04647966589 | BG165: -2.616609023 | BH165: -0.04565256994 | BI165: 0.2780163802 | BJ165: 9.578891311 | BK165: 91.75515875 | BL165: 0.4573736264 | BR165: 4.332859568 | BS165: 0.07562266548 | BT165: -4.257236902 | BU165: 0.9972408167
AS166: 0.273164079 | AT166: 0.004767612577 | AU166: -0.2683964664 | AV166: -0.004684384908 | AW166: =ABS(AV166)*'Simple AR Calculator'!$C$8 -> 1.147674302 | AX166: =AE165 -> Cos | AY166: =AW166*AX166 ->  | BE166: 2.616609023 | BF166: 0.04566844268 | BG166: -2.57094058 | BH166: -0.04485632187 | BI166: 0.273164079 | BJ166: 9.578891311 | BK166: 91.75515875 | BL166: 0.4443058085
AK167: =3.1416/180 -> 0.01745333333 | AL167: =TAN(RADIANS(AF171)) -> 0.1284873804 | AN167: tanA = Tpi/180 | AS167: 0.2683964664 | AT167: 0.00468440204 | AU167: -0.2637120644 | AV167: -0.00460262755 | AW167: =ABS(AV167)*'Simple AR Calculator'!$C$8 -> 1.12764375 | AX167: 0 | AY167: 0 | BE167: 2.57094058 | BF167: 0.04487137799 | BG167: -2.526069202 | BH167: -0.04407394319 | BI167: 0.2683964664 | BJ167: 9.578891311 | BK167: 91.75515875 | BL167: 0.4312379906
S168: angle | T168: Involute T = tanA - A | V168: [where T is the involute curve pts. And where ang A is in rads] | AI168: T*pi/180=tan(A)-A*pi/180 | AK168: =(AE171*AK167) -> 0.1277875351 | AL168: =((TAN(RADIANS(S172))-(S172*AK167))) -> 0.1277875351 | AN168: =AJ170*3.1416/180 -> 0.6786640778 | AO168: =DEGREES(TAN(AN168)) -> 46.20642387 | AS168: 0.2637120644 | AT168: 0.004602643801 | AU168: -0.2591094206 | AV168: -0.004522297097 | AW168: =ABS(AV168)*'Simple AR Calculator'!$C$8 -> 1.107962789 | AX168: 0 | AY168: 0 | BE168: 2.526069202 | BF168: 0.04408822471 | BG168: -2.481980977 | BH168: -0.04330519327 | BI168: 0.2637120644 | BJ168: 9.578891311 | BK168: 91.75515875 | BL168: 0.4181701727
S169: =Generic!Z54 -> 24.45809603 | X169: mm | AE169: Involute T = tanA - A | AG169: [where T is the involute curve pts. And where ang A is in rads] | AO169: =AO168-AE171 -> 38.88475455 | AS169: 0.2591094206 | AT169: 0.004522312512 | AU169: -0.2545871081 | AV169: -0.004443368647 | AW169: =ABS(AV169)*'Simple AR Calculator'!$C$8 -> 1.088625319 | AX169: 0 | AY169: 0 | BE169: 2.481980977 | BF169: 0.04331874003 | BG169: -2.438662237 | BH169: -0.04254983558 | BI169: 0.2591094206 | BJ169: 9.578891311 | BK169: 91.75515875 | BL169: 0.4051023548
T170: A Rads | U170: Δ Inv. T | W170: a | X170: ='Simple AR Calculator'!G128 -> 17.88687996 | AE170: ang T | AF170: A Rads | AG170: Δ Inv. T | AI170: a | AJ170: =S171 -> 38.88449643 | AK170: =$AO$168-AE171 -> 38.88475455 | AS170: 0.2545871081 | AT170: 0.004443383269 | AU170: -0.2501437248 | AV170: -0.004365817732 | AW170: =ABS(AV170)*'Simple AR Calculator'!$C$8 -> 1.069625344 | AX170: Involute T = tanA - A | BE170: 2.438662237 | BF170: 0.04256268538 | BG170: -2.396099552 | BH170: -0.04180763768 | BI170: 0.2545871081 | BJ170: 9.578891311 | BK170: 91.75515875 | BL170: 0.3920345369
R171: ='Simple AR Calculator'!$J$131 -> 6.248996008 | S171: =N185 -> 38.88449643 | U171: =S171 -> 38.88449643 | V171: =TAN(RADIANS(S172)) -> 0.8064516129 | W171: =V171*$O$186 -> 12.5 | X171: =SQRT($W$171^2+$O$186^2) -> 19.91230775 | Y171: =$S$171-U171 -> 0 | AE171: ='Simple AR Calculator'!L212 -> 7.321669317 | AF171: =AE171 -> 7.321669317 | AG171: =AE171 -> 7.321669317 | AH171: =TAN(RADIANS(AE171)) -> 0.1284873804 | AI171: =AH171*$AB$186 ->  | AJ171: =SQRT($AI$171^2+$AB$186^2) ->  | AK171: =$AO$168-AE172 -> 38.88475455 | AS171: 0.2501437248 | AT171: 0.004365831601 | AU171: -0.2457778932 | AV171: -0.004289620309 | AW171: =ABS(AV171)*'Simple AR Calculator'!$C$8 -> 1.050956976 | AX171: =AH170 -> 0 | AY171: 0 | BE171: 2.396099552 | BF171: 0.04181982639 | BG171: -2.354279726 | BH171: -0.04107837111 | BI171: 0.2501437248 | BJ171: 9.578891311 | BK171: 91.75515875 | BL171: 0.378966719
S172: =S171 -> 38.88449643 | T172: =(RADIANS(S172)) -> 0.6786624907 | U172: =T172-S172 -> -38.20583394 | V172: =TAN(RADIANS(S172)) -> 0.8064516129 | W172: 12.5 | X172: =SQRT($W$171^2+$O$186^2) -> 19.91230775 | Y172: =$S$171+U172 -> 0.6786624907 | AE172: =AE171 -> 7.321669317 | AF172: =(RADIANS(AE172)) -> 0.1277872363 | AG172: =AF172-AE172 -> -7.193882081 | AH172: =TAN(RADIANS(AE172)) -> 0.1284873804 | AI172: =AH172*$AB$186 ->  | AJ172: =SQRT($AI$172^2+$AB$186^2) ->  | AK172: 39.01254179 | AS172: 0.2457778932 | AT172: 0.004289633465 | AU172: -0.2414882597 | AV172: -0.004214752759 | AW172: =ABS(AV172)*'Simple AR Calculator'!$C$8 -> 1.032614426 | AX172: =AH171 -> 0.1284873804 | AY172: 0.1326779226 | BE172: 2.354279726 | BF172: 0.04108993272 | BG172: -2.313189793 | BH172: -0.04036181132 | BI172: 0.2457778932 | BJ172: 9.578891311 | BK172: 91.75515875 | BL172: 0.3658989011
S173: =ABS(U172) -> 38.20583394 | T173: =(RADIANS(S173)) -> 0.6668175958 | U173: =T173-S173 -> -37.53901635 | V173: =TAN(RADIANS(S173)) -> 0.7870872911 | W173: 12.19985301 | X173: =SQRT(W173^2+$O$186^2) -> 19.72527347 | Y173: 1.345480087 | AE173: =ABS(AG172) -> 7.193882081 | AF173: =ABS(AH172) -> 0.1284873804 | AG173: -7.0653947 | AH173: =TAN(RADIANS(AE173)) -> 0.126220898 | AJ173: =SQRT(AI173^2+$AB$186^2) ->  | AK173: 39.14102917 | AS173: 0.2414882597 | AT173: 0.004214765237 | AU173: -0.2372734945 | AV173: -0.00414119187 | AW173: =ABS(AV173)*'Simple AR Calculator'!$C$8 -> 1.014592008 | AX173: =AH172 -> 0.1284873804 | AY173: 0.1303622693 | BE173: 2.313189793 | BF173: 0.04037277811 | BG173: -2.272817015 | BH173: -0.03965773764 | BI173: 0.2414882597 | BJ173: 9.578891311 | BK173: 91.75515875 | BL173: 0.3528310832
S174: =ABS(U173) -> 37.53901635 | T174: =(RADIANS(S174)) -> 0.6551794332 | U174: -36.88383691 | V174: =TAN(RADIANS(S174)) -> 0.7684094626 | W174: 11.91034667 | X174: =SQRT(W174^2+$O$186^2) -> 19.54754097 | Y174: 2.00065952 | AE174: =ABS(AG173) -> 7.0653947 | AF174: =ABS(AH173) -> 0.126220898 | AG174: -6.939173802 | AH174: 0.1239432837 | AJ174: =SQRT(AI174^2+$AB$186^2) ->  | AK174: 39.26725006 | AS174: 0.2372734945 | AT174: 0.004141203707 | AU174: -0.2331322908 | AV174: -0.004068914839 | AW174: =ABS(AV174)*'Simple AR Calculator'!$C$8 -> 0.9968841356 | AX174: 7.193882081 | AY174: 7.17146692 | BE174: 2.272817015 | BF174: 0.0396681402 | BG174: -2.233148874 | BH174: -0.03896593319 | BI174: 0.2372734945 | BJ174: 9.578891311 | BK174: 91.75515875 | BL174: 0.3397632653
S175: 36.88383691 | T175: 0.6437443949 | U175: -36.24009252 | V175: =TAN(RADIANS(S175)) -> 0.750380204 | W175: 11.63089316 | X175: 19.37853647 | Y175: 2.644403915 | AE175: =ABS(AG174) -> 6.939173802 | AF175: 0.1239432837 | AG175: -6.815230519 | AH175: 0.1217070785 | AK175: 39.39119335 | AS175: 0.2331322908 | AT175: 0.004068926067 | AU175: -0.2290633647 | AV175: -0.00399789926 | AW175: =ABS(AV175)*'Simple AR Calculator'!$C$8 -> 0.9794853187 | AX175: 7.0653947 | AY175: 6.92045038 | BE175: 2.233148874 | BF175: 0.03897580055 | BG175: -2.194173074 | BH175: -0.03828618481 | BI175: 0.2331322908 | BJ175: 9.578891311 | BK175: 91.75515875 | BL175: 0.3266954474
S176: 36.24009252 | T176: 0.6325089357 | U176: -35.60758358 | V176: 0.7329644864 | W176: 11.36094954 | X176: 19.21773073 | Y176: 3.27691285 | AE176: 6.815230519 | AF176: 0.1217070785 | AG176: -6.69352344 | AH176: 0.1195123916 | AK176: 39.51290043 | AS176: 0.2290633647 | AT176: 0.00399790991 | AU176: -0.2250654548 | AV176: -0.003928123117 | AW176: =ABS(AV176)*'Simple AR Calculator'!$C$8 -> 0.9623901636 | AX176: 6.939173802 | AY176: 6.678192611 | BE176: 2.194173074 | BF176: 0.0382955445 | BG176: -2.155877529 | BH176: -0.03761828301 | BI176: 0.2290633647 | BJ176: 9.578891311 | BK176: 91.75515875 | BL176: 0.3136276295
S177: 35.60758358 | T177: 0.6214695722 | U177: -34.98611401 | V177: 0.7161299016 | W177: 11.10001347 | X177: 19.06463478 | Y177: 3.898382423 | AE177: 6.69352344 | AF177: 0.1195123916 | AG177: -6.574011048 | AH177: 0.1173584057 | AK177: 39.63241282 | AS177: 0.2250654548 | AT177: 0.003928133219 | AU177: -0.2211373216 | AV177: -0.003859564779 | AW177: =ABS(AV177)*'Simple AR Calculator'!$C$8 -> 0.9455933707 | AX177: 6.815230519 | AY177: 6.444436798 | BE177: 2.155877529 | BF177: 0.03762716116 | BG177: -2.118250368 | BH177: -0.03696202193 | BI177: 0.2250654548 | BJ177: 9.578891311 | BK177: 91.75515875 | BL177: 0.3005598116
S178: 34.98611401 | T178: 0.610622882 | U178: -34.37549113 | V178: 0.6998464183 | W178: 10.84761948 | X178: 18.91879617 | Y178: 4.509005305 | AE178: 6.574011048 | AF178: 0.1173584057 | AG178: -6.456652643 | AH178: 0.1152443066 | AK178: 39.74977122 | AS178: 0.2211373216 | AT178: 0.003859574361 | AU178: -0.2172777472 | AV178: -0.003792202991 | AW178: =ABS(AV178)*'Simple AR Calculator'!$C$8 -> 0.9290897329 | AX178: 6.69352344 | AY178: 6.218883905 | BE178: 2.118250368 | BF178: 0.03697044331 | BG178: -2.081279925 | BH178: -0.03631719924 | BI178: 0.2211373216 | BJ178: 9.578891311 | BK178: 91.75515875 | BL178: 0.2874919937
S179: 34.37549113 | T179: 0.5999655022 | U179: -33.77552563 | V179: 0.6840861653 | W179: 10.60333556 | X179: 18.77979566 | Y179: 5.108970807 | AE179: 6.456652643 | AF179: 0.1152443066 | AG179: -6.341408336 | AH179: 0.113169299 | AK179: 39.86501553 | AS179: 0.2172777472 | AT179: 0.00379221208 | AU179: -0.2134855351 | AV179: -0.003726016872 | AW179: =ABS(AV179)*'Simple AR Calculator'!$C$8 -> 0.9128741337 | AX179: 6.574011048 | AY179: 6.001244641 | BE179: 2.081279925 | BF179: 0.03632518735 | BG179: -2.044954738 | BH179: -0.0356836161 | BI179: 0.2172777472 | BJ179: 9.578891311 | BK179: 91.75515875 | BL179: 0.2744241758
J180: =X170 -> 17.88687996 | M180: =N185 -> 38.88449643 | S180: 33.77552563 | T180: 0.5894941288 | U180: -33.1860315 | V180: 0.668823238 | W180: 10.36676019 | X180: 18.64724422 | Y180: 5.698464936 | AE180: 6.341408336 | AF180: 0.113169299 | AG180: -6.228239037 | AH180: 0.1111326068 | AJ180: =SQRT($AI$171^2+$AB$186^2) ->  | AK180: 39.97818483 | AS180: 0.2134855351 | AT180: 0.003726025494 | AU180: -0.2097595097 | AV180: -0.003660985903 | AW180: =ABS(AV180)*'Simple AR Calculator'!$C$8 -> 0.8969415462 | AX180: 6.456652643 | AY180: 5.791240005 | BE180: 2.044954738 | BF180: 0.03569119323 | BG180: -2.009263544 | BH180: -0.03506107711 | BI180: 0.2134855351 | BJ180: 9.578891311 | BK180: 91.75515875 | BL180: 0.2613563579
M181: ang | O181: =Q190 -> 19.91230775 | P181: mm | S181: 33.1860315 | T181: 0.5792055153 | U181: =T181-S181 -> -32.60682598 | V181: 0.6540335255 | W181: 10.13751964 | X181: 18.52078034 | Y181: 6.277670451 | AB181: =AD190 ->  | AC181: mm | AE181: 6.228239037 | AF181: 0.1111326068 | AG181: -6.11710643 | AH181: 0.1091334718 | AJ181: =SQRT($AI$172^2+$AB$186^2) ->  | AK181: 40.08931744 | AS181: 0.2097595097 | AT181: 0.003660994081 | AU181: -0.2060985156 | AV181: -0.003597089923 | AW181: =ABS(AV181)*'Simple AR Calculator'!$C$8 -> 0.8812870311 | AX181: 6.341408336 | AY181: 5.588600926 | BE181: 2.009263544 | BF181: 0.03506826439 | BG181: -1.97419528 | BH181: -0.03444939021 | BI181: 0.2097595097 | BJ181: 9.578891311 | BK181: 91.75515875 | BL181: 0.24828854
K182: =X171 -> 19.91230775 | S182: 32.60682598 | T182: 0.569096472 | U182: -32.03772951 | V182: 0.6396945552 | W182: 9.915265605 | X182: 18.40006772 | Y182: 6.846766923 | AE182: 6.11710643 | AF182: 0.1091334718 | AG182: -6.007972958 | AH182: 0.1071711536 | AJ182: =SQRT(AI182^2+$AB$186^2) ->  | AK182: 40.19845091 | AS182: 0.2060985156 | AT182: 0.00359709768 | AU182: -0.2025014179 | AV182: -0.003534309124 | AW182: =ABS(AV182)*'Simple AR Calculator'!$C$8 -> 0.8659057354 | AX182: 6.228239037 | AY182: 5.393067904 | BE182: 1.97419528 | BF182: 0.03445620771 | BG182: -1.939739072 | BH182: -0.03384836669 | BI182: 0.2060985156 | BJ182: 9.578891311 | BK182: 91.75515875 | BL182: 0.2352207221
P183: a | Q183: =Q189 -> 12.5 | R183: mm | S183: 32.03772951 | T183: 0.5591638648 | U183: -31.47856565 | V183: 0.6257853538 | W183: 9.699672984 | X183: 18.28479303 | Y183: 7.405930788 | AC183: a | AD183: =AD189 ->  | AE183: 6.007972958 | AF183: 0.1071711536 | AG183: -5.900801805 | AH183: 0.1052449289 | AJ183: =SQRT(AI183^2+$AB$186^2) ->  | AK183: 40.30562206 | AS183: 0.2025014179 | AT183: 0.003534316482 | AU183: -0.1989671014 | AV183: -0.003472624043 | AW183: =ABS(AV183)*'Simple AR Calculator'!$C$8 -> 0.8507928906 | AX183: 6.11710643 | AY183: 5.204390662 | BE183: 1.939739072 | BF183: 0.03385483344 | BG183: -1.905884239 | BH183: -0.03325782109 | BI183: 0.2025014179 | BJ183: 9.578891311 | BK183: 91.75515875 | BL183: 0.2221529042
S184: 31.47856565 | T184: 0.5494046143 | U184: -30.92916103 | V184: 0.6122863222 | W184: 9.490437993 | X184: 18.17466405 | Y184: 7.955335402 | AD184: mm | AE184: =ABS(AG183) -> 5.900801805 | AF184: =ABS(AH183) -> 0.1052449289 | AG184: =AF184-AE184 -> -5.795556876 | AH184: =TAN(RADIANS(AE184)) -> 0.103354091 | AK184: 40.41086699 | AS184: 0.1989671014 | AT184: 0.003472631023 | AU184: -0.1954944704 | AV184: -0.003412015557 | AW184: =ABS(AV184)*'Simple AR Calculator'!$C$8 -> 0.8359438115 | AX184: =AD184 -> mm | AY184: =AW184*AX184 ->  | BE184: 1.905884239 | BF184: 0.03326395513 | BG184: -1.872620284 | BH184: -0.03267757115 | BI184: =AS184 -> 0.1989671014 | BJ184: =BE184/BI184 -> 9.578891311 | BK184: =BJ184^2 -> 91.75515875 | BL184: 0.2090850863
N185: =K56 -> 38.88449643 | S185: 30.92916103 | T185: 0.5398156949 | U185: -30.38934534 | V185: 0.599179122 | W185: 9.28727639 | X185: 18.06940792 | Y185: 8.495151097 | AA185: =AE171 -> 7.321669317 | AE185: 5.795556876 | AF185: 0.103354091 | AG185: -5.692202785 | AH185: 0.1014979492 | AK185: 40.51422108 | AS185: 0.1954944704 | AT185: 0.003412022178 | AU185: -0.1920824482 | AV185: =SIN(RADIANS(AU185)) -> -0.003352464877 | AW185: =ABS(AV185)*'Simple AR Calculator'!$C$8 -> 0.8213538948 | AX185: =AE184 -> 5.900801805 | AY185: 4.846646545 | BE185: 1.872620284 | BF185: 0.03268338959 | BG185: -1.839936894 | BH185: =SIN(RADIANS(BG185)) -> -0.03210743774 | BI185: 0.1954944704 | BJ185: 9.578891311 | BK185: 91.75515875 | BL185: =BL184- $BI$50 -> 0.1960172684
O186: ='Simple AR Calculator'!C12 -> 15.5 | P186: mm | S186: 30.38934534 | T186: 0.5303941337 | U186: -29.8589512 | V186: 0.5864465742 | W186: 9.089921899 | X186: 17.96876958 | Y186: 9.025545231 | AB186: ='Simple AR Calculator'!#REF! ->  | AC186: mm | AE186: 5.692202785 | AF186: 0.1014979492 | AG186: -5.590704836 | AH186: 0.09967582847 | AK186: 40.61571903 | AS186: 0.1920824482 | AT186: =(RADIANS(AS186)) -> 0.003352471157 | AU186: -0.1887299771 | AV186: -0.00329395354 | AW186: =ABS(AV186)*'Simple AR Calculator'!$C$8 -> 0.8070186173 | AX186: 5.795556876 | AY186: 4.677122297 | BE186: 1.839936894 | BF186: =(RADIANS(BE186)) -> 0.03211295683 | BG186: -1.807823937 | BH186: -0.03154724487 | BI186: 0.1920824482 | BJ186: 9.578891311 | BK186: 91.75515875 | BL186: 0.1829494505
S187: 29.8589512 | T187: 0.5211370097 | U187: -29.33781419 | V187: 0.5740725666 | W187: 8.898124783 | X187: 17.87251031 | Y187: 9.54668224 | AE187: 5.590704836 | AF187: 0.09967582847 | AG187: -5.491029007 | AH187: 0.09788706898 | AK187: 40.71539486 | AS187: 0.1887299771 | AT187: 0.003293959497 | AU187: -0.1854360176 | AV187: -0.003236463408 | AW187: =ABS(AV187)*'Simple AR Calculator'!$C$8 -> 0.792933535 | AX187: 5.692202785 | AY187: 4.513538476 | BE187: 1.807823937 | BF187: 0.03155248 | BG187: -1.776271457 | BH187: -0.03099681955 | BI187: 0.1887299771 | BJ187: 9.578891311 | BK187: 91.75515875 | BL187: 0.1698816326
S188: 29.33781419 | T188: 0.512041453 | U188: -28.82577274 | V188: 0.5620419707 | W188: 8.711650545 | X188: 17.7804065 | Y188: 10.05872369 | AE188: 5.491029007 | AF188: 0.09788706898 | AG188: -5.393141938 | AH188: 0.09613102554 | AK188: 40.81328193 | AS188: 0.1854360176 | AT188: 0.003236469058 | AU188: -0.1821995485 | AV188: -0.003179976657 | AW188: =ABS(AV188)*'Simple AR Calculator'!$C$8 -> 0.7790942811 | AX188: 5.590704836 | AY188: 4.355686165 | BE188: 1.776271457 | BF188: 0.03100178534 | BG188: -1.745269672 | BH188: -0.03045599181 | BI188: 0.1854360176 | BJ188: 9.578891311 | BK188: 91.75515875 | BL188: 0.1568138148
N189: a = TanA* | O189: b | P189: =TAN(RADIANS(N185)) -> 0.8064516129 | Q189: =P189*O186 -> 12.5 | S189: 28.82577274 | T189: 0.5031046438 | U189: -28.3226681 | V189: 0.5503405652 | W189: 8.530278761 | X189: 17.69224846 | Y189: 10.56182834 | AA189: a = TanA* | AB189: b | AC189: =TAN(RADIANS(AA185)) -> 0.1284873804 | AD189: =AC189*AB186 ->  | AE189: 5.393141938 | AF189: 0.09613102554 | AG189: -5.297010913 | AH189: 0.09440706725 | AK189: 40.90941295 | AS189: 0.1821995485 | AT189: 0.003179982017 | AU189: -0.1790195665 | AV189: -0.003124475777 | AW189: =ABS(AV189)*'Simple AR Calculator'!$C$8 -> 0.7654965653 | AX189: 5.491029007 | AY189: 4.203363845 | BE189: 1.745269672 | BF189: 0.03046070211 | BG189: -1.71480897 | BH189: -0.02992459461 | BI189: 0.1821995485 | BJ189: 9.578891311 | BK189: 91.75515875 | BL189: 0.1437459969
N190: c = sqrt(a2=b2) | Q190: =SQRT($Q$183^2+$O$186^2) -> 19.91230775 | S190: 28.3226681 | T190: 0.4943238112 | U190: -27.82834429 | V190: 0.5389549681 | W190: 8.353802005 | X190: 17.60783939 | Y190: 11.05615215 | AA190: c = sqrt(a2=b2) | AD190: =SQRT($AD$183^2+$AB$186^2) ->  | AE190: 5.297010913 | AF190: 0.09440706725 | AG190: -5.202603846 | AH190: 0.09271457709 | AK190: 41.00382002 | AS190: 0.1790195665 | AT190: 0.003124480861 | AU190: -0.1758950856 | AV190: -0.00306994356 | AW190: =ABS(AV190)*'Simple AR Calculator'!$C$8 -> 0.7521361722 | AX190: 5.393141938 | AY190: 4.056377134 | BE190: 1.71480897 | BF190: 0.02992906257 | BG190: -1.684879907 | BH190: -0.02940246381 | BI190: 0.1790195665 | BJ190: 9.578891311 | BK190: 91.75515875 | BL190: 0.130678179
K191: T | L191: T | S191: 27.82834429 | T191: 0.4856962332 | U191: -27.34264805 | V191: 0.527872573 | W191: 8.182024881 | X191: 17.52699436 | Y191: 11.54184838 | AE191: 5.202603846 | AF191: 0.09271457709 | AG191: -5.109889268 | AH191: 0.09105295153 | AK191: 41.0965346 | AS191: 0.1758950856 | AT191: 0.003069948382 | AU191: -0.1728251372 | AV191: -0.003016363101 | AW191: =ABS(AV191)*'Simple AR Calculator'!$C$8 -> 0.7390089597 | AX191: 5.297010913 | AY191: 3.914538524 | BE191: 1.684879907 | BF191: 0.02940670188 | BG191: -1.655473205 | BH191: -0.02888943808 | BI191: 0.1758950856 | BJ191: 9.578891311 | BK191: 91.75515875 | BL191: 0.1176103611
S192: 27.34264805 | T192: 0.4772192347 | U192: -26.86542882 | V192: 0.5170814927 | W192: 8.014763137 | X192: 17.44953948 | Y192: 12.01906762 | AE192: 5.109889268 | AF192: 0.09105295153 | AG192: -5.018836317 | AH192: 0.08942160013 | AK192: 41.18758755 | AS192: 0.1728251372 | AT192: 0.003016367675 | AU192: -0.1698087696 | AV192: -0.002963717789 | AW192: =ABS(AV192)*'Simple AR Calculator'!$C$8 -> 0.7261108583 | AX192: 5.202603846 | AY192: 3.777667144 | BE192: 1.655473205 | BF192: 0.02889345811 | BG192: -1.626579747 | BH192: -0.02838535894 | BI192: 0.1728251372 | BJ192: 9.578891311 | BK192: 91.75515875 | BL192: 0.1045425432
S193: 26.86542882 | T193: 0.4688901878 | U193: -26.39653863 | V193: 0.5065705069 | W193: 7.851842857 | X193: 17.37531111 | Y193: 12.4879578 | AE193: 5.018836317 | AF193: 0.08942160013 | AG193: -4.929414717 | AH193: 0.0878199452 | AK193: 41.27700915 | AS193: 0.1698087696 | AT193: 0.002963722128 | AU193: -0.1668450474 | AV193: -0.002911991303 | AW193: =ABS(AV193)*'Simple AR Calculator'!$C$8 -> 0.7134378692 | AX193: 5.109889268 | AY193: 3.645588512 | BE193: 1.626579747 | BF193: 0.02838917214 | BG193: -1.598190575 | BH193: -0.0278900706 | BI193: 0.1698087696 | BJ193: 9.578891311 | BK193: 91.75515875 | BL193: 0.09147472527
S194: 26.39653863 | T194: 0.4607065102 | U194: -25.93583212 | V194: 0.4963290143 | W194: 7.693099722 | X194: 17.30415509 | Y194: 12.94866431 | AE194: 4.929414717 | AF194: 0.0878199452 | AG194: -4.841594772 | AH194: 0.08624742145 | AK194: 41.3648291 | AS194: 0.1668450474 | AT194: 0.002911995418 | AU194: -0.163933052 | AV194: -0.002861167607 | AW194: =ABS(AV194)*'Simple AR Calculator'!$C$8 -> 0.7009860637 | AX194: 5.018836317 | AY194: 3.518134314 | BE194: 1.598190575 | BF194: 0.02789368761 | BG194: -1.570296888 | BH194: -0.02740342001 | BI194: 0.1668450474 | BJ194: 9.578891311 | BK194: 91.75515875 | BL194: 0.07840690738
S195: 25.93583212 | T195: 0.4526656647 | U195: -25.48316645 | V195: 0.4863469891 | W195: 7.538378331 | X195: 17.23592608 | Y195: 13.40132998 | AE195: 4.841594772 | AF195: 0.08624742145 | AG195: -4.75534735 | AH195: 0.08470347563 | AK195: 41.45107652 | AS195: =ABS(AU194) -> 0.163933052 | AT195: 0.002861171511 | AU195: =AT195-AS195 -> -0.1610718805 | AV195: -0.002811230944 | AW195: =ABS(AV195)*'Simple AR Calculator'!$C$8 -> 0.6887515814 | AX195: 4.929414717 | AY195: 3.395142181 | BE195: 1.570296888 | BF195: 0.02740685092 | BG195: -1.542890037 | BH195: -0.02692525674 | BI195: 0.163933052 | BJ195: 9.578891311 | BK195: 91.75515875 | BL195: 0.06533908948
S196: 25.48316645 | T196: 0.4447651585 | U196: -25.0384013 | V196: 0.4766149411 | W196: 7.387531587 | X196: 17.17048697 | Y196: 13.84609514 | AE196: 4.75534735 | AF196: 0.08470347563 | AG196: -4.670643875 | AH196: 0.08318756624 | AK196: 41.53577999 | AS196: 0.1610718805 | AT196: 0.002811234647 | AU196: -0.1582606459 | AV196: -0.002762165834 | AW196: =ABS(AV196)*'Simple AR Calculator'!$C$8 -> 0.6767306294 | AX196: 4.841594772 | AY196: 3.276455477 | BE196: 1.542890037 | BF196: 0.02692851114 | BG196: -1.515961525 | BH196: -0.026455433 | BI196: 0.1610718805 | BJ196: 9.578891311 | BK196: 91.75515875 | BL196: 0.05227127158
S197: 25.0384013 | T197: 0.4370025421 | U197: -24.60139875 | V197: 0.4671238789 | W197: 7.240420124 | X197: 17.10770831 | Y197: 14.28309768 | AE197: 4.670643875 | AF197: 0.08318756624 | AG197: -4.587456308 | AH197: 0.08169916319 | AK197: 41.61896756 | AS197: 0.1582606459 | AT197: 0.002762169347 | AU197: -0.1554984765 | AV197: -0.002713957065 | AW197: =ABS(AV197)*'Simple AR Calculator'!$C$8 -> 0.664919481 | AX197: 4.75534735 | AY197: 3.161923092 | BE197: 1.515961525 | BF197: 0.02645851995 | BG197: -1.489503006 | BH197: -0.02599380354 | BI197: 0.1582606459 | BJ197: 9.578891311 | BK197: 91.75515875 | BL197: 0.03920345369
S198: 24.60139875 | T198: 0.4293754089 | U198: -24.17202335 | V198: 0.4578652764 | W198: 7.096911785 | X198: 17.04746776 | Y198: 14.71247309 | AE198: 4.587456308 | AF198: 0.08169916319 | AG198: -4.505757145 | AH198: 0.08023774754 | AK198: 41.70066672 | AS198: 0.1554984765 | AT198: 0.002713960397 | AU198: -0.1527845161 | AV198: -0.002666589692 | AW198: =ABS(AV198)*'Simple AR Calculator'!$C$8 -> 0.6533144746 | AX198: 4.670643875 | AY198: 3.051399249 | BE198: 1.489503006 | BF198: 0.02599673167 | BG198: -1.463506274 | BH198: -0.02554022563 | BI198: 0.1554984765 | BJ198: 9.578891311 | BK198: 91.75515875 | BL198: 0.02613563579
S199: 24.17202335 | T199: 0.4218813942 | U199: -23.75014195 | V199: 0.4488310416 | W199: 6.956881145 | X199: 16.98964965 | Y199: 15.13435448 | AE199: 4.505757145 | AF199: 0.08023774754 | AG199: -4.425519398 | AH199: 0.07880281114 | AK199: 41.78090447 | AS199: 0.1527845161 | AT199: 0.002666592852 | AU199: -0.1501179233 | AV199: -0.00262004903 | AW199: =ABS(AV199)*'Simple AR Calculator'!$C$8 -> 0.6419120123 | AX199: 4.587456308 | AY199: 2.94474331 | BE199: 1.463506274 | BF199: 0.0255430031 | BG199: -1.437963271 | BH199: -0.02509455902 | BI199: 0.1527845161 | BJ199: 9.578891311 | BK199: 91.75515875 | BL199: 0.0130678179
S200: 23.75014195 | T200: 0.4145181749 | U200: -23.33562378 | V200: 0.4400134881 | W200: 6.820209065 | X200: 16.93414455 | Y200: 15.54887266 | AE200: 4.425519398 | AF200: 0.07880281114 | AG200: -4.346716586 | AH200: 0.07739385642 | AK200: 41.85970728 | AS200: 0.1501179233 | AT200: 0.002620052027 | AU200: -0.1474978712 | AV200: -0.002574320649 | AW200: =ABS(AV200)*'Simple AR Calculator'!$C$8 -> 0.6307085591 | AX200: 4.505757145 | AY200: 2.841819597
S201: 23.33562378 | T201: 0.4072834679 | U201: -22.92834031 | V201: 0.4314053088 | W201: 6.686782286 | X201: 16.88084883 | Y201: 15.95615613 | AE201: 4.346716586 | AF201: 0.07739385642 | AG201: -4.26932273 | AH201: 0.07601039611 | AK201: 41.93710114 | AS201: 0.1474978712 | AT201: 0.002574323493 | AU201: -0.1449235477 | AV201: -0.002529390375 | AW201: =ABS(AV201)*'Simple AR Calculator'!$C$8 -> 0.6197006418 | AX201: 4.425519398 | AY201: 2.742497211
S202: 22.92834031 | T202: 0.4001750304 | U202: -22.52816528 | V202: 0.4229995518 | W202: 6.556493053 | X202: 16.82966432 | Y202: 16.35633116 | AE202: 4.26932273 | AF202: 0.07601039611 | AG202: -4.193312334 | AH202: 0.07465195291 | AK202: 42.01311153 | AS202: 0.1449235477 | AT202: 0.002529393072 | AU202: -0.1423941547 | AV202: -0.002485244276 | AW202: =ABS(AV202)*'Simple AR Calculator'!$C$8 -> 0.6088848477 | AX202: 4.346716586 | AY202: 2.646649867
S203: 22.52816528 | T203: 0.3931906585 | U203: -22.13497462 | V203: 0.4147895978 | W203: =V203*$O$186 -> 6.429238766 | X203: 16.78049794 | Y203: 16.74952181 | AE203: 4.193312334 | AF203: 0.07465195291 | AG203: -4.118660381 | AH203: 0.07331805935 | AK203: 42.08776349 | AS203: 0.1423941547 | AT203: 0.002485246835 | AU203: -0.1399089078 | AV203: -0.002441868668 | AW203: =ABS(AV203)*'Simple AR Calculator'!$C$8 -> 0.5982578236 | AX203: 4.26932273 | AY203: 2.554155725
... 78 more rows

Sheet Flow Chart (hidden)
H4: Click here for Why We Evaluate Actions
B70: activation code
B71: =DATEVALUE(MONTH(A71) & "/" & DAY(A71) & "/" & YEAR(A71)) -> 

Sheet HRK (hidden)
E22: ='Max Summary'!E19 -> 7.441155704 | G22: ='Max Summary'!E10 -> 5.906299432 | I22: ='Max Summary'!E14 -> 1.944444444
E26: =G22/E22 -> 0.7937341546 | G26: =E22/G22 -> 1.25986767 | N26: =E22/E27 -> 0.9921540939
E27: 7.5 | G27: =G22 -> 5.906299432 | N27: =1/N26 -> 1.007907951
E28: =E22/2 -> 3.720577852 | G28: =IF(E22<E27,((E28 * N27)+0.4),E27/2) -> 4.15 | N28: =G27*N26 -> 5.859959161
E30: =udfsizeoval("Oval 2",E28) ->  | G30: =udfsizeautoshape("AutoShape 12",G28) -> 

Sheet Identities (hidden)
X3: Thus Shk_ang = (AR * K_ang * Ki / So)
X4: =(AA22*U22*(O11/O16)) -> 18.66695233
C5: ='[5]Simple AR Calculator'!C6:D6 -> SSA ca 1916
C6: Sa = arc length = profile rise (which is primarily vertical) | N6: Equations | Q6: DIP | R6: involute | S6: ∆ knuck | T6: key rads | U6: ∆key ang | V6: cap rise | W6: whip ang | X6: whip rise | Y6: ∆shk ang | Z6: ∆hamRise | AA6: ∆AR | AC6: Saham | AD6: key ang | AE6: shk ang | AF6: shk ang | AG6: AR
C7: Sa = radius θ = rθ | N7: Sa = radiusθ | Q7: 1.5 | R7: =[5]Generic!AJ54 -> 19.91230775 | S7: =L11 -> 19.91230775 | T7: =Q7/$O$11 -> 0.00612244898 | U7: =DEGREES(T7) -> 0.3507904868 | V7: =T7*$O$10 -> 0.7900094633 | W7: =(V7*360)/(6.28*$O$13) -> 0.6786546093 | X7: =(W7/360) * (6.28 * $O$12) -> 1.115766496 | Y7: =(X7*360) / (6.28 * R7) -> 3.212140829 | Z7: =(Y7/360) * (6.28 * $O$16) -> 7.708496238 | AA7: =Z7/Q7 -> 5.138997492 | AB7: ='[5]Simple AR Calculator'!C35 -> 5.138997492 | AH7: 1 | AI7: =AH7*R7 -> 19.91230775
C8: Linear speed = rω | N8: angle = (n ͦ / 360) * ( 2πr) | Q8: =Q7+$Q$27 -> 1.923130968 | R8: =[5]Generic!AJ55 -> 19.58001214 | S8: =S7 - (S7* $L$16%) -> 19.78087318 | T8: 0.007849514157 | U8: 0.4497440324 | V8: 1.012861109 | W8: 0.8700944639 | X8: 1.430510068 | Y8: 4.188136416 | Z8: 10.05069065 | AA8: 5.226212264 | AH8: 2 | AI8: 39.16002429
C9: Key Sa = | D9: =L9*O10 -> 4.355635802 | E9: mm | I9: key ang. | J9: =DEGREES(L9) -> 1.934047216 | K9: degs | L9: =(Q23 ) /O11 -> 0.03375549181 | N9: DATA | Q9: 2.346261937 | R9: =[5]Generic!AJ56 -> 19.29689876 | S9: 19.65030616 | T9: 0.009576579333 | U9: 0.548697578 | V9: 1.235712756 | W9: 1.061534319 | X9: 1.745253641 | Y9: 5.184583714 | Z9: 12.44196509 | AA9: 5.302888349 | AH9: 3 | AI9: 57.89069627
C10: Whip Sa = | D10: =(J10/360) * ((6.28 *O12)) -> 6.148545018 | E10: mm | G10: diff | I10: whip ang | J10: =(D9*360)/(2*PI()*O13) -> 3.739795405 | K10: degs | L10: =RADIANS(J10) -> 0.06527174318 | N10: Ko = | O10: ='[5]Simple AR Calculator'!D7 -> 129.034879 | Q10: 2.769392905 | R10: =[5]Generic!AJ57 -> 19.05621151 | S10: 19.52060098 | T10: 0.01130364451 | U10: 0.6476511236 | V10: 1.458564402 | W10: 1.252974173 | X10: 2.059997213 | Y10: 6.196877703 | Z10: 14.87126841 | AA10: 5.36986586 | AH10: 4 | AI10: 76.22484603
C11: Shk Sa = | D11: =(J11/360)*(2*PI()* O16) -> 42.47845431 | E11: mm | F11: ='[5]Simple AR Calculator'!E44 -> 42.5 | G11: =D11-F11 -> -0.02154568877 | I11: shk ang | J11: =(D10*360) / (2*PI()*S7) -> 17.69185591 | K11: degs Re | L11: ='[5]Simple AR Calculator'!E77 -> 19.91230775 | N11: Ki = | O11: ='[5]Simple AR Calculator'!D8 -> 245 | Q11: 3.192523873 | R11: =[5]Generic!AJ58 -> 18.85198559 | S11: 19.39175193 | T11: 0.01303070969 | U11: 0.7466046691 | V11: 1.681416048 | W11: 1.444414028 | X11: 2.374740785 | Y11: 7.221076882 | Z11: 17.32914182 | AA11: 5.428038288 | AH11: 5 | AI11: 94.25992796
C12: Shk Sa = | D12: =(J12/360)*(2*PI()*O16) -> 47.24502073 | E12: mm | F12: ='[5]Simple AR Calculator'!A15 -> 46.96622805 | G12: =D12-F12 -> 0.2787926736 | I12: shk ang | J12: =(D10*360)/(2*PI()*O15) -> 19.67708366 | K12: degs Re | L12: ='[5]Simple AR Calculator'!F16 -> 17.90334816 | N12: Wo = | O12: ='[5]Simple AR Calculator'!D9 -> 94.24696431 | Q12: 3.615654842 | R12: =[5]Generic!AJ59 -> 18.67899001 | S12: 19.26375337 | T12: 0.01475777486 | U12: 0.8455582147 | V12: 1.904267694 | W12: 1.635853883 | X12: 2.689484357 | Y12: 8.253886448 | Z12: 19.80767843 | AA12: 5.478310099 | AH12: 6 | AI12: 112.07394
I13: shk ang | J13: =DEGREES(F11/O16) -> 17.70082948 | N13: Wi = | O13: ='[5]Simple AR Calculator'!D10 -> 66.73080248 | Q13: 4.03878581 | R13: =[5]Generic!AJ60 -> 18.53266489 | S13: 19.1365997 | T13: 0.01648484004 | U13: 0.9445117603 | V13: 2.12711934 | W13: 1.827293737 | X13: 3.004227929 | Y13: 9.29261327 | Z13: 22.30041528 | AA13: 5.521564234 | AH13: 7 | AI13: 129.7286542
C14: Angular Velocity ω | G14: Identity | N14: Si = | O14: ='[5]Simple AR Calculator'!K13 -> 19.91230775 | Q14: 4.461916778 | R14: =[5]Generic!AJ61 -> 18.40905672 | S14: 19.01028532 | T14: 0.01821190522 | U14: 1.043465306 | V14: 2.349970986 | W14: 2.018733592 | X14: 3.318971501 | Y14: 10.33510384 | Z14: 24.80218436 | AA14: 5.558638942 | AH14: 8 | AI14: 147.2724538
C15: Interpret | G15: e.g. 21.4 / 19.2 = 0.2279 / 0.2045 | J15: =L11/L12 -> 1.11221139 | K15: same as | L15: =G30/H30 -> 1.11221139 | N15: Si = | O15: ='[5]Simple AR Calculator'!F16 -> 17.90334816 | Q15: 4.885047747 | R15: =[5]Generic!AJ62 -> 18.304754 | S15: 18.88480469 | T15: 0.0199389704 | U15: 1.142418851 | V15: 2.572822632 | W15: 2.210173447 | X15: 3.633715073 | Y15: 11.37967426 | Z15: 27.30894468 | AA15: 5.590312746 | AH15: 9 | AI15: 164.742786
C16: ω of gear pairs A | E16: =G28 -> 94.24696431 | F16: =G30 -> 0.2112779748 | G16: e.g. 21.4 / 19.2 = 11.4% | J16: =(J15-1)*100 -> 11.22113903 | K16: % | L16: =J16/17 -> 0.6600670019 | N16: So = | O16: ='[5]Simple AR Calculator'!D11 -> 137.5681649 | P16: ='[5]Simple AR Calculator'!C11 -> 130 | Q16: 5.308178715 | R16: =[5]Generic!AJ63 -> 18.21682507 | S16: 18.76015233 | T16: 0.02166603557 | U16: 1.241372397 | V16: 2.795674279 | W16: 2.401613301 | X16: 3.948458645 | Y16: 12.42503906 | Z16: 29.81761135 | AA16: 5.617296054 | AH16: 10 | AI16: 182.1682507
D17: B | E17: =G29 -> 19.91230775 | G17: 0.2279 / 0.2045 = 11.4% | J17: =(L15-1)*100 -> 11.22113903 | K17: % | N17: at = | O17: ='[5]Simple AR Calculator'!C22 -> 1.25 | Q17: 5.731309684 | R17: =[5]Generic!AJ64 -> 18.14275979 | S17: 18.63632276 | T17: 0.02339310075 | U17: 1.340325943 | V17: 3.018525925 | W17: 2.593053156 | X17: 4.263202217 | Y17: 13.47024329 | Z17: 32.32589267 | AA17: 5.640227881 | AH17: 11 | AI17: 199.5703577
C18: is faster than A | E18: =H28 -> 94.24696431 | F18: =H30 -> 0.1899620672 | G18: Hammer rise | N18: LO = | O18: ='[5]Simple AR Calculator'!C16 -> 2 | Q18: 6.154440652 | R18: =[5]Generic!AJ65 -> 18.08041558 | S18: 18.51331054 | T18: 0.02512016593 | U18: 1.439279488 | V18: 3.241377571 | W18: 2.784493011 | X18: 4.577945789 | Y18: 14.51460074 | Z18: 34.83214192 | AA18: 5.659676303 | AH18: 12 | AI18: 216.9649869
D19: B | E19: =H29 -> 17.90334816 | G19: 44.67 mm / 40 mm = 11.7% | J19: =((D12/D11) -1) *100 -> 11.22113903 | K19: % | N19: dip = | O19: =[5]Compare!H9 -> 9.520095494 | P19: =O19-O17 -> 8.270095494 | Q19: 6.57757162 | R19: =[5]Generic!AJ66 -> 18.02796855 | S19: 18.39111029 | T19: 0.0268472311 | U19: 1.538233034 | V19: 3.464229217 | W19: 2.975932865 | X19: 4.892689361 | Y19: 15.55763966 | Z19: 37.33522693 | AA19: 5.676141452 | AH19: 13 | AI19: 234.3635912
Q20: 7.000702589 | R20: =[5]Generic!AJ67 -> 17.98386966 | S20: 18.26971663 | T20: 0.02857429628 | U20: 1.637186579 | V20: 3.687080863 | W20: 3.16737272 | X20: 5.207432933 | Y20: 16.59905622 | Z20: 39.83441862 | AA20: 5.690060121 | AH20: 14 | AI20: 251.7741753
C21: But with either ω, the hammer must rise the same final distance of = | I21: =D11 -> 42.47845431 | J21: mm | Q21: 7.423833557 | R21: =[5]Generic!AJ68 -> 17.94680589 | S21: 18.14912426 | T21: 0.03030136146 | U21: 1.736140125 | V21: 3.909932509 | W21: 3.358812575 | X21: 5.522176505 | Y21: 17.63867569 | Z21: 42.32929763 | AA21: 5.701811242 | AH21: 15 | AI21: 269.2020884
C22: So, as A driver slows down from | F22: =G30 -> 0.2112779748 | G22: to | H22: =H30 -> 0.1899620672 | I22: B follower speeds up from | K22: =G31 -> 4.733101029 | L22: to | M22: =H31 -> 5.264208876 | Q22: 7.846964525 | R22: =[5]Generic!AJ69 -> 17.91566614 | S22: 18.02932788 | T22: 0.03202842663 | U22: 1.835093671 | V22: 4.132784155 | W22: 3.550252429 | X22: 5.836920077 | Y22: 18.67642048 | Z22: 44.8196778 | AA22: 5.71172173 | AH22: 16 | AI22: 286.6506582
Q23: 8.270095494 | R23: =[5]Generic!AJ70 -> 17.8895115 | S23: 17.91032224 | T23: 0.03375549181 | U23: 1.934047216 | V23: 4.355635802 | W23: 3.741692284 | X23: 6.151663649 | Y23: 19.71228443 | Z23: 47.30554433 | AA23: 5.720072322 | AB23: ='[5]Simple AR Calculator'!C37 -> 5.715651545 | AH23: 17 | AI23: 304.1216955
C24: The size of the gears and the sequence in which they engage define the ratio of the angular velocity ωA of the input gear to the angular velocity ωB of the output gear,
C25: known as the speed ratio, or gear ratio, of the gear train. Let R be the speed ratio, then | Q25: ='[5]Simple AR Calculator'!D37 -> 7.43572271 | S25: 1 | U25: =L11 -> 19.91230775
Q26: ='[5]Simple AR Calculator'!D35 -> 8.270095494 | S26: 1.5 | U26: =L11 - (S7* $L$16%) -> 19.78087318
F27: f/d | G27: speed ratio R = ang. Velocity | M27: radius proportions = ang. Velocity | Q27: =(Q26-1.5) / 16 -> 0.4231309684 | S27: 2 | U27: =U26 - (S8* $L$16%) -> 19.65030616
C28: of input | D28: Wa = drive | E28: =O11 -> 245 | F28: driver A = | G28: ='[5]Simple AR Calculator'!D9 -> 94.24696431 | H28: =G28 -> 94.24696431 | I28: =O10 -> 129.034879 | L28: output | M28: rB = radius | N28: =G29 -> 19.91230775 | O28: =H29 -> 17.90334816 | S28: 2.5 | U28: 19.52060098
C29: to output | D29: Wb = follow | E29: ='[5]Simple AR Calculator'!C7 -> 123 | F29: follow B = | G29: ='[5]Simple AR Calculator'!K13 -> 19.91230775 | H29: =O15 -> 17.90334816 | I29: =O13 -> 66.73080248 | L29: input | M29: rA = radius | N29: =G28 -> 94.24696431 | O29: =N29 -> 94.24696431 | S29: 3 | U29: 19.39175193
D30: R = wA / wB | E30: =E28/E29 -> 1.991869919 | G30: =G29/G28 -> 0.2112779748 | H30: =H29/H28 -> 0.1899620672 | I30: =I29/I28 -> 0.5171532147 | J30: =G30*I30 -> 0.1092630839 | L30: O:I | M30: R = rB / rA | N30: =N28/N29 -> 0.2112779748 | O30: =O28/O29 -> 0.1899620672 | S30: 3.5 | U30: 19.26375337 | AG30: 2141
G31: =1/G30 -> 4.733101029 | H31: =1/H30 -> 5.264208876 | S31: 4 | U31: 19.1365997 | AG31: 2127
S32: 4.5 | U32: 19.01028532 | AG32: 2114
C33: The speed ratio (aka gear ratio R) of two gears rolling without slipping on their pitch circles is given by, | S33: 5 | U33: 18.88480469 | AG33: 2102
I34: rB out / | J34: rA in | S34: 5.5 | U34: 18.76015233 | AG34: 2089
S35: 6 | U35: 18.63632276 | AG35: 2078
S36: 6.5 | U36: 18.51331054 | AG36: 2066
C37: therefore | I37: =O13 -> 66.73080248 | J37: =O10 -> 129.034879 | K37: 66.7 | L37: 129 | S37: 7 | U37: 18.39111029 | AG37: 2056
I38: =O14 -> 19.91230775 | J38: =O12 -> 94.24696431 | K38: =O15 -> 17.90334816 | L38: 94.2 | S38: 7.5 | U38: 18.26971663 | AG38: 2045
I39: =O15 -> 17.90334816 | S39: 8 | U39: 18.14912426 | AG39: 2036
F40: GR = VR = rB / rA = out / in | I40: =I38/J38 -> 0.2112779748 | J40: is VR of IN as a function of OUT, or A as a function of B | S40: 8.5 | U40: 18.02932788 | AG40: 2026
J41: meaning that the input V is mult. X | M41: =I40 -> 0.2112779748 | N41: of the the output veloctiy of | Q41: 1 | S41: 8.75 | U41: =L12 -> 17.90334816 | AG41: 2017
C42: Wa = rB / Ra | E42: =I38/J38 -> 0.2112779748 | F42: Wa = (Wb * rB) / rA | I42: =(I40*I38) / J38 -> 0.04463838265 | AG42: 2009
C43: Wb = rA/Rb | E43: =J38/I38 -> 4.733101029 | F43: Wb = (Wa * rA) / rB | I43: =(I42 * J38) / I38 -> 0.2112779748 | J43: =1/I43 -> 4.733101029 | K43: Linear speed = rω = | M43: =I38*E42 -> 4.207032056 | N43: 4.22434787 | AG43: 2001
F44: Wa / Wb proof = | I44: =I42/I43 -> 0.2112779748 | M44: =I38*I40 -> 4.207032056 | N44: 4.22434787 | AG44: 1994
F45: Wb / Wa proof = | I45: =I43/I42 -> 4.733101029 | M45: =J38*I42 -> 4.207032056 | N45: 4.22434787 | AG45: 1987
D46: =(G30-H30) / 16 -> 0.001332244229 | E46: =G30 -> 0.2112779748 | F46: =(I38-I39) / 16 -> 0.1255599743 | G46: =I38 -> 19.91230775 | H46: =(O12*H30) / G30 -> 84.73835561 | I46: =DEGREES(I40) -> 12.10533626 | J46: degs shank proportion of rotation | M46: 4.8 | AG46: 1981
E47: =E46-$D$46 -> 0.2099457306 | G47: =G46-$F$46 -> 19.78674778 | H47: =H48-$I$51 -> 85.33264365 | I47: =DEGREES(I42) -> 2.55759093 | J47: degs whip proportion of rotation | AG47: 1975
E48: 0.2086134864 | G48: 19.6611878 | H48: 85.9269317 | I48: =I46/I47 -> 4.733101029 | J48: ratio shank/whip | AG48: 1970
E49: 0.2072812421 | G49: 19.53562783 | H49: 86.52121974 | I49: =(J10*I46) / I47 -> 17.70082948 | J49: cf to shank angle above | L49: =J11 -> 17.69185591 | M49: =J12 -> 19.67708366 | AG49: 1965
E50: 0.2059489979 | G50: 19.41006785 | H50: 87.11550778 | AG50: 1961
E51: 0.2046167537 | G51: 19.28450788 | H51: 87.70979583 | I51: =(H62-H46) / 16 -> 0.5942880435 | AG51: 1958
E52: 0.2032845094 | G52: 19.15894791 | H52: 88.30408387 | AG52: 1955
E53: 0.2019522652 | G53: 19.03338793 | H53: 88.89837191 | S53: =S7 -> 19.91230775
E54: 0.200620021 | G54: 18.90782796 | H54: 89.49265996 | S54: =S7 -> 19.91230775
E55: 0.1992877768 | G55: 18.78226798 | H55: 90.086948 | S55: =-(7.7289492*10^(-4))*P55^3+0.0311787*P55^2-0.4643636*P55+$S$54 -> 19.91230775
E56: 0.1979555325 | G56: 18.65670801 | H56: 90.68123604 | S56: 19.91230775
E57: 0.1966232883 | G57: 18.53114803 | H57: 91.27552409 | S57: 19.91230775
E58: 0.1952910441 | G58: 18.40558806 | H58: 91.86981213 | S58: 19.91230775
E59: 0.1939587998 | G59: 18.28002809 | H59: 92.46410018 | S59: 19.91230775
E60: 0.1926265556 | G60: 18.15446811 | H60: 93.05838822 | S60: 19.91230775
E61: 0.1912943114 | G61: 18.02890814 | H61: 93.65267626 | S61: 19.91230775
E62: 0.1899620672 | G62: 17.90334816 | H62: =O12 -> 94.24696431 | S62: 19.91230775
E63: VR recession | G63: Shk I recession | S63: 19.91230775
S64: 19.91230775
S65: 19.91230775
S66: 19.91230775
S67: 19.91230775
S68: 19.91230775
S69: 19.91230775
S70: 19.91230775
S72: c | T72: b
S73: =R75 -> 1
S74: x | T74: f(x) = cx^b | U74: =LINEST(S75:S91,R75:R91^1,2,3) -> -0.1148992136
H75: avg | R75: 1 | S75: 21.40701053 | T75: =S75+$U$74 -> 21.29211132
R76: 2 | S76: 21.28719836 | T76: 21.17229915
R77: 3 | S77: 21.16805676 | T77: 21.05315754
R78: 4 | S78: 21.04958197 | T78: 20.93468276
R79: 5 | S79: 20.93177028 | T79: 20.81687107
R80: 6 | S80: 20.81461796 | T80: 20.69971875
R81: 7 | S81: 20.69812133 | T81: 20.58322211
R82: 8 | S82: 20.58227671 | T82: 20.4673775
R83: 9 | S83: 20.46708046 | T83: 20.35218125
R84: 10 | S84: 20.35252895 | T84: 20.23762973
R85: 11 | S85: 20.23861857 | T85: 20.12371935
R86: 12 | S86: 20.12534572 | T86: 20.01044651
R87: 13 | S87: 20.01270686 | T87: 19.89780764
R88: 14 | S88: 19.90069841 | T88: 19.7857992
R89: 15 | S89: 19.78931686 | T89: 19.67441765
R90: 16 | S90: 19.67855871 | T90: 19.56365949
R91: 17 | S91: 19.56842044 | T91: 19.45352123

Sheet Unit Circle (hidden)
V1: Kθ = | W1: =AC29 -> 1.894833595
K2: =O27 -> 44.1855335 | L2: =B28 -> 43 | V2: Si = | W2: ='Simple AR Calculator'!K13 -> 19.91230775 | X2: ='Simple AR Calculator'!F16 -> 17.88687996
A3: ='Simple AR Calculator'!F7/1000 -> 0.05 | E3: = copy in | G3: ='Simple AR Calculator'!C6 -> SSA ca 1916 | I3: Ham Rise = | K3: =O23 -> 40.11502063 | L3: =((L2/K3) -1) * 100 -> 7.191768381 | M3: % reduction | P3: =AE14 -> 44.1855335 | V3: Ko = | W3: ='Simple AR Calculator'!D7 -> 131.8976876
A4: ='Simple AR Calculator'!H7 -> 5.906299432 | B4: =1/A4 -> 0.1693107523 | C4: =50*B4 -> 8.465537614 | K4: =G11 -> 39.63561839 | M4: Hammer shortfall mm | P4: =L2-K4 -> 3.364381612 | V4: Wo = | W4: ='Simple AR Calculator'!E9 -> 93.23972951
A5: ARCS & Standard | I5: 360 | M5: 1.25 | N5: AT | O5: mm | P5: =M5*'Simple AR Calculator'!H8 -> 6.631405289 | V5: Wi = | W5: ='Simple AR Calculator'!D10 -> 64.5
A6: Key ro | B6: =B17 -> 0.5380635354 | C6: arc L = | D6: =(D13/360) * (6.28 *E10) -> 6.220880842 | E6: Jack Top | G6: =V27*D10*E35 -> 42.88455182 | I6: =B37+I7 -> 57.61940917 | J6: =I5-I6 -> 302.3805908 | O6: mm | P6: =P4+P5 -> 9.995786901 | V6: Sθ = | W6: =(W4 * ((W3 * W1) / W5)) / W2 -> 18.14378756
A7: Whip ro | B7: =D10 -> 1.426876817 | C7: arc L = | D7: =(E13/360) * (6.28 *E10) -> 39.92354751 | E7: Ro | G7: =E36*G8 -> 44.07553257 | H7: per 19.3 | I7: =Generic!H52 -> 38.88449643 | J7: =I5-I7 -> 321.1155036 | K7: Knuckle | M7: ='Simple AR Calculator'!D12 -> 19.91230775 | N7: =P7/Compare!H9 -> 5.356367762 | O7: mm | P7: =K3+P6 -> 50.11080753 | S7: Key Back | T7: arc L = θ / 360 * (2πr) | V7: =(T13/360)*((PI()*2*U10)) -> 4.36199964 | AA7: Hammer | AN7: =AE9 -> 137.5681649
A8: Sk ro | B8: =E35 -> 6.908700219 | C8: arc L = | D8: =(E16/360) * (6.28 *E10) -> 33.70266667 | E8: =G15/G18 -> 1.173818992 | G8: =G15-G18 -> 5.730786341 | H8: net vert | K8: Rest | M8: Ro | N8: AR | P8: =((P7/L2) - 1) * 100 -> 16.5367617 | Q8: % | Y8: mm | AC8: ='Simple AR Calculator'!C11 -> 130
A9: AR prod | B9: =B6*B7*B8 -> 5.304157252 | C9: diff | D9: =D7-D8 -> 6.220880842 | E9: ='Simple AR Calculator'!C9 -> 92 | G9: =(V11*'Simple AR Calculator'!D25) -> 6.217231437 | H9: per ratio | J9: arc | K9: =(J16/360) * (6.28 * M15) -> 111.5424072 | M9: =N15/N13 -> 1.345290471 | U9: ='Simple AR Calculator'!C7 -> 126 | W9: =U9/1000 -> 0.126 | AC9: =AE9 -> 137.5681649 | AE9: ='Simple AR Calculator'!D11 -> 137.5681649 | AF9: arc L = θ / 360 * (2πr) | AH9: =(AA20/360) * (6.28 * AE9) -> 44.96004752 | AI9: mm
A10: AR arc | B10: =AH9/AE30 -> 5.54997978 | C10: WipRo = | D10: =D6/S10 -> 1.426876817 | E10: ='Simple AR Calculator'!D9 -> 92 | G10: =G9*E35 -> 42.95298819 | H10: per 21.4 | J10: arc | K10: =(J13/360) * (6.28 * M13) -> 105.0346639 | M10: lift Ro | R10: arc L = | S10: =(T13/360) * (6.28 * U10) -> 4.359788292 | U10: ='Simple AR Calculator'!D7 -> 131.8976876 | W10: =U10/1000 -> 0.1318976876 | AE10: =(AC17*360) /( 6.28*AC9) -> 18.73491274 | AF10: is Sk ang. | AR10: =H33 -> 19.91230775
A11: AR vert | B11: =AE14/AE30 -> 5.454371848 | C11: VertRo = | D11: =G8/V27 -> 1.317334821 | G11: =(G8*B28) / G9 -> 39.63561839 | H11: proportion | J11: diff = | K11: =K9-K10 -> 6.507743295 | M11: =-(O19/O20) * -1 -> 6.908700219 | V11: =W15 -> 4.358819866 | AE11: =(D6*360) / (6.28 * W2) -> 17.90907453 | AF11: is Sk ang. | AR11: =AN7/AR10 -> 6.908700219 | AS11: sk ro
A12: Arc Tvl | B12: =AE30 * B6*B7*B8 -> 42.96865422 | K12: =K9/K10 -> 1.061958053 | AE12: =(AC29 * AC26 / AC9) * B10 -> 18.72882869 | AF12: is (θKey*Ki/So) * DAR
A13: Arc tvl2 | B13: =AH9 -> 44.96004752 | C13: wip ang> | D13: =T29 -> 3.876206562 | E13: =E16+T29 -> 24.87620656 | F13: degrees | J13: =J6 -> 302.3805908 | K13: degrees | M13: =H33 -> 19.91230775 | N13: =O17 -> -12.5 | O13: =M15*K14 -> 10.66385213 | P13: mm initial | T13: ='Simple AR Calculator'!F72 -> 1.894833595 | U13: degrees | AB13: degrees = | AC13: =AE10 -> 18.73491274 | AE13: =AE9*AC14 -> 130.2790798 | AF13: mm shortening
A14: Sk angle | B14: =AE10 -> 18.73491274 | E14: cos = | F14: =COS(RADIANS(E13)) -> 0.9072187812 | G14: =F14*E10 -> 83.46412787 | H14: mm shortening | J14: cos = | K14: =COS(RADIANS(J13)) -> 0.5355407449 | O14: =K15*M15 -> -16.81613088 | P14: mm vertical | T14: cos = | U14: =COS(RADIANS(T13)) -> 0.9994532015 | W14: =U10*U14 -> 131.8255662 | X14: mm shortening | AB14: cos = | AC14: =COS(RADIANS(AC13)) -> 0.9470147389 | AE14: =AC15*AE9 -> 44.1855335 | AF14: mm vertical rise
A15: Sk ang2 | B15: ='Simple AR Calculator'!J145 -> 18.15040506 | E15: sine = | F15: =SIN(RADIANS(E13)) -> 0.4206591054 | G15: =F15*E10 -> 38.7006377 | H15: mm vertical | J15: sine = | K15: =SIN(RADIANS(J13)) -> -0.8445093905 | M15: =H33 -> 19.91230775 | N15: =O14 -> -16.81613088 | O15: =O14*M11 -> -116.1776071 | P15: ham rise | T15: sine = | U15: =SIN(RADIANS(T13)) -> 0.03306505705 | W15: =U15*W14 -> 4.358819866 | X15: mm vertical rise | AB15: sine = | AC15: =SIN(RADIANS(AC13)) -> 0.3211901062 | AE15: =AC14*AE9 -> 130.2790798 | AF15: mm horizontal | AQ15: =AN37 -> 17.74140405 | AR15: mm
A16: Verticals | E16: 21 | F16: degrees | J16: =J7 -> 321.1155036 | K16: degrees | O16: =M13*K17 -> 15.5 | P16: mm lengthening | T16: degrees = | U16: =(S10*360) / (6.28 * U10) -> 1.894833595 | W16: =U10-W14 -> 0.07212145684 | X16: run scrub | AA16: mm vertical rise = | AC16: =AC15*AE9 -> 44.1855335 | AE16: =AE9-AE13 -> 7.289085139 | AF16: run | AN16: =AE9 -> 137.5681649
A17: Key ro | B17: =AB24 -> 0.5380635354 | E17: cos = | F17: =COS(RADIANS(E16)) -> 0.9335804265 | G17: =F17*E10 -> 85.88939924 | H17: mm shortening | J17: cos = | K17: =COS(RADIANS(J16)) -> 0.7784130395 | O17: =K18*M13 -> -12.5 | P17: mm vertical | W17: =W15/W16 -> 60.43721323 | X17: slope | AA17: arc distance = | AC17: =AH9 -> 44.96004752 | AE17: =AE14/AE16 -> 6.061876444 | AF17: slope
A18: Whip ro | B18: =G8/V27 -> 1.317334821 | E18: sine = | F18: =SIN(RADIANS(E16)) -> 0.3583679495 | G18: =F18*E10 -> 32.96985136 | H18: mm vertical | J18: sine = | K18: =SIN(RADIANS(J16)) -> -0.6277524512 | O18: =O17*M11 -> -86.35875274 | P18: =ABS(O15-O18) -> 29.81885437 | W18: =S10-W16 -> 4.287666835 | AE18: for every 6.07 mm or ham rise | AR18: =H34 -> 17.88687996
A19: Sk ro | B19: =E35 -> 6.908700219 | C19: =AC15*M13 -> 6.395636242 | J19: arc L = θ / 360 * (2πr) | O19: =O20*E35 -> 29.81885437 | P19: net ham rise | AE19: there is 1 mm of run | AR19: =AN16/AR18 -> 7.691009566 | AS19: sk ro
A20: Sk ro | B20: =E36 -> 7.691009566 | C20: =AE14/G8 -> 7.710204303 | D20: =AC16 / C19 -> 6.908700219 | F20: Si = | G20: =G8/ SIN(RADIANS(B14)) -> 17.84235015 | H20: =G20* AC15 -> 5.730786341 | J20: =AE10 / 360 *(6.28 * M13) -> 6.507743295 | O20: =ABS(O14-O17) -> 4.316130882 | P20: NET RISE | R20: =AE14/O20 -> 10.23730158 | AA20: =AE10 -> 18.73491274
A21: AR = | B21: =B17*B18*B20 -> 5.451463191 | C21: =B17*B18*C20 -> 5.465068609 | D21: =B17*B18*C20 -> 5.465068609 | F21: Sro = | G21: =AC9 / G20 -> 7.710204303 | O21: =O14/O17 -> 1.345290471 | P21: verticals ro | V21: arc L = θ / 360 * (2πr) | X21: =(T29/360) * (6.28 * U26) -> 4.361378416 | Y21: mm
A22: =AE30 * B17 * B18* B20 -> 44.16197065 | B22: =B21*AE30 -> 44.16197065 | C22: =C21*AE30 -> 44.27218731 | D22: =B13-C22 -> 0.6878602169 | F22: Ham rise> | G22: =G21*G8 -> 44.1855335 | H22: =AE14 -> 44.1855335 | O22: =K11/O20 -> 1.507772464 | P22: knk_arc/net rise | AD22: arc L = θ / 360 * (2πr) | AF22: =(AC29/360) * (6.28 * AC26) -> 8.098308248 | AG22: mm | AQ22: =AP37 -> 12.31251567 | AR22: mm
K23: Knuckle | O23: =O21*P18 -> 40.11502063 | P23: verts ro*net vert ham_rise | T23: ro | AB23: key ro
D24: SHANK RATIO IDENTITIES | K24: Deployed | O24: =(D6*E27) / H33 -> 42.97820083 | P24: jack_arc*sk ro | S24: Wippen | T24: =G8/V27 -> 1.317334821 | AB24: =V11/AE30 -> 0.5380635354
D25: arc L = θ / 360 * (2πr) | F25: =(B37/360) * (6.28 * E27) -> 44.96004752 | G25: mm arc | O25: =(K11*E27) / H33 -> 44.96004752 | P25: knk_arc*sk ro | R25: arc L = | S25: =(T29/360) * (6.28 * U26) -> 4.361378416 | U25: ='Simple AR Calculator'!C10 -> 64.5
F26: =AE14 -> 44.1855335 | G26: mm vert | O26: =P18/O20 -> 6.908700219 | P26: aka skro / 21.4 | U26: ='Simple AR Calculator'!D10 -> 64.5 | AC26: ='Simple AR Calculator'!C8 -> 245
E27: ='Simple AR Calculator'!D11 -> 137.5681649 | O27: =G8*C20 -> 44.1855335 | P27: sk ro * jack_vert | V27: =W30 -> 4.350288362
B28: =C28-2 -> 43 | C28: ='Simple AR Calculator'!C15 -> 45
C29: =DEGREES(ATAN(C30)) -> 17.35779936 | D29: degrees | J29: 360 | K29: degrees | N29: =ABS(O33) -> 5.793871978 | O29: =M30*K30 -> 17.88687996 | P29: mm shortening | T29: ='Simple AR Calculator'!C149 -> 3.876206562 | U29: degrees | W29: =U26*U30 -> 64.35245224 | X29: mm shortening | AC29: ='Simple AR Calculator'!F72 -> 1.894833595 | AD29: degs | AE29: =AC26*AC30 -> 244.8660344 | AF29: mm shortening
C30: =B28/E27 -> 0.3125723166 | E30: =B28/E27 -> 0.3125723166 | G30: =B28/D33 -> 0.3307692308 | H30: =DEGREES(ATAN(G30)) -> 18.30262624 | I30: degrees | J30: cos = | K30: =COS(RADIANS(J29)) -> 1 | M30: =H34 -> 17.88687996 | O30: =K31*M30 -> -4.38281667e-15 | P30: mm vertical | T30: cos = | U30: =COS(RADIANS(T29)) -> 0.9977124378 | W30: =U31*W29 -> 4.350288362 | X30: mm vertical rise | AB30: cos = | AC30: =COS(RADIANS(AC29)) -> 0.9994532015 | AE30: =AC31*AC26 -> 8.100938977 | AF30: mm vertical rise | AP30: 21.4
D31: degrees | E31: =DEGREES(ASIN(E30)) -> 18.21431881 | J31: sine = | K31: =SIN(RADIANS(J29)) -> -2.45029691e-16 | O31: =O30*E36 -> -3.370828494e-14 | P31: ham rise | T31: sine = | U31: =SIN(RADIANS(T29)) -> 0.06760097263 | W31: =U26-W29 -> 0.1475477632 | X31: run scrub | AB31: sine = | AC31: =SIN(RADIANS(AC29)) -> 0.03306505705 | AE31: =AC26-AE29 -> 0.1339656308 | AF31: capstan scrub run
J32: 341.1 | K32: degrees | O32: =M30*K33 -> 16.92251525 | P32: mm lengthening | T32: Degrees = | U32: =(S25*360) / (6.28 * U26) -> 3.876206562 | W32: =W30/W31 -> 29.48393298 | X32: slope | AB32: Degrees = | AC32: =(AE30*360) / (6.28 * AC26) -> 1.89544913 | AE32: =AE30/AE31 -> 60.47027829 | AF32: slope | AP32: =AR18 -> 17.88687996
D33: 130 | H33: ='Simple AR Calculator'!D12 -> 19.91230775 | I33: mm | J33: cos = | K33: =COS(RADIANS(J32)) -> 0.9460853588 | O33: =K34*M30 -> -5.793871978 | P33: mm vertical | AB33: radians = | AC33: =RADIANS(AC29) -> 0.03307108501
H34: ='Simple AR Calculator'!F16 -> 17.88687996 | I34: mm | J34: sine = | K34: =SIN(RADIANS(J32)) -> -0.3239174182 | O34: =(O33*E36) * -1 -> 44.56072481 | P34: ham rise | AM34: degrees = | AN34: 56 | AP34: 43.5
C35: SkRo @ 21.4 | E35: =E27/H33 -> 6.908700219 | F35: Ro | H35: 21.4 | I35: ? | AM35: sine | AN35: =SIN(RADIANS(AN34)) -> 0.8290375726 | AP35: =SIN(RADIANS(AP34)) -> 0.6883545757
C36: SkRo @ 19.3 | E36: =E27/H34 -> 7.691009566 | F36: Ro | O36: =O33*-1 -> 5.793871978 | P36: NET RISE | AM36: cos | AN36: =COS(RADIANS(AN34)) -> 0.5591929035 | AP36: =COS(RADIANS(AP34)) -> 0.725374371
B37: =AE10 -> 18.73491274 | C37: degrees at AE 10 | AM37: y = | AN37: =AN35*AP30 -> 17.74140405 | AP37: =AP35*AP32 -> 12.31251567
AM38: x = | AN38: =AN36*AP30 -> 11.96672813 | AP38: =AP36*AP32 -> 12.9746843
Z39: 94 | AE39: sine | AF39: cos | AG39: Sine Up | AH39: Cos over | AM39: slope = | AN39: =AN35/AN36 -> 1.482560969 | AP39: =AP35/AP36 -> 0.9489645667
AD40: 21 | AE40: 0.35837 | AF40: 0.93358 | AG40: 33.7 | AH40: 87.8 | AM40: diff y - x = | AN40: =AN37-AP37 -> 5.428888384
E41: 94 | AD41: 21.5 | AE41: 0.3665 | AF41: 0.93042 | AG41: 34.5 | AH41: 87.5 | AM41: ham rise = | AN41: =AN40*AR11 -> 37.50656237 | AP41: =AN40*AR19 -> 41.7536325
AD42: 22 | AE42: 0.37461 | AF42: 0.92718 | AG42: 35.2 | AH42: 87.2
F43: =D60-D57 -> 5.772240336 | G43: mm net rise | AD43: 22.5 | AE43: 0.38268 | AF43: 0.92388 | AG43: 36 | AH43: 86.8
AD44: 23 | AE44: 0.39073 | AF44: 0.9205 | AG44: 36.7 | AH44: 86.5
AD45: 23.5 | AE45: 0.39875 | AF45: 0.91706 | AG45: 37.5 | AH45: 86.2
AD46: 24 | AE46: 0.40674 | AF46: 0.91355 | AG46: 38.2 | AH46: 85.9
M47: 19.1 | AD47: 24.5 | AE47: 0.41469 | AF47: 0.90996 | AG47: 39 | AH47: 85.5
L48: 21.4 | Z48: sine | AA48: =SIN(RADIANS(AD52)) -> 0.7071067812 | AC48: =AA48*Z39 -> 66.46803743 | AD48: 25 | AE48: 0.42262 | AF48: 0.90631 | AG48: 39.7 | AH48: 85.2
I49: =E10 -> 92 | Z49: cos | AA49: =COS(RADIANS(AD52)) -> 0.7071067812 | AC49: =AA49*Z39 -> 66.46803743 | AD49: 30 | AE49: 0.55 | AF49: 0.86603 | AG49: =AG48-AG40 -> 6 | AH49: =AH48-AH40 -> -2.6
AD50: 35 | AE50: 0.57358 | AF50: 0.81915
AD51: 40 | AE51: 0.64279 | AF51: 0.76604
AD52: 45 | AE52: 0.70711 | AF52: 0.70711
N54: arc L = | O54: =(D13/360) * (6.28 *E41) -> 6.356117382
B55: 20 | C55: degrees jack top at rest | I55: INERTIA Torque Rads | O55: INERTIA Torque
B56: cos = | C56: =COS(RADIANS(B55)) -> 0.9396926208 | D56: =C56*I49 -> 86.45172111 | E56: mm horizontal | H56: Rθ = So ang. / Ki ang. | K56: =B14/AC29 -> 9.887365722 | L56: =K56^2 -> 97.76000092 | N56: Rθ = So ang. / Ki ang. | Q56: =B14/AC29 -> 9.887365722 | R56: =Q56^2 -> 97.76000092
B57: sine = | C57: =SIN(RADIANS(B55)) -> 0.3420201433 | D57: =C57*I49 -> 31.46585319 | E57: mm vertical | H57: Rθ = ratio of dip / Ki to x / So | N57: Rθ = ratio of dip / Ki to x / So
B58: =B55+T29 -> 23.87620656 | C58: degrees jack top deployed | H58: where x = (dip * So) / Ki | K58: =(AE30 * AC9) / AC26 -> 4.548699221 | N58: where x = (dip * So) / Ki | Q58: =(AE30 * AC8) / AC26 -> 4.298457416
B59: cos = | C59: =COS(RADIANS(B58)) -> 0.9144221211 | D59: =C59*I49 -> 84.12683514 | E59: mm horizontal | H59: Then: Rθ = (AR * dip) / x | K59: =(B9 * AE30) / K58 -> 9.446360845 | L59: =K59^2 -> 89.23373321 | N59: Then: Rθ = (AR * dip) / x | Q59: =(A4 * AE30) / Q58 -> 11.13110278 | R59: =Q59^2 -> 123.901449
B60: sine = | C60: =SIN(RADIANS(B58)) -> 0.4047618861 | D60: =C60*I49 -> 37.23809352 | E60: mm vertical | H60: SW_A61 = | K60: =C4 -> 8.465537614 | L60: =1/K59 -> 0.1058608724 | N60: SW_A61 = | Q60: =C4 -> 8.465537614 | R60: =1/Q59 -> 0.08983835835
H61: I_SW = | K61: =K60*(AC9/1000)^2 -> 0.1602102993 | N61: I_SW = | Q61: =Q60*(AC9/1000)^2 -> 0.1602102993
H62: SW_E44 = | K62: ='Key Leads'!H189 -> 9.441130356 | M62: 8.74 | N62: SW_E44 = | Q62: ='Key Leads'!H189 -> 9.441130356
H63: I_SW = | K63: =K62*(AC9/1000)^2 -> 0.178673392 | M63: =M62*(AC9/1000)^2 -> 0.1654045 | N63: I_SW = | Q63: =K62*(AC9/1000)^2 -> 0.178673392
H64: I_sys = | K64: =(K61*L59) * 10 -> 142.9616311 | L64: =('Key Leads'!F60/1000*'Key Leads'!D67^2) * 10000 -> 2.95749 | M64: =(M63*L59) * 10 -> 147.5966103 | N64: I_sys = | Q64: =(Q63*R59) * 10 -> 221.3789216 | R64: =('Key Leads'!F60 / 1000*'Key Leads'!D67^2) * 10000 -> 2.95749
H65: Plus I_ki (motor) | K65: =(AC26/10)^2 * A3 -> 30.0125 | N65: Plus I_ki (motor) | Q65: =(AC26/10)^2 * A3 -> 30.0125
H66: Total I felt at key | K66: =K64+K65 -> 172.9741311 | N66: Total I felt at key | Q66: =Q64+Q65 -> 251.3914216
H67: Force_capstan = | K67: =((K60/1000 * 'Simple AR Calculator'!C26* 'Simple AR Calculator'!C25) ) + 'Key Leads'!F60 / 1000 -> 0.1142222222 | N67: Force_capstan = | Q67: =((K60/1000 * 'Simple AR Calculator'!C26* 'Simple AR Calculator'!C25) ) + 'Key Leads'!F60 / 1000 -> 0.1142222222
H68: I_capstan = | K68: =(K67 * W10 ^2) -> 0.001987124 | L68: =K66+L64 -> 175.9316211 | N68: I_capstan = | Q68: =(Q67 * W9 ^2) -> 0.001813392 | R68: =Q66+R64 -> 254.3489116
H69: Torq_o = | I69: =(K64/10000) * K59 -> 0.1350467154 | J69: =K60/50 -> 0.1693107523 | K69: Inertia = | L69: =I69/K59 -> 0.01429616311 | N69: Torq_o = | O69: =(Q64/10000) * Q59 -> 0.2464191529 | P69: =Q60/50 -> 0.1693107523 | Q69: Inertia = | R69: =O69/Q59 -> 0.02213789216
I70: =B4 -> 0.1693107523 | O70: =B4 -> 0.1693107523
B71: =G3 -> SSA ca 1916 | S71: torque = (moment of inertia)(angular acceleration)
B72: Kodar = | C72: WH * (v * Ss) / (s*rs + v * Ss) | F72: =(C79*(C80*C85)/(C84 * C82 + C80 * C85)) -> 127.3638235 | G72: is Kodar | I72: H | K72: KoDar | L72: ='Simple AR Calculator'!D7 -> 131.8976876 | M72: per sarc
B73: WH = | C73: line from balance hole to wippen center, aka the magic line | J73: ra = Widar | L73: =F72 -> 127.3638235 | M73: per here | S73: τ = Iα
B74: v = | C74: kidar (e.g. 240 mm) | L74: =L72-L73 -> 4.533864149 | M74: mm
B75: Ss = | C75: (profile rise * Wodar) / Widar | F75: =(C81 * C82) / U26 -> 6.304709207 | K75: P | S75: τ = torque, around a defined axis (N∙m)
B76: s = | C76: full dip, inc AT
B77: rs = | C77: Wodar | K77: =C90 ->  | S77: I = moment of inertia (kg∙m2)
N78: v
B79: WH = | C79: =((C83 * C86) / C87) + C83 -> 190.5 | E79: 206.5 | F79: enter actual when available | K79: =C86 -> 126 | Q79: A | S79: α = angular acceleration (radians/s2)
B80: v = | C80: ='Simple AR Calculator'!D8 -> 245 | I80: C | K80: =C88 -> 190.5 | M80: W | N80: underside of key | P80: =C80 -> 245
B81: pro_rise = | C81: =S25 -> 4.361378416 | D81: =C81/2 -> 2.180689208
B82: Wod = | C82: ='Simple AR Calculator'!E9 -> 93.23972951
B83: Wid = | C83: ='Simple AR Calculator'!D10 -> 64.5 | J83: =C79-F72 -> 63.13617653 | K83: is Wid here | M83: =L73/J83 -> 2.01728756 | N83: Ro key out to whip in
B84: s = targ | C84: =AF22 -> 8.098308248 | D84: =Compare!H9 -> 9.355370982 | E84: =C84/2 -> 4.049154124 | J84: =C83-J83 -> 1.363823472 | K84: diff
B85: Ss = | C85: =G9 -> 6.217231437 | D85: =H9 -> per ratio | E85: =C85/2 -> 3.108615718
B86: Kom = | C86: ='Simple AR Calculator'!C7 -> 126 | J86: S S = o/h
B87: Wim = | C87: ='Simple AR Calculator'!C10 -> 64.5 | J87: sine = | K87: =C90/F72 ->  | L87: per here | N87: tan = | O87: =SQRT(L73^2 - K79^2) -> 18.58880119 | P87: is new cap
B88: CW = | C88: =C86+C87 -> 190.5 | J88: Ang W = | K88: =DEGREES(ASIN(K87)) ->  | L88: degrees per here
B89: heel ht. = | C89: 22 | F89: heel + cap | G89: =C89+C90 -> 
B90: Cap ht | C90: =Archives!#REF! ->  | J90: sine = | K90: =C90/L72 ->  | L90: per sarc
B91: Cos HCW | C91: =C88/C79 -> 1 | J91: Ang W | K91: =DEGREES(ASIN(K90)) ->  | L91: degrees per sarc
B92: ang. HWC | C92: =DEGREES(ACOS(C91)) -> 0 | D92: degrees | E92: =C92+C93 -> 90
B93: ang. CHW | C93: =90 - C92 -> 90 | D93: degrees | F93: new cap | G93: =O87 -> 18.58880119 | K93: =SQRT(L73^2 - K77^2) -> 
F94: new heel | G94: =G89-G93 ->  | K94: =K79-K93 -> 
B95: Pfieffer | C95: jack top rise | G95: =G93+G94 -> 
B96: Ss = (dip * kod * wod) / (ki * wid)
B97: Ss = | C97: =(C84 * L72 * C82) / (C80 * C83) -> 6.302410559 | D97: mm

Sheet INSTRUCTIONS

Sheet Compare Page Instructions

Sheet DipCalc (hidden)
C3: Carried In Action Ratio | G3: ='Simple AR Calculator'!C47 -> 5.305124231 | H3: ='Simple AR Calculator'!H9 -> 5.305124231 | J3: Aftertouch Chart
J4: mm | K4: Dec. Inch
C5: Dip Target (inc. Aftertouch) | G5: =Compare!F9 -> 10 | J5: 1.25 | K5: 0.04921259843
C6: Aftertouch Target from Main Page | G6: ='Simple AR Calculator'!C22 -> 1.25 | J6: 1.113 | K6: 0.04381889764
C7: Let-off Target from Main Page | G7: ='Simple AR Calculator'!C16 -> 2 | J7: 1 | K7: 0.03937007874
A8: BACK TO MAIN | C8: Hammer Flange Center Height (optional) | G8: 146
C9: String Height from Keybed (optional) | G9: 203 | J9: 1.2 | K9: 0.04724409449
J10: 1.15 | K10: 0.04527559055
J11: 1.1 | K11: 0.04330708661
C12: Computed Key Travel to Pt. Of A'touch | G12: =G5-G6 -> 8.75 | H12: ='Simple AR Calculator'!D47 -> 8.105370982 | I12: =H12+G6 -> 9.355370982 | J12: 1.05 | K12: 0.04133858268
C13: Computed Hammer Trvl. to Pt. of L-O | G13: =G3*H12 -> 43 | H13: =G12*G3 -> 46.41983702 | J13: 0.95 | K13: 0.0374015748
C15: Computed Hammer Bore | G15: =G9-G8 -> 57
C16: Computed Hammer Trvl. to String | G16: =G7+G13 -> 45 | H16: =G7+H13 -> 48.41983702 | J16: ='Simple AR Calculator'!E28 -> 1669332.902 | K16: =(J16*G12) / J17 -> 46.41983702
J17: ='Simple AR Calculator'!E27 -> 314664.2432
G18: =G16 -> 45
G19: =G7 -> 2
D25: Convenience Conversions | K25: Dec. Units | L25: Fractions
C26: Inches to mm --- enter inches --> | G26: =F26*25.4 -> 0 | I26: 1 | J26: 16 | K26: =I26/J26 -> 0.0625 | L26: 1/16"
C27: mm to inches --- enter mm --> | G27: =F27/25.4 -> 0 | I27: 2 | J27: 16 | K27: 0.125 | L27: 1/8"
I28: 3 | J28: 16 | K28: 0.1875 | L28: 3/16"
I29: 4 | J29: 16 | K29: 0.25 | L29: 1/4"
I30: 5 | J30: 16 | K30: 0.3125 | L30: 5/16"
I31: 6 | J31: 16 | K31: 0.375 | L31: 3/8"
I32: 7 | J32: 16 | K32: 0.4375 | L32: 7/16"
I33: 8 | J33: 16 | K33: =I33/J33 -> 0.5 | L33: 1/2"
I34: 9 | J34: 16 | K34: 0.5625 | L34: 9/16"
I35: 10 | J35: 16 | K35: 0.625 | L35: 5/8"
I36: 11 | J36: 16 | K36: 0.6875 | L36: 11/16'
I37: 12 | J37: 16 | K37: 0.75 | L37: 3/4"
I38: 13 | J38: 16 | K38: 0.8125 | L38: 13/16'
I39: 14 | J39: 16 | K39: 0.875 | L39: 7/8"
I40: 15 | J40: 16 | K40: 0.9375 | L40: 15/16"
I41: 16 | J41: 16 | K41: 1 | L41: 1.00"

Sheet Archives
C2: ENTRY AND / OR OUTGOING DATA | F2: Using this page: Read > | U2: To copy data below, left click in the name-heading box and drag down to capture the entire two column grid. Do not drag into blue background fields. Right click, then select copy.
A3: Compare Page | C3: Data Entry | D3: Inputs in mm | F3: < Read | G3: Archives Below | J3: INCOMING DATA | M3: Action Geometry Program ver. AGPL_8_24_REN_WipRo© Aug 2024 by Nick Gravagne. All rights reserved. Do not copy or distribute without express permission. | U3: Go to top, left grid (Entry and / or Outgoing Data). Right click in Piano Name entry cell, right click and choose paste.
C4: Piano Name | D4: SSA ca 1916 | J4: Yamaha Model | U4: SSD orig | V4: modified | X4: SSA ca 1916 | AA4: SSD orig | AD4: SSO 215,109 12/2017 | AG4: Yamaha Model | AJ4: SSA Jason 179--- | AM4: SSA ca 1916 | AN4: modified | AP4: SSL 367 ca 1949 | AV4: Generic | AY4: R 220 | BE4: Bechstein 275
C5: Key Output Arm | D5: 126 | E5: 131.8976876 | J5: 121.2 | K5: 127.3202262 | U5: 154 | V5: 158.861575 | X5: 126 | Y5: 131.8976876 | AA5: 156 | AB5: 160.8011194 | AD5: 114 | AE5: 120.8139065 | AG5: 117 | AH5: 123.3288287 | AJ5: 112 | AK5: 120.442891 | AM5: 126 | AN5: 131.8976876 | AP5: 112 | AQ5: 118.2387838 | AV5: 135 | AW5: 141.9894362 | AY5: 144 | AZ5: 148.8659212 | BE5: 146.75 | BF5: 151.8438754
C6: Key Input Arm | D6: 245 | E6: 245 | J6: 246 | K6: 246 | U6: 288 | V6: 288 | X6: 245 | Y6: 245 | AA6: 288 | AB6: 288 | AD6: 240 | AE6: 240 | AG6: 246 | AH6: 246 | AJ6: 236 | AK6: 236 | AM6: 245 | AN6: 245 | AP6: 241 | AQ6: 241 | AV6: 260 | AW6: 260 | AY6: 280 | AZ6: 280 | BE6: 290 | BF6: 290
C7: Whippen Output Arm | D7: 92 | E7: 92 | J7: 92 | K7: 92 | L7: ='Simple AR Calculator'!E9 -> 93.23972951 | U7: 91.7 | V7: 91.7 | X7: 92 | Y7: 92 | AA7: 92.5 | AB7: 92.5 | AD7: 92 | AE7: 92 | AG7: 92 | AH7: 92 | AJ7: 92.3 | AK7: 92.3 | AM7: 90.5 | AN7: 90.5 | AP7: 93.5 | AQ7: 93.5 | AV7: 93 | AW7: 93 | AY7: 92 | AZ7: 92 | BE7: 95.2 | BF7: 95.2
C8: Whippen Input Arm | D8: 64.5 | E8: 64.5 | J8: 59.8 | K8: 59.8 | U8: 68 | V8: 68 | X8: 64.5 | Y8: 64.5 | AA8: 66 | AB8: 66 | AD8: 65.9 | AE8: 65.9 | AG8: 64 | AH8: 64 | AJ8: 64 | AK8: 64 | AM8: 64.5 | AN8: 64.5 | AP8: 65 | AQ8: 65 | AV8: 67.4 | AW8: 67.4 | AY8: 67 | AZ8: 67 | BE8: 63 | BF8: 63
C9: Shank Output Arm | D9: 130 | E9: 137.5681649 | J9: 130 | K9: 137.5681649 | U9: 130 | V9: 140.014285 | X9: 130 | Y9: 137.5681649 | AA9: 130 | AB9: 140.014285 | AD9: 130 | AE9: 137.8985134 | AG9: 130 | AH9: 137.5681649 | AJ9: 130 | AK9: 137.8985134 | AM9: 130 | AN9: 137.5681649 | AP9: 130 | AQ9: 138.5784976 | AV9: 130 | AW9: 137.5681649 | AY9: 130 | AZ9: 139.2838828 | BE9: 128 | BF9: 135.67977
C10: Shank Input Arm | D10: 15.5 | E10: 19.91230775 | J10: 17 | K10: 21.40093456 | U10: 17 | V10: 21.16034026 | X10: 15.5 | Y10: 19.91230775 | AA10: 16.2 | AB10: 20.52315765 | AD10: 15.5 | AE10: 20.26209515 | AG10: 17 | AH10: 21.40093456 | AJ10: 16.2 | AK10: 20.73363451 | AM10: 17 | AN10: 21.10094785 | AP10: 15.5 | AQ10: 20.22992832 | AV10: 16.2 | AW10: 20.89688972 | AY10: 17 | AZ10: 21.31015016 | BE10: 17 | BF10: 21.40093456
C11: Knuckle Diameter | D11: 9.5 | J11: 10 | U11: 9.6 | X11: 9.5 | AA11: 9.6 | AD11: 10 | AG11: 10 | AJ11: 10 | AM11: 9.5 | AP11: 10 | AV11: 10 | AY11: 9.75 | BE11: 10
C12: Shank Thickness | D12: 6 | J12: 6 | U12: 6 | X12: 6 | AA12: 6 | AD12: 6.1 | AG12: 6 | AJ12: 5.88 | AM12: 6 | AP12: 6 | AV12: 6.4 | AY12: 6.2 | BE12: 6
C13: Mfg. Blow Distance | D13: 45 | J13: 47 | U13: 45 | X13: 45 | AA13: 45 | AD13: 45 | AG13: 47 | AJ13: 45 | AM13: 45 | AP13: 45 | AV13: 45 | AY13: 46 | BE13: 46
C14: Let-Off | D14: 2 | J14: 2 | U14: 2 | X14: 2 | AA14: 2 | AD14: 2 | AG14: 2 | AJ14: 2 | AM14: 2 | AP14: 2 | AV14: 2 | AY14: 2 | BE14: 2
C15: Spread | D15: 111 | J15: 112.5 | U15: 112.5 | X15: 111 | AA15: 112.5 | AD15: 113 | AG15: 112.5 | AJ15: 111.5 | AM15: 111 | AP15: 112 | AV15: 112.5 | AY15: 115.5 | BE15: 115
C16: Key Length (optional) | D16: 500 | J16: 492 | U16: 420 | X16: 500 | AA16: 420 | AD16: 483 | AG16: 492 | AJ16: 480 | AM16: 500 | AP16: 515 | AV16: 515 | AY16: 541 | BE16: 482
C17: Capstan Height | D17: 39 | J17: 39 | U17: 39 | X17: 39 | AA17: 39 | AD17: 40 | AG17: 39 | AJ17: 44.3 | AM17: 39 | AP17: 37.9 | AV17: 44 | AY17: 37.75 | BE17: 39
C19: Hammer Bore | D19: 45 | J19: 45 | U19: 52 | X19: 45 | AA19: 52 | AD19: 46 | AG19: 45 | AJ19: 46 | AM19: 45 | AP19: 48 | AV19: 45 | AY19: 50 | BE19: 45
C20: Aftertouch | D20: 1.25 | J20: 1.25 | U20: 1.25 | X20: 1.25 | AA20: 1.25 | AD20: 1.25 | AG20: 1.25 | AJ20: 1.25 | AM20: 1.25 | AP20: 1.25 | AV20: 1.25 | AY20: 1.3 | BE20: 1.25
C21: Key Ratio Front | H21: Key Ratio Front | J21: 2.02970297 | K21: 1.932136058 | U21: 1.87012987 | V21: 1.81289906 | X21: 1.944444444 | Y21: 1.857500343 | AA21: 1.846153846 | AB21: 1.791032308 | AD21: 2.105263158 | AE21: 1.986526278 | AG21: 2.102564103 | AH21: 1.994667447 | AJ21: 2.107142857 | AK21: 1.959434866 | AM21: 1.944444444 | AN21: 1.857500343 | AP21: 2.151785714 | AQ21: 2.038248299 | AV21: 1.925925926 | AW21: 1.831122138 | AY21: 1.944444444 | AZ21: 1.880887161 | BE21: 1.976149915 | BF21: 1.909856418
C22: Key Ratio Back | H22: Key Ratio Back | J22: 0.4926829268 | K22: 0.5175618951 | U22: 0.5347222222 | V22: 0.5516026908 | X22: 0.5142857143 | Y22: 0.5383579087 | AA22: 0.5416666667 | AB22: 0.5583372201 | AD22: 0.475 | AE22: 0.503391277 | AG22: 0.4756097561 | AH22: 0.5013367022 | AJ22: 0.4745762712 | AK22: 0.5103512332 | AM22: 0.5142857143 | AN22: 0.5383579087 | AP22: 0.4647302905 | AQ22: 0.4906173603 | AV22: 0.5192307692 | AW22: 0.5461132163 | AY22: 0.5142857143 | AZ22: 0.5316640043 | BE22: 0.5060344828 | BF22: 0.5235995704
C23: Whip ratio | H23: Whip Ratio | J23: 1.476923077 | K23: 1.538461538 | U23: 1.294588235 | V23: 1.348529412 | X23: 1.369302326 | Y23: 1.426356589 | AA23: 1.345454545 | AB23: 1.401515152 | AD23: 1.340212443 | AE23: 1.396054628 | AG23: 1.38 | AH23: 1.4375 | AJ23: 1.3845 | AK23: 1.4421875 | AM23: 1.346976744 | AN23: 1.403100775 | AP23: 1.380923077 | AQ23: 1.438461538 | AV23: 1.32462908 | AW23: 1.379821958 | AY23: 1.318208955 | AZ23: 1.373134328 | BE23: 1.450666667 | BF23: 1.511111111
C24: Shank ratio | H24: Shank Ratio | J24: 7.647058824 | K24: 6.428138198 | U24: 7.647058824 | V24: 6.616825781 | X24: 8.387096774 | Y24: 6.908700219 | AA24: 8.024691358 | AB24: 6.822258415 | AD24: 8.387096774 | AE24: 6.805738122 | AG24: 7.647058824 | AH24: 6.428138198 | AJ24: 8.024691358 | AK24: 6.650957088 | AM24: 7.647058824 | AN24: 6.519525375 | AP24: 8.387096774 | AQ24: 6.850172447 | AV24: 8.024691358 | AW24: 6.58318854 | AY24: 7.647058824 | AZ24: 6.536034786 | BE24: 7.529411765 | BF24: 6.339899301
C25: Whip Weight | H25: Whip Weight | J25: 17 | U25: 17 | X25: 17 | AA25: 17 | AD25: 17 | AG25: 17 | AJ25: 17 | AM25: 17 | AP25: 17 | AV25: 17 | AY25: 17 | BE25: 17
C26: DW Target | H26: DW Target | J26: 50 | U26: 50 | X26: 50 | AA26: 50 | AD26: 50 | AG26: 50 | AJ26: 50 | AM26: 50 | AP26: 50 | AV26: 50 | AY26: 50 | BE26: 50
C28: MAR | H28: MAR | J28: 5.564418938 | U28: 5.293638985 | X28: 5.906299432 | AA28: 5.848297793 | AD28: 5.339233443 | AG28: 5.019081779 | AJ28: 5.272630257 | AM28: 5.297353918 | AP28: 5.382476241 | AV28: 5.519287834 | AY28: 5.184216731 | BE28: 5.527245977
C29: DAR | H29: DAR | J29: 5.118399059 | U29: 4.921942083 | X29: 5.305124231 | AA29: 5.338540513 | AD29: 4.782812242 | AG29: 4.632576058 | AJ29: 4.895251863 | AM29: 4.924656484 | AP29: 4.834400991 | AV29: 4.960689359 | AY29: 4.771606676 | BE29: 5.01623692
C30: Dip | H30: DIP | J30: 10.04181156 | U30: 9.986388863 | X30: 9.355370982 | AA30: 9.304635887 | AD30: 10.24052646 | AG30: 10.96381785 | AJ30: 10.03402199 | AM30: 9.98157349 | AP30: 10.14458696 | AV30: 9.918150108 | AY30: 10.52121268 | BE30: 10.02151552
C31: Inertia | H31: Inertia | J31: 139.3199282 | U31: 186.6917156 | X31: 172.6865786 | AA31: 198.3253761 | AD31: 121.1912679 | AG31: 127.0458461 | AJ31: 156.7649753 | AM31: 133.1188154 | AP31: 124.2909755 | AV31: 149.0350234 | AY31: 166.7925196 | BE31: 186.0002095
C32: Capstan Change | H32: Capstan Change | J32: 4.2 | U32: 0 | X32: 0 | AA32: 0 | AD32: 0 | AG32: 0 | AJ32: 0 | AM32: 0 | AP32: 0 | AV32: 0 | AY32: 0 | BE32: 0
B38: To copy data below, left click in the name-heading box and drag down to capture the two column grid. Do not drag into blue background fields. Right click, then select copy.
C39: Go to top, left grid (Entry and / or Outgoing Data). Right click in Piano Name entry cell, right click and choose paste.
D40: TOP | P40: TOP | Z40: TOP | AK40: TOP | AN40: TOP
C42: Piano Name | J42: SSM 1927 mod | M42: SSA ca 1916 | N42: mod | S42: Standard Action | AB42: Yamaha | AK42: M&H AA mod 18905
C43: Key Output Arm | J43: 113 | K43: 119.2182872 | M43: 122.8 | N43: 128.8442471 | S43: 122 | T43: 130.3840481 | AB43: 123 | AC43: 129.034879 | AK43: 121.7 | AL43: 127.7962832
C44: Key Input Arm | J44: 238 | K44: 238 | M44: 245 | N44: 245 | S44: 240 | T44: 240 | AB44: 246 | AC44: 246 | AK44: 232 | AL44: 232
C45: Whippen Output Arm | J45: 93.4 | K45: 91.9 | M45: 89.5 | N45: 89.5 | S45: 93.5 | T45: 92 | AB45: 94.2 | AC45: 92.7 | AK45: 93.6 | AL45: 92.1
C46: Whippen Input Arm | J46: 64.5 | K46: 60.5 | M46: 63.2 | N46: 63.2 | S46: 66.3 | T46: 62.3 | AB46: 64.8 | AC46: 60.8 | AK46: 66.7 | AL46: 62.7
C47: Shank Output Arm | J47: 130 | K47: 137.5681649 | M47: 130 | N47: 137.5681649 | S47: 130 | T47: 137.5681649 | AB47: 130 | AC47: 137.5681649 | AK47: 127 | AL47: 135.7681848
C48: Shank Input Arm | J48: 16.2 | K48: 20.77113382 | M48: 17 | N48: 21.10094785 | S48: 17 | T48: 21.40093456 | AB48: 17 | AC48: 21.40093456 | AK48: 17 | AL48: 21.40093456
C49: Knuck Diameter | J49: 10 | M49: 9.5 | S49: 10 | AB49: 10 | AK49: 10
C50: Shank Thickness | J50: 6 | M50: 6 | S50: 6 | AB50: 6 | AK50: 6
C51: Blow Distance | J51: 45 | M51: 45 | S51: 45 | AB51: 46 | AK51: 47
C52: Let-Off | J52: 2 | M52: 2 | S52: 2 | AB52: 2 | AK52: 2
C53: Spread | J53: 112 | M53: 111 | S53: 113 | AB53: 113.5 | AK53: 113
C54: Key Length (optional) | J54: 482 | M54: 500 | S54: 515 | AB54: 492 | AK54: 482
C55: Capstan Height | J55: 38 | M55: 39 | S55: 46 | AB55: 39 | AK55: 39
C57: Hammer Bore | J57: 45 | M57: 45 | S57: 45 | AB57: 45 | AK57: 48
C58: Aftertouch | J58: 1.25 | M58: 1.25 | S58: 1.25 | AB58: 1.25 | AK58: 1.25
C59: Key Ratio Front | J59: 2.10619469 | K59: 1.996338025 | M59: 1.995114007 | N59: 1.901520678 | S59: 1.967213115 | T59: 1.840715973 | AB59: 2 | AC59: 1.906461275 | AK59: 1.906327034 | AL59: 1.81538926
C60: Key Ratio Back | J60: 0.474789916 | K60: 0.5009171731 | M60: 0.5012244898 | N60: 0.525894886 | S60: 0.5083333333 | T60: 0.5432668671 | AB60: 0.5 | AC60: 0.5245320285 | AK60: 0.5245689655 | AL60: 0.5508460483
C61: Whip ratio | J61: 1.448062016 | K61: 1.519008264 | M61: 1.416139241 | N61: 1.416139241 | S61: 1.41025641 | T61: 1.476725522 | AB61: 1.453703704 | AC61: 1.524671053 | AK61: 1.403298351 | AL61: 1.468899522
C62: Shank ratio | J62: 8.024691358 | K62: 6.623045528 | M62: 7.647058824 | N62: 6.519525375 | S62: 7.647058824 | T62: 6.428138198 | AB62: 7.647058824 | AC62: 6.428138198 | AK62: 7.470588235 | AL62: 6.34403065
C63: Whip Weight | J63: 17 | M63: 17 | S63: 17 | AB63: 17 | AK63: 17
C64: DW Target | J64: 50 | M64: 50 | S64: 50 | AB64: 50 | AK64: 50
C66: MAR | J66: 5.787486099 | M66: 5.427910405 | S66: 5.740408523 | AB66: 5.829624613 | AK66: 5.756380354
C67: DAR | J67: 4.80408655 | M67: 4.855353834 | S67: 4.92488968 | AB67: 4.901546351 | AK67: 4.903944264
C68: Dip | J68: 10.20071301 | M68: 10.10620317 | S68: 9.981160045 | AB68: 10.22675894 | AK68: 10.426287
C69: Inertia | J69: 216.1935233 | M69: 217.7569248 | S69: 218.3025276 | AB69: 217.0468456 | AK69: 214.1060981
C70: Capstan Change | J70: 0 | M70: 0 | S70: 0 | AB70: 0 | AK70: 0
D73: TOP | P73: TOP | Z73: TOP
C75: Piano Name | J75: SSA1 59673 mod | M75: SSA1 60402 mod | P75: Scott SSL | S75: SSB-VB | Y75: Bechstein | AK75: SSO Asu 186339 Orig
C76: Key Output Arm | J76: 120 | K76: 125.9942856 | M76: 120 | N76: 126.0860421 | P76: 114 | Q76: 120.1665511 | S76: 130 | T76: 135.4400236 | Y76: 143.75 | Z76: 148.9465089 | AK76: 116.86 | AL76: 122.8831136
C77: Key Input Arm | J77: 230 | K77: 230 | M77: 230 | N77: 230 | P77: 237 | Q77: 237 | S77: 245 | T77: 245 | Y77: 290 | Z77: 290 | AK77: 236 | AL77: 236
C78: Whippen Output Arm | J78: 92 | K78: 90.5 | M78: 91.7 | N78: 90.2 | P78: 94.4 | Q78: 92.9 | S78: 92.8 | T78: 91.3 | Y78: 95.2 | Z78: 93.7 | AK78: 93.9 | AL78: 92.4
C79: Whippen Input Arm | J79: 66.1 | K79: 62.1 | M79: 66.5 | N79: 62.5 | P79: 66.7 | Q79: 62.7 | S79: 65.8 | T79: 61.8 | Y79: 62.3 | Z79: 58.3 | AK79: 65.9 | AL79: 61.9
C80: Shank Output Arm | J80: 128 | K80: 135.2865108 | M80: 129 | N80: 136.2330356 | P80: 130 | Q80: 137.5681649 | S80: 127 | T80: 134.7367804 | Y80: 128 | Z80: 135.67977 | AK80: 130 | AL80: 137.5681649
C81: Shank Input Arm | J81: 16.2 | K81: 20.52315765 | M81: 16.2 | N81: 20.89688972 | P81: 16.2 | Q81: 20.77113382 | S81: 17 | T81: 21.50768758 | Y81: 17 | Z81: 21.40093456 | AK81: 16.2 | AL81: 20.84330168
C82: Knuck Diameter | J82: 9.5 | M82: 10.1 | P82: 10 | S82: 10 | Y82: 10 | AK82: 10
C83: Shank Thickness | J83: 6.2 | M83: 6.2 | P83: 6 | S83: 6.35 | Y83: 6 | AK83: 6.23
C84: Blow Distance | J84: 45 | M84: 45 | P84: 45 | S84: 45 | Y84: 46 | AK84: 45
C85: Let-Off | J85: 2 | M85: 2 | P85: 2 | S85: 2 | Y85: 2 | AK85: 2
C86: Spread | J86: 112.5 | M86: 112.5 | P86: 113 | S86: 112.5 | Y86: 115 | AK86: 112.85
C87: Key Length (optional) | J87: 541 | M87: 541 | P87: 485 | S87: 515 | Y87: 482 | AK87: 500
C88: Capstan Height | J88: 38.4 | M88: 38.7 | P88: 38 | S88: 38 | Y88: 39 | AK88: 38
C90: Hammer Bore | J90: 43.8 | M90: 43.8 | P90: 45 | S90: 45 | Y90: 45 | AK90: 45
C91: Aftertouch | J91: 1.25 | M91: 1.25 | P91: 1.25 | S91: 1.25 | Y91: 1.25 | AK91: 1.25
C92: Key Ratio Front | J92: 1.916666667 | K92: 1.825479615 | M92: 1.916666667 | N92: 1.824151161 | P92: 2.078947368 | Q92: 1.972262646 | S92: 1.884615385 | T92: 1.808918763 | Y92: 2.017391304 | Z92: 1.947007702 | AK92: 2.019510525 | AL92: 1.920524254
C93: Key Ratio Back | J93: 0.5217391304 | K93: 0.5478012417 | M93: 0.5217391304 | N93: 0.5482001828 | P93: 0.4810126582 | Q93: 0.5070318611 | S93: 0.5306122449 | T93: 0.552816423 | Y93: 0.4956896552 | Z93: 0.5136086512 | AK93: 0.4951694915 | AL93: 0.5206911592
C94: Whip ratio | J94: 1.39183056 | K94: 1.457326892 | M94: 1.378947368 | N94: 1.4432 | P94: 1.415292354 | Q94: 1.481658692 | S94: 1.410334347 | T94: 1.477346278 | Y94: 1.528089888 | Z94: 1.607204117 | AK94: 1.424886191 | AL94: 1.49273021
C95: Shank ratio | J95: 7.901234568 | K95: 6.59189551 | M95: 7.962962963 | N95: 6.519297248 | P95: 8.024691358 | Q95: 6.623045528 | S95: 7.470588235 | T95: 6.26458702 | Y95: 7.529411765 | Z95: 6.339899301 | AK95: 8.024691358 | AL95: 6.600113889
C96: Whip Weight | J96: 17 | M96: 17 | P96: 17 | S96: 17 | Y96: 17 | AK96: 17
C97: DW Target | J97: 50 | M97: 50 | P97: 50 | S97: 50 | Y97: 50 | AK97: 50
C99: MAR | J99: 6.007659974 | M99: 5.995903382 | P99: 5.719170135 | S99: 5.856179365 | Y99: 5.998490009 | AK99: 5.9314864
C100: DAR | J100: 5.025967718 | M100: 4.928192343 | P100: 4.752686319 | S100: 4.884222786 | Y100: 4.975807747 | AK100: 4.896793738
C101: Dip | J101: 9.805566293 | M101: 9.975308797 | P101: 10.29751484 | S101: 10.05385721 | Y101: 10.09278538 | AK101: 10.03125612
C102: Inertia | J102: 219.6085279 | M102: 219.6094113 | P102: 216.1426263 | S102: 218.1131413 | Y102: 221.2828804 | AK102: 216.9087139
C103: Capstan Change | J103: 0 | M103: 0 | P103: 0 | S103: 0 | Y103: 0 | AK103: 0
D108: TOP | P108: TOP | X108: TOP
C110: Piano Name | D110: SSA1 60402 orig | J110: SSB Teflon | S110: SSD Orig | AB110: SSO 106…JS | AE110: M&H AA.orig.18905 | AH110: Petrov
C111: Key Output Arm | D111: 120 | E111: 126.0860421 | J111: 133.9 | K111: 139.1876791 | S111: 171 | T111: 175.1713447 | AB111: 108 | AC111: 114.4901743 | AE111: 124.7 | AF111: 130.3613823 | AH111: 118 | AI111: 123.9677377
C112: Key Input Arm | D112: 230 | E112: 230 | J112: 262 | K112: 262 | S112: 324 | T112: 324 | AB112: 237 | AC112: 237 | AE112: 232 | AF112: 232 | AH112: 234 | AI112: 234
C113: Whippen Output Arm | D113: 92.4 | E113: 90.9 | J113: 94.6 | K113: 93.1 | S113: 93.9 | T113: 92.4 | AB113: 93 | AC113: 91.5 | AE113: 94.6 | AF113: 93.1 | AH113: 93.5 | AI113: 92
C114: Whippen Input Arm | D114: 66.5 | E114: 62.5 | J114: 67.8 | K114: 63.8 | S114: 66.7 | T114: 62.7 | AB114: 65.8 | AC114: 61.8 | AE114: 64.8 | AF114: 60.8 | AH114: 65.8 | AI114: 61.8
C115: Shank Output Arm | D115: 129 | E115: 136.2330356 | J115: 130 | K115: 137.5681649 | S115: 130 | T115: 140.014285 | AB115: 130 | AC115: 137.5681649 | AE115: 127.3 | AF115: 135.0195912 | AH115: 130 | AI115: 137.5681649
C116: Shank Input Arm | D116: 15.5 | E116: 20.35902748 | J116: 17 | K116: 21.10094785 | S116: 16.2 | T116: 20.52315765 | AB116: 17 | AC116: 21.40093456 | AE116: 17.3 | AF116: 21.16908123 | AH116: 17 | AI116: 21.40093456
C117: Knuck Diameter | D117: 10.1 | J117: 9.5 | S117: 9.6 | AB117: 10 | AE117: 9.17 | AH117: 10
C118: Shank Thickness | D118: 6.2 | J118: 6 | S118: 6 | AB118: 6 | AE118: 6.06 | AH118: 6
C119: Blow Distance | D119: 45 | J119: 45 | S119: 45 | AB119: 44.9667646 | AE119: 47 | AH119: 46
C120: Let-Off | D120: 2 | J120: 2 | S120: 2 | AB120: 2 | AE120: 2 | AH120: 2
C121: Spread | D121: 112.5 | J121: 114 | S121: 112.5 | AB121: 112 | AE121: 113.7 | AH121: 113
C122: Key Length (optional) | D122: 541 | J122: 520 | S122: 515 | AB122: 482 | AE122: 482 | AH122: 485
C123: Capstan Height | D123: 38.7 | J123: 38 | S123: 38 | AB123: 38 | AE123: 38 | AH123: 38
C124: Whippen Heel Height
C125: Hammer Bore | D125: 43.8 | J125: 45 | S125: 52 | AB125: 45 | AE125: 45 | AH125: 45
C126: Aftertouch | D126: 1.25 | J126: 1.25 | S126: 1.25 | AB126: 1.25 | AE126: 1.25 | AH126: 1.25
C127: Key Ratio Front | D127: 1.916666667 | E127: 1.824151161 | J127: 1.956684093 | K127: 1.88235052 | S127: 1.894736842 | T127: 1.849617588 | AB127: 2.194444444 | AC127: 2.070046635 | AE127: 1.860465116 | AF127: 1.779668149 | AH127: 1.983050847 | AI127: 1.887587886
C128: Key Ratio Back | D128: 0.5217391304 | E128: 0.5482001828 | J128: 0.5110687023 | K128: 0.5312506834 | S128: 0.5277777778 | T128: 0.5406522984 | AB128: 0.4556962025 | AC128: 0.483080904 | AE128: 0.5375 | AF128: 0.56190251 | AH128: 0.5042735043 | AI128: 0.529776657
C129: Whip ratio | D129: 1.389473684 | E129: 1.4544 | J129: 1.395280236 | K129: 1.459247649 | S129: 1.407796102 | T129: 1.473684211 | AB129: 1.41337386 | AC129: 1.480582524 | AE129: 1.459876543 | AF129: 1.53125 | AH129: 1.420972644 | AI129: 1.488673139
C130: Shank ratio | D130: 8.322580645 | E130: 6.69152963 | J130: 7.647058824 | K130: 6.519525375 | S130: 8.024691358 | T130: 6.822258415 | AB130: 7.647058824 | AC130: 6.428138198 | AE130: 7.358381503 | AF130: 6.378150744 | AH130: 7.647058824 | AI130: 6.428138198
C131: Whip Weight | D131: 17 | J131: 17 | S131: 17 | AB131: 17 | AE131: 17 | AH131: 17
C132: DW Target | D132: 50 | J132: 50 | S132: 50 | AB132: 50 | AE132: 50 | AH132: 50
C134: MAR | D134: 6.315318934 | J134: 5.702991429 | S134: 6.241426612 | AB134: 5.159438729 | AE134: 6.056292901 | AH134: 5.740634981
C135: DAR | D135: 5.097003213 | J135: 4.832556322 | S135: 5.192613255 | AB135: 4.388965129 | AE135: 5.232049955 | AH135: 4.839090462
C136: Dip | D136: 9.686329781 | J136: 10.14798217 | S136: 9.530994152 | AB136: 11.03972567 | AE136: 9.850835311 | AH136: 10.34261779
C137: Inertia | D137: 219.6091592 | J137: 220.9434438 | S137: 226.9104198 | AB137: 216.7568983 | AE137: 213.7605722 | AH137: 215.1178406
C138: Capstan Change | D138: 0 | J138: 0 | S138: 0 | AB138: 0 | AE138: 0 | AH138: 0
D142: TOP | P142: TOP | X142: TOP | AI142: TOP
C144: Piano Name | D144: SSB David Orig | V144: Baldwin M W.T. | AH144: M&H AA JS
C145: Key Output Arm | D145: 135 | E145: 140.2462121 | V145: 114 | W145: 120.4865138 | AH145: 123 | AI145: 129.034879
C146: Key Input Arm | D146: 260 | E146: 260 | V146: 228 | W146: 228 | AH146: 231 | AI146: 231
C147: Whippen Output Arm | D147: 92.6 | E147: 91.1 | V147: 92 | W147: 90.5 | AH147: 93 | AI147: 91.5
C148: Whippen Input Arm | D148: 65.8 | E148: 61.8 | V148: 65 | W148: 61 | AH148: 63 | AI148: 59
C149: Shank Output Arm | D149: 130 | E149: 137.5681649 | V149: 130 | W149: 138.5784976 | AH149: 127 | AI149: 135.7681848
C150: Shank Input Arm | D150: 17 | E150: 21.58448517 | V150: 17 | W150: 21.23500942 | AH150: 17.75 | AI150: 22.10527369
C151: Knuck Diameter | D151: 10 | V151: 9.4 | AH151: 10
C152: Shank Thickness | D152: 6.6 | V152: 6.65 | AH152: 6.35
C153: Blow Distance | D153: 45 | V153: 47.6 | AH153: 47.83004537
C154: Let-Off | D154: 2 | V154: 1.6 | AH154: 1.6
C155: Spread | D155: 111.5 | V155: 112.75 | AH155: 114
C156: Key Length (optional) | D156: 515 | V156: 515 | AH156: 482
C157: Capstan Height | D157: 38 | V157: 39 | AH157: 39
C159: Hammer Bore | D159: 45 | V159: 48 | AH159: 48
C160: Aftertouch | D160: 1.25 | V160: 1.25 | AH160: 1.25
C161: Key Ratio Front | D161: 1.925925926 | E161: 1.853882512 | V161: 2 | W161: 1.89232797 | AH161: 1.87804878 | AI161: 1.790213637
C162: Key Ratio Back | D162: 0.5192307692 | E162: 0.539408508 | V162: 0.5 | W162: 0.5284496218 | AH162: 0.5324675325 | AI162: 0.5585925498
C163: Whip ratio | D163: 1.407294833 | E163: 1.474110032 | V163: 1.415384615 | W163: 1.483606557 | AH163: 1.476190476 | AI163: 1.550847458
C164: Shank ratio | D164: 7.647058824 | E164: 6.373474458 | V164: 7.647058824 | W164: 6.525944721 | AH164: 7.154929577 | AI164: 6.141891147
C165: Whip Weight | D165: 17 | V165: 17 | AH165: 17
C166: DW Target | D166: 50 | V166: 50 | AH166: 50
C168: MAR | D168: 5.853083952 | V168: 5.672613308 | AH168: 5.908368547
C169: DAR | D169: 4.83814784 | V169: 4.88114212 | AH169: 5.064535892
C170: Dip | D170: 10.13769865 | V170: 10.6740239 | AH170: 10.3781899
C171: Inertia | D171: 219.9560832 | V171: 217.3885505 | AH171: 213.8003142
C172: Capstan Change | D172: 0 | V172: 0 | AH172: 0
D176: TOP | P176: TOP | AI176: TOP
C178: Piano Name | J178: M. I. | K178: modified | M178: M. I. | P178: SSL 367,119
C179: Key Output Arm | J179: 114 | K179: 120.4865138 | M179: 115 | N179: 121.4331092 | P179: 113 | Q179: 121.2424167
C180: Key Input Arm | J180: 250 | K180: 250 | M180: 250 | N180: 250 | P180: 239 | Q180: 239
C181: Whippen Output Arm | J181: 93.35 | K181: 93.35 | M181: 94.15 | N181: 92.65 | P181: 93 | Q181: 91.5
C182: Whippen Input Arm | J182: 58 | K182: 58 | M182: 57 | N182: 53 | P182: 64 | Q182: 60
C183: Shank Output Arm | J183: 130 | K183: 140.014285 | M183: 130 | N183: 140.014285 | P183: 130 | Q183: 138.5784976
C184: Shank Input Arm | J184: 17 | K184: 21.40093456 | M184: 16.2 | N184: 20.77113382 | P184: 16 | Q184: 20.61552813
C185: Knuck Diameter | J185: 10 | M185: 10 | P185: 10
C186: Shank Thickness | J186: 6 | M186: 6 | P186: 6
C187: Blow Distance | J187: 47 | M187: 47 | P187: 44.5
C188: Let-Off | J188: 2 | M188: 2 | P188: 2
C189: Spread | J189: 113.5 | M189: 113.5 | P189: 112
C190: Key Length (optional) | J190: 515 | M190: 515 | P190: 492
C191: Capstan Height | J191: 39 | M191: 39 | P191: 43.94
C193: Hammer Bore | J193: 52 | M193: 52 | P193: 48
C194: Aftertouch | J194: 1.25 | M194: 1.25 | P194: 1.25
C195: Key Ratio Front | J195: 2.192982456 | K195: 2.07492102 | M195: 2.173913043 | N195: 2.058746595 | P195: 2.115044248 | Q195: 1.971257309
C196: Key Ratio Back | J196: 0.456 | K196: 0.4819460551 | M196: 0.46 | N196: 0.4857324366 | P196: 0.4728033473 | Q196: 0.5072904463
C197: Whip ratio | J197: 1.545103448 | K197: 1.609482759 | M197: 1.651754386 | N197: 1.748113208 | P197: 1.453125 | Q197: 1.525
C198: Shank ratio | J198: 7.647058824 | K198: 6.542437883 | M198: 8.024691358 | N198: 6.740810888 | P198: 8.125 | Q198: 6.722044507
C199: Whip Weight | J199: 17 | M199: 17 | P199: 17
C200: DW Target | J200: 50 | M200: 50 | P200: 50
C202: MAR | J202: 5.387866613 | M202: 6.452911717 | P202: 5.858328975
C203: DAR | J203: 5.074863511 | M203: 5.408224585 | P203: 4.95519833
C204: Dip | J204: 10.11723355 | M204: 9.570660374 | P204: 9.826851454
C205: Inertia | J205: 150.9358654 | M205: 221.0032368 | P205: 217.2267814
C206: Capstan Change | J206: -1 | M206: 0 | P206: 0
C212: Stuff below is interesting, but you don't need to use it.
B215: Number | D215: TOP | P215: TOP | Y215: TOP | AD215: TOP
C217: MEASURE WHIPPEN HEEL HEIGHT --- ONE SIMPLE MEASUREMENT
E220: =C239 -> 
D223: 61
D224: 130
E226: =C240 -> 
C238: =#REF! ->  | D238: Whippen Heel Height here
C239: =#REF! ->  | D239: is carried in from Main Form
C240: =SQRT(C238^2 + C239^2) ->  | D240: is Whippen Input Distance Radial Arm
C245: MEASURE CAPSTAN-KEY HEIGHT --- ONE SIMPLE MEASUREMENT
L246: `
G253: =C266 -> 
D254: =C264 -> 
G259: =C265 -> 
C264: =#REF! ->  | D264: Height of Capstan Screw
C265: =#REF! ->  | D265: is carried in from Main Form
C266: =SQRT(C264^2 + C265^2) ->  | D266: is Key Out Distance Radial Arm
C270: MEASURE HAMMER BORE --- ONE SIMPLE MEASUREMENT
D281: =C297 ->  | H281: =C305 -> 
I292: =C298 -> 
C297: =#REF! ->  | D297: Hammer Bore Dimension
C298: =#REF! ->  | D298: is carried in from Main Form
C299: =SQRT(C297^2 + C298^2) ->  | D299: is Key Out Distance Radial Arm
C301: =C266 -> 
C302: ='Simple AR Calculator'!C8 -> 245
C303: ='Simple AR Calculator'!E9 -> 93.23972951
C304: =C240 -> 
... 1 more rows

Sheet Compare
B1: Click for Instructions for this Page
B3: ='Simple AR Calculator'!C6 -> SSA ca 1916 | H3: Read Why You Are Here --->>>
L4: ='Simple AR Calculator'!H7 -> 5.906299432
B5: Piano Size | C5: = Large Grands to Medium Large | G5: =((H5/F6)-1) *100 -> 7.95310936 | H5: ='Simple AR Calculator'!H8 -> 5.305124231 | I5: Comp. Action Ratio per your measurements | S5: =H9 -> 9.355370982 | T5: mm
A6: ='Simple AR Calculator'!C16 -> 2 | B6: Nominal Action Ratio per Mfg. Specs | F6: =(F8-A6)/(F9-A7) -> 4.914285714 | G6: =((H6/F6)-1) *100 -> 7.95310936 | H6: ='Simple AR Calculator'!H9 -> 5.305124231 | I6: AR per Comp. Blow and Comp. Dip below
A7: ='Simple AR Calculator'!C22 -> 1.25 | B7: This is what you want | I7: This is what you have
A8: ='Simple AR Calculator'!F47 -> 8.482364981 | B8: Blow Distance per Mfg. spec | E8: =F8/25.4 -> 1.771653543 | F8: =Archives!D13 -> 45 | G8: ` | H8: =M8 -> 48.41983702 | I8: Computed Total Blow Distance | M8: =DipCalc!H16 -> 48.41983702 | P8: =H12 -> 15.5
A9: =F9-A7 -> 8.75 | B9: Dip -- target dip you prefer | E9: =F9/25.4 -> 0.3937007874 | F9: 10 | H9: ='Simple AR Calculator'!H47 -> 9.355370982 | I9: Total dip req'd to meet Mfg. Blow spec.
A10: ='Simple AR Calculator'!C7 -> 126 | B10: Piano Size | C10: 0.93 | H10: =DipCalc!G13 -> 43
A11: ='Simple AR Calculator'!C8 -> 245 | B11: Enter a trial knuckle dimension change >> | H11: The items under consideration are below.
A12: ='Simple AR Calculator'!D25 -> 1.426356589 | H12: ='Simple AR Calculator'!C12 -> 15.5 | I12: Knuckle dimension mm | O12: MOVE CAPSTAN
A13: ='Simple AR Calculator'!D26 -> 6.908700219 | B13: Enter capstan change trial >> | E13: =(F8-M8) - 0.3 -> -3.719837025 | G13: =IF(E13<>E29,E29,E13) -> -2.262626263 | H13: ='Simple AR Calculator'!C23 -> 1.944444444 | I13: Key Ratio | K13: =1/H13 -> 0.5142857143 | O13: <<plus<< | P13: =F13 -> 0 | Q13: >>minus>>
H14: ='Key Leads'!I185 -> 8.177318855 | I14: Hammer weight grams @ note C40
F15: Hammers Page | H15: =Archives!D15 -> 111 | I15: Action Spread
B16: Try a 2 to 1 Key Ratio | F16: Archives
N19: Archives
B20: Comp_Res
N22: THEORETICAL MAXIMUM HAMMER WEIGHTS FOR THIS ACTION
N23: Note # to Hammer Weight Summary for Action | S23: =B3 -> SSA ca 1916
B24: WRW -> | C24: 17 | E24: ='What If...'!G66 -> 123.6666667 | F24: if 2 to 1 | K24: DW C40 | L24: ='Key Leads'!F189 -> 50 | N24: Note -->> | O24: A 1 | P24: E 20 | Q24: A# 26 | R24: B 27 | S24: C 40 | T24: A 49 | U24: A 61 | V24: C 88 | W24: Inert. Avg
E25: =Archives!D5 -> 126 | F25: original | N25: Ham gms | O25: ='Key Leads'!D140 -> 10.46453781 | P25: ='Key Leads'!E140 -> 9.523677957 | Q25: ='Key Leads'!F140 -> 9.070941006 | R25: ='Key Leads'!G140 -> 9.023703306 | S25: ='Key Leads'!H140 -> 8.177318855 | T25: ='Key Leads'!I140 -> 7.441155704 | U25: ='Key Leads'!J140 -> 6.390074554 | V25: ='Key Leads'!K140 -> 3.528214908 | W25: ='Key Leads'!L140 -> 152.9415677
E26: ='What If...'!H19 -> 126 | F26: your final
H27: ='What If...'!K66 -> 247.3333333 | I27: if 2 to 1
E28: =H29/1.98 -> 123.7373737 | H28: =Archives!D6 -> 245 | I28: original
E29: =E28-E26 -> -2.262626263 | H29: ='Simple AR Calculator'!D8 -> 245 | I29: your final
O31: Changes (if any) made here on the Compare Page | R31: Original Input Data from the Archives Page
O34: MAR | P34: DAR | R34: MAR | S34: DAR
O35: =B3 -> SSA ca 1916 | R35: =O35 -> SSA ca 1916 | Y35: =O35 -> SSA ca 1916
N36: ='Simple AR Calculator'!B7 -> Key Out | O36: ='Simple AR Calculator'!C7 -> 126 | P36: ='Simple AR Calculator'!D7 -> 131.8976876 | R36: =Archives!D5 -> 126 | S36: =Archives!E5 -> 131.8976876 | Y36: 126 | Z36: =P36 -> 131.8976876
N37: ='Simple AR Calculator'!B8 -> Key In | O37: ='Simple AR Calculator'!C8 -> 245 | P37: ='Simple AR Calculator'!D8 -> 245 | R37: =Archives!D6 -> 245 | S37: =Archives!E6 -> 245 | Y37: 245 | Z37: 245
N38: ='Simple AR Calculator'!B9 -> Whip_out | O38: ='Simple AR Calculator'!C9 -> 92 | P38: ='Simple AR Calculator'!D9 -> 92 | R38: =Archives!D7 -> 92 | S38: =Archives!E7 -> 92 | Y38: 92 | Z38: 92
N39: ='Simple AR Calculator'!B10 -> Whip_in | O39: ='Simple AR Calculator'!C10 -> 64.5 | P39: ='Simple AR Calculator'!D10 -> 64.5 | R39: =Archives!D8 -> 64.5 | S39: =Archives!E8 -> 64.5 | Y39: 64.5 | Z39: 64.5
N40: ='Simple AR Calculator'!B11 -> Shank_out | O40: ='Simple AR Calculator'!C11 -> 130 | P40: ='Simple AR Calculator'!D11 -> 137.5681649 | R40: =Archives!D9 -> 130 | S40: =Archives!E9 -> 137.5681649 | Y40: 130 | Z40: 137.5681649
N41: ='Simple AR Calculator'!B12 -> Shank_Input | O41: ='Simple AR Calculator'!C12 -> 15.5 | P41: ='Simple AR Calculator'!K13 -> 19.91230775 | R41: =Archives!D10 -> 15.5 | Y41: 15.5 | Z41: 19.91230775
N42: Knuckle Dia. | O42: ='Simple AR Calculator'!C13 -> 9.5 | R42: =Archives!D11 -> 9.5 | Y42: 9.5
N43: Shank Thk. | O43: ='Simple AR Calculator'!C14 -> 6 | P43: modified 10/31/18 | R43: =Archives!D12 -> 6 | Y43: 6
N44: Blow Dist. | O44: ='Simple AR Calculator'!C15 -> 45 | R44: =Archives!D13 -> 45 | Y44: 45
N45: ='Simple AR Calculator'!B16 -> Let-Off | O45: ='Simple AR Calculator'!C16 -> 2 | R45: =Archives!D14 -> 2 | Y45: 2
N46: ='Simple AR Calculator'!B17 -> Spread | O46: ='Simple AR Calculator'!C17 -> 111 | R46: =Archives!D15 -> 111 | Y46: 111
N47: Key Length | O47: ='Simple AR Calculator'!C18 -> 500 | R47: =Archives!D16 -> 500 | Y47: 500
N48: Capstan Hl. | O48: ='Simple AR Calculator'!C19 -> 39 | R48: =Archives!D17 -> 39 | Y48: 39
O49: ='Simple AR Calculator'!C20 ->  | R49: =Archives!D18 -> 
N50: Ham Bore | O50: ='Simple AR Calculator'!C21 -> 45 | R50: =Archives!D19 -> 45 | Y50: 45
N51: ='Simple AR Calculator'!B22 -> Aftertouch | O51: ='Simple AR Calculator'!C22 -> 1.25 | R51: =Archives!D20 -> 1.25 | Y51: 1.25
N52: Key Ro Fr. | O52: ='Simple AR Calculator'!C23 -> 1.944444444 | P52: ='Simple AR Calculator'!D23 -> 1.857500343 | R52: =Archives!D21 -> 0 | S52: =Archives!E21 -> 0 | Y52: =O52 -> 1.944444444 | Z52: 1.857500343
N53: Key Ro Bk. | O53: ='Simple AR Calculator'!C24 -> 0.5142857143 | P53: ='Simple AR Calculator'!D24 -> 0.5383579087 | R53: =Archives!D22 -> 0 | S53: =Archives!E22 -> 0 | Y53: 0.5142857143 | Z53: 0.5383579087
N54: ='Simple AR Calculator'!B25 -> Whip ratio | O54: ='Simple AR Calculator'!C25 -> 1.369302326 | P54: ='Simple AR Calculator'!D25 -> 1.426356589 | R54: =Archives!D23 -> 0 | S54: =Archives!E23 -> 0 | Y54: 1.369302326 | Z54: 1.426356589
N55: ='Simple AR Calculator'!B26 -> Shank ratio | O55: ='Simple AR Calculator'!C26 -> 8.387096774 | P55: ='Simple AR Calculator'!D26 -> 6.908700219 | R55: =Archives!D24 -> 0 | S55: =Archives!E24 -> 0 | Y55: 8.387096774 | Z55: 6.908700219
N56: Whip Wt. | O56: ='Simple AR Calculator'!C27 -> 17 | R56: =C24 -> 17 | Y56: =O56 -> 17
N57: DW Target | O57: ='Simple AR Calculator'!C28 -> 50 | R57: ='Simple AR Calculator'!F7 -> 50 | Y57: =O57 -> 50
N59: MAR = | O59: ='Simple AR Calculator'!C30 -> 5.906299432 | R59: =Archives!D28 -> 0 | Y59: =O59 -> 5.906299432
N60: DAR = | O60: ='Simple AR Calculator'!C31 -> 5.305124231 | R60: ='Simple AR Calculator'!H8 -> 5.305124231 | Y60: =O60 -> 5.305124231
N61: Dip = | O61: ='Simple AR Calculator'!C32 -> 9.355370982 | R61: =Archives!D30 -> 0 | Y61: =O61 -> 9.355370982
N62: Inertia = | O62: ='Simple AR Calculator'!C33 -> 138.8124257 | R62: =Archives!D31 -> 0 | Y62: =O62 -> 138.8124257
N63: Capstan Chg | O63: ='Simple AR Calculator'!C34 -> 0 | R63: =Archives!D33 -> 0 | Y63: =O63 -> 0
B98: 320
C142: 0.93

Sheet Hammers
A1: ='Simple AR Calculator'!C24 -> 0.5142857143
A2: ='Simple AR Calculator'!C25 -> 1.369302326 | E2: =E6+1.5 -> 11.3 | V2: DRAG CURSOR TO COPY ANY COLUMN (don't include heading text), PASTE DATA TO LEFT IN EITHER THE MY WEIGHTS OR ORGINAL WEIGHTS COLUMNS
A3: ='Simple AR Calculator'!C26 -> 8.387096774
A4: ='Simple AR Calculator'!F6 -> 17 | C4: ='Simple AR Calculator'!C6:D6 -> SSA ca 1916 | G4: Back to Compare Page | X4: Go to My Weights | AH4: Go to My Weights
A5: ='Key Leads'!P75 -> 38 | B5: My FWs | C5: Note | D5: Ham Wts | E5: My Wts. | F5: Orig. Wts. | T5: Back to Calc Page | V5: RENNER HAMMERS TRENDLINE CURVES | AB5: NY SSB Trendline | AC5: Renner AB BP Actual Weights | AD5: NY SSB Trendline Original | AE5: Renner SMOL BP Actual Weights | AF5: Ren G5-PBP Mdl D tapered no T-Pins | AG5: Jason SSO Act Trendline | AI5: Renner SMLO Blue Points | AJ5: AB Blue Points | AM5: NY S&S D smooth Trendline | AV5: f(x)=-(4.690744*10^(-4))*x^2-0.0256072*x+9.8644805
B6: =(((E6+1.5)*$A$3*$A$2)+$A$4)*$A$1-$A$5 -> 37.48404072 | C6: A 1 | D6: ='Key Leads'!I146 -> 10.46453781 | E6: 9.8 | F6: 7.7 | V6: SMOL BP | W6: AB BP | X6: D PB | Y6: G4L Std | Z6: G4L Full | AA6: G4L Std | AK6: Mdl. D Blue Points | AL6: NY S&S D per samples | AN6: NY S&S D full side taper | AO6: NY SSD full taper to note 30 | AP6: SSB new from factory | AQ6: SSL new Abels | AR6: SSB 185644 Original | AS6: Abel GA - S5 | AT6: Ren G4L Mdl D stnd taper 8 mm tail
B7: =(((E7+1.5)*$A$3*$A$2)+$A$4)*$A$1-$A$5 -> 35.71215089 | C7: A# 2 | D7: ='Key Leads'!I147 -> 10.43304601 | E7: 9.5 | V7: Trendline | W7: Trendline | X7: Trendline | Y7: 8mm tpr | Z7: Side tpr | AA7: 8mm tpr | AV7: x f(x)
B8: 33.94026107 | C8: B 3 | D8: ='Key Leads'!I148 -> 10.38580831 | E8: 9.2 | U8: Note | Y8: Trendline | Z8: Trendline | AA8: Trendline2 | AH8: Note
B9: 33.34963112 | C9: C 4 | D9: ='Key Leads'!I149 -> 10.35431651 | E9: 9.1 | U9: A 1 | V9: 9.2923 | W9: 9.2289002 | X9: 10.416005 | Y9: 11.1421995 | Z9: 9.7015881 | AA9: 10.9861003 | AB9: 9.527441687 | AC9: 9.8 | AD9: 8.927441687 | AE9: 9.1 | AF9: 10.5 | AG9: 8.6626314 | AH9: A 1 | AI9: 9.1 | AJ9: 9.8 | AK9: 10.5 | AL9: 12.08 | AM9: 12.0751883 | AN9: =AM9-1 -> 11.0751883 | AO9: 11.45772852 | AP9: 9.8 | AQ9: 9.74 | AR9: 7.4874991 | AS9: 9.8384042 | AT9: 10.8
B10: 33.34963112 | C10: C# 5 | D10: ='Key Leads'!I150 -> 10.30707881 | E10: 9.1 | U10: A# 2 | V10: 9.2457 | W10: 9.2115016 | X10: 10.42724 | Y10: 11.083996 | Z10: 9.6654009 | AA10: 10.9366024 | AB10: 9.482263027 | AC10: 9.5 | AD10: 8.882263027 | AE10: 9 | AF10: 10.5 | AG10: 8.6492824 | AH10: A# 2 | AI10: 9 | AJ10: 9.5 | AK10: 10.5 | AL10: 11.9 | AM10: 12.0047651 | AN10: =AM10-1 -> 11.0047651 | AO10: 11.42220078 | AP10: 10.1 | AQ10: 9.7 | AR10: 7.4554473 | AS10: 9.8113898 | AT10: 11.1
B11: 33.34963112 | C11: D 6 | D11: ='Key Leads'!I151 -> 10.27558701 | E11: 9.1 | U11: B 3 | V11: 9.1987 | W11: 9.1931054 | X11: 10.435735 | Y11: 11.0253865 | Z11: 9.6284161 | AA11: 10.8865081 | AB11: 9.452143921 | AC11: 9.2 | AD11: 8.852143921 | AE11: 8.8 | AF11: 10.6 | AG11: 8.6348154 | AH11: B 3 | AI11: 8.8 | AJ11: 9.2 | AK11: 10.6 | AL11: 11.8 | AM11: 11.9336225 | AN11: 10.9336225 | AO11: 11.36890918 | AP11: 10 | AQ11: 9.45 | AR11: 7.4228093 | AS11: 9.7834372 | AT11: 10.6
B12: 32.16837124 | C12: D# 7 | D12: ='Key Leads'!I152 -> 10.22834931 | E12: 8.9 | U12: C 4 | V12: 9.1513 | W12: 9.1737128 | X12: 10.44152 | Y12: 10.966368 | Z12: 9.5906413 | AA12: 10.8358192 | AB12: 9.406965261 | AC12: 9.1 | AD12: 8.806965261 | AE12: 8.8 | AF12: 10.7 | AG12: 8.6192303 | AH12: C 4 | AI12: 8.8 | AJ12: 9.1 | AK12: 10.7 | AL12: 11.7 | AM12: 11.8617605 | AN12: 10.8617605 | AO12: 11.33338144 | AP12: 10.1 | AQ12: 9.47 | AR12: 7.389585 | AS12: 9.7545465 | AT12: 10.8 | AV12: `
B13: 30.98711135 | C13: E 8 | D13: ='Key Leads'!I153 -> 10.18111161 | E13: 8.7 | U13: C# 5 | V13: 9.1035 | W13: 9.153325 | X13: 10.444625 | Y13: 10.9069375 | Z13: 9.5520838 | AA13: 10.7845375 | AB13: 9.376846154 | AC13: 9.1 | AD13: 8.776846154 | AE13: 8.9 | AF13: 10.6 | AG13: 8.6025273 | AH13: C# 5 | AI13: 8.9 | AJ13: 9.1 | AK13: 10.6 | AL13: 11.6 | AM13: 11.7891791 | AN13: 10.7891791 | AO13: 11.28008984 | AP13: 10.4 | AQ13: 9.28 | AR13: 7.3557744 | AS13: 9.7247176 | AT13: 10.9
B14: 30.98711135 | C14: F 9 | D14: ='Key Leads'!I154 -> 10.14961981 | E14: 8.7 | U14: D 6 | V14: 9.0553 | W14: 9.1319432 | X14: 10.44508 | Y14: 10.847092 | Z14: 9.5127513 | AA14: 10.7326648 | AB14: 9.331667494 | AC14: 9.1 | AD14: 8.731667494 | AE14: 8.8 | AF14: 10.5 | AG14: 8.5847063 | AH14: D 6 | AI14: 8.8 | AJ14: 9.1 | AK14: 10.5 | AL14: 11.55 | AM14: 11.7158782 | AN14: 10.7158782 | AO14: 11.2445621 | AP14: 10.3 | AQ14: 9.36 | AR14: 7.3213775 | AS14: 9.6939506 | AT14: 10.9
B15: 30.98711135 | C15: F# 10 | D15: ='Key Leads'!I155 -> 10.10238211 | E15: 8.7 | U15: D# 7 | V15: 9.0067 | W15: 9.1095686 | X15: 10.442915 | Y15: 10.7868285 | Z15: 9.4726511 | AA15: 10.6802029 | AB15: 9.286488834 | AC15: 8.9 | AD15: 8.686488834 | AE15: 8.7 | AF15: 10.6 | AG15: 8.5657672 | AH15: D# 7 | AI15: 8.7 | AJ15: 8.9 | AK15: 10.6 | AL15: 11.5 | AM15: 11.6418579 | AN15: 10.6418579 | AO15: 11.1912705 | AP15: 10.3 | AQ15: 9.27 | AR15: 7.2863944 | AS15: 9.6622455 | AT15: 11
B16: 31.57774129 | C16: G 11 | D16: ='Key Leads'!I156 -> 10.07089031 | E16: 8.8 | U16: E 8 | V16: 8.9577 | W16: 9.0862024 | X16: 10.43816 | Y16: 10.726144 | Z16: 9.4317908 | AA16: 10.6271536 | AB16: 9.256369727 | AC16: 8.7 | AD16: 8.656369727 | AE16: 8.8 | AF16: 10.5 | AG16: 8.5457102 | AH16: E 8 | AI16: 8.8 | AJ16: 8.7 | AK16: 10.5 | AL16: 11.45 | AM16: 11.5671182 | AN16: 10.5671182 | AO16: 11.13797889 | AP16: 10.4 | AQ16: 9.18 | AR16: 7.2508249 | AS16: 9.6296021 | AT16: 11
B17: 30.98711135 | C17: G# 12 | D17: ='Key Leads'!I157 -> 10.02365261 | E17: 8.7 | U17: F 9 | V17: 8.9083 | W17: 9.0618458 | X17: 10.430845 | Y17: 10.6650355 | Z17: 9.3901778 | AA17: 10.5735187 | AB17: 9.211191067 | AC17: 8.7 | AD17: 8.611191067 | AE17: 9 | AF17: 10.2 | AG17: 8.5245351 | AH17: F 9 | AI17: 9 | AJ17: 8.7 | AK17: 10.2 | AL17: 11.4 | AM17: 11.4916591 | AN17: 10.4916591 | AO17: 11.10245116 | AP17: 10.3 | AQ17: 9.16 | AR17: 7.2146692 | AS17: 9.5960207 | AT17: 11
B18: 34.53089101 | C18: A 13 | D18: ='Key Leads'!I158 -> 9.822850056 | E18: 9.3 | U18: F# 10 | V18: 8.8585 | W18: 9.0365 | X18: 10.421 | Y18: 10.6035 | Z18: 9.3478196 | AA18: 10.5193 | AB18: 9.18107196 | AC18: 8.7 | AD18: 8.58107196 | AE18: 9.1 | AF18: 10.5 | AG18: 8.5022421 | AH18: F# 10 | AI18: 9.1 | AJ18: 8.7 | AK18: 10.5 | AL18: 11.36 | AM18: 11.4154805 | AN18: 10.4154805 | AO18: 11.04915955 | AP18: 10.1 | AQ18: 9.06 | AR18: 7.1779271 | AS18: 9.5615011 | AT18: 11
B19: 33.34963112 | C19: A# 14 | D19: ='Key Leads'!I159 -> 9.775612357 | E19: 9.1 | U19: G 11 | V19: 8.8083 | W19: 9.0101662 | X19: 10.408655 | Y19: 10.5415345 | Z19: 9.3047238 | AA19: 10.4644993 | AB19: 9.1358933 | AC19: 8.8 | AD19: 8.5358933 | AE19: 9.3 | AF19: 10.5 | AG19: 8.478831 | AH19: G 11 | AI19: 9.3 | AJ19: 8.8 | AK19: 10.5 | AL19: 11.32 | AM19: 11.3385826 | AN19: 10.3385826 | AO19: 11.01363181 | AP19: 10.3 | AQ19: 9.06 | AR19: 7.1405988 | AS19: 9.5260433 | AT19: 11
B20: 32.16837124 | C20: B 15 | D20: ='Key Leads'!I160 -> 9.744120557 | E20: 8.9 | U20: G# 12 | V20: 8.7577 | W20: 8.9828456 | X20: 10.39384 | Y20: 10.479136 | Z20: 9.2608978 | AA20: 10.4091184 | AB20: 9.105774194 | AC20: 8.7 | AD20: 8.505774194 | AE20: 9.3 | AF20: 10.4 | AG20: 8.4543019 | AH20: G# 12 | AI20: 9.3 | AJ20: 8.7 | AK20: 10.4 | AL20: 11.28 | AM20: 11.2609651 | AN20: 10.2609651 | AO20: 10.96034021 | AP20: 10.3 | AQ20: 9.11 | AR20: 7.1026842 | AS20: 9.4896474 | AT20: 10.4
B21: 32.75900118 | C21: C 16 | D21: ='Key Leads'!I161 -> 9.696882857 | E21: 9 | U21: A 13 | V21: 8.7067 | W21: 8.9545394 | X21: 10.376585 | Y21: 10.4163015 | Z21: 9.2163491 | AA21: 10.3531591 | AB21: 9.060595533 | AC21: 9.3 | AD21: 8.460595533 | AE21: 9.2 | AF21: 10.3 | AG21: 8.4286548 | AH21: A 13 | AI21: 9.2 | AJ21: 9.3 | AK21: 10.3 | AL21: 11.23 | AM21: 11.1826283 | AN21: 10.1826283 | AO21: 10.74717379 | AP21: 10.3 | AQ21: 9.02 | AR21: 7.0641833 | AS21: 9.4523133 | AT21: 10.5
B22: 32.16837124 | C22: C# 17 | D22: ='Key Leads'!I162 -> 9.649645157 | E22: 8.9 | U22: A# 14 | V22: 8.6553 | W22: 8.9252488 | X22: 10.35692 | Y22: 10.353028 | Z22: 9.1710851 | AA22: 10.2966232 | AB22: 9.030476427 | AC22: 9.1 | AD22: 8.430476427 | AE22: 9.1 | AF22: 10.1 | AG22: 8.4018897 | AH22: A# 14 | AI22: 9.1 | AJ22: 9.1 | AK22: 10.1 | AL22: 11.18 | AM22: 11.1035721 | AN22: 10.1035721 | AO22: 10.69388219 | AP22: 10.1 | AQ22: 8.85 | AR22: 7.0250961 | AS22: 9.4140411 | AT22: 10.4
B23: 31.57774129 | C23: D 18 | D23: ='Key Leads'!I163 -> 9.618153357 | E23: 8.8 | U23: B 15 | V23: 8.6035 | W23: 8.894975 | X23: 10.334875 | Y23: 10.2893125 | Z23: 9.1251135 | AA23: 10.2395125 | AB23: 8.985297767 | AC23: 8.9 | AD23: 8.385297767 | AE23: 9.2 | AF23: 10 | AG23: 8.3740066 | AH23: B 15 | AI23: 9.2 | AJ23: 8.9 | AK23: 10 | AL23: 11.13 | AM23: 11.0237964 | AN23: 10.0237964 | AO23: 10.65835445 | AP23: 9.9 | AQ23: 9.1 | AR23: 6.9854227 | AS23: 9.3748308 | AT23: 10.4
B24: 30.98711135 | C24: D# 19 | D24: ='Key Leads'!I164 -> 9.570915657 | E24: 8.7 | U24: C 16 | V24: 8.5513 | W24: 8.8637192 | X24: 10.31048 | Y24: 10.225152 | Z24: 9.0784416 | AA24: 10.1818288 | AB24: 8.940119107 | AC24: 9 | AD24: 8.340119107 | AE24: 9.1 | AF24: 9.8 | AG24: 8.3450055 | AH24: C 16 | AI24: 9.1 | AJ24: 9 | AK24: 9.8 | AL24: 11.08 | AM24: 10.9433013 | AN24: 9.9433013 | AO24: 10.60506284 | AP24: 10 | AQ24: 8.91 | AR24: 6.9451629 | AS24: 9.3346823 | AT24: 10.4
B25: 30.98711135 | C25: E 20 | D25: ='Key Leads'!I165 -> 9.523677957 | E25: 8.7 | F25: 6.7 | U25: C# 17 | V25: 8.4987 | W25: 8.8314826 | X25: 10.283765 | Y25: 10.1605435 | Z25: 9.0310769 | AA25: 10.1235739 | AB25: 8.91 | AC25: 8.9 | AD25: 8.31 | AE25: 8.8 | AF25: 9.9 | AG25: 8.3148864 | AH25: C# 17 | AI25: 8.8 | AJ25: 8.9 | AK25: 9.9 | AL25: 11.02 | AM25: 10.8620868 | AN25: 9.8620868 | AO25: 10.55177124 | AP25: 9.9 | AQ25: 9.04 | AR25: 6.9043169 | AS25: 9.2935956 | AT25: 10.2
B26: 30.98711135 | C26: F 21 | D26: ='Key Leads'!I166 -> 9.476440257 | E26: 8.7 | F26: 6.5 | U26: D 18 | V26: 8.4457 | W26: 8.7982664 | X26: 10.25476 | Y26: 10.095484 | Z26: 8.9830269 | AA26: 10.0647496 | AB26: 8.86482134 | AC26: 8.8 | AD26: 8.26482134 | AE26: 8.8 | AF26: 10.1 | AG26: 8.2836493 | AH26: D 18 | AI26: 8.8 | AJ26: 8.8 | AK26: 10.1 | AL26: 10.95 | AM26: 10.7801528 | AN26: 9.7801528 | AO26: 10.5162435 | AP26: 9.7 | AQ26: 8.66 | AR26: 6.8628845 | AS26: 9.2515708 | AT26: 10.2
B27: 30.39648141 | C27: F# 22 | D27: ='Key Leads'!I167 -> 9.429202557 | E27: 8.6 | U27: D# 19 | V27: 8.3923 | W27: 8.7640718 | X27: 10.223495 | Y27: 10.0299705 | Z27: 8.9342992 | AA27: 10.0053577 | AB27: 8.81964268 | AC27: 8.7 | AD27: 8.21964268 | AE27: 8.5 | AF27: 9.9 | AG27: 8.2512942 | AH27: D# 19 | AI27: 8.5 | AJ27: 8.7 | AK27: 9.9 | AL27: 10.88 | AM27: 10.6974994 | AN27: 9.6974994 | AO27: 10.4629519 | AP27: 9.8 | AQ27: 8.44 | AR27: 6.8208659 | AS27: 9.2086078 | AT27: 10
B28: 31.57774129 | C28: G 23 | D28: ='Key Leads'!I168 -> 9.381964858 | E28: 8.8 | U28: E 20 | V28: 8.3385 | W28: 8.7289 | X28: 10.19 | Y28: 9.964 | Z28: 8.8849012 | AA28: 9.9454 | AB28: 8.77446402 | AC28: 8.7 | AD28: 8.17446402 | AE28: 8.3 | AF28: 9.9 | AG28: 8.217821 | AH28: E 20 | AI28: 8.3 | AJ28: 8.7 | AK28: 9.9 | AL28: 10.81 | AM28: 10.6141266 | AN28: 9.6141266 | AO28: 10.40966029 | AP28: 9.3 | AQ28: 8.54 | AR28: 6.778261 | AS28: 9.1647067 | AT28: 10.1
B29: 31.57774129 | C29: G# 24 | D29: ='Key Leads'!I169 -> 9.334727158 | E29: 8.8 | U29: F 21 | V29: 8.2843 | W29: 8.6927522 | X29: 10.154305 | Y29: 9.8975695 | Z29: 8.8348404 | AA29: 9.8848783 | AB29: 8.72928536 | AC29: 8.7 | AD29: 8.12928536 | AE29: 8 | AF29: 9.5 | AG29: 8.1832299 | AH29: F 21 | AI29: 8 | AJ29: 8.7 | AK29: 9.5 | AL29: 10.73 | AM29: 10.5300344 | AN29: 9.5300344 | AO29: 10.35636869 | AP29: 9 | AQ29: 8.21 | AR29: 6.7350698 | AS29: 9.1198675 | AT29: 9.9
B30: 32.16837124 | C30: A 25 | D30: ='Key Leads'!I170 -> 9.118178705 | E30: 8.9 | U30: F# 22 | V30: 8.2297 | W30: 8.6556296 | X30: 10.11644 | Y30: 9.830676 | Z30: 8.7841242 | AA30: 9.8237944 | AB30: 8.6841067 | AC30: 8.6 | AD30: 8.0841067 | AE30: 7.9 | AF30: 9.6 | AG30: 8.1475207 | AH30: F# 22 | AI30: 7.9 | AJ30: 8.6 | AK30: 9.6 | AL30: 10.65 | AM30: 10.4452228 | AN30: 9.4452228 | AO30: 10.30307708 | AP30: 9.6 | AQ30: 8.28 | AR30: 6.6912923 | AS30: 9.0740901 | AT30: 9.8
B31: 31.57774129 | C31: A# 26 | D31: ='Key Leads'!I171 -> 9.070941006 | E31: 8.8 | U31: G 23 | V31: 8.1747 | W31: 8.6175334 | X31: 10.076435 | Y31: 9.7633165 | Z31: 8.7327602 | AA31: 9.7621501 | AB31: 8.63892804 | AC31: 8.8 | AD31: 8.03892804 | AE31: 7.9 | AF31: 9.5 | AG31: 8.1106936 | AH31: G 23 | AI31: 7.9 | AJ31: 8.8 | AK31: 9.5 | AL31: 10.56 | AM31: 10.3596917 | AN31: 9.3596917 | AO31: 10.24978548 | AP31: 9.3 | AQ31: 8.25 | AR31: 6.6469286 | AS31: 9.0273745 | AT31: 9.7
B32: 28.03396163 | C32: B 27 | D32: ='Key Leads'!I172 -> 9.023703306 | E32: 8.2 | U32: G# 24 | V32: 8.1193 | W32: 8.5784648 | X32: 10.03432 | Y32: 9.695488 | Z32: 8.6807559 | AA32: 9.6999472 | AB32: 8.59374938 | AC32: 8.8 | AD32: 7.99374938 | AE32: 7.9 | AF32: 9.5 | AG32: 8.0727484 | AH32: G# 24 | AI32: 7.9 | AJ32: 8.8 | AK32: 9.5 | AL32: 10.47 | AM32: 10.2734412 | AN32: 9.2734412 | AO32: 10.19649387 | AP32: 9.6 | AQ32: 8.3 | AR32: 6.6019785 | AS32: 8.9797208 | AT32: 9.5
B33: 28.03396163 | C33: C 28 | D33: ='Key Leads'!I173 -> 8.976465606 | E33: 8.2 | F33: 6.3 | U33: A 25 | V33: 8.0635 | W33: 8.538425 | X33: 9.990125 | Y33: 9.6271875 | Z33: 8.6281187 | AA33: 9.6371875 | AB33: 8.54857072 | AC33: 8.9 | AD33: 7.94857072 | AE33: 7.8 | AF33: 9.4 | AG33: 8.0336853 | AH33: A 25 | AI33: 7.8 | AJ33: 8.9 | AK33: 9.4 | AL33: 10.38 | AM33: 10.1864713 | AN33: 9.1864713 | AO33: 9.965563587 | AP33: 9.3 | AQ33: 7.99 | AR33: 6.5564422 | AS33: 8.931129 | AT33: 9.6
B34: 28.62459158 | C34: C# 29 | D34: ='Key Leads'!I174 -> 8.929227906 | E34: 8.3 | U34: A# 26 | V34: 8.0073 | W34: 8.4974152 | X34: 9.94388 | Y34: 9.558412 | Z34: 8.5748561 | AA34: 9.5738728 | AB34: 8.50339206 | AC34: 8.8 | AD34: 7.90339206 | AE34: 7.7 | AF34: 9.4 | AG34: 7.9935041 | AH34: A# 26 | AI34: 7.7 | AJ34: 8.8 | AK34: 9.4 | AL34: 10.29 | AM34: 10.0987819 | AN34: 9.0987819 | AO34: 9.912271983 | AP34: 9.5 | AQ34: 8.22 | AR34: 6.5103195 | AS34: 8.881599 | AT34: 9.1
B35: 28.03396163 | C35: D 30 | D35: ='Key Leads'!I175 -> 8.866244306 | E35: 8.2 | U35: B 27 | V35: 7.9507 | W35: 8.4554366 | X35: 9.895615 | Y35: 9.4891585 | Z35: 8.5209756 | AA35: 9.5100049 | AB35: 8.4582134 | AC35: 8.2 | AD35: 7.8582134 | AE35: 7.7 | AF35: 9.4 | AG35: 7.9522049 | AH35: B 27 | AI35: 7.7 | AJ35: 8.2 | AK35: 9.4 | AL35: 10.19 | AM35: 10.0103732 | AN35: 9.0103732 | AO35: 9.858980378 | AP35: 9.3 | AQ35: 7.99 | AR35: 6.4636106 | AS35: 8.8311309 | AT35: 9.2
B36: 28.03396163 | C36: D# 31 | D36: ='Key Leads'!I176 -> 8.819006606 | E36: 8.2 | U36: C 28 | V36: 7.8937 | W36: 8.4124904 | X36: 9.84536 | Y36: 9.419424 | Z36: 8.4664847 | AA36: 9.4455856 | AB36: 8.413034739 | AC36: 8.2 | AD36: 7.813034739 | AE36: 7.6 | AF36: 9.3 | AG36: 7.9097877 | AH36: C 28 | AI36: 7.6 | AJ36: 8.2 | AK36: 9.3 | AL36: 10.09 | AM36: 9.921245 | AN36: 8.921245 | AO36: 9.805688773 | AP36: 8.9 | AQ36: 7.8 | AR36: 6.4163154 | AS36: 8.7797246 | AT36: 9.2
B37: 26.2620718 | C37: E 32 | D37: ='Key Leads'!I177 -> 8.771768906 | E37: 7.9 | U37: C# 29 | V37: 7.8363 | W37: 8.3685778 | X37: 9.793145 | Y37: 9.3492055 | Z37: 8.4113909 | AA37: 9.3806167 | AB37: 8.352796526 | AC37: 8.3 | AD37: 7.752796526 | AE37: 7.6 | AF37: 9.3 | AG37: 7.8662525 | AH37: C# 29 | AI37: 7.6 | AJ37: 8.3 | AK37: 9.3 | AL37: 9.99 | AM37: 9.8313974 | AN37: 8.8313974 | AO37: 9.752397168 | AP37: 8.8 | AQ37: 7.97 | AR37: 6.3684339 | AS37: 8.7273801 | AT37: 9.1
B38: 25.67144186 | C38: F 33 | D38: ='Key Leads'!I178 -> 8.724531206 | E38: 7.8 | U38: D 30 | V38: 7.7785 | W38: 8.3237 | X38: 9.739 | Y38: 9.2785 | Z38: 8.3557017 | AA38: 9.3151 | AB38: 8.307617866 | AC38: 8.2 | AD38: 7.707617866 | AE38: 7.7 | AF38: 8.6 | AG38: 7.8215993 | AH38: D 30 | AI38: 7.7 | AJ38: 8.2 | AK38: 8.6 | AL38: 9.89 | AM38: 9.7408303 | AN38: 8.7408303 | AO38: 9.681341695 | AP38: 9 | AQ38: 7.8 | AR38: 6.3199661 | AS38: 8.6740975 | AT38: 9.2
B39: 26.85270175 | C39: F# 34 | D39: ='Key Leads'!I179 -> 8.677293507 | E39: 8 | U39: D# 31 | V39: 7.7203 | W39: 8.2778582 | X39: 9.682955 | Y39: 9.2073045 | Z39: 8.2994246 | AA39: 9.2490373 | AB39: 8.262439206 | AC39: 8.2 | AD39: 7.662439206 | AE39: 7.7 | AF39: 8.7 | AG39: 7.7758281 | AH39: D# 31 | AI39: 7.7 | AJ39: 8.2 | AK39: 8.7 | AL39: 9.8 | AM39: 9.6495439 | AN39: 8.6495439 | AO39: 9.6495439 | AP39: 8.8 | AQ39: 7.7 | AR39: 6.2709121 | AS39: 8.6198768 | AT39: 9.1
B40: 26.85270175 | C40: G 35 | D40: ='Key Leads'!I180 -> 8.614309907 | E40: 8 | U40: E 32 | V40: 7.6617 | W40: 8.2310536 | X40: 9.62504 | Y40: 9.135616 | Z40: 8.242567 | AA40: 9.1824304 | AB40: 8.217260546 | AC40: 7.9 | AD40: 7.617260546 | AE40: 7.6 | AF40: 8.6 | AG40: 7.7289389 | AH40: E 32 | AI40: 7.6 | AJ40: 7.9 | AK40: 8.6 | AL40: 9.7 | AM40: 9.557538 | AN40: 8.557538 | AO40: 9.557538 | AP40: 9.1 | AQ40: 7.76 | AR40: 6.2212717 | AS40: 8.5647179 | AT40: 9.3
B41: 27.44333169 | C41: G# 36 | D41: ='Key Leads'!I181 -> 8.567072207 | E41: 8.1 | U41: F 33 | V41: 7.6027 | W41: 8.1832874 | X41: 9.565285 | Y41: 9.0634315 | Z41: 8.1851364 | AA41: 9.1152811 | AB41: 8.172081886 | AC41: 7.8 | AD41: 7.572081886 | AE41: 7.6 | AF41: 8.4 | AG41: 7.6809317 | AH41: F 33 | AI41: 7.6 | AJ41: 7.8 | AK41: 8.4 | AL41: 9.6 | AM41: 9.4648127 | AN41: 8.4648127 | AO41: 9.4648127 | AP41: 8.9 | AQ41: 7.85 | AR41: 6.1710451 | AS41: 8.5086209 | AT41: 9.1
B42: 27.44333169 | C42: A 37 | D42: ='Key Leads'!I182 -> 8.334777855 | E42: 8.1 | U42: F# 34 | V42: 7.5433 | W42: 8.1345608 | X42: 9.50372 | Y42: 8.990748 | Z42: 8.1271403 | AA42: 9.0475912 | AB42: 8.111843672 | AC42: 8 | AD42: 7.511843672 | AE42: 7.6 | AF42: 8.4 | AG42: 7.6318064 | AH42: F# 34 | AI42: 7.6 | AJ42: 8 | AK42: 8.4 | AL42: 9.5 | AM42: 9.3713679 | AN42: 8.3713679 | AO42: 9.3713679 | AP42: 9.2 | AQ42: 7.76 | AR42: 6.1202321 | AS42: 8.4515857 | AT42: 8.8
B43: 26.2620718 | C43: A# 38 | D43: ='Key Leads'!I183 -> 8.287540155 | E43: 7.9 | U43: G 35 | V43: 7.4835 | W43: 8.084875 | X43: 9.440375 | Y43: 8.9175625 | Z43: 8.0685863 | AA43: 8.9793625 | AB43: 8.066665012 | AC43: 8 | AD43: 7.466665012 | AE43: 7.5 | AF43: 8.3 | AG43: 7.5815632 | AH43: G 35 | AI43: 7.5 | AJ43: 8 | AK43: 8.3 | AL43: 9.4 | AM43: 9.2772038 | AN43: 8.2772038 | AO43: 9.2772038 | AP43: 9.5 | AQ43: 7.81 | AR43: 6.0688329 | AS43: 8.3936124 | AT43: 8.8
B44: 26.2620718 | C44: B 39 | D44: ='Key Leads'!I184 -> 8.240302455 | E44: 7.9 | U44: G# 36 | V44: 7.4233 | W44: 8.0342312 | X44: 9.37528 | Y44: 8.843872 | Z44: 8.0094817 | AA44: 8.9105968 | AB44: 8.006426799 | AC44: 8.1 | AD44: 7.406426799 | AE44: 7.3 | AF44: 8.4 | AG44: 7.530202 | AH44: G# 36 | AI44: 7.3 | AJ44: 8.1 | AK44: 8.4 | AL44: 9.3 | AM44: 9.1823202 | AN44: 8.1823202 | AO44: 9.1823202 | AP44: 9.4 | AQ44: 7.6 | AR44: 6.0168474 | AS44: 8.3347009 | AT44: 8.8
B45: 25.67144186 | C45: C 40 | D45: ='Key Leads'!I185 -> 8.177318855 | E45: 7.8 | F45: 5.9 | U45: A 37 | V45: 7.3627 | W45: 7.9826306 | X45: 9.308465 | Y45: 8.7696735 | Z45: 7.9498341 | AA45: 8.8412959 | AB45: 7.961248139 | AC45: 8.1 | AD45: 7.361248139 | AE45: 7.3 | AF45: 8.4 | AG45: 7.4777227 | AH45: A 37 | AI45: 7.3 | AJ45: 8.1 | AK45: 8.4 | AL45: 9.2 | AM45: 9.0867172 | AN45: 8.0867172 | AO45: 9.0867172 | AP45: 9.4 | AQ45: 7.6 | AR45: 5.9642756 | AS45: 8.2748512 | AT45: 8.9
B46: 25.67144186 | C46: C# 41 | D46: ='Key Leads'!I186 -> 8.114335255 | E46: 7.8 | U46: A# 38 | V46: 7.3017 | W46: 7.9300744 | X46: 9.23996 | Y46: 8.694964 | Z46: 7.889651 | AA46: 8.7714616 | AB46: 7.916069479 | AC46: 7.9 | AD46: 7.316069479 | AE46: 7.3 | AF46: 8.4 | AG46: 7.4241255 | AH46: A# 38 | AI46: 7.3 | AJ46: 7.9 | AK46: 8.4 | AL46: 9.1 | AM46: 8.9903947 | AN46: 7.9903947 | AO46: 8.9903947 | AP46: 9.2 | AQ46: 7.63 | AR46: 5.9111176 | AS46: 8.2140635 | AT46: 8.5
B47: 25.67144186 | C47: D 42 | D47: ='Key Leads'!I187 -> 8.067097555 | E47: 7.8 | U47: B 39 | V47: 7.2403 | W47: 7.8765638 | X47: 9.169795 | Y47: 8.6197405 | Z47: 7.8289399 | AA47: 8.7010957 | AB47: 7.855831266 | AC47: 7.9 | AD47: 7.255831266 | AE47: 7.3 | AF47: 8.3 | AG47: 7.3694102 | AH47: B 39 | AI47: 7.3 | AJ47: 7.9 | AK47: 8.3 | AL47: 9 | AM47: 8.8933529 | AN47: 7.8933529 | AO47: 8.8933529 | AP47: 9.3 | AQ47: 7.55 | AR47: 5.8573732 | AS47: 8.1523375 | AT47: 8.4
B48: 25.08081192 | C48: D# 43 | D48: ='Key Leads'!I188 -> 8.004113956 | E48: 7.7 | U48: C 40 | V48: 7.1785 | W48: 7.8221 | X48: 9.098 | Y48: 8.544 | Z48: 7.7677081 | AA48: 8.6302 | AB48: 7.795593052 | AC48: 7.8 | AD48: 7.195593052 | AE48: 7.1 | AF48: 8.1 | AG48: 7.3135769 | AH48: C 40 | AI48: 7.1 | AJ48: 7.8 | AK48: 8.1 | AL48: 8.9 | AM48: 8.7955916 | AN48: 7.7955916 | AO48: 8.7955916 | AP48: 8.9 | AQ48: 7.39 | AR48: 5.8030425 | AS48: 8.0896735 | AT48: 8.4
B49: 24.49018197 | C49: E 44 | D49: ='Key Leads'!I189 -> 7.941130356 | E49: 7.6 | F49: 5.5 | U49: C# 41 | V49: 7.1163 | W49: 7.7666842 | X49: 9.024605 | Y49: 8.4677395 | Z49: 7.7059634 | AA49: 8.5587763 | AB49: 7.750414392 | AC49: 7.8 | AD49: 7.150414392 | AE49: 7 | AF49: 8 | AG49: 7.2566257 | AH49: C# 41 | AI49: 7 | AJ49: 7.8 | AK49: 8 | AL49: 8.8 | AM49: 8.6971109 | AN49: 7.6971109 | AO49: 8.6971109 | AP49: 8.9 | AQ49: 7.33 | AR49: 5.7481256 | AS49: 8.0260712 | AT49: 8.3
B50: 25.08081192 | C50: F 45 | D50: ='Key Leads'!I190 -> 7.878146756 | E50: 7.7 | U50: D 42 | V50: 7.0537 | W50: 7.7103176 | X50: 8.94964 | Y50: 8.390956 | Z50: 7.643713 | AA50: 8.4868264 | AB50: 7.690176179 | AC50: 7.8 | AD50: 7.090176179 | AE50: 6.8 | AF50: 7.9 | AG50: 7.1985564 | AH50: D 42 | AI50: 6.8 | AJ50: 7.8 | AK50: 7.9 | AL50: 8.7 | AM50: 8.5979108 | AN50: 7.5979108 | AO50: 8.5979108 | AP50: 8.7 | AQ50: 7.33 | AR50: 5.6926224 | AS50: 7.9615309 | AT50: 8.3
B51: 24.49018197 | C51: F# 46 | D51: ='Key Leads'!I191 -> 7.815163156 | E51: 7.6 | U51: D# 43 | V51: 6.9907 | W51: 7.6530014 | X51: 8.873135 | Y51: 8.3136465 | Z51: 7.5809645 | AA51: 8.4143521 | AB51: 7.629937965 | AC51: 7.7 | AD51: 7.029937965 | AE51: 6.9 | AF51: 7.8 | AG51: 7.1393691 | AH51: D# 43 | AI51: 6.9 | AJ51: 7.7 | AK51: 7.8 | AL51: 8.6 | AM51: 8.4979912 | AN51: 7.4979912 | AO51: 8.4979912 | AP51: 8.8 | AQ51: 7.28 | AR51: 5.6365328 | AS51: 7.8960523 | AT51: 8.3
B52: 23.89955203 | C52: G 47 | D52: ='Key Leads'!I192 -> 7.752179556 | E52: 7.5 | U52: E 44 | V52: 6.9273 | W52: 7.5947368 | X52: 8.79512 | Y52: 8.235808 | Z52: 7.5177254 | AA52: 8.3413552 | AB52: 7.569699752 | AC52: 7.6 | AD52: 6.969699752 | AE52: 6.7 | AF52: 7.7 | AG52: 7.0790638 | AH52: E 44 | AI52: 6.7 | AJ52: 7.6 | AK52: 7.7 | AL52: 8.54 | AM52: 8.3973522 | AN52: 7.3973522 | AO52: 8.3973522 | AP52: 8.5 | AQ52: 7.24 | AR52: 5.579857 | AS52: 7.8296357 | AT52: 8.3
B53: 22.71829214 | C53: G# 48 | D53: ='Key Leads'!I193 -> 7.689195956 | E53: 7.3 | U53: F 45 | V53: 6.8635 | W53: 7.535525 | X53: 8.715625 | Y53: 8.1574375 | Z53: 7.4540032 | AA53: 8.2678375 | AB53: 7.509461538 | AC53: 7.7 | AD53: 6.909461538 | AE53: 6.8 | AF53: 7.9 | AG53: 7.0176405 | AH53: F 45 | AI53: 6.8 | AJ53: 7.7 | AK53: 7.9 | AL53: 8.45 | AM53: 8.2959938 | AN53: 7.2959938 | AO53: 8.2959938 | AP53: 8.2 | AQ53: 7.52 | AR53: 5.5225949 | AS53: 7.7622808 | AT53: 8.4
B54: 22.1276622 | C54: A 49 | D54: ='Key Leads'!I194 -> 7.441155704 | E54: 7.2 | F54: 5.2 | U54: F# 46 | V54: 6.7993 | W54: 7.4753672 | X54: 8.63468 | Y54: 8.078532 | Z54: 7.3898054 | AA54: 8.1938008 | AB54: 7.449223325 | AC54: 7.6 | AD54: 6.849223325 | AE54: 6.8 | AF54: 7.7 | AG54: 6.9550992 | AH54: F# 46 | AI54: 6.8 | AJ54: 7.6 | AK54: 7.7 | AL54: 8.35 | AM54: 8.193916 | AN54: 7.193916 | AO54: 8.193916 | AP54: 8.6 | AQ54: 7.2 | AR54: 5.4647466 | AS54: 7.6939879 | AT54: 8.3
B55: 22.1276622 | C55: A# 50 | D55: ='Key Leads'!I195 -> 7.378172104 | E55: 7.2 | U55: G 47 | V55: 6.7347 | W55: 7.4142646 | X55: 8.552315 | Y55: 7.9990885 | Z55: 7.3251394 | AA55: 8.1192469 | AB55: 7.388985112 | AC55: 7.5 | AD55: 6.788985112 | AE55: 6.7 | AF55: 7.4 | AG55: 6.8914398 | AH55: G 47 | AI55: 6.7 | AJ55: 7.5 | AK55: 7.4 | AL55: 8.3 | AM55: 8.0911187 | AN55: 7.0911187 | AO55: 8.0911187 | AP55: 7.8 | AQ55: 7.57 | AR55: 5.4063119 | AS55: 7.6247568 | AT55: 8.3
B56: 22.1276622 | C56: B 51 | D56: ='Key Leads'!I196 -> 7.315188505 | E56: 7.2 | U56: G# 48 | V56: 6.6697 | W56: 7.3522184 | X56: 8.46856 | Y56: 7.919104 | Z56: 7.2600127 | AA56: 8.0441776 | AB56: 7.313687345 | AC56: 7.3 | AD56: 6.713687345 | AE56: 6.7 | AF56: 7.2 | AG56: 6.8266625 | AH56: G# 48 | AI56: 6.7 | AJ56: 7.3 | AK56: 7.2 | AL56: 8.2 | AM56: 7.9876021 | AN56: 6.9876021 | AO56: 7.9876021 | AP56: 8.1 | AQ56: 7.49 | AR56: 5.3472909 | AS56: 7.5545875 | AT56: 8.2
B57: 21.53703226 | C57: C 52 | D57: ='Key Leads'!I197 -> 7.236459005 | E57: 7.1 | U57: A 49 | V57: 6.6043 | W57: 7.2892298 | X57: 8.383445 | Y57: 7.8385755 | Z57: 7.1944328 | AA57: 7.9685947 | AB57: 7.253449132 | AC57: 7.2 | AD57: 6.653449132 | AE57: 6.7 | AF57: 7 | AG57: 6.7607672 | AH57: A 49 | AI57: 6.7 | AJ57: 7.2 | AK57: 7 | AL57: 8 | AM57: 7.883366 | AN57: 6.883366 | AO57: 7.883366 | AP57: 8.1 | AQ57: 7.38 | AR57: 5.2876837 | AS57: 7.4834801 | AT57: 8.2
B58: 20.94640231 | C58: C# 53 | D58: ='Key Leads'!I198 -> 7.173475405 | E58: 7 | U58: A# 50 | V58: 6.5385 | W58: 7.2253 | X58: 8.297 | Y58: 7.7575 | Z58: 7.1284073 | AA58: 7.8925 | AB58: 7.193210918 | AC58: 7.2 | AD58: 6.593210918 | AE58: 6.5 | AF58: 6.9 | AG58: 6.6937539 | AH58: A# 50 | AI58: 6.5 | AJ58: 7.2 | AK58: 6.9 | AL58: 7.9 | AM58: 7.7784104 | AN58: 6.7784104 | AO58: 7.7784104 | AP58: 8 | AQ58: 7.08 | AR58: 5.2274902 | AS58: 7.4114345 | AT58: 8.1
B59: 20.35577237 | C59: D 54 | D59: ='Key Leads'!I199 -> 7.094745905 | E59: 6.9 | U59: B 51 | V59: 6.4723 | W59: 7.1604302 | X59: 8.209255 | Y59: 7.6758745 | Z59: 7.0619436 | AA59: 7.8158953 | AB59: 7.117913151 | AC59: 7.2 | AD59: 6.517913151 | AE59: 6.5 | AF59: 6.6 | AG59: 6.6256225 | AH59: B 51 | AI59: 6.5 | AJ59: 7.2 | AK59: 6.6 | AL59: 7.8 | AM59: 7.6727355 | AN59: 6.6727355 | AO59: 7.6727355 | AP59: 8 | AQ59: 7.33 | AR59: 5.1667104 | AS59: 7.3384508 | AT59: 7.8
B60: 20.35577237 | C60: D# 55 | D60: ='Key Leads'!I200 -> 7.031762305 | E60: 6.9 | U60: C 52 | V60: 6.4057 | W60: 7.0946216 | X60: 8.12024 | Y60: 7.593696 | Z60: 6.9950491 | AA60: 7.7387824 | AB60: 7.057674938 | AC60: 7.1 | AD60: 6.457674938 | AE60: 6.5 | AF60: 6.6 | AG60: 6.5563732 | AH60: C 52 | AI60: 6.5 | AJ60: 7.1 | AK60: 6.6 | AL60: 7.7 | AM60: 7.5663411 | AN60: 6.5663411 | AO60: 7.5663411 | AP60: 7.8 | AQ60: 7.56 | AR60: 5.1053443 | AS60: 7.2645289 | AT60: 7.6
B61: 18.58388254 | C61: E 56 | D61: ='Key Leads'!I201 -> 6.953032805 | E61: 6.6 | U61: C# 53 | V61: 6.3387 | W61: 7.0278754 | X61: 8.029985 | Y61: 7.5109615 | Z61: 6.9277314 | AA61: 7.6611631 | AB61: 6.982377171 | AC61: 7 | AD61: 6.382377171 | AE61: 6.5 | AF61: 6.7 | AG61: 6.4860058 | AH61: C# 53 | AI61: 6.5 | AJ61: 7 | AK61: 6.7 | AL61: 7.6 | AM61: 7.4592273 | AN61: 6.4592273 | AO61: 7.4592273 | AP61: 7.3 | AQ61: 7.31 | AR61: 5.0433919 | AS61: 7.1896689 | AT61: 7.6
B62: 17.9932526 | C62: F 57 | D62: ='Key Leads'!I202 -> 6.874303306 | E62: 6.5 | U62: D 54 | V62: 6.2713 | W62: 6.9601928 | X62: 7.93852 | Y62: 7.427668 | Z62: 6.859998 | AA62: 7.5830392 | AB62: 6.922138958 | AC62: 6.9 | AD62: 6.322138958 | AE62: 6.2 | AF62: 6.3 | AG62: 6.4145204 | AH62: D 54 | AI62: 6.2 | AJ62: 6.9 | AK62: 6.3 | AL62: 7.5 | AM62: 7.3513941 | AN62: 6.3513941 | AO62: 7.3513941 | AP62: 7.6 | AQ62: 7.06 | AR62: 4.9808532 | AS62: 7.1138707 | AT62: 7.6
B63: 17.40262266 | C63: F# 58 | D63: ='Key Leads'!I203 -> 6.795573806 | E63: 6.4 | U63: D# 55 | V63: 6.2035 | W63: 6.891575 | X63: 7.845875 | Y63: 7.3438125 | Z63: 6.7918563 | AA63: 7.5044125 | AB63: 6.846841191 | AC63: 6.9 | AD63: 6.246841191 | AE63: 6.1 | AF63: 6.2 | AG63: 6.3419171 | AH63: D# 55 | AI63: 6.1 | AJ63: 6.9 | AK63: 6.2 | AL63: 7.4 | AM63: 7.2428414 | AN63: 6.2428414 | AO63: 7.2428414 | AP63: 7.6 | AQ63: 7.06 | AR63: 4.9177282 | AS63: 7.0371344 | AT63: 7.6
B64: 16.81199271 | C64: G 59 | D64: ='Key Leads'!I204 -> 6.716844306 | E64: 6.3 | U64: E 56 | V64: 6.1353 | W64: 6.8220232 | X64: 7.75208 | Y64: 7.259392 | Z64: 6.7233139 | AA64: 7.4252848 | AB64: 6.771543424 | AC64: 6.6 | AD64: 6.171543424 | AE64: 6 | AF64: 5.9 | AG64: 6.2681957 | AH64: E 56 | AI64: 6 | AJ64: 6.6 | AK64: 5.9 | AL64: 7.2 | AM64: 7.1335694 | AN64: 6.1335694 | AO64: 7.1335694 | AP64: 7.2 | AQ64: 7.04 | AR64: 4.854017 | AS64: 6.95946 | AT64: 7.6
B65: 17.9932526 | C65: G# 60 | D65: ='Key Leads'!I205 -> 6.638114806 | E65: 6.5 | U65: F 57 | V65: 6.0667 | W65: 6.7515386 | X65: 7.657165 | Y65: 7.1744035 | Z65: 6.6543781 | AA65: 7.3456579 | AB65: 6.696245658 | AC65: 6.5 | AD65: 6.096245658 | AE65: 5.8 | AF65: 5.8 | AG65: 6.1933563 | AH65: F 57 | AI65: 5.8 | AJ65: 6.5 | AK65: 5.8 | AL65: 7.16 | AM65: 7.0235779 | AN65: 6.0235779 | AO65: 7.0235779 | AP65: 7.2 | AQ65: 6.71 | AR65: 4.7897194 | AS65: 6.8808474 | AT65: 7.5
B66: 17.9932526 | C66: A 61 | D66: ='Key Leads'!I206 -> 6.390074554 | E66: 6.5 | F66: 4.7 | U66: F# 58 | V66: 5.9977 | W66: 6.6801224 | X66: 7.56116 | Y66: 7.088844 | Z66: 6.5850566 | AA66: 7.2655336 | AB66: 6.620947891 | AC66: 6.4 | AD66: 6.020947891 | AE66: 5.9 | AF66: 6.6 | AG66: 6.1173989 | AH66: F# 58 | AI66: 5.9 | AJ66: 6.4 | AK66: 6.6 | AL66: 7 | AM66: 6.9128669 | AN66: 5.9128669 | AO66: 6.9128669 | AP66: 7.3 | AQ66: 6.35 | AR66: 4.7248356 | AS66: 6.8012966 | AT66: 7.5
B67: 17.40262266 | C67: A# 62 | D67: ='Key Leads'!I207 -> 6.295599154 | E67: 6.4 | U67: G 59 | V67: 5.9283 | W67: 6.6077758 | X67: 7.464095 | Y67: 7.0027105 | Z67: 6.5153568 | AA67: 7.1849137 | AB67: 6.545650124 | AC67: 6.3 | AD67: 5.945650124 | AE67: 5.8 | AF67: 6.4 | AG67: 6.0403235 | AH67: G 59 | AI67: 5.8 | AJ67: 6.3 | AK67: 6.4 | AL67: 6.9 | AM67: 6.8014366 | AN67: 5.8014366 | AO67: 6.8014366 | AP67: 7.1 | AQ67: 6.35 | AR67: 4.6593655 | AS67: 6.7208077 | AT67: 7.5
B68: 16.81199271 | C68: B 63 | D68: ='Key Leads'!I208 -> 6.216869654 | E68: 6.3 | H68: NOTE | U68: G# 60 | V68: 5.8585 | W68: 6.5345 | X68: 7.366 | Y68: 6.916 | Z68: 6.4452861 | AA68: 7.1038 | AB68: 6.470352357 | AC68: 6.5 | AD68: 5.870352357 | AE68: 5.7 | AF68: 6.4 | AG68: 5.9621301 | AH68: G# 60 | AI68: 5.7 | AJ68: 6.5 | AK68: 6.4 | AL68: 6.8 | AM68: 6.6892868 | AN68: 5.6892868 | AO68: 6.6892868 | AP68: 7.1 | AQ68: 6.3 | AR68: 4.5933091 | AS68: 6.6393807 | AT68: 7
B69: 16.81199271 | C69: C 64 | D69: ='Key Leads'!I209 -> 6.122394255 | E69: 6.3 | F69: 4.6 | U69: A 61 | V69: 5.7883 | W69: 6.4602962 | X69: 7.266905 | Y69: 6.8287095 | Z69: 6.3748521 | AA69: 7.0221943 | AB69: 6.379995037 | AC69: 6.5 | AD69: 5.779995037 | AE69: 5.7 | AF69: 6.3 | AG69: 5.8828187 | AH69: A 61 | AI69: 5.7 | AJ69: 6.5 | AK69: 6.3 | AL69: 6.65 | AM69: 6.5764176 | AN69: 5.5764176 | AO69: 6.5764176 | AP69: 7.1 | AQ69: 6.11 | AR69: 4.5266664 | AS69: 6.5570155 | AT69: 7
B70: 16.22136277 | C70: C# 65 | D70: ='Key Leads'!I210 -> 6.043664755 | E70: 6.2 | U70: A# 62 | V70: 5.7177 | W70: 6.3851656 | X70: 7.16684 | Y70: 6.740836 | Z70: 6.3040623 | AA70: 6.9400984 | AB70: 6.30469727 | AC70: 6.4 | AD70: 5.70469727 | AE70: 5.6 | AF70: 6.2 | AG70: 5.8023893 | AH70: A# 62 | AI70: 5.6 | AJ70: 6.4 | AK70: 6.2 | AL70: 6.5 | AM70: 6.462829 | AN70: 5.462829 | AO70: 6.462829 | AP70: 6.5 | AQ70: 5.91 | AR70: 4.4594374 | AS70: 6.4737121 | AT70: 6.8
B71: =(((E71+1.5)*$A$3*$A$2)+$A$4)*$A$1-$A$5 -> 15.04010288 | C71: D 66 | D71: ='Key Leads'!I211 -> 5.949189355 | E71: 6 | U71: B 63 | V71: 5.6467 | W71: 6.3091094 | X71: 7.065835 | Y71: 6.6523765 | Z71: 6.232924 | AA71: 6.8575141 | AB71: 6.21433995 | AC71: 6.3 | AD71: 5.61433995 | AE71: 5.75 | AF71: 6.1 | AG71: 5.7208418 | AH71: B 63 | AI71: 5.75 | AJ71: 6.3 | AK71: 6.1 | AL71: 6.4 | AM71: 6.348521 | AN71: 5.348521 | AO71: 6.348521 | AP71: 6.5 | AQ71: 6.29 | AR71: 4.3916221 | AS71: 6.3894706 | AT71: 6.9
B72: 13.858843 | C72: D# 67 | D72: ='Key Leads'!I212 -> 5.854713955 | E72: 5.8 | U72: C 64 | V72: 5.5753 | W72: 6.2321288 | X72: 6.96392 | Y72: 6.563328 | Z72: 6.161445 | AA72: 6.7744432 | AB72: 6.139042184 | AC72: 6.3 | AD72: 5.539042184 | AE72: 5.6 | AF72: 6 | AG72: 5.6381764 | AH72: C 64 | AI72: 5.6 | AJ72: 6.3 | AK72: 6 | AL72: 6.2 | AM72: 6.2334935 | AN72: 5.2334935 | AO72: 6.2334935 | AP72: 6.4 | AQ72: 5.98 | AR72: 4.3232206 | AS72: 6.304291 | AT72: 6.8
B73: 13.858843 | C73: E 68 | D73: ='Key Leads'!I213 -> 5.760238556 | E73: 5.8 | T73: Back | U73: C# 65 | V73: 5.5035 | W73: 6.154225 | X73: 6.861125 | Y73: 6.4736875 | Z73: 6.0896325 | AA73: 6.6908875 | AB73: 6.048684864 | AC73: 6.2 | AD73: 5.448684864 | AE73: 5.4 | AF73: 5.9 | AG73: 5.554393 | AH73: C# 65 | AI73: 5.4 | AJ73: 6.2 | AK73: 5.9 | AL73: 6 | AM73: 6.1177466 | AN73: 5.1177466 | AO73: 6.1177466 | AP73: 6.2 | AQ73: 6.07 | AR73: 4.2542327 | AS73: 6.2181732 | AT73: 6.9
B74: 12.67758311 | C74: F 69 | D74: ='Key Leads'!I214 -> 5.665763156 | E74: 5.6 | U74: D 66 | V74: 5.4313 | W74: 6.0753992 | X74: 6.75748 | Y74: 6.383452 | Z74: 6.0174941 | AA74: 6.6068488 | AB74: 5.958327543 | AC74: 6 | AD74: 5.358327543 | AE74: 5.3 | AF74: 5.8 | AG74: 5.4694915 | AH74: D 66 | AI74: 5.3 | AJ74: 6 | AK74: 5.8 | AL74: 5.9 | AM74: 6.0012803 | AN74: =AM74-1 -> 5.0012803 | AO74: 6.0012803 | AP74: 6.2 | AQ74: 5.88 | AR74: 4.1846586 | AS74: 6.1311172 | AT74: 6.7
B75: 12.67758311 | C75: F# 70 | D75: ='Key Leads'!I215 -> 5.555541856 | E75: 5.6 | U75: D# 67 | V75: 5.3587 | W75: 5.9956526 | X75: 6.653015 | Y75: 6.2926185 | Z75: 5.9450373 | AA75: 6.5223289 | AB75: 5.867970223 | AC75: 5.8 | AD75: 5.267970223 | AE75: 5.4 | AF75: 5.5 | AG75: 5.383472 | AH75: D# 67 | AI75: 5.4 | AJ75: 5.8 | AK75: 5.5 | AL75: 5.8 | AM75: 5.8840946 | AN75: 4.8840946 | AO75: 5.8840946 | AP75: 6.2 | AQ75: 5.91 | AR75: 4.1144982 | AS75: 6.0431231 | AT75: 6.7
B76: 12.08695317 | C76: G 71 | D76: ='Key Leads'!I216 -> 5.461066456 | E76: 5.5 | U76: E 68 | V76: 5.2857 | W76: 5.9149864 | X76: 6.54776 | Y76: 6.201184 | Z76: 5.8722696 | AA76: 6.4373296 | AB76: 5.777612903 | AC76: 5.8 | AD76: 5.177612903 | AE76: 5.1 | AF76: 5.5 | AG76: 5.2963346 | AH76: E 68 | AI76: 5.1 | AJ76: 5.8 | AK76: 5.5 | AL76: 5.7 | AM76: 5.7661894 | AN76: 4.7661894 | AO76: 5.7661894 | AP76: 6.1 | AQ76: 6.06 | AR76: 4.0437515 | AS76: 5.9541909 | AT76: 6.5
B77: 10.90569328 | C77: G# 72 | D77: ='Key Leads'!I217 -> 5.366591057 | E77: 5.3 | U77: F 69 | V77: 5.2123 | W77: 5.8334018 | X77: 6.441745 | Y77: 6.1091455 | Z77: 5.7991985 | AA77: 6.3518527 | AB77: 5.67219603 | AC77: 5.6 | AD77: 5.07219603 | AE77: 4.8 | AF77: 5.4 | AG77: 5.2080791 | AH77: F 69 | AI77: 4.8 | AJ77: 5.6 | AK77: 5.4 | AL77: 5.5 | AM77: 5.6475648 | AN77: 4.6475648 | AO77: 5.6475648 | AP77: 5.8 | AQ77: 6 | AR77: 3.9724185 | AS77: 5.8643205 | AT77: 6.5
B78: 10.90569328 | C78: A 73 | D78: ='Key Leads'!I218 -> 5.087059005 | E78: 5.3 | U78: F# 70 | V78: 5.1385 | W78: 5.7509 | X78: 6.335 | Y78: 6.0165 | Z78: 5.7258314 | AA78: 6.2659 | AB78: 5.58183871 | AC78: 5.6 | AD78: 4.98183871 | AE78: 4.7 | AF78: 5.2 | AG78: 5.1187056 | AH78: F# 70 | AI78: 4.7 | AJ78: 5.6 | AK78: 5.2 | AL78: 5.4 | AM78: 5.5282208 | AN78: 4.5282208 | AO78: 5.5282208 | AP78: 5.7 | AQ78: 6.1 | AR78: 3.9004992 | AS78: 5.7735119 | AT78: 6.4
B79: 9.133803451 | C79: A# 74 | D79: ='Key Leads'!I219 -> 4.992583605 | E79: 5 | U79: G 71 | V79: 5.0643 | W79: 5.6674822 | X79: 6.227555 | Y79: 5.9232445 | Z79: 5.6521758 | AA79: 6.1794733 | AB79: 5.49148139 | AC79: 5.5 | AD79: 4.89148139 | AE79: 4.7 | AF79: 4.7 | AG79: 5.0282142 | AH79: G 71 | AI79: 4.7 | AJ79: 5.5 | AK79: 4.7 | AL79: 5.23 | AM79: 5.4081574 | AN79: 4.4081574 | AO79: 5.4081574 | AP79: 5.6 | AQ79: 6.11 | AR79: 3.8279937 | AS79: 5.6817652 | AT79: 5.9
B80: 9.724433394 | C80: B 75 | D80: ='Key Leads'!I220 -> 4.882362305 | E80: 5.1 | U80: G# 72 | V80: 4.9897 | W80: 5.5831496 | X80: 6.11944 | Y80: 5.829376 | Z80: 5.5782393 | AA80: 6.0925744 | AB80: 5.386064516 | AC80: 5.3 | AD80: 4.786064516 | AE80: 4.6 | AF80: 4.7 | AG80: 4.9366047 | AH80: G# 72 | AI80: 4.6 | AJ80: 5.3 | AK80: 4.7 | AL80: 5 | AM80: 5.2873745 | AN80: 4.2873745 | AO80: 5.2873745 | AP80: 5.7 | AQ80: 6 | AR80: 3.7549018 | AS80: 5.5890804 | AT80: 5.7
B81: 10.31506334 | C81: C 76 | D81: ='Key Leads'!I221 -> 4.772141005 | E81: 5.2 | F81: 3.5 | U81: A 73 | V81: 4.9147 | W81: 5.4979034 | X81: 6.010685 | Y81: 5.7348915 | Z81: 5.5040292 | AA81: 6.0052051 | AB81: 5.295707196 | AC81: 5.3 | AD81: 4.695707196 | AE81: 4.5 | AF81: 4.6 | AG81: 4.8438772 | AH81: A 73 | AI81: 4.5 | AJ81: 5.3 | AK81: 4.6 | AL81: 4.9 | AM81: 5.1658722 | AN81: 4.1658722 | AO81: 5.1658722 | AP81: 5.5 | AQ81: 5.91 | AR81: 3.6812237 | AS81: 5.4954574 | AT81: 5.6
B82: 10.31506334 | C82: C# 77 | D82: ='Key Leads'!I222 -> 4.677665606 | E82: 5.2 | U82: A# 74 | V82: 4.8393 | W82: 5.4117448 | X82: 5.90132 | Y82: 5.639788 | Z82: 5.4295532 | AA82: 5.9173672 | AB82: 5.190290323 | AC82: 5 | AD82: 4.590290323 | AE82: 4.4 | AF82: 4.4 | AG82: 4.7500317 | AH82: A# 74 | AI82: 4.4 | AJ82: 5 | AK82: 4.4 | AL82: 4.8 | AM82: 5.0436505 | AN82: 4.0436505 | AO82: 5.0436505 | AP82: 5.5 | AQ82: 5.72 | AR82: 3.6069592 | AS82: 5.4008963 | AT82: 5.5
B83: 8.543173508 | C83: D 78 | D83: ='Key Leads'!I223 -> 4.567444306 | E83: 4.9 | U83: B 75 | V83: 4.7635 | W83: 5.324675 | X83: 5.791375 | Y83: 5.5440625 | Z83: 5.3548186 | AA83: 5.8290625 | AB83: 5.084873449 | AC83: 5.1 | AD83: 4.484873449 | AE83: 4.5 | AF83: 4.3 | AG83: 4.6550682 | AH83: B 75 | AI83: 4.5 | AJ83: 5.1 | AK83: 4.3 | AL83: 4.7 | AM83: 4.9207094 | AN83: 3.9207094 | AO83: 4.9207094 | AP83: 5.4 | AQ83: 5.65 | AR83: 3.5321085 | AS83: 5.305397 | AT83: 5.3
B84: 7.952543564 | C84: D# 79 | D84: ='Key Leads'!I224 -> 4.457223006 | E84: 4.8 | U84: C 76 | V84: 4.6873 | W84: 5.2366952 | X84: 5.68088 | Y84: 5.447712 | Z84: 5.279833 | AA84: 5.7402928 | AB84: 4.994516129 | AC84: 5.2 | AD84: 4.394516129 | AE84: 4.4 | AF84: 4.3 | AG84: 4.5589866 | AH84: C 76 | AI84: 4.4 | AJ84: 5.2 | AK84: 4.3 | AL84: 4.6 | AM84: 4.7970488 | AN84: 3.7970488 | AO84: 4.7970488 | AP84: 5.6 | AQ84: 5.47 | AR84: 3.4566715 | AS84: 5.2089596 | AT84: 5.1
B85: 7.361913621 | C85: E 80 | D85: ='Key Leads'!I225 -> 4.362747606 | E85: 4.7 | U85: C# 77 | V85: 4.6107 | W85: 5.1478066 | X85: 5.569865 | Y85: 5.3507335 | Z85: 5.2046039 | AA85: 5.6510599 | AB85: 4.889099256 | AC85: 5.2 | AD85: 4.289099256 | AE85: 4.4 | AF85: 4.3 | AG85: 4.4617871 | AH85: C# 77 | AI85: 4.4 | AJ85: 5.2 | AK85: 4.3 | AL85: 4.5 | AM85: 4.6726688 | AN85: 3.6726688 | AO85: 4.6726688 | AP85: 5.7 | AQ85: 5.51 | AR85: 3.3806482 | AS85: 5.111584 | AT85: 5.1
B86: 6.771283678 | C86: F 81 | D86: ='Key Leads'!I226 -> 4.252526307 | E86: 4.6 | U86: D 78 | V86: 4.5337 | W86: 5.0580104 | X86: 5.45836 | Y86: 5.253124 | Z86: 5.1291387 | AA86: 5.5613656 | AB86: 4.783682382 | AC86: 4.9 | AD86: 4.183682382 | AE86: 4.3 | AF86: 4.1 | AG86: 4.3634696 | AH86: D 78 | AI86: 4.3 | AJ86: 4.9 | AK86: 4.1 | AL86: 4.4 | AM86: 4.5475694 | AN86: 3.5475694 | AO86: 4.5475694 | AP86: 5.5 | AQ86: 5.43 | AR86: 3.3040386 | AS86: 5.0132703 | AT86: 5
B87: 4.999393848 | C87: F# 82 | D87: ='Key Leads'!I227 -> 4.142305007 | E87: 4.3 | U87: D# 79 | V87: 4.4563 | W87: 4.9673078 | X87: 5.346395 | Y87: 5.1548805 | Z87: 5.0534449 | AA87: 5.4712117 | AB87: 4.693325062 | AC87: 4.8 | AD87: 4.093325062 | AE87: 4.2 | AF87: 4 | AG87: 4.2640341 | AH87: D# 79 | AI87: 4.2 | AJ87: 4.8 | AK87: 4 | AL87: 4.3 | AM87: 4.4217506 | AN87: 3.4217506 | AO87: 4.4217506 | AP87: 5.2 | AQ87: 5.08 | AR87: 3.2268428 | AS87: 4.9140184 | AT87: 4.9
B88: 5.590023792 | C88: G 83 | D88: ='Key Leads'!I228 -> 4.047829607 | E88: 4.4 | U88: E 80 | V88: 4.3785 | W88: 4.8757 | X88: 5.234 | Y88: 5.056 | Z88: 4.97753 | AA88: 5.3806 | AB88: 4.587908189 | AC88: 4.7 | AD88: 3.987908189 | AE88: 4.2 | AF88: 4 | AG88: 4.1634805 | AH88: E 80 | AI88: 4.2 | AJ88: 4.7 | AK88: 4 | AL88: 4.2 | AM88: 4.2952123 | AN88: 3.2952123 | AO88: 4.2952123 | AP88: 5.5 | AQ88: 5.05 | AR88: 3.1490606 | AS88: 4.8138283 | AT88: 4.8
B89: 5.590023792 | C89: G# 84 | D89: ='Key Leads'!I229 -> 3.937608307 | E89: 4.4 | U89: F 81 | V89: 4.3003 | W89: 4.7831882 | X89: 5.121205 | Y89: 4.9564795 | Z89: 4.9014016 | AA89: 5.2895323 | AB89: 4.482491315 | AC89: 4.6 | AD89: 3.882491315 | AE89: 4.1 | AF89: 4 | AG89: 4.061809 | AH89: F 81 | AI89: 4.1 | AJ89: 4.6 | AK89: 4 | AL89: 4.1 | AM89: 4.1679547 | AN89: 3.1679547 | AO89: 4.1679547 | AP89: 5.6 | AQ89: 5.32 | AR89: 3.0706922 | AS89: 4.7127002 | AT89: 4.7
B90: 5.590023792 | C90: A 85 | D90: ='Key Leads'!I230 -> 3.827387008 | E90: 4.4 | U90: F# 82 | V90: 4.2217 | W90: 4.6897736 | X90: 5.00804 | Y90: 4.856316 | Z90: 4.825067 | AA90: 5.1980104 | AB90: 4.392133995 | AC90: 4.3 | AD90: 3.792133995 | AE90: 4.1 | AF90: 4.1 | AG90: 3.9590194 | AH90: F# 82 | AI90: 4.1 | AJ90: 4.3 | AK90: 4.1 | AL90: 4 | AM90: 4.0399776 | AN90: 3.0399776 | AO90: 4.0399776 | AP90: 5.1 | AQ90: 5.33 | AR90: 2.9917375 | AS90: 4.6106338 | AT90: 4.8
B91: 5.590023792 | C91: A# 86 | D91: ='Key Leads'!I231 -> 3.732911608 | E91: 4.4 | U91: G 83 | V91: 4.1427 | W91: 4.5954574 | X91: 4.894535 | Y91: 4.7555065 | Z91: 4.7485338 | AA91: 5.1060361 | AB91: 4.286717122 | AC91: 4.4 | AD91: 3.686717122 | AE91: 4 | AF91: 4 | AG91: 3.8551118 | AH91: G 83 | AI91: 4 | AJ91: 4.4 | AK91: 4 | AL91: 3.91 | AM91: 3.911281 | AN91: 2.911281 | AO91: 3.911281 | AP91: 5.3 | AQ91: 4.94 | AR91: 2.9121964 | AS91: 4.5076294 | AT91: 4.7
B92: 3.818133962 | C92: B 87 | D92: ='Key Leads'!I232 -> 3.622690308 | E92: 4.1 | U92: G# 84 | V92: 4.0633 | W92: 4.5002408 | X92: 4.78072 | Y92: 4.654048 | Z92: 4.6718095 | AA92: 5.0136112 | AB92: 4.181300248 | AC92: 4.4 | AD92: 3.581300248 | AE92: 4 | AF92: 3.8 | AG92: 3.7500863 | AH92: G# 84 | AI92: 4 | AJ92: 4.4 | AK92: 3.8 | AL92: 3.9 | AM92: 3.7818651 | AN92: 2.7818651 | AO92: 3.7818651 | AP92: 5.5 | AQ92: 4.69 | AR92: 2.8320691 | AS92: 4.4036867 | AT92: 5.1
B93: 2.636874076 | C93: C 88 | D93: ='Key Leads'!I233 -> 3.528214908 | E93: 3.9 | F93: 2.3 | U93: A 85 | V93: 3.9835 | W93: 4.404125 | X93: 4.666625 | Y93: 4.5519375 | Z93: 4.5949015 | AA93: 4.9207375 | AB93: 4.090942928 | AC93: 4.4 | AD93: 3.490942928 | AE93: 3.8 | AF93: 3.7 | AG93: 3.6439427 | AH93: A 85 | AI93: 3.8 | AJ93: 4.4 | AK93: 3.7 | AL93: 3.88 | AM93: 3.6517297 | AN93: 2.6517297 | AO93: 3.6517297 | AP93: 5.1 | AQ93: 4.67 | AR93: 2.7513556 | AS93: 4.298806 | AT93: 5.2
U94: A# 86 | V94: 3.9033 | W94: 4.3071112 | X94: 4.55228 | Y94: 4.449172 | Z94: 4.5178174 | AA94: 4.8274168 | AB94: 3.985526055 | AC94: 4.4 | AD94: 3.385526055 | AE94: 3.8 | AF94: 3.7 | AG94: 3.5366811 | AH94: A# 86 | AI94: 3.8 | AJ94: 4.4 | AK94: 3.7 | AL94: 3.84 | AM94: 3.5208749 | AN94: 2.5208749 | AO94: 3.5208749 | AP94: 4.8 | AQ94: 4.52 | AR94: 2.6700557 | AS94: 4.192987 | AT94: 5.1
C95: Avg Ham | D95: =AVERAGE(D6:D93) -> 7.553202866 | E95: =AVERAGE(E6:E93) -> 7.201136364 | F95: =AVERAGE(F6:F93) ->  | U95: B 87 | V95: 3.8227 | W95: 4.2092006 | X95: 4.437715 | Y95: 4.3457485 | Z95: 4.4405646 | AA95: 4.7336509 | AB95: 3.895168734 | AC95: 4.1 | AD95: 3.295168734 | AE95: 3.7 | AF95: 3.7 | AG95: 3.4283015 | AH95: B 87 | AI95: 3.7 | AJ95: 4.1 | AK95: 3.7 | AL95: 3.81 | AM95: 3.3893007 | AN95: 2.3893007 | AO95: 3.3893007 | AP95: 4.7 | AQ95: 4.51 | AR95: 2.5881695 | AS95: 4.08623 | AT95: 5
U96: C 88 | V96: 3.7417 | W96: 4.1103944 | X96: 4.32296 | Y96: 4.241664 | Z96: 4.3631506 | AA96: 4.6394416 | AB96: 3.337965261 | AC96: 3.9 | AD96: 2.737965261 | AE96: 3.7 | AF96: 3.8 | AG96: 3.3188039 | AH96: C 88 | AI96: 3.7 | AJ96: 3.9 | AK96: 3.8 | AL96: 3.77 | AM96: 3.4 | AN96: 2.4 | AO96: 3.4 | AP96: 5 | AQ96: 4.4 | AR96: 2.5056971 | AS96: 3.9785347 | AT96: 5

Sheet My Summary
K2: ='Simple AR Calculator'!C6 -> SSA ca 1916
E6: ='Simple AR Calculator'!C8 -> 245 | N6: ='Key Leads'!L144 -> 153.125 | P6: ='Key Leads'!D133 -> 2.253333333e-05
C7: MAXIMUM ALLOWABLE HAMMER WEIGHTS PER PROGRAM | J7: MY HAMMER WEIGHTS per HAMMERS PG.
C8: Note | D8: Maximum Hammer Weight Grams | E8: ='Key Leads'!J145 -> Inertia | F8: Graduated DW | G8: Max Key FWs | H8: Max Key leads Allowed | J8: Note | K8: My Hammer Weights (Gm) | L8: My Key Front Weights | M8: DW graduated scheme | N8: My Leads | O8: My Inertia | P8: Inertia w / est. key Inertia | Q8: ='Key Leads'!K133 -> 9.575398922
Q9: ='Key Leads'!E133 -> 0.1375681649
C10: A 1 | D10: ='Key Leads'!I146 -> 10.46453781 | E10: ='Key Leads'!J146 -> 202.1246178 | F10: ='Key Leads'!F146 -> 53 | G10: ='Key Leads'!C146 -> 38.409 | H10: ='Key Leads'!L146 -> 4.105391304 | J10: A 1 | K10: =Hammers!E6 -> 9.8 | L10: =Hammers!B6 -> 37.48404072 | M10: ='Key Leads'!F146 -> 53 | N10: ='Key Leads'!T146 -> 3.284313043 | O10: ='Key Leads'!R146 -> 190.8981541 | P10: =O10/0.8 -> 238.6226926 | Q10: ='Key Leads'!L54 -> 245
C11: A# 2 | D11: ='Key Leads'!I147 -> 10.43304601 | E11: ='Key Leads'!J147 -> 201.5926067 | F11: ='Key Leads'!F147 -> 53 | G11: ='Key Leads'!C147 -> 38.223 | H11: ='Key Leads'!L147 -> 4.083826087 | J11: A# 2 | K11: =Hammers!E7 -> 9.5 | L11: =Hammers!B7 -> 35.71215089 | M11: ='Key Leads'!F147 -> 53 | N11: ='Key Leads'!T147 -> 3.26706087 | O11: ='Key Leads'!R147 -> 185.8300615 | P11: =O11/0.8 -> 232.2875768 | Q11: ='Key Leads'!N58 -> 153.125
C12: B 3 | D12: ='Key Leads'!I148 -> 10.38580831 | E12: ='Key Leads'!J148 -> 200.7945899 | F12: ='Key Leads'!F148 -> 53 | G12: ='Key Leads'!C148 -> 37.944 | H12: ='Key Leads'!L148 -> 4.051478261 | J12: B 3 | K12: =Hammers!E8 -> 9.2 | L12: =Hammers!B8 -> 33.94026107 | M12: ='Key Leads'!F148 -> 53 | N12: ='Key Leads'!T148 -> 3.241182609 | O12: ='Key Leads'!R148 -> 180.7619689 | P12: 225.9524611 | Q12: ='Key Leads'!M72 -> 13.8
C13: C 4 | D13: ='Key Leads'!I149 -> 10.35431651 | E13: ='Key Leads'!J149 -> 200.2625787 | F13: ='Key Leads'!F149 -> 53 | G13: ='Key Leads'!C149 -> 37.758 | H13: ='Key Leads'!L149 -> 4.029913043 | J13: C 4 | K13: =Hammers!E9 -> 9.1 | L13: =Hammers!B9 -> 33.34963112 | M13: ='Key Leads'!F149 -> 53 | N13: ='Key Leads'!T149 -> 3.223930435 | O13: ='Key Leads'!R149 -> 179.0726047 | P13: 223.8407559
C14: C# 5 | D14: ='Key Leads'!I150 -> 10.30707881 | E14: ='Key Leads'!J150 -> 199.4645619 | F14: ='Key Leads'!F150 -> 53 | G14: ='Key Leads'!C150 -> 37.479 | H14: ='Key Leads'!L150 -> 3.997565217 | J14: C# 5 | K14: =Hammers!E10 -> 9.1 | L14: =Hammers!B10 -> 33.34963112 | M14: ='Key Leads'!F150 -> 53 | N14: ='Key Leads'!T150 -> 3.198052174 | O14: ='Key Leads'!R150 -> 179.0726047 | P14: 223.8407559
C15: D 6 | D15: ='Key Leads'!I151 -> 10.27558701 | E15: ='Key Leads'!J151 -> 198.9325507 | F15: ='Key Leads'!F151 -> 53 | G15: ='Key Leads'!C151 -> 37.293 | H15: ='Key Leads'!L151 -> 3.976 | J15: D 6 | K15: =Hammers!E11 -> 9.1 | L15: =Hammers!B11 -> 33.34963112 | M15: ='Key Leads'!F151 -> 53 | N15: ='Key Leads'!T151 -> 3.1808 | O15: ='Key Leads'!R151 -> 179.0726047 | P15: 223.8407559
C16: D# 7 | D16: ='Key Leads'!I152 -> 10.22834931 | E16: ='Key Leads'!J152 -> 198.1345339 | F16: ='Key Leads'!F152 -> 53 | G16: ='Key Leads'!C152 -> 37.014 | H16: ='Key Leads'!L152 -> 3.943652174 | J16: D# 7 | K16: =Hammers!E12 -> 8.9 | L16: =Hammers!B12 -> 32.16837124 | M16: ='Key Leads'!F152 -> 53 | N16: ='Key Leads'!T152 -> 3.154921739 | O16: ='Key Leads'!R152 -> 175.6938763 | P16: 219.6173454
C17: E 8 | D17: ='Key Leads'!I153 -> 10.18111161 | E17: ='Key Leads'!J153 -> 197.3365171 | F17: ='Key Leads'!F153 -> 53 | G17: ='Key Leads'!C153 -> 36.735 | H17: ='Key Leads'!L153 -> 3.911304348 | J17: E 8 | K17: =Hammers!E13 -> 8.7 | L17: =Hammers!B13 -> 30.98711135 | M17: ='Key Leads'!F153 -> 53 | N17: ='Key Leads'!T153 -> 3.129043478 | O17: ='Key Leads'!R153 -> 172.3151479 | P17: 215.3939349
C18: F 9 | D18: ='Key Leads'!I154 -> 10.14961981 | E18: ='Key Leads'!J154 -> 196.8045059 | F18: ='Key Leads'!F154 -> 53 | G18: ='Key Leads'!C154 -> 36.549 | H18: ='Key Leads'!L154 -> 3.88973913 | J18: F 9 | K18: =Hammers!E14 -> 8.7 | L18: =Hammers!B14 -> 30.98711135 | M18: ='Key Leads'!F154 -> 53 | N18: ='Key Leads'!T154 -> 3.111791304 | O18: ='Key Leads'!R154 -> 172.3151479 | P18: 215.3939349
C19: F# 10 | D19: ='Key Leads'!I155 -> 10.10238211 | E19: ='Key Leads'!J155 -> 196.0064891 | F19: ='Key Leads'!F155 -> 53 | G19: ='Key Leads'!C155 -> 36.27 | H19: ='Key Leads'!L155 -> 3.857391304 | J19: F# 10 | K19: =Hammers!E15 -> 8.7 | L19: =Hammers!B15 -> 30.98711135 | M19: ='Key Leads'!F155 -> 53 | N19: ='Key Leads'!T155 -> 3.085913043 | O19: ='Key Leads'!R155 -> 172.3151479 | P19: 215.3939349
C20: G 11 | D20: ='Key Leads'!I156 -> 10.07089031 | E20: ='Key Leads'!J156 -> 195.4744779 | F20: ='Key Leads'!F156 -> 53 | G20: ='Key Leads'!C156 -> 36.084 | H20: ='Key Leads'!L156 -> 3.835826087 | J20: G 11 | K20: =Hammers!E16 -> 8.8 | L20: =Hammers!B16 -> 31.57774129 | M20: ='Key Leads'!F156 -> 53 | N20: ='Key Leads'!T156 -> 3.06866087 | O20: ='Key Leads'!R156 -> 174.0045121 | P20: 217.5056401
C21: G# 12 | D21: ='Key Leads'!I157 -> 10.02365261 | E21: ='Key Leads'!J157 -> 194.6764612 | F21: ='Key Leads'!F157 -> 53 | G21: ='Key Leads'!C157 -> 35.805 | H21: ='Key Leads'!L157 -> 3.803478261 | J21: G# 12 | K21: =Hammers!E17 -> 8.7 | L21: =Hammers!B17 -> 30.98711135 | M21: ='Key Leads'!F157 -> 53 | N21: ='Key Leads'!T157 -> 3.042782609 | O21: ='Key Leads'!R157 -> 172.3151479 | P21: 215.3939349
C22: A 13 | D22: ='Key Leads'!I158 -> 9.822850056 | E22: ='Key Leads'!J158 -> 191.2841747 | F22: ='Key Leads'!F158 -> 52 | G22: ='Key Leads'!C158 -> 35.619 | H22: ='Key Leads'!L158 -> 3.897855072 | J22: A 13 | K22: =Hammers!E18 -> 9.3 | L22: =Hammers!B18 -> 34.53089101 | M22: ='Key Leads'!F158 -> 52 | N22: ='Key Leads'!T158 -> 3.118284058 | O22: ='Key Leads'!R158 -> 182.4513331 | P22: 228.0641664
C23: A# 14 | D23: ='Key Leads'!I159 -> 9.775612357 | E23: ='Key Leads'!J159 -> 190.4861579 | F23: ='Key Leads'!F159 -> 52 | G23: ='Key Leads'!C159 -> 35.34 | H23: ='Key Leads'!L159 -> 3.865507246 | J23: A# 14 | K23: =Hammers!E19 -> 9.1 | L23: =Hammers!B19 -> 33.34963112 | M23: ='Key Leads'!F159 -> 52 | N23: ='Key Leads'!T159 -> 3.092405797 | O23: ='Key Leads'!R159 -> 179.0726047 | P23: 223.8407559
C24: B 15 | D24: ='Key Leads'!I160 -> 9.744120557 | E24: ='Key Leads'!J160 -> 189.9541468 | F24: ='Key Leads'!F160 -> 52 | G24: ='Key Leads'!C160 -> 35.154 | H24: ='Key Leads'!L160 -> 3.843942029 | J24: B 15 | K24: =Hammers!E20 -> 8.9 | L24: =Hammers!B20 -> 32.16837124 | M24: ='Key Leads'!F160 -> 52 | N24: ='Key Leads'!T160 -> 3.075153623 | O24: ='Key Leads'!R160 -> 175.6938763 | P24: 219.6173454
C25: C 16 | D25: ='Key Leads'!I161 -> 9.696882857 | E25: ='Key Leads'!J161 -> 189.15613 | F25: ='Key Leads'!F161 -> 52 | G25: ='Key Leads'!C161 -> 34.875 | H25: ='Key Leads'!L161 -> 3.811594203 | J25: C 16 | K25: =Hammers!E21 -> 9 | L25: =Hammers!B21 -> 32.75900118 | M25: ='Key Leads'!F161 -> 52 | N25: ='Key Leads'!T161 -> 3.049275362 | O25: ='Key Leads'!R161 -> 177.3832405 | P25: 221.7290506
C26: C# 17 | D26: ='Key Leads'!I162 -> 9.649645157 | E26: ='Key Leads'!J162 -> 188.3581132 | F26: ='Key Leads'!F162 -> 52 | G26: ='Key Leads'!C162 -> 34.596 | H26: ='Key Leads'!L162 -> 3.779246377 | J26: C# 17 | K26: =Hammers!E22 -> 8.9 | L26: =Hammers!B22 -> 32.16837124 | M26: ='Key Leads'!F162 -> 52 | N26: ='Key Leads'!T162 -> 3.023397101 | O26: ='Key Leads'!R162 -> 175.6938763 | P26: 219.6173454
C27: D 18 | D27: ='Key Leads'!I163 -> 9.618153357 | E27: ='Key Leads'!J163 -> 187.826102 | F27: ='Key Leads'!F163 -> 52 | G27: ='Key Leads'!C163 -> 34.41 | H27: ='Key Leads'!L163 -> 3.757681159 | J27: D 18 | K27: =Hammers!E23 -> 8.8 | L27: =Hammers!B23 -> 31.57774129 | M27: ='Key Leads'!F163 -> 52 | N27: ='Key Leads'!T163 -> 3.006144928 | O27: ='Key Leads'!R163 -> 174.0045121 | P27: 217.5056401
C28: D# 19 | D28: ='Key Leads'!I164 -> 9.570915657 | E28: ='Key Leads'!J164 -> 187.0280852 | F28: ='Key Leads'!F164 -> 52 | G28: ='Key Leads'!C164 -> 34.131 | H28: ='Key Leads'!L164 -> 3.725333333 | J28: D# 19 | K28: =Hammers!E24 -> 8.7 | L28: =Hammers!B24 -> 30.98711135 | M28: ='Key Leads'!F164 -> 52 | N28: ='Key Leads'!T164 -> 2.980266667 | O28: ='Key Leads'!R164 -> 172.3151479 | P28: 215.3939349
C29: E 20 | D29: ='Key Leads'!I165 -> 9.523677957 | E29: ='Key Leads'!J165 -> 186.2300684 | F29: ='Key Leads'!F165 -> 52 | G29: ='Key Leads'!C165 -> 33.852 | H29: ='Key Leads'!L165 -> 3.692985507 | J29: E 20 | K29: =Hammers!E25 -> 8.7 | L29: =Hammers!B25 -> 30.98711135 | M29: ='Key Leads'!F165 -> 52 | N29: ='Key Leads'!T165 -> 2.954388406 | O29: ='Key Leads'!R165 -> 172.3151479 | P29: 215.3939349
C30: F 21 | D30: ='Key Leads'!I166 -> 9.476440257 | E30: ='Key Leads'!J166 -> 185.4320516 | F30: ='Key Leads'!F166 -> 52 | G30: ='Key Leads'!C166 -> 33.573 | H30: ='Key Leads'!L166 -> 3.660637681 | J30: F 21 | K30: =Hammers!E26 -> 8.7 | L30: =Hammers!B26 -> 30.98711135 | M30: ='Key Leads'!F166 -> 52 | N30: ='Key Leads'!T166 -> 2.928510145 | O30: ='Key Leads'!R166 -> 172.3151479 | P30: 215.3939349
C31: F# 22 | D31: ='Key Leads'!I167 -> 9.429202557 | E31: ='Key Leads'!J167 -> 184.6340348 | F31: ='Key Leads'!F167 -> 52 | G31: ='Key Leads'!C167 -> 33.294 | H31: ='Key Leads'!L167 -> 3.628289855 | J31: F# 22 | K31: =Hammers!E27 -> 8.6 | L31: =Hammers!B27 -> 30.39648141 | M31: ='Key Leads'!F167 -> 52 | N31: ='Key Leads'!T167 -> 2.902631884 | O31: ='Key Leads'!R167 -> 170.6257837 | P31: 213.2822296
C32: G 23 | D32: ='Key Leads'!I168 -> 9.381964858 | E32: ='Key Leads'!J168 -> 183.836018 | F32: ='Key Leads'!F168 -> 52 | G32: ='Key Leads'!C168 -> 33.015 | H32: ='Key Leads'!L168 -> 3.595942029 | J32: G 23 | K32: =Hammers!E28 -> 8.8 | L32: =Hammers!B28 -> 31.57774129 | M32: ='Key Leads'!F168 -> 52 | N32: ='Key Leads'!T168 -> 2.876753623 | O32: ='Key Leads'!R168 -> 174.0045121 | P32: 217.5056401
C33: G# 24 | D33: ='Key Leads'!I169 -> 9.334727158 | E33: ='Key Leads'!J169 -> 183.0380013 | F33: ='Key Leads'!F169 -> 52 | G33: ='Key Leads'!C169 -> 32.736 | H33: ='Key Leads'!L169 -> 3.563594203 | J33: G# 24 | K33: =Hammers!E29 -> 8.8 | L33: =Hammers!B29 -> 31.57774129 | M33: ='Key Leads'!F169 -> 52 | N33: ='Key Leads'!T169 -> 2.850875362 | O33: ='Key Leads'!R169 -> 174.0045121 | P33: 217.5056401
C34: A 25 | D34: ='Key Leads'!I170 -> 9.118178705 | E34: ='Key Leads'!J170 -> 179.3797092 | F34: ='Key Leads'!F170 -> 51 | G34: ='Key Leads'!C170 -> 32.457 | H34: ='Key Leads'!L170 -> 3.647188406 | J34: A 25 | K34: =Hammers!E30 -> 8.9 | L34: =Hammers!B30 -> 32.16837124 | M34: ='Key Leads'!F170 -> 51 | N34: ='Key Leads'!T170 -> 2.917750725 | O34: ='Key Leads'!R170 -> 175.6938763 | P34: 219.6173454
C35: A# 26 | D35: ='Key Leads'!I171 -> 9.070941006 | E35: ='Key Leads'!J171 -> 178.5816924 | F35: ='Key Leads'!F171 -> 51 | G35: ='Key Leads'!C171 -> 32.178 | H35: ='Key Leads'!L171 -> 3.61484058 | J35: A# 26 | K35: =Hammers!E31 -> 8.8 | L35: =Hammers!B31 -> 31.57774129 | M35: ='Key Leads'!F171 -> 51 | N35: ='Key Leads'!T171 -> 2.891872464 | O35: ='Key Leads'!R171 -> 174.0045121 | P35: 217.5056401
C36: B 27 | D36: ='Key Leads'!I172 -> 9.023703306 | E36: ='Key Leads'!J172 -> 177.7836757 | F36: ='Key Leads'!F172 -> 51 | G36: ='Key Leads'!C172 -> 31.899 | H36: ='Key Leads'!L172 -> 3.582492754 | J36: B 27 | K36: =Hammers!E32 -> 8.2 | L36: =Hammers!B32 -> 28.03396163 | M36: ='Key Leads'!F172 -> 51 | N36: ='Key Leads'!T172 -> 2.865994203 | O36: ='Key Leads'!R172 -> 163.8683269 | P36: 204.8354087
C37: C 28 | D37: ='Key Leads'!I173 -> 8.976465606 | E37: ='Key Leads'!J173 -> 176.9856589 | F37: ='Key Leads'!F173 -> 51 | G37: ='Key Leads'!C173 -> 31.62 | H37: ='Key Leads'!L173 -> 3.550144928 | J37: C 28 | K37: =Hammers!E33 -> 8.2 | L37: =Hammers!B33 -> 28.03396163 | M37: ='Key Leads'!F173 -> 51 | N37: ='Key Leads'!T173 -> 2.840115942 | O37: ='Key Leads'!R173 -> 163.8683269 | P37: 204.8354087
C38: C# 29 | D38: ='Key Leads'!I174 -> 8.929227906 | E38: ='Key Leads'!J174 -> 176.1876421 | F38: ='Key Leads'!F174 -> 51 | G38: ='Key Leads'!C174 -> 31.341 | H38: ='Key Leads'!L174 -> 3.517797101 | J38: C# 29 | K38: =Hammers!E34 -> 8.3 | L38: =Hammers!B34 -> 28.62459158 | M38: ='Key Leads'!F174 -> 51 | N38: ='Key Leads'!T174 -> 2.814237681 | O38: ='Key Leads'!R174 -> 165.5576911 | P38: 206.9471139
C39: D 30 | D39: ='Key Leads'!I175 -> 8.866244306 | E39: ='Key Leads'!J175 -> 175.1236197 | F39: ='Key Leads'!F175 -> 51 | G39: ='Key Leads'!C175 -> 30.969 | H39: ='Key Leads'!L175 -> 3.474666667 | J39: D 30 | K39: =Hammers!E35 -> 8.2 | L39: =Hammers!B35 -> 28.03396163 | M39: ='Key Leads'!F175 -> 51 | N39: ='Key Leads'!T175 -> 2.779733333 | O39: ='Key Leads'!R175 -> 163.8683269 | P39: 204.8354087
C40: D# 31 | D40: ='Key Leads'!I176 -> 8.819006606 | E40: ='Key Leads'!J176 -> 174.3256029 | F40: ='Key Leads'!F176 -> 51 | G40: ='Key Leads'!C176 -> 30.69 | H40: ='Key Leads'!L176 -> 3.442318841 | J40: D# 31 | K40: =Hammers!E36 -> 8.2 | L40: =Hammers!B36 -> 28.03396163 | M40: ='Key Leads'!F176 -> 51 | N40: ='Key Leads'!T176 -> 2.753855072 | O40: ='Key Leads'!R176 -> 163.8683269 | P40: 204.8354087
C41: E 32 | D41: ='Key Leads'!I177 -> 8.771768906 | E41: ='Key Leads'!J177 -> 173.5275861 | F41: ='Key Leads'!F177 -> 51 | G41: ='Key Leads'!C177 -> 30.411 | H41: ='Key Leads'!L177 -> 3.409971014 | J41: E 32 | K41: =Hammers!E37 -> 7.9 | L41: =Hammers!B37 -> 26.2620718 | M41: ='Key Leads'!F177 -> 51 | N41: ='Key Leads'!T177 -> 2.727976812 | O41: ='Key Leads'!R177 -> 158.8002344 | P41: 198.5002929
C42: F 33 | D42: ='Key Leads'!I178 -> 8.724531206 | E42: ='Key Leads'!J178 -> 172.7295693 | F42: ='Key Leads'!F178 -> 51 | G42: ='Key Leads'!C178 -> 30.132 | H42: ='Key Leads'!L178 -> 3.377623188 | J42: F 33 | K42: =Hammers!E38 -> 7.8 | L42: =Hammers!B38 -> 25.67144186 | M42: ='Key Leads'!F178 -> 51 | N42: ='Key Leads'!T178 -> 2.702098551 | O42: ='Key Leads'!R178 -> 157.1108702 | P42: 196.3885877
C43: F# 34 | D43: ='Key Leads'!I179 -> 8.677293507 | E43: ='Key Leads'!J179 -> 171.9315525 | F43: ='Key Leads'!F179 -> 51 | G43: ='Key Leads'!C179 -> 29.853 | H43: ='Key Leads'!L179 -> 3.345275362 | J43: F# 34 | K43: =Hammers!E39 -> 8 | L43: =Hammers!B39 -> 26.85270175 | M43: ='Key Leads'!F179 -> 51 | N43: ='Key Leads'!T179 -> 2.67622029 | O43: ='Key Leads'!R179 -> 160.4895985 | P43: 200.6119982
C44: G 35 | D44: ='Key Leads'!I180 -> 8.614309907 | E44: ='Key Leads'!J180 -> 170.8675302 | F44: ='Key Leads'!F180 -> 51 | G44: ='Key Leads'!C180 -> 29.481 | H44: ='Key Leads'!L180 -> 3.302144928 | J44: G 35 | K44: =Hammers!E40 -> 8 | L44: =Hammers!B40 -> 26.85270175 | M44: ='Key Leads'!F180 -> 51 | N44: ='Key Leads'!T180 -> 2.641715942 | O44: ='Key Leads'!R180 -> 160.4895985 | P44: 200.6119982
C45: G# 36 | D45: ='Key Leads'!I181 -> 8.567072207 | E45: ='Key Leads'!J181 -> 170.0695134 | F45: ='Key Leads'!F181 -> 51 | G45: ='Key Leads'!C181 -> 29.202 | H45: ='Key Leads'!L181 -> 3.269797101 | J45: G# 36 | K45: =Hammers!E41 -> 8.1 | L45: =Hammers!B41 -> 27.44333169 | M45: ='Key Leads'!F181 -> 51 | N45: ='Key Leads'!T181 -> 2.615837681 | O45: ='Key Leads'!R181 -> 162.1789627 | P45: 202.7237034
C46: A 37 | D46: ='Key Leads'!I182 -> 8.334777855 | E46: ='Key Leads'!J182 -> 166.1452158 | F46: ='Key Leads'!F182 -> 50 | G46: ='Key Leads'!C182 -> 28.83 | H46: ='Key Leads'!L182 -> 3.342608696 | J46: A 37 | K46: =Hammers!E42 -> 8.1 | L46: =Hammers!B42 -> 27.44333169 | M46: ='Key Leads'!F182 -> 50 | N46: ='Key Leads'!T182 -> 2.674086957 | O46: ='Key Leads'!R182 -> 162.1789627 | P46: 202.7237034
C47: A# 38 | D47: ='Key Leads'!I183 -> 8.287540155 | E47: ='Key Leads'!J183 -> 165.347199 | F47: ='Key Leads'!F183 -> 50 | G47: ='Key Leads'!C183 -> 28.551 | H47: ='Key Leads'!L183 -> 3.31026087 | J47: A# 38 | K47: =Hammers!E43 -> 7.9 | L47: =Hammers!B43 -> 26.2620718 | M47: ='Key Leads'!F183 -> 50 | N47: ='Key Leads'!T183 -> 2.648208696 | O47: ='Key Leads'!R183 -> 158.8002344 | P47: 198.5002929
C48: B 39 | D48: ='Key Leads'!I184 -> 8.240302455 | E48: ='Key Leads'!J184 -> 164.5491822 | F48: ='Key Leads'!F184 -> 50 | G48: ='Key Leads'!C184 -> 28.272 | H48: ='Key Leads'!L184 -> 3.277913043 | J48: B 39 | K48: =Hammers!E44 -> 7.9 | L48: =Hammers!B44 -> 26.2620718 | M48: ='Key Leads'!F184 -> 50 | N48: ='Key Leads'!T184 -> 2.622330435 | O48: ='Key Leads'!R184 -> 158.8002344 | P48: 198.5002929
C49: C 40 | D49: ='Key Leads'!I185 -> 8.177318855 | E49: ='Key Leads'!J185 -> 163.4851598 | F49: ='Key Leads'!F185 -> 50 | G49: ='Key Leads'!C185 -> 27.9 | H49: ='Key Leads'!L185 -> 3.234782609 | J49: C 40 | K49: =Hammers!E45 -> 7.8 | L49: =Hammers!B45 -> 25.67144186 | M49: ='Key Leads'!F185 -> 50 | N49: ='Key Leads'!T185 -> 2.587826087 | O49: ='Key Leads'!R185 -> 157.1108702 | P49: 196.3885877
C50: C# 41 | D50: ='Key Leads'!I186 -> 8.114335255 | E50: ='Key Leads'!J186 -> 162.4211374 | F50: ='Key Leads'!F186 -> 50 | G50: ='Key Leads'!C186 -> 27.528 | H50: ='Key Leads'!L186 -> 3.191652174 | J50: C# 41 | K50: =Hammers!E46 -> 7.8 | L50: =Hammers!B46 -> 25.67144186 | M50: ='Key Leads'!F186 -> 50 | N50: ='Key Leads'!T186 -> 2.553321739 | O50: ='Key Leads'!R186 -> 157.1108702 | P50: 196.3885877
C51: D 42 | D51: ='Key Leads'!I187 -> 8.067097555 | E51: ='Key Leads'!J187 -> 161.6231206 | F51: ='Key Leads'!F187 -> 50 | G51: ='Key Leads'!C187 -> 27.249 | H51: ='Key Leads'!L187 -> 3.159304348 | J51: D 42 | K51: =Hammers!E47 -> 7.8 | L51: =Hammers!B47 -> 25.67144186 | M51: ='Key Leads'!F187 -> 50 | N51: ='Key Leads'!T187 -> 2.527443478 | O51: ='Key Leads'!R187 -> 157.1108702 | P51: 196.3885877
C52: D# 43 | D52: ='Key Leads'!I188 -> 8.004113956 | E52: ='Key Leads'!J188 -> 160.5590982 | F52: ='Key Leads'!F188 -> 50 | G52: ='Key Leads'!C188 -> 26.877 | H52: ='Key Leads'!L188 -> 3.116173913 | J52: D# 43 | K52: =Hammers!E48 -> 7.7 | L52: =Hammers!B48 -> 25.08081192 | M52: ='Key Leads'!F188 -> 50 | N52: ='Key Leads'!T188 -> 2.49293913 | O52: ='Key Leads'!R188 -> 155.421506 | P52: 194.2768825
C53: E 44 | D53: ='Key Leads'!I189 -> 7.941130356 | E53: ='Key Leads'!J189 -> 159.4950759 | F53: ='Key Leads'!F189 -> 50 | G53: ='Key Leads'!C189 -> 26.505 | H53: ='Key Leads'!L189 -> 3.073043478 | J53: E 44 | K53: =Hammers!E49 -> 7.6 | L53: =Hammers!B49 -> 24.49018197 | M53: ='Key Leads'!F189 -> 50 | N53: ='Key Leads'!T189 -> 2.458434783 | O53: ='Key Leads'!R189 -> 153.7321418 | P53: 192.1651772
C54: F 45 | D54: ='Key Leads'!I190 -> 7.878146756 | E54: ='Key Leads'!J190 -> 158.4310535 | F54: ='Key Leads'!F190 -> 50 | G54: ='Key Leads'!C190 -> 26.133 | H54: ='Key Leads'!L190 -> 3.029913043 | J54: F 45 | K54: =Hammers!E50 -> 7.7 | L54: =Hammers!B50 -> 25.08081192 | M54: ='Key Leads'!F190 -> 50 | N54: ='Key Leads'!T190 -> 2.423930435 | O54: ='Key Leads'!R190 -> 155.421506 | P54: 194.2768825
C55: F# 46 | D55: ='Key Leads'!I191 -> 7.815163156 | E55: ='Key Leads'!J191 -> 157.3670311 | F55: ='Key Leads'!F191 -> 50 | G55: ='Key Leads'!C191 -> 25.761 | H55: ='Key Leads'!L191 -> 2.986782609 | J55: F# 46 | K55: =Hammers!E51 -> 7.6 | L55: =Hammers!B51 -> 24.49018197 | M55: ='Key Leads'!F191 -> 50 | N55: ='Key Leads'!T191 -> 2.389426087 | O55: ='Key Leads'!R191 -> 153.7321418 | P55: 192.1651772
C56: G 47 | D56: ='Key Leads'!I192 -> 7.752179556 | E56: ='Key Leads'!J192 -> 156.3030087 | F56: ='Key Leads'!F192 -> 50 | G56: ='Key Leads'!C192 -> 25.389 | H56: ='Key Leads'!L192 -> 2.943652174 | J56: G 47 | K56: =Hammers!E52 -> 7.5 | L56: =Hammers!B52 -> 23.89955203 | M56: ='Key Leads'!F192 -> 50 | N56: ='Key Leads'!T192 -> 2.354921739 | O56: ='Key Leads'!R192 -> 152.0427776 | P56: 190.053472
C57: G# 48 | D57: ='Key Leads'!I193 -> 7.689195956 | E57: ='Key Leads'!J193 -> 155.2389863 | F57: ='Key Leads'!F193 -> 50 | G57: ='Key Leads'!C193 -> 25.017 | H57: ='Key Leads'!L193 -> 2.900521739 | J57: G# 48 | K57: =Hammers!E53 -> 7.3 | L57: =Hammers!B53 -> 22.71829214 | M57: ='Key Leads'!F193 -> 50 | N57: ='Key Leads'!T193 -> 2.320417391 | O57: ='Key Leads'!R193 -> 148.6640492 | P57: 185.8300615
C58: A 49 | D58: ='Key Leads'!I194 -> 7.441155704 | E58: ='Key Leads'!J194 -> 151.0486831 | F58: ='Key Leads'!F194 -> 49 | G58: ='Key Leads'!C194 -> 24.552 | H58: ='Key Leads'!L194 -> 2.962550725 | J58: A 49 | K58: =Hammers!E54 -> 7.2 | L58: =Hammers!B54 -> 22.1276622 | M58: ='Key Leads'!F194 -> 49 | N58: ='Key Leads'!T194 -> 2.37004058 | O58: ='Key Leads'!R194 -> 146.974685 | P58: 183.7183562
C59: A# 50 | D59: ='Key Leads'!I195 -> 7.378172104 | E59: ='Key Leads'!J195 -> 149.9846607 | F59: ='Key Leads'!F195 -> 49 | G59: ='Key Leads'!C195 -> 24.18 | H59: ='Key Leads'!L195 -> 2.91942029 | J59: A# 50 | K59: =Hammers!E55 -> 7.2 | L59: =Hammers!B55 -> 22.1276622 | M59: ='Key Leads'!F195 -> 49 | N59: ='Key Leads'!T195 -> 2.335536232 | O59: ='Key Leads'!R195 -> 146.974685 | P59: 183.7183562
C60: B 51 | D60: ='Key Leads'!I196 -> 7.315188505 | E60: ='Key Leads'!J196 -> 148.9206383 | F60: ='Key Leads'!F196 -> 49 | G60: ='Key Leads'!C196 -> 23.808 | H60: ='Key Leads'!L196 -> 2.876289855 | J60: B 51 | K60: =Hammers!E56 -> 7.2 | L60: =Hammers!B56 -> 22.1276622 | M60: ='Key Leads'!F196 -> 49 | N60: ='Key Leads'!T196 -> 2.301031884 | O60: ='Key Leads'!R196 -> 146.974685 | P60: 183.7183562
C61: C 52 | D61: ='Key Leads'!I197 -> 7.236459005 | E61: ='Key Leads'!J197 -> 147.5906104 | F61: ='Key Leads'!F197 -> 49 | G61: ='Key Leads'!C197 -> 23.343 | H61: ='Key Leads'!L197 -> 2.822376812 | J61: C 52 | K61: =Hammers!E57 -> 7.1 | L61: =Hammers!B57 -> 21.53703226 | M61: ='Key Leads'!F197 -> 49 | N61: ='Key Leads'!T197 -> 2.257901449 | O61: ='Key Leads'!R197 -> 145.2853208 | P61: 181.606651
C62: C# 53 | D62: ='Key Leads'!I198 -> 7.173475405 | E62: ='Key Leads'!J198 -> 146.526588 | F62: ='Key Leads'!F198 -> 49 | G62: ='Key Leads'!C198 -> 22.971 | H62: ='Key Leads'!L198 -> 2.779246377 | J62: C# 53 | K62: =Hammers!E58 -> 7 | L62: =Hammers!B58 -> 20.94640231 | M62: ='Key Leads'!F198 -> 49 | N62: ='Key Leads'!T198 -> 2.223397101 | O62: ='Key Leads'!R198 -> 143.5959566 | P62: 179.4949457
C63: D 54 | D63: ='Key Leads'!I199 -> 7.094745905 | E63: ='Key Leads'!J199 -> 145.19656 | F63: ='Key Leads'!F199 -> 49 | G63: ='Key Leads'!C199 -> 22.506 | H63: ='Key Leads'!L199 -> 2.725333333 | J63: D 54 | K63: =Hammers!E59 -> 6.9 | L63: =Hammers!B59 -> 20.35577237 | M63: ='Key Leads'!F199 -> 49 | N63: ='Key Leads'!T199 -> 2.180266667 | O63: ='Key Leads'!R199 -> 141.9065924 | P63: 177.3832405
C64: D# 55 | D64: ='Key Leads'!I200 -> 7.031762305 | E64: ='Key Leads'!J200 -> 144.1325376 | F64: ='Key Leads'!F200 -> 49 | G64: ='Key Leads'!C200 -> 22.134 | H64: ='Key Leads'!L200 -> 2.682202899 | J64: D# 55 | K64: =Hammers!E60 -> 6.9 | L64: =Hammers!B60 -> 20.35577237 | M64: ='Key Leads'!F200 -> 49 | N64: ='Key Leads'!T200 -> 2.145762319 | O64: ='Key Leads'!R200 -> 141.9065924 | P64: 177.3832405
C65: E 56 | D65: ='Key Leads'!I201 -> 6.953032805 | E65: ='Key Leads'!J201 -> 142.8025096 | F65: ='Key Leads'!F201 -> 49 | G65: ='Key Leads'!C201 -> 21.669 | H65: ='Key Leads'!L201 -> 2.628289855 | J65: E 56 | K65: =Hammers!E61 -> 6.6 | L65: =Hammers!B61 -> 18.58388254 | M65: ='Key Leads'!F201 -> 49 | N65: ='Key Leads'!T201 -> 2.102631884 | O65: ='Key Leads'!R201 -> 136.8384998 | P65: 171.0481248
C66: F 57 | D66: ='Key Leads'!I202 -> 6.874303306 | E66: ='Key Leads'!J202 -> 141.4724816 | F66: ='Key Leads'!F202 -> 49 | G66: ='Key Leads'!C202 -> 21.204 | H66: ='Key Leads'!L202 -> 2.574376812 | J66: F 57 | K66: =Hammers!E62 -> 6.5 | L66: =Hammers!B62 -> 17.9932526 | M66: ='Key Leads'!F202 -> 49 | N66: ='Key Leads'!T202 -> 2.059501449 | O66: ='Key Leads'!R202 -> 135.1491356 | P66: 168.9364195
C67: F# 58 | D67: ='Key Leads'!I203 -> 6.795573806 | E67: ='Key Leads'!J203 -> 140.1424537 | F67: ='Key Leads'!F203 -> 49 | G67: ='Key Leads'!C203 -> 20.739 | H67: ='Key Leads'!L203 -> 2.520463768 | J67: F# 58 | K67: =Hammers!E63 -> 6.4 | L67: =Hammers!B63 -> 17.40262266 | M67: ='Key Leads'!F203 -> 49 | N67: ='Key Leads'!T203 -> 2.016371014 | O67: ='Key Leads'!R203 -> 133.4597714 | P67: 166.8247143
C68: G 59 | D68: ='Key Leads'!I204 -> 6.716844306 | E68: ='Key Leads'!J204 -> 138.8124257 | F68: ='Key Leads'!F204 -> 49 | G68: ='Key Leads'!C204 -> 20.274 | H68: ='Key Leads'!L204 -> 2.466550725 | J68: G 59 | K68: =Hammers!E64 -> 6.3 | L68: =Hammers!B64 -> 16.81199271 | M68: ='Key Leads'!F204 -> 49 | N68: ='Key Leads'!T204 -> 1.97324058 | O68: ='Key Leads'!R204 -> 131.7704072 | P68: 164.713009
C69: G# 60 | D69: ='Key Leads'!I205 -> 6.638114806 | E69: ='Key Leads'!J205 -> 137.4823977 | F69: ='Key Leads'!F205 -> 49 | G69: ='Key Leads'!C205 -> 19.809 | H69: ='Key Leads'!L205 -> 2.412637681 | J69: G# 60 | K69: =Hammers!E65 -> 6.5 | L69: =Hammers!B65 -> 17.9932526 | M69: ='Key Leads'!F205 -> 49 | N69: ='Key Leads'!T205 -> 1.930110145 | O69: ='Key Leads'!R205 -> 135.1491356 | P69: 168.9364195
C70: A 61 | D70: ='Key Leads'!I206 -> 6.390074554 | E70: ='Key Leads'!J206 -> 133.2920945 | F70: ='Key Leads'!F206 -> 48 | G70: ='Key Leads'!C206 -> 19.344 | H70: ='Key Leads'!L206 -> 2.474666667 | J70: A 61 | K70: =Hammers!E66 -> 6.5 | L70: =Hammers!B66 -> 17.9932526 | M70: ='Key Leads'!F206 -> 48 | N70: ='Key Leads'!T206 -> 1.979733333 | O70: ='Key Leads'!R206 -> 135.1491356 | P70: 168.9364195
C71: A# 62 | D71: ='Key Leads'!I207 -> 6.295599154 | E71: ='Key Leads'!J207 -> 131.6960609 | F71: ='Key Leads'!F207 -> 48 | G71: ='Key Leads'!C207 -> 18.786 | H71: ='Key Leads'!L207 -> 2.409971014 | J71: A# 62 | K71: =Hammers!E67 -> 6.4 | L71: =Hammers!B67 -> 17.40262266 | M71: ='Key Leads'!F207 -> 48 | N71: ='Key Leads'!T207 -> 1.927976812 | O71: ='Key Leads'!R207 -> 133.4597714 | P71: 166.8247143
C72: B 63 | D72: ='Key Leads'!I208 -> 6.216869654 | E72: ='Key Leads'!J208 -> 130.3660329 | F72: ='Key Leads'!F208 -> 48 | G72: ='Key Leads'!C208 -> 18.321 | H72: ='Key Leads'!L208 -> 2.356057971 | J72: B 63 | K72: =Hammers!E68 -> 6.3 | L72: =Hammers!B68 -> 16.81199271 | M72: ='Key Leads'!F208 -> 48 | N72: ='Key Leads'!T208 -> 1.884846377 | O72: ='Key Leads'!R208 -> 131.7704072 | P72: 164.713009
C73: C 64 | D73: ='Key Leads'!I209 -> 6.122394255 | E73: ='Key Leads'!J209 -> 128.7699994 | F73: ='Key Leads'!F209 -> 48 | G73: ='Key Leads'!C209 -> 17.763 | H73: ='Key Leads'!L209 -> 2.291362319 | J73: C 64 | K73: =Hammers!E69 -> 6.3 | L73: =Hammers!B69 -> 16.81199271 | M73: ='Key Leads'!F209 -> 48 | N73: ='Key Leads'!T209 -> 1.833089855 | O73: ='Key Leads'!R209 -> 131.7704072 | P73: 164.713009
C74: C# 65 | D74: ='Key Leads'!I210 -> 6.043664755 | E74: ='Key Leads'!J210 -> 127.4399714 | F74: ='Key Leads'!F210 -> 48 | G74: ='Key Leads'!C210 -> 17.298 | H74: ='Key Leads'!L210 -> 2.237449275 | J74: C# 65 | K74: =Hammers!E70 -> 6.2 | L74: =Hammers!B70 -> 16.22136277 | M74: ='Key Leads'!F210 -> 48 | N74: ='Key Leads'!T210 -> 1.78995942 | O74: ='Key Leads'!R210 -> 130.081043 | P74: 162.6013038
C75: D 66 | D75: ='Key Leads'!I211 -> 5.949189355 | E75: ='Key Leads'!J211 -> 125.8439378 | F75: ='Key Leads'!F211 -> 48 | G75: ='Key Leads'!C211 -> 16.74 | H75: ='Key Leads'!L211 -> 2.172753623 | J75: D 66 | K75: =Hammers!E71 -> 6 | L75: =Hammers!B71 -> 15.04010288 | M75: ='Key Leads'!F211 -> 48 | N75: ='Key Leads'!T211 -> 1.738202899 | O75: ='Key Leads'!R211 -> 126.7023146 | P75: =O75/0.8 -> 158.3778933
C76: D# 67 | D76: ='Key Leads'!I212 -> 5.854713955 | E76: ='Key Leads'!J212 -> 124.2479042 | F76: ='Key Leads'!F212 -> 48 | G76: ='Key Leads'!C212 -> 16.182 | H76: ='Key Leads'!L212 -> 2.108057971 | J76: D# 67 | K76: =Hammers!E72 -> 5.8 | L76: =Hammers!B72 -> 13.858843 | M76: ='Key Leads'!F212 -> 48 | N76: ='Key Leads'!T212 -> 1.686446377 | O76: ='Key Leads'!R212 -> 123.3235863 | P76: 154.1544828
C77: E 68 | D77: ='Key Leads'!I213 -> 5.760238556 | E77: ='Key Leads'!J213 -> 122.6518706 | F77: ='Key Leads'!F213 -> 48 | G77: ='Key Leads'!C213 -> 15.624 | H77: ='Key Leads'!L213 -> 2.043362319 | J77: E 68 | K77: =Hammers!E73 -> 5.8 | L77: =Hammers!B73 -> 13.858843 | M77: ='Key Leads'!F213 -> 48 | N77: ='Key Leads'!T213 -> 1.634689855 | O77: ='Key Leads'!R213 -> 123.3235863 | P77: 154.1544828
C78: F 69 | D78: ='Key Leads'!I214 -> 5.665763156 | E78: ='Key Leads'!J214 -> 121.0558371 | F78: ='Key Leads'!F214 -> 48 | G78: ='Key Leads'!C214 -> 15.066 | H78: ='Key Leads'!L214 -> 1.978666667 | J78: F 69 | K78: =Hammers!E74 -> 5.6 | L78: =Hammers!B74 -> 12.67758311 | M78: ='Key Leads'!F214 -> 48 | N78: ='Key Leads'!T214 -> 1.582933333 | O78: ='Key Leads'!R214 -> 119.9448579 | P78: 149.9310723
C79: F# 70 | D79: ='Key Leads'!I215 -> 5.555541856 | E79: ='Key Leads'!J215 -> 119.1937979 | F79: ='Key Leads'!F215 -> 48 | G79: ='Key Leads'!C215 -> 14.415 | H79: ='Key Leads'!L215 -> 1.903188406 | J79: F# 70 | K79: =Hammers!E75 -> 5.6 | L79: =Hammers!B75 -> 12.67758311 | M79: ='Key Leads'!F215 -> 48 | N79: ='Key Leads'!T215 -> 1.522550725 | O79: ='Key Leads'!R215 -> 119.9448579 | P79: 149.9310723
C80: G 71 | D80: ='Key Leads'!I216 -> 5.461066456 | E80: ='Key Leads'!J216 -> 117.5977643 | F80: ='Key Leads'!F216 -> 48 | G80: ='Key Leads'!C216 -> 13.857 | H80: ='Key Leads'!L216 -> 1.838492754 | J80: G 71 | K80: =Hammers!E76 -> 5.5 | L80: =Hammers!B76 -> 12.08695317 | M80: ='Key Leads'!F216 -> 48 | N80: ='Key Leads'!T216 -> 1.470794203 | O80: ='Key Leads'!R216 -> 118.2554937 | P80: 147.8193671
C81: G# 72 | D81: ='Key Leads'!I217 -> 5.366591057 | E81: ='Key Leads'!J217 -> 116.0017307 | F81: ='Key Leads'!F217 -> 48 | G81: ='Key Leads'!C217 -> 13.299 | H81: ='Key Leads'!L217 -> 1.773797101 | J81: G# 72 | K81: =Hammers!E77 -> 5.3 | L81: =Hammers!B77 -> 10.90569328 | M81: ='Key Leads'!F217 -> 48 | N81: ='Key Leads'!T217 -> 1.419037681 | O81: ='Key Leads'!R217 -> 114.8767653 | P81: 143.5959566
C82: A 73 | D82: ='Key Leads'!I218 -> 5.087059005 | E82: ='Key Leads'!J218 -> 111.2794163 | F82: ='Key Leads'!F218 -> 47 | G82: ='Key Leads'!C218 -> 12.648 | H82: ='Key Leads'!L218 -> 1.81426087 | J82: A 73 | K82: =Hammers!E78 -> 5.3 | L82: =Hammers!B78 -> 10.90569328 | M82: ='Key Leads'!F218 -> 47 | N82: ='Key Leads'!T218 -> 1.451408696 | O82: ='Key Leads'!R218 -> 114.8767653 | P82: 143.5959566
C83: A# 74 | D83: ='Key Leads'!I219 -> 4.992583605 | E83: ='Key Leads'!J219 -> 109.6833828 | F83: ='Key Leads'!F219 -> 47 | G83: ='Key Leads'!C219 -> 12.09 | H83: ='Key Leads'!L219 -> 1.749565217 | J83: A# 74 | K83: =Hammers!E79 -> 5 | L83: =Hammers!B79 -> 9.133803451 | M83: ='Key Leads'!F219 -> 47 | N83: ='Key Leads'!T219 -> 1.399652174 | O83: ='Key Leads'!R219 -> 109.8086727 | P83: 137.2608409
C84: B 75 | D84: ='Key Leads'!I220 -> 4.882362305 | E84: ='Key Leads'!J220 -> 107.8213436 | F84: ='Key Leads'!F220 -> 47 | G84: ='Key Leads'!C220 -> 11.439 | H84: ='Key Leads'!L220 -> 1.674086957 | J84: B 75 | K84: =Hammers!E80 -> 5.1 | L84: =Hammers!B80 -> 9.724433394 | M84: ='Key Leads'!F220 -> 47 | N84: ='Key Leads'!T220 -> 1.339269565 | O84: ='Key Leads'!R220 -> 111.4980369 | P84: 139.3725461
C85: C 76 | D85: ='Key Leads'!I221 -> 4.772141005 | E85: ='Key Leads'!J221 -> 105.9593044 | F85: ='Key Leads'!F221 -> 47 | G85: ='Key Leads'!C221 -> 10.788 | H85: ='Key Leads'!L221 -> 1.598608696 | J85: C 76 | K85: =Hammers!E81 -> 5.2 | L85: =Hammers!B81 -> 10.31506334 | M85: ='Key Leads'!F221 -> 47 | N85: ='Key Leads'!T221 -> 1.278886957 | O85: ='Key Leads'!R221 -> 113.1874011 | P85: 141.4842514
C86: C# 77 | D86: ='Key Leads'!I222 -> 4.677665606 | E86: ='Key Leads'!J222 -> 104.3632708 | F86: ='Key Leads'!F222 -> 47 | G86: ='Key Leads'!C222 -> 10.23 | H86: ='Key Leads'!L222 -> 1.533913043 | J86: C# 77 | K86: =Hammers!E82 -> 5.2 | L86: =Hammers!B82 -> 10.31506334 | M86: ='Key Leads'!F222 -> 47 | N86: ='Key Leads'!T222 -> 1.227130435 | O86: ='Key Leads'!R222 -> 113.1874011 | P86: 141.4842514
C87: D 78 | D87: ='Key Leads'!I223 -> 4.567444306 | E87: ='Key Leads'!J223 -> 102.5012317 | F87: ='Key Leads'!F223 -> 47 | G87: ='Key Leads'!C223 -> 9.579 | H87: ='Key Leads'!L223 -> 1.458434783 | J87: D 78 | K87: =Hammers!E83 -> 4.9 | L87: =Hammers!B83 -> 8.543173508 | M87: ='Key Leads'!F223 -> 47 | N87: ='Key Leads'!T223 -> 1.166747826 | O87: ='Key Leads'!R223 -> 108.1193085 | P87: 135.1491356
C88: D# 79 | D88: ='Key Leads'!I224 -> 4.457223006 | E88: ='Key Leads'!J224 -> 100.6391925 | F88: ='Key Leads'!F224 -> 47 | G88: ='Key Leads'!C224 -> 8.928 | H88: ='Key Leads'!L224 -> 1.382956522 | J88: D# 79 | K88: =Hammers!E84 -> 4.8 | L88: =Hammers!B84 -> 7.952543564 | M88: ='Key Leads'!F224 -> 47 | N88: ='Key Leads'!T224 -> 1.106365217 | O88: ='Key Leads'!R224 -> 106.4299443 | P88: 133.0374304
C89: E 80 | D89: ='Key Leads'!I225 -> 4.362747606 | E89: ='Key Leads'!J225 -> 99.04315892 | F89: ='Key Leads'!F225 -> 47 | G89: ='Key Leads'!C225 -> 8.37 | H89: ='Key Leads'!L225 -> 1.31826087 | J89: E 80 | K89: =Hammers!E85 -> 4.7 | L89: =Hammers!B85 -> 7.361913621 | M89: ='Key Leads'!F225 -> 47 | N89: ='Key Leads'!T225 -> 1.054608696 | O89: ='Key Leads'!R225 -> 104.7405801 | P89: 130.9257251
